Workbook

Sheet Cover
A1: 30
C13: Rate Analysis Model V1.01
C14: RAMmodel_REP2022.xls
C15: Home / Contents
C16: Start Here
C17: Scenario Builder
C18: Purpose of this Workbook:
C22: Legend:
C24: Tab Colors | H24: Font Colors | L24: Hyperlink Types
C26: Blue Tab | E26: Cover Sheet | H26: Blue Font | I26: Constant Values | L26: Cover Hyperlink | N26: Cover Page
C27: Green Tab | E27: Table of Contents | H27: Black Font | I27: Calculated Values | L27: TOC Hyperlink | N27: TOC
C28: Dark Blue Tabs | E28: Input Sheets | H28: Plum Font | I28: Hyperlinks | L28: Sheet Top Hyperlink | N28: é
C29: Rose Tabs | E29: Assumption Sheets | H29: Red Font | I29: Errors/Checks
C30: Tan Tabs | E30: Calculation/Output Sheets | H30: Black/Yellow | I30: Work in Progress
C31: Teal Tabs | E31: Lookup Sheets | H31: Black/Gold | I31: Modifiable Assumptions
C32: Reb Tabs | E32: Log/Error Sheet | H32: White/Grey | I32: Locked Data
C33: Black Tabs | E33: Locked Data Sheet
C34: Yellow Tabs | E34: REP Settlement Sheets
C35: Purple Tabs | E35: 7b2 Related Sheets

Sheet TOC
A1: 30 | B1: Table of Contents
B2: =Cover!C13 -> Rate Analysis Model V1.01
B3: =Cover!$C$14 -> RAMmodel_REP2022.xls
B4: Cover Sheet | F4: PRS | G4: 7(b)(2)
E5: Input | F5: Documentation | G5: Documentation
A6: é | B6: Section & Sheet Titles | D6: Worksheet Name | E6: Datasheet? | F6: Table Number | G6: Table Number
B8: Documentation
B9: 1 | C9: Macro Design Schematic | D9: Macro
B10: Assumption Sheets
B11: =+B9+1 -> 2 | C11: Initialize Assumptions | D11: Init | E11: INPUT
B12: Validation/Error Check/Result Summary
B13: =B11+1 -> 3 | C13: Revenue Check | D13: Rev Check
B14: =+B13+1 -> 4 | C14: Rate Design Summary | D14: RateSummary
B15: 5 | C15: Scenario Results | D15: ScenarioResults
B16: 6 | C16: Expanded Scenario Results | D16: ResultsDetail
B17: Loads and Resources Data
B18: =+B16+1 -> 7 | C18: Load Input Data | D18: Loads | E18: INPUT | F18: Table 2.1.1 | G18: Table 1.1.1
B19: =+B18+1 -> 8 | C19: Load Forecast with Monthly Losses Applied | D19: Loads_MthLoss | E19: INPUT | H19: new
B20: =+B19+1 -> 9 | C20: PF Public with Firm Slice Loads | D20: PF Public | E20: INPUT
B21: =+B20+1 -> 10 | C21: PF Exchange Loads | D21: PF Exchange | E21: INPUT
B22: 11 | C22: IP Loads | D22: RAM IP | E22: INPUT
B23: 12 | C23: NR Loads | D23: RAM NR | E23: INPUT
B24: =+B23+1 -> 13 | C24: Resource Input Data | D24: Resources | E24: INPUT | F24: Table 2.1.2 | G24: Table 1.1.2
B25: 14 | C25: Residential Exchange Input Data | D25: ExchangeInputs | E25: INPUT
B26: =+B25+1 -> 15 | C26: Transmission Inputs | D26: TransInputs | E26: INPUT
B27: =+B26+1 -> 16 | C27: Transmission Losses Inputs | D27: LossesInput | E27: INPUT | H27: new
B28: =+B27+1 -> 17 | C28: REP Settlement Inputs | D28: REPSettlementSchedule
B29: =+B28+1 -> 18 | C29: Calculation of Exchange Transmission Adder | D29: Exchange Trans
B30: 19 | C30: Calculation of Exchange Resource Size and Costs | D30: Exchange Summary | F30: Table 2.1.3 | G30: Table 1.1.3
B31: =+B30+1 -> 20 | C31: Load Resource Study | D31: LR_Balance | F31: Table 2.2.1 | G31: Table 1.2.1
B32: =+B31+1 -> 21 | C32: Load Resource Balance | D32: LR_Adjust | F32: Table 2.2.2 | G32: Table 1.2.2
B33: 22 | C33: Program Case Energy Allocation Factors | D33: ProgAlloc | F33: Table 2.2.3 | G33: Table 1.2.3
B34: Determination of Active Residential Exchange Costs
B35: =+B33+1 -> 23 | C35: Active Exchanging Utilities | D35: Active Exchange
B36: 24 | C36: Exchanging Utilities' ASCs | D36: Exchange ASC
B37: 25 | C37: Exchanging Utilities' Exchange Loads | D37: Exchange Load
B38: 26 | C38: Exchange Resource Costs | D38: Exchange Resource Cost
B39: Ratemaking Revenue Requirement Data
B40: =+B38+1 -> 27 | C40: Disaggregated Costs with TRM and COSA Flags | D40: Cost | E40: INPUT
B41: =+B40+1 -> 28 | C41: Disaggregated Costs with TRM and COSA Flags, Includes Internally Developed Costs | D41: CostPrint | F41: Table 2.3.1 | G41: Table 1.3.1
B42: =+B41+1 -> 29 | C42: Aggregated COSA Costs | D42: ProgCOSA | F42: Table 2.3.2 | G42: Table 1.3.2
B43: =+B42+1 -> 30 | C43: LDD and IRD Costs | D43: LDD_IRD | F43: Table 2.3.3 | G43: Table 1.3.3
B44: Allocation of COSA Costs to Rate Pools
B45: =+B43+1 -> 31 | C45: Allocation of FBS and LDD/IRD Costs | D45: FBS_LDD_IRD_Allocation | F45: Table 2.3.4.1 | G45: Table 1.3.4.1
B46: =+B45+1 -> 32 | C46: Allocation of New Resource and Exchange Costs | D46: NR_EX_Allocation | F46: Table 2.3.4.2 | G46: Table 1.3.4.2
B47: =+B46+1 -> 33 | C47: Allocation of Conservation, BPA Program and Transmission Costs | D47: Cons_Program_Allocation | F47: Table 2.3.4.3 | G47: Table 1.3.4.3
B48: =+B47+1 -> 34 | C48: Initial Cost Allocation | D48: Initial_Cost_Allocation | F48: Table 2.3.5 | G48: Table 1.3.5
B49: =+B48+1 -> 35 | C49: Cost Allocation Summary | D49: Cost_Allocation Summary
B50: Revenue Credits Allocation to Rate Pools
B51: =+B49+1 -> 36 | C51: Revenue Credits | D51: RDS_Credits | F51: Table 2.3.6 | G51: Table 1.3.6
B52: =+B51+1 -> 37 | C52: Revenue Credits Allocated to Loads Recovering FBS Costs | D52: Credits FBS | F52: Tables 2.3.7.1 & 2.3.7.2 | G52: Tables 1.3.7.1 & 1.3.7.2
B53: 38 | C53: Revenue Credits Allocated to Loads Recovering New Resource and Conservation Costs | D53: Credits NR-Cons | F53: Tables 2.3.7.3 & 2.3.7.4 | G53: Tables 1.3.7.3 & 1.3.7.4
B54: 39 | C54: Revenue Credits Allocated to All Loads | D54: Credits Gen-RSS | F54: Tables 2.3.7.5 & 2.3.7.6 | G54: Tables 1.3.7.5 & 1.3.7.6
B55: 40 | C55: Secondary Revenue and Balancing Purchases Input Data | D55: RevSimInputs | E55: INPUT
B56: 41 | C56: Calculation and Allocation of Secondary Revenue Credit | D56: Secondary | F56: Table 2.3.8 | G56: Table 1.3.8
B57: 42 | C57: Calculation and Allocation of FPS Revenue Deficiency | D57: FPS Revenue Deficiency | F57: Table 2.3.9 | G57: Table 1.3.9
B58: Rate Directive Ratemaking
B59: =+B57+1 -> 43 | C59: Calculation of Rates After Initial Allocation of Cost and Credits | D59: Initial Rates | F59: Table 2.3.10 | G59: Table 1.3.10
B60: =+B59+1 -> 44 | C60: Value of Reserves and Industrial Margin Computation | D60: Margin_VOR
B61: 45 | C61: Value of Reserves and Industrial Margin Computation | D61: Margin_VOR_Calc | F61: Table 2.4.1 | G61: Table 1.4.1
B62: 46 | C62: Calculate Annual Scalars Used to Calculate Monthly Rates for First IP-PF Link | D62: Calc Scalar 1 | F62: Table 2.4.2 | G62: Table 1.4.2
B63: 47 | C63: Calculate Monthly Rates Used in First IP - PF Link Calculation | D63: Calc Monthly 1 | F63: Table 2.4.3 | G63: Table 1.4.3
B64: 48 | C64: Calculation of the 7c2 IP-PF Link Amount | D64: IP_PF_Link | F64: Table 2.4.4 | G64: Table 1.4.4
B65: 49 | C65: Allocation of the 7c2 IP-PF Link Amount and Subsequant Rate Calculations | D65: Rates After Link | F65: Table 2.4.5 | G65: Table 1.4.5
B66: 50 | C66: Calculation of the DSI Floor Rate | D66: IP Floor Calc | F66: Table 2.4.6 | G66: Table 1.4.6
B67: 51 | C67: DSI Floor Rate Test 1 | D67: Floor Test 1 | F67: Table 2.4.7 | G67: Table 1.4.7
B68: =B67+1 -> 52 | C68: Calculation of IOU and COU Base Exchange Rates | D68: Base PF Exchange | F68: Table 2.4.8 | G68: Table 1.4.8
B69: REP Settlement Case Rate Directive Ratemaking
B70: =+B68+1 -> 53 | C70: Calculation of REP Adjustment Amount under Settlement | D70: Post-7b2Rates | F70: Table 2.4.9
B71: =B70+1 -> 54 | C71: Rate Analysis Model - Exchange Resource Cost | D71: Base Exchange Cost | F71: Table 2.4.10
B72: =B71+1 -> 55 | C72: Calculation of Settlement Utility Specific PF Exchange Rates | D72: Utility Specific PFx Settle | F72: Table 2.4.11
B73: =+B72+1 -> 56 | C73: 2012 REP Settlement Agreement Section 6 Reallocations | D73: IOU Reallocation Balances | F73: Table 2.4.12
B74: =+B73+1 -> 57 | C74: Allocation of Increase in the PFx Revenue Requirement under Settlement | D74: Rates After Settlement | F74: Table 2.4.13
B75: 58 | C75: Reallocation of REP Net Benefits under Settlement | D75: WP-10 Adjustment | F75: Table 2.4.14
B76: 59 | C76: Rate Computation after Reallocation of REP Benefits under Settlement | D76: Rates After WP-10 Adjustment | F76: Table 2.4.15
B77: 60 | C77: Calculate Annual Scalars Used to Calculate Monthly Rates | D77: Calc Scalar Settlement | F77: Table 2.4.16
B78: 61 | C78: Calculate Monthly Rates Used in First IP - PF Link Calculation | D78: Calc Monthly Settlement | F78: Table 2.4.17
B79: 62 | C79: Initial 7c2 IP-PF Link Calculation | D79: IP_PF_Link Settlement | F79: Table 2.4.18
B80: 63 | C80: Calculation of Rates after IP-PF Link under Settlement | D80: Rates After Link Settlement | F80: Table 2.4.19
B81: 64 | C81: Settlement Revenue Check | D81: Settlement Rev Check
B82: =+B81+1 -> 65 | C82: Net REP Ratemaking Proof Table under Settlement | D82: Net REP Settlement | F82: Table 3.1.7.1
B83: Program Case Rate Directive Ratemaking
B84: =+B82+1 -> 66 | C84: Calculation of the 7b2 Rate Test Trigger | D84: TriggerCalc | G84: Table 1.4.9
B85: =+B84+1 -> 67 | C85: Calculation and Allocation of the 7b2 Rate Protection Amount | D85: 7b2 Allocation | G85: Table 1.4.10
B86: 68 | C86: Calculation of Rates After the Allocation of the 7b2 Rate Protection Amount | D86: Rates After 7b2 | G86: Table 1.4.11
B87: 69 | C87: Calculate Annual Scalars Used to Calculate Monthly Rates for 7b2 Industrial Adjustment 7c2 Delta | D87: Calc Scalar 2 | G87: Table 1.4.12
B88: 70 | C88: Calculate Monthly Rates Used in 7b2 Industrial Adjustment 7c2 Delta | D88: Calc Monthly 2 | G88: Table 1.4.13
B89: 71 | C89: Calculation of the 7b2 Industrial Adjustment 7c2 Delta | D89: IP_PF_Link 2 | G89: Table 1.4.14
B90: 72 | C90: Allocation of the 7b2 Industrial Adjustment 7c2 Delta and Subsequant Rate Calculations | D90: Rates After Link (2) | G90: Table 1.4.15
B91: 73 | C91: DSI Floor Rate Test 2 | D91: Floor Test 2 | G91: Table 1.4.16
B92: 74 | C92: Calculation of Utility Specific PF Exchange Rates | D92: Utility Specifc PFx
B93: 75 | C93: Program Case Revenue Check | D93: Program Rev Check
B94: Rate Pool Unit Cost Tables and Net REP Ratemaking Proof
B95: =+B93+1 -> 76 | C95: PF Rate Pool Unit Cost Table | D95: PF Allocation | F95: Table 2.5.1 | G95: Table 1.5.4
B96: =+B95+1 -> 77 | C96: IP Rate Pool Unit Cost Table | D96: IP Allocation | F96: Table 2.5.2 | G96: Table 1.5.5
B97: =+B96+1 -> 78 | C97: NR Rate Pool Unit Cost Table | D97: NR Allocation | F97: Table 2.5.3 | G97: Table 1.5.6
B98: =+B97+1 -> 79 | C98: Generating Resource Component Contribution Table | D98: Cost Contribution | F98: Table 2.5.4 | G98: Table 1.5.7
B99: =+B98+1 -> 80 | C99: Net REP Ratemaking Proof Table | D99: Net REP
B100: =+B99+1 -> 81 | C100: Reconciliation of REP Benefits for Tiered Rates | D100: REP Benefits | F100: Table 2.4.20
B101: Tiered Rates Methodology (TRM)
B102: =+B100+1 -> 82 | C102: Aggregated TRM Costs | D102: Costs_TRM | F102: Table 3.1.1
B103: =+B102+1 -> 83 | C103: TRM Billing Determinants | D103: TRM_Billing | E103: INPUT
B104: 84 | C104: Unused RHWM Calculation | D104: UnusedRHWM | F104: Table 3.1.2
B105: 85 | C105: NonSlice Cost for Transmission Losses (Composite Credit) | D105: NonSliceLossAdjust | F105: Table 3.1.3
B106: =+B105+1 -> 86 | C106: Balancing Augmentation Adjustment for Change in T1SFCO | D106: T1SFCO | F106: Table 3.1.4
B107: 87 | C107: TRM Market Prices and Demand Rates | D107: MarketInputs | E107: INPUT
B108: 88 | C108: TRM Demand and Load Shaping Charges | D108: LoadShapingandDemand | F108: Table 3.1.5
B109: 89 | C109: PF Load Forecast Deviation Liquidated Damages | D109: LiquidatedDamages | E109: INPUT | F109: Table 3.12
B110: 90 | C110: Tier 2 Rates Inputs | D110: Tier 2 Rates | E110: INPUT
B111: 91 | C111: Sales Calculation for Tier 2 Overhead Cost Adder | D111: Tier2OverheadSales
B112: 92 | C112: TRM Cost Allocation | D112: Cost_Allocation_TRM | F112: Table 3.1.6
B113: 93 | C113: Cost Proof | D113: Cost_Proof | F113: Table 3.1.7.2
B114: 94 | C114: Transfer Service and Unauthorized Increase Charge Inputs | D114: TransferUAIinputs | E114: INPUT
B115: 95 | C115: Transfer Service Charges and Rates | D115: TransferService | E115: INPUT | F115: Table 6.1
B116: 7b2 Case Loads
B117: =+B115+1 -> 96 | C117: 7b2 Conservation Loads | D117: 7b2 Con Load
B118: =+B117+1 -> 97 | C118: 7b2 PF Loads | D118: 7b2 PF Load | G118: Table 2.1
B119: 7b2 Case Loads/Resource Balance and Resource Stack Utilization
B120: =+B118+1 -> 98 | C120: 7b2 Resource Stack | D120: 7b2 Resource Sort | E120: INPUT | G120: Table 2.2.2
B121: =+B120+1 -> 99 | C121: List of Available Resources | D121: 7b2 Resources1 | G121: Table 2.2.3
B122: 100 | C122: Determination of Resources Selected from Resource Stack | D122: 7b2 Resources2 | G122: Table 2.2.9
B123: 101 | C123: Resources Sorted by Least Cost | D123: ConservRes1
B124: 102 | C124: Conservation Resources Selected | D124: ConservRes2 | G124: Table 2.2.4
B125: 103 | C125: Real 2010 Dollar Cost of Resources Selected | D125: ConservRes3 | G125: Table 2.2.5
B126: 104 | C126: Nominal Amortized Cost of Expensed Portion of Conservation Resources Selected | D126: ConservRes4 | G126: Table 2.2.6
B127: 105 | C127: Nominal Annual Cost of Capital Portion of Conservation Resources Selected | D127: ConservRes5 | G127: Table 2.2.7
B128: 106 | C128: Nominal Cost of Non-Conservation Resources Selected | D128: ConservRes6
B129: 107 | C129: Nominal Total Cost of Resources Selected | D129: ConservRes7 | G129: Table 2.2.8
B130: 7b2 Case Rate Directive Ratemaking
B131: =B129+1 -> 108 | C131: 7b2 Case COSA Table | D131: 7b2COSA | G131: Table 2.3.1
B132: =B131+1 -> 109 | C132: 7b2 Case Energy Allocaction Factors | D132: 7b2Alloc | G132: Table 2.2.1
B133: 110 | C133: 7b2 Case FBS and Resource Stack Cost Allocation | D133: 7b2 FBS_Stack_Allo | G133: Table 2.3.2.1
B134: 111 | C134: 7b2 Case LDD/IRD and Reserve Cost Allocation | D134: 7b2 LDD_IRD_Reserve_Allo | G134: Table 2.3.2.2
B135: 112 | C135: 7b2 Case Programs and Transmission Cost Allocation | D135: 7b2 Program_Trans_Allo | G135: Table 2.3.2.3
B136: 113 | C136: 7b2 Case Initial Net Cost Alloction | D136: 7b2 Initial_Cost_Allo | G136: Table 2.3.3
B137: 114 | C137: 7b2 Case Revenue Credit Summary | D137: 7b2 RDS_Credits | G137: Table 2.3.4
B138: 115 | C138: 7b2 Case Revenue Credits Allocated to Loads Served by FBS Resources | D138: 7b2 Credits FBS | G138: Tables 2.3.5.1 & 2.3.5.2
B139: 116 | C139: 7b2 Case Revenue Credits Allocated to All Loads | D139: 7b2 Credits Gen-RSS | G139: Tables 2.3.5.3
B140: 117 | C140: 7b2 Case Calculation and Allocation of Secondary Revenue | D140: 7b2 Secondary | G140: Table 2.3.6
B141: 118 | C141: 7b2 Case FPS Revenue Deficiency Calculation and Allocation | D141: 7b2 FPS Revenue Deficiency
B142: 119 | C142: Calculation of 7b2 Case Rates | D142: 7b2 Rates
B143: =B142+1 -> 120 | C143: 7b2 Case Revenue Check | D143: 7b2 Rev Check
B144: Rate Case Two Year Rate Period Rates Calculations
B145: =+B143+1 -> 121 | C145: Ave. Tier 1 PF Public Rate | D145: PFAveT1_RateOutput
B146: =+B145+1 -> 122 | C146: PF Melded Equivalent Rate | D146: PFMeldedEqv_RateOutput
B147: 123 | C147: IP Rate | D147: IP_RateOutput | F147: Table 3.1.8.1 | G147: Table 1.5.1
B148: 124 | C148: NR Rate | D148: NR_RateOutput | F148: Table 3.1.8.2
B149: 125 | C149: Load Shaping True-up & Tier 1 Equivalent Rates | D149: LSTUR&PFT1Eqv_RateOutput | F149: Table 3.1.8.3 | G149: Table 1.5.2
B150: 126 | C150: Unbifurcated PF Rate | D150: Unbif PF_RateOutput | F150: Table 3.1.8.4 | G150: Table 1.5.3
B151: 127 | C151: PF Exchange Rate | D151: PF Exchange_RateOutput | F151: Table 3.1.8.5
B152: 128 | C152: Flat Melded Equivalent PF Public Rate | D152: FlatPFMeldedEqv_RateOutput
B153: Outputs and Checks
B154: =+B152+1 -> 129 | C154: RiskMod Output | D154: RiskMod_Out
B155: =+B154+1 -> 130 | C155: Revenue Requirement Output | D155: RROutput
B156: =+B155+1 -> 131 | C156: Rates Output New | D156: RatesOutputNew
B157: 132 | C157: Revenue Requirement Mapping | D157: RevReqMapping
B158: 133 | C158: Summary | D158: Summary
B159: 134 | C159: Net Revenue | D159: NetRevenue
B160: 135 | C160: Slice True Up Calculation | D160: SliceTrueUp
B161: 136 | C161: Tables | D161: Tables

Sheet Macro
B1: Rate Analysis Model - PF Scenario Load Delta Designations | R1: Not printed in documentation.
A2: TOC | B2: =Cover!$C$14 -> RAMmodel_REP2022.xls
A3: é
I4: RAM Macro Diagram

Sheet Rev Check
B1: Rate Analysis Model - Modeling Steps Revenue Check | K1: Not printed in documentation.
A2: TOC | B2: =Cover!$C$14 -> RAMmodel_REP2022.xls | K2: =IF(Init!$C$13="Yes","Results Under Settlement","Results while Running 7b2 Rate Test") -> Results Under Settlement
A3: é
C4: Costs
C5: Before 7b2 Revenue Requirements | D5: =+Init!C9 -> 2022 | E5: =+D5+1 -> 2023 | F5: =+E5+1 -> 2024 | G5: =+F5+1 -> 2025 | H5: =+G5+1 -> 2026 | I5: =+H5+1 -> 2027
C6: FBS | D6: =FBS_LDD_IRD_Allocation!C5 -> 1886749.76 | E6: =FBS_LDD_IRD_Allocation!D5 -> 1939848.825 | F6: =FBS_LDD_IRD_Allocation!E5 -> 2099215.175 | G6: =FBS_LDD_IRD_Allocation!F5 -> 1976424.616 | H6: =FBS_LDD_IRD_Allocation!G5 -> 2018922.748 | I6: =FBS_LDD_IRD_Allocation!H5 -> 1995134.592
C7: NR | D7: =FBS_LDD_IRD_Allocation!C6 -> 54275.70639 | E7: =FBS_LDD_IRD_Allocation!D6 -> 50117.13236 | F7: =FBS_LDD_IRD_Allocation!E6 -> 52596.07615 | G7: =FBS_LDD_IRD_Allocation!F6 -> 47636.9677 | H7: =FBS_LDD_IRD_Allocation!G6 -> 52471.55253 | I7: =FBS_LDD_IRD_Allocation!H6 -> 47277.17329
C8: Exchange | D8: =FBS_LDD_IRD_Allocation!C7-D13 -> 3017507.126 | E8: =FBS_LDD_IRD_Allocation!D7-E13 -> 3018273.193 | F8: =FBS_LDD_IRD_Allocation!E7-F13 -> 3183494.636 | G8: =FBS_LDD_IRD_Allocation!F7-G13 -> 3182991.714 | H8: =FBS_LDD_IRD_Allocation!G7-H13 -> 3357699.565 | I8: =FBS_LDD_IRD_Allocation!H7-I13 -> 3366372.313
C9: Conservation | D9: =FBS_LDD_IRD_Allocation!C8 -> 199258.9007 | E9: =FBS_LDD_IRD_Allocation!D8 -> 189236.6453 | F9: =FBS_LDD_IRD_Allocation!E8 -> 184260.3273 | G9: =FBS_LDD_IRD_Allocation!F8 -> 175092.9329 | H9: =FBS_LDD_IRD_Allocation!G8 -> 171533.0577 | I9: =FBS_LDD_IRD_Allocation!H8 -> 162355.8258
C10: BPA Programs | D10: =FBS_LDD_IRD_Allocation!C9+FBS_LDD_IRD_Allocation!C10 -> 350683.5473 | E10: =FBS_LDD_IRD_Allocation!D9+FBS_LDD_IRD_Allocation!D10 -> 351968.1951 | F10: =FBS_LDD_IRD_Allocation!E9+FBS_LDD_IRD_Allocation!E10 -> 368172.138 | G10: =FBS_LDD_IRD_Allocation!F9+FBS_LDD_IRD_Allocation!F10 -> 365478.7286 | H10: =FBS_LDD_IRD_Allocation!G9+FBS_LDD_IRD_Allocation!G10 -> 384963.4919 | I10: =FBS_LDD_IRD_Allocation!H9+FBS_LDD_IRD_Allocation!H10 -> 381777.3866
C13: Transmission to Deliver Exchange Sale | D13: =ExchangeInputs!$D$5*'PF Exchange'!D61 -> 270554.6734 | E13: =ExchangeInputs!$D$5*'PF Exchange'!E61 -> 270643.4736 | F13: =ExchangeInputs!$D$5*'PF Exchange'!F61 -> 264057.2816 | G13: =ExchangeInputs!$D$5*'PF Exchange'!G61 -> 264003.66 | H13: =ExchangeInputs!$D$5*'PF Exchange'!H61 -> 264831.9711 | I13: =ExchangeInputs!$D$5*'PF Exchange'!I61 -> 265503.916
C15: Sub total | D15: =SUM(D6:D13) -> 5779029.713 | E15: 5820087.465 | F15: 6151795.634 | G15: 6011628.619 | H15: 6250422.386 | I15: 6218421.207
C17: Low Density Discount and IRD Expense | D17: =FBS_LDD_IRD_Allocation!C11 -> 59991.51205 | E17: =FBS_LDD_IRD_Allocation!D11 -> 60518.87587 | F17: =FBS_LDD_IRD_Allocation!E11 -> 60255.19396 | G17: =FBS_LDD_IRD_Allocation!F11 -> 60255.19396 | H17: =FBS_LDD_IRD_Allocation!G11 -> 60255.19396 | I17: =FBS_LDD_IRD_Allocation!H11 -> 60255.19396
C19: Annual Revenue Requirement Grand Total | D19: =SUM(D15:D17) -> 5839021.225 | E19: 5880606.34 | F19: 6212050.828 | G19: 6071883.813 | H19: 6310677.58 | I19: 6278676.401
C22: Revenue Credits
C23: Forecast of Secondary Revenues | D23: =Secondary!D29 -> 526230.1606 | E23: =Secondary!E29 -> 501342.927 | F23: =Secondary!F29 -> 499654.1231 | G23: =Secondary!G29 -> 491239.1717 | H23: =Secondary!H29 -> 506263.8522 | I23: =Secondary!I29 -> 498143.6633
C24: Expected Revenue from FPS Contract Sales | D24: =-('FPS Revenue Deficiency'!C12) -> 85544.99293 | E24: =-('FPS Revenue Deficiency'!D12) -> 51001.17528 | F24: =-('FPS Revenue Deficiency'!E12) -> 71122.28461 | G24: =-('FPS Revenue Deficiency'!F12) -> 67837.41844 | H24: =-('FPS Revenue Deficiency'!G12) -> 72346.52065 | I24: =-('FPS Revenue Deficiency'!H12) -> 69194.16681
C25: Expected Revenue from System Obligations | D25: =-RDS_Credits!C15 -> 410.795 | E25: =-RDS_Credits!D15 -> 401.61 | F25: =-RDS_Credits!E15 -> 406.2025 | G25: =-RDS_Credits!F15 -> 403.90625 | H25: =-RDS_Credits!G15 -> 405.054375 | I25: =-RDS_Credits!H15 -> 404.4803125
C26: Other Revenue Credits | D26: =-(RDS_Credits!C7+RDS_Credits!C19+RDS_Credits!C21+RDS_Credits!C24+SUM(RDS_Credits!C30:'RDS_Credits'!C36)+'Credits Gen-RSS'!C23) -> 247171.8612 | E26: =-(RDS_Credits!D7+RDS_Credits!D19+RDS_Credits!D21+RDS_Credits!D24+SUM(RDS_Credits!D30:'RDS_Credits'!D36)+'Credits Gen-RSS'!D23) -> 247536.9041 | F26: =-(RDS_Credits!E7+RDS_Credits!E19+RDS_Credits!E21+RDS_Credits!E24+SUM(RDS_Credits!E30:'RDS_Credits'!E36)+'Credits Gen-RSS'!E23) -> 245975.2732 | G26: =-(RDS_Credits!F7+RDS_Credits!F19+RDS_Credits!F21+RDS_Credits!F24+SUM(RDS_Credits!F30:'RDS_Credits'!F36)+'Credits Gen-RSS'!F23) -> 246005.0799 | H26: =-(RDS_Credits!G7+RDS_Credits!G19+RDS_Credits!G21+RDS_Credits!G24+SUM(RDS_Credits!G30:'RDS_Credits'!G36)+'Credits Gen-RSS'!G23) -> 245990.1765 | I26: =-(RDS_Credits!H7+RDS_Credits!H19+RDS_Credits!H21+RDS_Credits!H24+SUM(RDS_Credits!H30:'RDS_Credits'!H36)+'Credits Gen-RSS'!H23) -> 245997.6282
C28: Total Revenue Credits | D28: =SUM(D23:D27) -> 859357.8097 | E28: 800282.6164 | F28: 817157.8833 | G28: 805485.5762 | H28: 825005.6037 | I28: 813739.9386
C31: Revenues needed from Power Rates | D31: =D19-D28 -> 4979663.416 | E31: 5080323.724 | F31: 5394892.945 | G31: 5266398.237 | H31: 5485671.976 | I31: 5464936.462
C34: Power Revenues After Rate Design Step
D35: =+D5 -> 2022 | E35: =+E5 -> 2023
C36: PF Public | D36: =RateSummary!C32 -> 34.457316 | E36: =RateSummary!D32 -> 35.286871
D37: ='PF Public'!D77 -> 57217.1467 | E37: ='PF Public'!E77 -> 57654.21235
D38: =D36*D37 -> 1971549.304 | E38: =E36*E37 -> 2034436.754
C40: PF Exchange | D40: =RateSummary!C34 -> 61.619756 | E40: =RateSummary!D34 -> 62.37247
D41: ='PF Exchange'!D61 -> 48748.58981 | E41: ='PF Exchange'!E61 -> 48764.58984
D42: =D40*D41 -> 3003876.209 | E42: =E40*E41 -> 3041567.917
C44: IP | D44: =RateSummary!C35 -> 40.307285 | E44: =RateSummary!D35 -> 41.07904
D45: ='RAM IP'!M87 -> 105.12 | E45: ='RAM IP'!N87 -> 105.12
D46: =D44*D45 -> 4237.101799 | E46: =E44*E45 -> 4318.228685
C48: NR | D48: =RateSummary!C36 -> 76.887602 | E48: =RateSummary!D36 -> 80.786157
D49: ='RAM NR'!D68 -> 0.009856 | E49: ='RAM NR'!E68 -> 0.009824
D50: =D48*D49 -> 0.7578042053 | E50: =E48*E49 -> 0.7936432064
C52: Revenues from Power Rates Grand Total | D52: =D38+D42+D46+D50 -> 4979663.373 | E52: =E38+E42+E46+E50 -> 5080323.693
C55: Revenue Check after Standard Ratemaking | D55: =D52-D$31 -> -0.0421806192 | E55: =E52-E$31 -> -0.03090327792

Sheet Init
B1: Initiation Sheet
A2: TOC | B2: =+Cover!C14 -> RAMmodel_REP2022.xls
A3: é | B3: Input Parameters | F3: Diurnal Hours | N3: Annual Hours
F4: date | G4: days | H4: hours | I4: #Sun | J4: #Hol | K4: HLH | L4: LLH | N4: year | O4: days | P4: hours
F5: 2014-10-01 | G5: 31 | H5: 744 | I5: 5 | J5: 1 | K5: 432 | L5: 312 | N5: 2011 | O5: 365 | P5: 8760
F6: 2014-11-01 | G6: 28 | H6: 721 | I6: 4 | J6: 0 | K6: 384 | L6: 337 | N6: 2012 | O6: 365 | P6: 8784
F7: 2014-12-01 | G7: 31 | H7: 744 | I7: 4 | J7: 0 | K7: 416 | L7: 328 | N7: 2013 | O7: 365 | P7: 8760
F8: 2015-01-01 | G8: 30 | H8: 744 | I8: 4 | J8: 0 | K8: 416 | L8: 328 | N8: 2014 | O8: 366 | P8: 8760
B9: Base Year | C9: 2022 | F9: 2015-02-01 | G9: 31 | H9: 672 | I9: 5 | J9: 1 | K9: 384 | L9: 288 | N9: 2015 | O9: 365 | P9: 8760
F10: 2015-03-01 | G10: 30 | H10: 743 | I10: 4 | J10: 0 | K10: 416 | L10: 327 | N10: 2016 | O10: 365 | P10: 8784
F11: 2015-04-01 | G11: 31 | H11: 720 | I11: 5 | J11: 1 | K11: 416 | L11: 304 | N11: 2017 | O11: 365 | P11: 8760
C12: Yes or No? | F12: 2015-05-01 | G12: 31 | H12: 744 | I12: 4 | J12: 0 | K12: 400 | L12: 344 | N12: 2016 | O12: 366 | P12: 8784
B13: Run an REP Settlement Scenario ? | C13: Yes | F13: 2015-06-01 | G13: 30 | H13: 720 | I13: 4 | J13: 1 | K13: 416 | L13: 304 | N13: 2017 | O13: 365 | P13: 8760
B14: Slice RTP Changed for Tier 1 System Change | C14: No | F14: 2015-07-01 | G14: 31 | H14: 744 | I14: 5 | J14: 0 | K14: 416 | L14: 328 | N14: 2018 | O14: 365 | P14: 8760
F15: 2015-08-01 | G15: 30 | H15: 744 | I15: 4 | J15: 1 | K15: 416 | L15: 328 | N15: 2019 | O15: 365 | P15: 8760
B16: Years to Finance Expensed Portion of 7b2 Cons | C16: 5 | F16: 2015-09-01 | G16: 31 | H16: 720 | I16: 4 | J16: 1 | K16: 400 | L16: 320 | N16: 2020 | O16: 366 | P16: 8784
F17: 2015-10-01 | G17: 31 | H17: 744 | I17: 5 | J17: 1 | K17: 432 | L17: 312 | N17: 2021 | O17: 365 | P17: 8760
F18: 2015-11-01 | G18: 29 | H18: 721 | I18: 4 | J18: 0 | K18: 384 | L18: 337 | N18: 2022 | O18: 365 | P18: 8760
F19: 2015-12-01 | G19: 31 | H19: 744 | I19: 4 | J19: 0 | K19: 416 | L19: 328 | N19: 2023 | O19: 365 | P19: 8760
F20: 2016-01-01 | G20: 30 | H20: 744 | I20: 5 | J20: 0 | K20: 400 | L20: 344 | N20: 2024 | O20: 366 | P20: 8784
F21: 2016-02-01 | G21: 31 | H21: 696 | I21: 4 | J21: 1 | K21: 400 | L21: 296 | N21: 2025 | O21: 365 | P21: 8760
F22: 2016-03-01 | G22: 30 | H22: 743 | I22: 4 | J22: 0 | K22: 432 | L22: 311 | N22: 2026 | O22: 365 | P22: 8760
F23: 2016-04-01 | G23: 31 | H23: 720 | I23: 5 | J23: 1 | K23: 416 | L23: 304 | N23: 2027 | O23: 365 | P23: 8760
F24: 2016-05-01 | G24: 31 | H24: 744 | I24: 4 | J24: 0 | K24: 400 | L24: 344 | N24: 2028 | O24: 366 | P24: 8784
F25: 2016-06-01 | G25: 30 | H25: 720 | I25: 5 | J25: 1 | K25: 416 | L25: 304 | N25: 2029 | O25: 365 | P25: 8760
F26: 2016-07-01 | G26: 31 | H26: 744 | I26: 4 | J26: 0 | K26: 400 | L26: 344 | N26: 2030 | O26: 365 | P26: 8760
F27: 2016-08-01 | G27: 30 | H27: 744 | I27: 4 | J27: 1 | K27: 432 | L27: 312 | N27: 2031 | O27: 365 | P27: 8760
F28: 2016-09-01 | G28: 31 | H28: 720 | I28: 5 | J28: 1 | K28: 400 | L28: 320 | N28: 2032 | O28: 366 | P28: 8784
F29: 2016-10-01 | G29: 31 | H29: 744 | I29: 4 | J29: 1 | K29: 416 | L29: 328 | N29: 2033 | O29: 365 | P29: 8760
F30: 2016-11-01 | G30: 28 | H30: 721 | I30: 4 | J30: 0 | K30: 400 | L30: 321 | N30: 2034 | O30: 365 | P30: 8760
F31: 2016-12-01 | G31: 31 | H31: 744 | I31: 5 | J31: 0 | K31: 416 | L31: 328 | N31: 2035 | O31: 365 | P31: 8760
F32: 2017-01-01 | G32: 30 | H32: 744 | I32: 4 | J32: 0 | K32: 400 | L32: 344 | N32: 2036 | O32: 366 | P32: 8784
F33: 2017-02-01 | G33: 31 | H33: 672 | I33: 4 | J33: 1 | K33: 384 | L33: 288 | N33: 2037 | O33: 365 | P33: 8760
F34: 2017-03-01 | G34: 30 | H34: 743 | I34: 5 | J34: 0 | K34: 432 | L34: 311 | N34: 2038 | O34: 365 | P34: 8760
F35: 2017-04-01 | G35: 31 | H35: 720 | I35: 4 | J35: 1 | K35: 400 | L35: 320 | N35: 2039 | O35: 365 | P35: 8760
F36: 2017-05-01 | G36: 31 | H36: 744 | I36: 4 | J36: 0 | K36: 416 | L36: 328 | N36: 2040 | O36: 366 | P36: 8784
F37: 2017-06-01 | G37: 30 | H37: 720 | I37: 5 | J37: 1 | K37: 416 | L37: 304 | N37: 2041 | O37: 365 | P37: 8760
F38: 2017-07-01 | G38: 31 | H38: 744 | I38: 4 | J38: 0 | K38: 400 | L38: 344 | N38: 2042 | O38: 365 | P38: 8760
F39: 2017-08-01 | G39: 30 | H39: 744 | I39: 4 | J39: 1 | K39: 432 | L39: 312 | N39: 2043 | O39: 365 | P39: 8760
F40: 2017-09-01 | G40: 31 | H40: 720 | I40: 5 | J40: 1 | K40: 400 | L40: 320 | N40: 2044 | O40: 366 | P40: 8784
F41: 2017-10-01 | G41: 31 | H41: 744 | I41: 4 | J41: 1 | K41: 416 | L41: 328
F42: 2017-11-01 | G42: 28 | H42: 721 | I42: 4 | J42: 0 | K42: 400 | L42: 321
F43: 2017-12-01 | G43: 31 | H43: 744 | I43: 5 | J43: 0 | K43: 400 | L43: 344
F44: 2018-01-01 | G44: 30 | H44: 744 | I44: 4 | J44: 0 | K44: 416 | L44: 328
F45: 2018-02-01 | G45: 31 | H45: 672 | I45: 4 | J45: 1 | K45: 384 | L45: 288
F46: 2018-03-01 | G46: 30 | H46: 743 | I46: 5 | J46: 0 | K46: 432 | L46: 311
F47: 2018-04-01 | G47: 31 | H47: 720 | I47: 4 | J47: 1 | K47: 400 | L47: 320
F48: 2018-05-01 | G48: 31 | H48: 744 | I48: 5 | J48: 0 | K48: 416 | L48: 328
F49: 2018-06-01 | G49: 30 | H49: 720 | I49: 4 | J49: 1 | K49: 416 | L49: 304
F50: 2018-07-01 | G50: 31 | H50: 744 | I50: 4 | J50: 0 | K50: 400 | L50: 344
F51: 2018-08-01 | G51: 30 | H51: 744 | I51: 5 | J51: 1 | K51: 432 | L51: 312
F52: 2018-09-01 | G52: 31 | H52: 720 | I52: 4 | J52: 1 | K52: 384 | L52: 336
F53: 2018-10-01 | G53: 31 | H53: 744 | I53: 4 | J53: 1 | K53: 432 | L53: 312
F54: 2018-11-01 | G54: 28 | H54: 721 | I54: 4 | J54: 0 | K54: 400 | L54: 321
F55: 2018-12-01 | G55: 31 | H55: 744 | I55: 5 | J55: 0 | K55: 400 | L55: 344
F56: 2019-01-01 | G56: 30 | H56: 744 | I56: 4 | J56: 0 | K56: 416 | L56: 328
F57: 2019-02-01 | G57: 31 | H57: 672 | I57: 5 | J57: 1 | K57: 384 | L57: 288
F58: 2019-03-01 | G58: 30 | H58: 743 | I58: 4 | J58: 0 | K58: 416 | L58: 327
F59: 2019-04-01 | G59: 31 | H59: 720 | I59: 4 | J59: 1 | K59: 416 | L59: 304
F60: 2019-05-01 | G60: 31 | H60: 744 | I60: 5 | J60: 0 | K60: 416 | L60: 328
F61: 2019-06-01 | G61: 30 | H61: 720 | I61: 4 | J61: 1 | K61: 400 | L61: 320
F62: 2019-07-01 | G62: 31 | H62: 744 | I62: 4 | J62: 0 | K62: 416 | L62: 328
F63: 2019-08-01 | G63: 30 | H63: 744 | I63: 5 | J63: 1 | K63: 432 | L63: 312
F64: 2019-09-01 | G64: 31 | H64: 720 | I64: 4 | J64: 1 | K64: 384 | L64: 336
F65: 2019-10-01 | G65: 31 | H65: 744 | I65: 5 | J65: 1 | K65: 432 | L65: 312
F66: 2019-11-01 | G66: 29 | H66: 721 | I66: 4 | J66: 0 | K66: 400 | L66: 321
F67: 2019-12-01 | G67: 31 | H67: 744 | I67: 4 | J67: 0 | K67: 400 | L67: 344
F68: 2020-01-01 | G68: 30 | H68: 744 | I68: 4 | J68: 0 | K68: 416 | L68: 328
F69: 2020-02-01 | G69: 31 | H69: 696 | I69: 5 | J69: 1 | K69: 400 | L69: 296
F70: 2020-03-01 | G70: 30 | H70: 743 | I70: 4 | J70: 0 | K70: 416 | L70: 327
F71: 2020-04-01 | G71: 31 | H71: 720 | I71: 5 | J71: 1 | K71: 416 | L71: 304
F72: 2020-05-01 | G72: 31 | H72: 744 | I72: 4 | J72: 0 | K72: 400 | L72: 344
F73: 2020-06-01 | G73: 30 | H73: 720 | I73: 4 | J73: 1 | K73: 416 | L73: 304
F74: 2020-07-01 | G74: 31 | H74: 744 | I74: 5 | J74: 0 | K74: 416 | L74: 328
F75: 2020-08-01 | G75: 30 | H75: 744 | I75: 4 | J75: 1 | K75: 416 | L75: 328
F76: 2020-09-01 | G76: 31 | H76: 720 | I76: 4 | J76: 1 | K76: 400 | L76: 320
F77: 2020-10-01 | G77: 31 | H77: 744 | I77: 5 | J77: 1 | K77: 432 | L77: 312
F78: 2020-11-01 | G78: 28 | H78: 721 | I78: 4 | J78: 0 | K78: 384 | L78: 337
F79: 2020-12-01 | G79: 31 | H79: 744 | I79: 4 | J79: 0 | K79: 416 | L79: 328
F80: 2021-01-01 | G80: 30 | H80: 744 | I80: 5 | J80: 0 | K80: 400 | L80: 344
F81: 2021-02-01 | G81: 31 | H81: 672 | I81: 4 | J81: 1 | K81: 384 | L81: 288
F82: 2021-03-01 | G82: 30 | H82: 743 | I82: 4 | J82: 0 | K82: 432 | L82: 311
F83: 2021-04-01 | G83: 31 | H83: 720 | I83: 5 | J83: 1 | K83: 416 | L83: 304
F84: 2021-05-01 | G84: 31 | H84: 744 | I84: 4 | J84: 0 | K84: 400 | L84: 344
F85: 2021-06-01 | G85: 30 | H85: 720 | I85: 4 | J85: 1 | K85: 416 | L85: 304
F86: 2021-07-01 | G86: 31 | H86: 744 | I86: 5 | J86: 0 | K86: 416 | L86: 328
F87: 2021-08-01 | G87: 30 | H87: 744 | I87: 4 | J87: 1 | K87: 416 | L87: 328
F88: 2021-09-01 | G88: 31 | H88: 720 | I88: 5 | J88: 1 | K88: 400 | L88: 320
F89: 2021-10-01 | G89: 31 | H89: 744 | I89: 4 | J89: 1 | K89: 416 | L89: 328
F90: 2021-11-01 | G90: 28 | H90: 721 | I90: 4 | J90: 0 | K90: 400 | L90: 321
F91: 2021-12-01 | G91: 31 | H91: 744 | I91: 4 | J91: 0 | K91: 416 | L91: 328
F92: 2022-01-01 | G92: 30 | H92: 744 | I92: 5 | J92: 0 | K92: 400 | L92: 344
F93: 2022-02-01 | G93: 31 | H93: 672 | I93: 4 | J93: 1 | K93: 384 | L93: 288
F94: 2022-03-01 | G94: 30 | H94: 743 | I94: 4 | J94: 0 | K94: 432 | L94: 311
F95: 2022-04-01 | G95: 31 | H95: 720 | I95: 5 | J95: 1 | K95: 416 | L95: 304
F96: 2022-05-01 | G96: 31 | H96: 744 | I96: 4 | J96: 0 | K96: 400 | L96: 344
F97: 2022-06-01 | G97: 30 | H97: 720 | I97: 5 | J97: 1 | K97: 416 | L97: 304
F98: 2022-07-01 | G98: 31 | H98: 744 | I98: 4 | J98: 0 | K98: 400 | L98: 344
F99: 2022-08-01 | G99: 30 | H99: 744 | I99: 4 | J99: 1 | K99: 432 | L99: 312
F100: 2022-09-01 | G100: 31 | H100: 720 | I100: 5 | J100: 1 | K100: 400 | L100: 320
F101: 2022-10-01 | G101: 31 | H101: 744 | I101: 4 | J101: 1 | K101: 416 | L101: 328
F102: 2022-11-01 | G102: 28 | H102: 721 | I102: 4 | J102: 0 | K102: 400 | L102: 321
F103: 2022-12-01 | G103: 31 | H103: 744 | I103: 5 | J103: 0 | K103: 416 | L103: 328
F104: 2023-01-01 | G104: 30 | H104: 744 | I104: 4 | J104: 0 | K104: 400 | L104: 344
F105: 2023-02-01 | G105: 31 | H105: 672 | I105: 4 | J105: 1 | K105: 384 | L105: 288
F106: 2023-03-01 | G106: 30 | H106: 743 | I106: 5 | J106: 0 | K106: 432 | L106: 311
F107: 2023-04-01 | G107: 31 | H107: 720 | I107: 4 | J107: 1 | K107: 400 | L107: 320
F108: 2023-05-01 | G108: 31 | H108: 744 | I108: 4 | J108: 0 | K108: 416 | L108: 328
F109: 2023-06-01 | G109: 30 | H109: 720 | I109: 5 | J109: 1 | K109: 416 | L109: 304
F110: 2023-07-01 | G110: 31 | H110: 744 | I110: 4 | J110: 0 | K110: 400 | L110: 344
F111: 2023-08-01 | G111: 30 | H111: 744 | I111: 4 | J111: 1 | K111: 432 | L111: 312
F112: 2023-09-01 | G112: 31 | H112: 720 | I112: 5 | J112: 1 | K112: 400 | L112: 320
F113: 2023-10-01 | H113: 744 | K113: 416 | L113: 328
F114: 2023-11-01 | H114: 721 | K114: 400 | L114: 321
F115: 2023-12-01 | H115: 744 | K115: 400 | L115: 344
F116: 2024-01-01 | H116: 744 | K116: 416 | L116: 328
F117: 2024-02-01 | H117: 696 | K117: 400 | L117: 296
F118: 2024-03-01 | H118: 743 | K118: 416 | L118: 327
F119: 2024-04-01 | H119: 720 | K119: 416 | L119: 304
F120: 2024-05-01 | H120: 744 | K120: 416 | L120: 328
F121: 2024-06-01 | H121: 720 | K121: 400 | L121: 320
F122: 2024-07-01 | H122: 744 | K122: 416 | L122: 328
F123: 2024-08-01 | H123: 744 | K123: 432 | L123: 312
F124: 2024-09-01 | H124: 720 | K124: 384 | L124: 336
F125: 2024-10-01 | H125: 744 | K125: 432 | L125: 312
F126: 2024-11-01 | H126: 721 | K126: 400 | L126: 321
F127: 2024-12-01 | H127: 744 | K127: 400 | L127: 344
F128: 2025-01-01 | H128: 744 | K128: 416 | L128: 328
F129: 2025-02-01 | H129: 672 | K129: 384 | L129: 288
F130: 2025-03-01 | H130: 743 | K130: 416 | L130: 327
F131: 2025-04-01 | H131: 720 | K131: 416 | L131: 304
F132: 2025-05-01 | H132: 744 | K132: 416 | L132: 328
F133: 2025-06-01 | H133: 720 | K133: 400 | L133: 320
F134: 2025-07-01 | H134: 744 | K134: 416 | L134: 328
F135: 2025-08-01 | H135: 744 | K135: 416 | L135: 328
F136: 2025-09-01 | H136: 720 | K136: 400 | L136: 320
F137: 2025-10-01 | H137: 744 | K137: 432 | L137: 312
F138: 2025-11-01 | H138: 721 | K138: 384 | L138: 337
F139: 2025-12-01 | H139: 744 | K139: 416 | L139: 328
F140: 2026-01-01 | H140: 744 | K140: 416 | L140: 328
F141: 2026-02-01 | H141: 672 | K141: 384 | L141: 288
F142: 2026-03-01 | H142: 743 | K142: 416 | L142: 327
F143: 2026-04-01 | H143: 720 | K143: 416 | L143: 304
F144: 2026-05-01 | H144: 744 | K144: 400 | L144: 344
F145: 2026-06-01 | H145: 720 | K145: 416 | L145: 304
F146: 2026-07-01 | H146: 744 | K146: 416 | L146: 328
F147: 2026-08-01 | H147: 744 | K147: 416 | L147: 328
F148: 2026-09-01 | H148: 720 | K148: 400 | L148: 320
F149: 2026-10-01 | H149: 744 | K149: 432 | L149: 312
F150: 2026-11-01 | H150: 721 | K150: 384 | L150: 337
F151: 2026-12-01 | H151: 744 | K151: 416 | L151: 328
F152: 2027-01-01 | H152: 744 | K152: 400 | L152: 344
F153: 2027-02-01 | H153: 672 | K153: 384 | L153: 288
F154: 2027-03-01 | H154: 743 | K154: 432 | L154: 311
F155: 2027-04-01 | H155: 720 | K155: 416 | L155: 304
F156: 2027-05-01 | H156: 744 | K156: 400 | L156: 344
F157: 2027-06-01 | H157: 720 | K157: 416 | L157: 304
F158: 2027-07-01 | H158: 744 | K158: 416 | L158: 328
F159: 2027-08-01 | H159: 744 | K159: 416 | L159: 328
F160: 2027-09-01 | H160: 720 | K160: 400 | L160: 320
F161: 2027-10-01 | H161: 744 | K161: 416 | L161: 328
F162: 2027-11-01 | H162: 721 | K162: 400 | L162: 321
F163: 2027-12-01 | H163: 744 | K163: 416 | L163: 328
F164: 2028-01-01 | H164: 744 | K164: 400 | L164: 344
F165: 2028-02-01 | H165: 696 | K165: 400 | L165: 296
F166: 2028-03-01 | H166: 743 | K166: 432 | L166: 311
F167: 2028-04-01 | H167: 720 | K167: 400 | L167: 320
F168: 2028-05-01 | H168: 744 | K168: 416 | L168: 328
F169: 2028-06-01 | H169: 720 | K169: 416 | L169: 304
F170: 2028-07-01 | H170: 744 | K170: 400 | L170: 344
F171: 2028-08-01 | H171: 744 | K171: 432 | L171: 312
F172: 2028-09-01 | H172: 720 | K172: 400 | L172: 320
F173: 2028-10-01 | H173: 744 | K173: 416 | L173: 328
F174: 2028-11-01 | H174: 721 | K174: 400 | L174: 321
F175: 2028-12-01 | H175: 744 | K175: 400 | L175: 344
F176: 2029-01-01 | H176: 744 | K176: 416 | L176: 328
F177: 2029-02-01 | H177: 672 | K177: 384 | L177: 288
F178: 2029-03-01 | H178: 743 | K178: 432 | L178: 311
F179: 2029-04-01 | H179: 720 | K179: 400 | L179: 320
F180: 2029-05-01 | H180: 744 | K180: 416 | L180: 328
F181: 2029-06-01 | H181: 720 | K181: 416 | L181: 304
F182: 2029-07-01 | H182: 744 | K182: 400 | L182: 344
F183: 2029-08-01 | H183: 744 | K183: 432 | L183: 312
F184: 2029-09-01 | H184: 720 | K184: 384 | L184: 336
F185: 2029-10-01 | H185: 744 | K185: 432 | L185: 312
F186: 2029-11-01 | H186: 721 | K186: 400 | L186: 321
F187: 2029-12-01 | H187: 744 | K187: 400 | L187: 344
F188: 2030-01-01 | H188: 744 | K188: 416 | L188: 328
F189: 2030-02-01 | H189: 672 | K189: 384 | L189: 288
F190: 2030-03-01 | H190: 743 | K190: 416 | L190: 327
F191: 2030-04-01 | H191: 720 | K191: 416 | L191: 304
F192: 2030-05-01 | H192: 744 | K192: 416 | L192: 328
F193: 2030-06-01 | H193: 720 | K193: 400 | L193: 320
F194: 2030-07-01 | H194: 744 | K194: 416 | L194: 328
F195: 2030-08-01 | H195: 744 | K195: 432 | L195: 312
F196: 2030-09-01 | H196: 720 | K196: 384 | L196: 336
F197: 2030-10-01 | K197: 400 | L197: 344
F198: 2030-11-01 | K198: 384 | L198: 288
F199: 2030-12-01 | K199: 432 | L199: 311
F200: 2031-01-01 | K200: 416 | L200: 304
... 92 more rows

Sheet RateSummary
B1: Rate Analysis Model - Rate Design Step Summary | J1: =IF(Init!$C$13="Yes","Results Under Settlement","Results while Running 7b2 Rate Test") -> Results Under Settlement
A2: TOC | B2: =Cover!$C$14 -> RAMmodel_REP2022.xls | J2: Not printed in documentation.
A3: é
B6: Revenue Under Recovery After Rate Design Step | C6: ='Rev Check'!D55 -> -0.0421806192 | D6: ='Rev Check'!E55 -> -0.03090327792
B10: Rate Design Step | C10: =+Init!C9 -> 2022 | D10: =+C10+1 -> 2023 | E10: =+D10+1 -> 2024 | F10: =+E10+1 -> 2025 | G10: =+F10+1 -> 2026 | H10: =+G10+1 -> 2027
B11: Rates After Initial Allocation
B12: UNBIFURCATED PF | C12: ='Initial Rates'!C22 -> 44.37 | D12: ='Initial Rates'!D22 -> 45.12 | E12: ='Initial Rates'!E22 -> 48.78 | F12: ='Initial Rates'!F22 -> 47.37 | G12: ='Initial Rates'!G22 -> 49.57 | H12: ='Initial Rates'!H22 -> 49.11
B13: IP | C13: ='Initial Rates'!C23 -> 69.49 | D13: ='Initial Rates'!D23 -> 73.39 | E13: ='Initial Rates'!E23 -> 73.43 | F13: ='Initial Rates'!F23 -> 75.48 | G13: ='Initial Rates'!G23 -> 76.25 | H13: ='Initial Rates'!H23 -> 77.82
B14: NR | C14: ='Initial Rates'!C24 -> 69.49 | D14: ='Initial Rates'!D24 -> 73.39 | E14: ='Initial Rates'!E24 -> 73.43 | F14: ='Initial Rates'!F24 -> 75.48 | G14: ='Initial Rates'!G24 -> 76.25 | H14: ='Initial Rates'!H24 -> 77.82
B16: Rate Design Step | C16: =+C10 -> 2022 | D16: 2023 | E16: 2024 | F16: 2025 | G16: 2026 | H16: 2027
B17: Rates After IP-PF Link Allocation
B18: UNBIFURCATED PF (average) | C18: ='Rates After Link'!C42 -> 44.398 | D18: ='Rates After Link'!D42 -> 45.153 | E18: ='Rates After Link'!E42 -> 48.812 | F18: ='Rates After Link'!F42 -> 47.406 | G18: ='Rates After Link'!G42 -> 49.602 | H18: ='Rates After Link'!H42 -> 49.148 | J18: IP Rate Check
B19: UNBIFURCATED PF (flat) | C19: =IP_PF_Link!C15 -> 42.79704198 | D19: =IP_PF_Link!D15 -> 43.49314198 | E19: =IP_PF_Link!E15 -> 44.61814198 | F19: =IP_PF_Link!F15 -> 43.03164198 | G19: =IP_PF_Link!G15 -> 45.11624198 | H19: =IP_PF_Link!H15 -> 44.50984198 | J19: =C20-C19 -> -0.08604198017 | K19: =D20-D19 -> -0.08614198017
B20: IP | C20: ='Rates After Link'!C43 -> 42.711 | D20: ='Rates After Link'!D43 -> 43.407 | E20: ='Rates After Link'!E43 -> 44.532 | F20: ='Rates After Link'!F43 -> 42.945 | G20: ='Rates After Link'!G43 -> 45.03 | H20: ='Rates After Link'!H43 -> 44.424
B21: NR | C21: ='Rates After Link'!C44 -> 69.521 | D21: ='Rates After Link'!D44 -> 73.419 | E21: ='Rates After Link'!E44 -> 73.456 | F21: ='Rates After Link'!F44 -> 75.514 | G21: ='Rates After Link'!G44 -> 76.277 | H21: ='Rates After Link'!H44 -> 77.857
B23: Rate Design Step | C23: =+C10 -> 2022 | D23: =+D10 -> 2023
B24: Rates After REP/7(b)(3) Allocation
B25: PF Public | C25: =IF(Init!$C$13="Yes",'Rates After WP-10 Adjustment'!C40,'Rates After 7b2'!C51) -> 34.439 | D25: =IF(Init!$C$13="Yes",'Rates After WP-10 Adjustment'!D40,'Rates After 7b2'!D51) -> 35.269
B26: PF Exchange | C26: =IF(Init!$C$13="Yes",'Rates After WP-10 Adjustment'!C41,'Rates After 7b2'!C52) -> 61.62 | D26: =IF(Init!$C$13="Yes",'Rates After WP-10 Adjustment'!D41,'Rates After 7b2'!D52) -> 62.372
B27: IP | C27: =IF(Init!$C$13="Yes",'Rates After WP-10 Adjustment'!C42,'Rates After 7b2'!C53) -> 50.06 | D27: =IF(Init!$C$13="Yes",'Rates After WP-10 Adjustment'!D42,'Rates After 7b2'!D53) -> 50.757
B28: NR | C28: =IF(Init!$C$13="Yes",'Rates After WP-10 Adjustment'!C43,'Rates After 7b2'!C54) -> 76.87 | D28: =IF(Init!$C$13="Yes",'Rates After WP-10 Adjustment'!D43,'Rates After 7b2'!D54) -> 80.769
B30: Rate Design Step | C30: =+C10 -> 2022 | D30: =+D10 -> 2023
B31: Rates After IP-PF Link #2 Allocation
B32: PF Public (average) | C32: =IF(Init!$C$13="Yes",'Rates After Link Settlement'!C47,'Rates After Link (2)'!C49) -> 34.457316 | D32: =IF(Init!$C$13="Yes",'Rates After Link Settlement'!D47,'Rates After Link (2)'!D49) -> 35.286871 | J32: IP Rate Check
B33: PF Public (flat) | C33: ='IP_PF_Link Settlement'!C13 -> 32.85675615 | D33: ='IP_PF_Link Settlement'!D13 -> 33.62714668 | J33: =C35-C33 -> 7.450528852 | K33: =D35-D33 -> 7.451893324
B34: PF Exchange | C34: =IF(Init!$C$13="Yes",'Rates After Link Settlement'!C48,'Rates After Link (2)'!C50) -> 61.619756 | D34: =IF(Init!$C$13="Yes",'Rates After Link Settlement'!D48,'Rates After Link (2)'!D50) -> 62.37247 | J34: ='IP_PF_Link Settlement'!C16 -> 7.365061781 | K34: ='IP_PF_Link Settlement'!D16 -> 7.365816005
B35: IP | C35: =IF(Init!$C$13="Yes",'Rates After Link Settlement'!C49,'Rates After Link (2)'!C51) -> 40.307285 | D35: =IF(Init!$C$13="Yes",'Rates After Link Settlement'!D49,'Rates After Link (2)'!D51) -> 41.07904 | J35: =J33-J34 -> 0.08546707132 | K35: =K33-K34 -> 0.08607731895 | L35: =AVERAGE(J35:K35) -> 0.08577219514
B36: NR | C36: =IF(Init!$C$13="Yes",'Rates After Link Settlement'!C50,'Rates After Link (2)'!C52) -> 76.887602 | D36: =IF(Init!$C$13="Yes",'Rates After Link Settlement'!D50,'Rates After Link (2)'!D52) -> 80.786157

Sheet ScenarioResults
B1: Rate Analysis Model - Scenario Summary Box | G1: =IF(Init!$C$13="Yes","Results Under Settlement","Results while Running 7b2 Rate Test") -> Results Under Settlement
A2: TOC | B2: =Cover!$C$14 -> RAMmodel_REP2022.xls | G2: Not printed in documentation.
A3: é | L3: List for Expense Conservation in 7b2
L4: 1
B5: Attachment 1a | G5: From Rate Tables | L5: 2
D6: % above BP-20 | G6: =B7 -> Unbifurcated PF | H6: ='Unbif PF_RateOutput'!E52 -> 44.78 | J6: =C7-H6 -> -0.003977779335 | L6: 3
B7: Unbifurcated PF | C7: ='Rates After Link'!C47 -> 44.77602222 | D7: =C7/H23-1 -> -0.04754898734 | G7: T1 Equivalent PF | H7: =PFAveT1_RateOutput!E52 -> 34.92 | L7: 4
B8: PF Public | C8: =IF(Init!$C$13="Yes",'Rates After Link Settlement'!E47,ROUND((RateSummary!C32+RateSummary!D32)/2,2)) -> 34.87 | D8: =C8/H24-1 -> -0.02447917481 | G8: T1 & T2 Equivalent PF | H8: =PFMeldedEqv_RateOutput!E52 -> 34.87 | J8: =H8-C8 -> 0 | L8: 5
B9: PF Exchange | C9: =IF(Init!$C$13="Yes",'Rates After Link Settlement'!E48,'Rates After Link (2)'!C64) -> 62 | D9: =C9/H25-1 -> -0.06738868833 | G9: =B9 -> PF Exchange | H9: ='PF Exchange_RateOutput'!E53 -> 62 | J9: =H9-C9 -> 0 | L9: 6
B10: IP | C10: =IF(Init!$C$13="Yes",'Rates After Link Settlement'!E49,'Rates After Link (2)'!C66)+I44 -> 40.69 | D10: =C10/H26-1 -> -0.007682191027 | G10: =B10 -> IP | H10: =IP_RateOutput!E52 -> 40.69 | J10: =H10-C10 -> 0 | L10: 7
B11: NR | C11: =IF(Init!$C$13="Yes",'Rates After Link Settlement'!E50,'Rates After Link (2)'!C67)+I45 -> 78.84 | D11: =C11/H27-1 -> -0.01072850515 | G11: =B11 -> NR | H11: =NR_RateOutput!E52 -> 78.84 | J11: =H11-C11 -> 0 | L11: 8
L12: 9
B13: Residential Exchange Benefits | C13: =+Init!C9 -> 2022 | D13: =C13+1 -> 2023 | L13: 10
B14: ='Active Exchange'!D10 -> Avista Corporation | C14: =IF(Init!$C$13="Yes",MAX('Utility Specific PFx Settle'!O27,0),MAX('Utility Specifc PFx'!K24,0)) -> 13931.08697 | D14: =IF(Init!$C$13="Yes",MAX('Utility Specific PFx Settle'!P27,0),MAX('Utility Specifc PFx'!K43,0)) -> 13931.08697 | L14: 11
B15: ='Active Exchange'!D11 -> Idaho Power Company | C15: =IF(Init!$C$13="Yes",MAX('Utility Specific PFx Settle'!O28,0),MAX('Utility Specifc PFx'!K25,0)) -> 17135.14212 | D15: =IF(Init!$C$13="Yes",MAX('Utility Specific PFx Settle'!P28,0),MAX('Utility Specifc PFx'!K44,0)) -> 17135.14212 | E15: =IF(Init!$C$13="No","Deemer Amount","") ->  | L15: 12
B16: ='Active Exchange'!D12 -> NorthWestern Energy, LLC | C16: =IF(Init!$C$13="Yes",MAX('Utility Specific PFx Settle'!O29,0),MAX('Utility Specifc PFx'!K26,0)) -> 4150.059981 | D16: =IF(Init!$C$13="Yes",MAX('Utility Specific PFx Settle'!P29,0),MAX('Utility Specifc PFx'!K45,0)) -> 4150.059981 | L16: Settlement Menu
B17: ='Active Exchange'!D13 -> PacifiCorp | C17: =IF(Init!$C$13="Yes",MAX('Utility Specific PFx Settle'!O30,0),MAX('Utility Specifc PFx'!K27,0)) -> 79404.64014 | D17: =IF(Init!$C$13="Yes",MAX('Utility Specific PFx Settle'!P30,0),MAX('Utility Specifc PFx'!K46,0)) -> 79404.64014 | G17: ="Section 7(b)(3) Load for " & RateSummary!$C$10 -> Section 7(b)(3) Load for 2022 | H17: ='Exchange Load'!D29+'RAM IP'!M83+'RAM NR'!D66 -> 5576.908638 | J17: Trigger | L17: Yes
B18: ='Active Exchange'!D14 -> Portland General Electric Company | C18: =IF(Init!$C$13="Yes",MAX('Utility Specific PFx Settle'!O31,0),MAX('Utility Specifc PFx'!K28,0)) -> 79003.69521 | D18: =IF(Init!$C$13="Yes",MAX('Utility Specific PFx Settle'!P31,0),MAX('Utility Specifc PFx'!K47,0)) -> 79003.69521 | G18: Section 7(b)(2) Rate Test Trigger | H18: 0 | J18: =ROUND(TriggerCalc!J35,2) -> 0 | L18: No
B19: ='Active Exchange'!D15 -> Puget Sound Energy, Inc. | C19: =IF(Init!$C$13="Yes",MAX('Utility Specific PFx Settle'!O32,0),MAX('Utility Specifc PFx'!K29,0)) -> 65376.27113 | D19: =IF(Init!$C$13="Yes",MAX('Utility Specific PFx Settle'!P32,0),MAX('Utility Specifc PFx'!K48,0)) -> 65376.27113 | E19: =IF(Init!$C$13="No", "w/o Deemer $s","") -> 
B20: Net IOU Exchange | C20: =IF(Init!$C$13="No",SUM(C14,C16:C19),SUM(C14:C19)) -> 259000.8955 | D20: =IF(Init!$C$13="No",SUM(D14,D16:D19),SUM(D14:D19)) -> 259000.8955 | E20: =(C20+D20)/2 -> 259000.8955
B21: Refund Amt | C21: =IF(Init!$C$13="Yes",'Utility Specific PFx Settle'!$O$41,0) -> 0 | D21: =IF(Init!$C$13="Yes",'Utility Specific PFx Settle'!$P$41,0) -> 0 | E21: =(C21+D21)/2 -> 0
G22: Previous Rates | H22: Surcharge Adj. | I22: 2 year average
B23: =ExchangeInputs!C15 -> Clark Public Utilities | C23: =IF(Init!$C$13="Yes",MAX('Utility Specific PFx Settle'!O35,0),MAX('Utility Specifc PFx'!K30,0)) -> 0 | D23: =IF(Init!$C$13="Yes",MAX('Utility Specific PFx Settle'!P35,0),MAX('Utility Specifc PFx'!K49,0)) -> 0 | G23: Unbifurcated PF | H23: 47.01136502
B24: =ExchangeInputs!C16 -> Franklin | C24: =IF(Init!$C$13="Yes",MAX('Utility Specific PFx Settle'!O36,0),MAX('Utility Specifc PFx'!K31,0)) -> 0 | D24: =IF(Init!$C$13="Yes",MAX('Utility Specific PFx Settle'!P36,0),MAX('Utility Specifc PFx'!K50,0)) -> 0 | G24: PF Public | H24: =35.56+H43 -> 35.74500831 | I24: 35.56
B25: =ExchangeInputs!C17 -> Snohomish PUD | C25: =IF(Init!$C$13="Yes",MAX('Utility Specific PFx Settle'!O37,0),MAX('Utility Specifc PFx'!K32,0)) -> 6307.578742 | D25: =IF(Init!$C$13="Yes",MAX('Utility Specific PFx Settle'!P37,0),MAX('Utility Specifc PFx'!K51,0)) -> 6334.747832 | G25: PF Exchange | H25: 66.48
B26: Net COU Exchange | C26: =SUM(C23:C25) -> 6307.578742 | D26: =SUM(D23:D25) -> 6334.747832 | E26: =(C26+D26)/2 -> 6321.163287 | G26: IP | H26: =I26+H44 -> 41.00500831 | I26: 40.82
D27: Total | E27: =E20+E21+E26 -> 265322.0588 | G27: NR | H27: =I27+H45 -> 79.69500831 | I27: 79.51
B29: Annual Average $ (1000s) | C29: BP-20 | D29: BP-22 | E29: Change
B30: Composite Revenues | C30: 2244314.157 | D30: =Cost_Allocation_TRM!$E$59/2 -> 2275474.636 | E30: =(D30-C30)/C30 -> 0.01388418742
B31: Non-Slice Revenues | C31: -173280.0459 | D31: =Cost_Allocation_TRM!$E$60/2 -> -287145.3118 | E31: =-(D31-C31)/C31 -> -0.6571170119 | H31: BP-20 | I31: BP-22 | J31: BP-22 Projected | K31: BP-22 max FRP
B32: Slice Revenues | C32: 0 | D32: =Cost_Allocation_TRM!$E$61/2 -> 0 | G32: Surcharges | H32: =J49 -> 11250 | I32: 0 | J32: 0 | K32: 40000
B33: Load Shaping Revenues | C33: 28041.87596 | D33: =-Cost_Allocation_TRM!$E$44/2 -> 17897.52721 | E33: =(D33-C33)/C33 -> -0.3617571363 | G33: Preference Load | H33: 6919.695837 | I33: =AVERAGE(ProgAlloc!C7:D7) -> 6762.588553 | J33: =AVERAGE(ProgAlloc!C7:D7) -> 6762.588553 | K33: =AVERAGE(ProgAlloc!C7:D7) -> 6762.588553
B34: Demand Revenues | C34: 53528.96763 | D34: =-Cost_Allocation_TRM!$E$46/2 -> 55457.28824 | E34: =(D34-C34)/C34 -> 0.03602387062 | G34: DSI Load | H34: 12.36871702 | I34: =ProgAlloc!C9 -> 12.38530592 | J34: =ProgAlloc!C9 -> 12.38530592 | K34: =ProgAlloc!C9 -> 12.38530592
B35: Tier 1 Revenue Requirement | C35: 2152604.955 | D35: =SUM($D$30:$D$34) -> 2061684.139 | E35: =(D35-C$35)/C$35 -> -0.04223757615 | G35: NR Load | H35: 0.001156384698 | I35: =ProgAlloc!C10 -> 0.001161245403 | J35: =ProgAlloc!C10 -> 0.001161245403 | K35: =ProgAlloc!C10 -> 0.001161245403
B36: Tier 2 Revenue Requirement | C36: 14935.76388 | D36: =(Cost_Allocation_TRM!$H$13+Cost_Allocation_TRM!$I$13)/2 -> 47492.02244 | G36: Preference Allocator | H36: =H33/SUM(H$33:H$35) -> 0.9982155574 | I36: =I33/SUM(I$33:I$35) -> 0.9981717324 | J36: =J33/SUM(J$33:J$35) -> 0.9981717324 | K36: =K33/SUM(K$33:K$35) -> 0.9981717324
G37: DSI Allocator | H37: =H34/SUM(H$33:H$35) -> 0.001784275789 | I37: =I34/SUM(I$33:I$35) -> 0.001828096175 | J37: 0.001828096175 | K37: 0.001828096175
B38: Lookback Return (credit) | C38: 0 | D38: 0 | G38: NR Allocator | H38: =H35/SUM(H$33:H$35) -> 1.668167537e-07 | I38: 1.714021675e-07 | J38: 1.714021675e-07 | K38: 1.714021675e-07
B39: Spill Surcharge | C39: 0 | D39: 0 | G39: Preference Surcharge | H39: =H$32*H36 -> 11229.92502 | I39: =I$32*I36 -> 0 | J39: =J$32*J36 -> 0 | K39: =K$32*K36 -> 39926.8693
B40: FRP Surcharge | C40: =H39 -> 11229.92502 | D40: =I39 -> 0 | G40: DSI Surcharge | H40: =H$32*H37 -> 20.07310263 | I40: =I$32*I37 -> 0 | J40: 0 | K40: 73.12384701
B41: Value of Slice Secondary | C41: -72850.57469 | D41: =(Cost_Allocation_TRM!$H$18+Cost_Allocation_TRM!$I$18)/2 -> -106182.7614 | E41: =-(D41-C41)/C41 -> -0.4575418493 | G41: NR Surcharge | H41: =H$32*H38 -> 0.001876688479 | I41: 0 | J41: 0 | K41: 0.0068560867
B42: Net Power Cost to All PF | C42: =SUM(C35:C41) -> 2105920.069 | D42: =SUM(D35:D41) -> 2002993.4 | E42: =+D42/C42-1 -> -0.04887491711 | G42: Hours | H42: 8772 | I42: =AVERAGE(8760,8760) -> 8760 | J42: =AVERAGE(8760,8760) -> 8760 | K42: =AVERAGE(8760,8760) -> 8760
B43: Total PF Load w/Slice (GWh)/yr | C43: 58896.49387 | D43: =('PF Public'!$D$77+'PF Public'!$E$77)/2 -> 57435.67953 | E43: =-(((C42-C36)*(D43-C43))/(C43*C43))/C48 -> 0.02458336518 | G43: PF Melded Adder | H43: =H39*1000/(H$42*H33) -> 0.1850083069 | I43: 0 | J43: 0 | K43: 0.6739818276
B44: Average Net Cost $/MWh | C44: =+(C42)/C43 -> 35.75628923 | D44: =+D42/D43 -> 34.87367812 | E44: =(D44-C$44)/C$44 -> -0.02468408006 | G44: DSI Adder | H44: 0.1850083069 | I44: 0 | J44: 0 | K44: 0.6739818276
G45: NR Adder | H45: 0.1850083069 | I45: 0 | J45: 0 | K45: 0.6739818276
B46: Tier 1 Load | C46: 58380.36135 | D46: =+(PFAveT1_RateOutput!$E$54/2) -> 55991.19057 | E46: =((C46-D46)*C48)/D46/(C48) -> 0.04267047663
G47: Forecast/Billed | H47: FY20 | I47: FY21 | J47: BP20 Avg
B48: Tier 1 Average Net Cost without FRP ($/MWh) | C48: =C50 -> 35.82 | D48: =ROUND((D35+I39+D38+D39+D41)/D46,2) -> 34.93 | E48: =(D48-C$48)/C$48 -> -0.02484645449 | G48: BP20 Max per year | H48: =30000 -> 30000 | I48: 0
B49: Tier 1 Average Net Cost with Projected FRP ($/MWh) | C49: =C50 -> 35.82 | D49: =ROUND((D35+J39+D38+D39+D41)/D46,2) -> 34.93 | E49: =(D49-C$49)/C$49 -> -0.02484645449 | G49: suspension in July of surcharge | H49: =H48*(9/12) -> 22500 | I49: 0 | J49: =AVERAGE(H49:I49) -> 11250
B50: Tier 1 Average Net Cost with max FRP ($/MWh) | C50: =ROUND((C35+C37+C38+H39+C41)/C46,2) -> 35.82 | D50: =ROUND((D35+K39+D38+D41)/D46,2) -> 35.64 | E50: =(D50-C$50)/C$50 -> -0.005025125628
B51: Tier 2 Short-term ($/MWh) | C51: 31.76411205 | D51: =ResultsDetail!D32 -> 33.65474222 | E51: =(D51-C$51)/C$51 -> 0.05952095133 | G51: Actual Surcharge Collected | H51: 21019 | I51: 0 | J51: =AVERAGE(H51:I51) -> 10509.5
B52: Tier 2 Load Growth ($/MWh) | C52: 31.76411205 | D52: =Cost_Allocation_TRM!E82 -> 33.69 | E52: =(D52-C$52)/C$52 -> 0.06063093937
D54: % above BP-20
B55: Unbifurcated PF | C55: 44.77602222 | D55: -0.04754898734
B56: PF Public | C56: 34.87 | D56: -0.02447917481
B57: PF Exchange | C57: 62 | D57: -0.06738868833
B58: IP | C58: 40.69 | D58: -0.007682191027
B59: NR | C59: 78.84 | D59: -0.01072850515
B61: Residential Exchange Benefits | C61: 2022 | D61: 2023
B62: Avista Corporation | C62: 13931.08697 | D62: 13931.08697
B63: Idaho Power Company | C63: 17135.14212 | D63: 17135.14212
B64: NorthWestern Energy, LLC | C64: 4150.059981 | D64: 4150.059981
B65: PacifiCorp | C65: 79404.64014 | D65: 79404.64014
B66: Portland General Electric Company | C66: 79003.69521 | D66: 79003.69521
B67: Puget Sound Energy, Inc. | C67: 65376.27113 | D67: 65376.27113
B68: Net IOU Exchange | C68: 259000.8955 | D68: 259000.8955 | E68: 259000.8955
B69: Refund Amt | C69: 0 | D69: 0 | E69: 0
B71: Clark Public Utilities | C71: 0 | D71: 0
B72: Franklin | C72: 0 | D72: 0
B73: Snohomish PUD | C73: 6307.578742 | D73: 6334.747832
B74: Net COU Exchange | C74: 6307.578742 | D74: 6334.747832 | E74: 6321.163287
D75: Total | E75: 265322.0588
B77: Annual Average $ (1000s) | C77: BP-20 | D77: BP-22 | E77: Change
B78: Composite Revenues | C78: 2244314.157 | D78: 2275474.636 | E78: 0.01388418742
B79: Non-Slice Revenues | C79: -173280.0459 | D79: -287145.3118 | E79: -0.6571170119
B80: Slice Revenues | C80: 0 | D80: 0
B81: Load Shaping Revenues | C81: 28041.87596 | D81: 17897.52721 | E81: -0.3617571363
B82: Demand Revenues | C82: 53528.96763 | D82: 55457.28824 | E82: 0.03602387062
B83: Tier 1 Revenue Requirement | C83: 2152604.955 | D83: 2061684.139 | E83: -0.04223757615
B84: Tier 2 Revenue Requirement | C84: 14935.76388 | D84: 47492.02244
B86: Lookback Return (credit) | C86: 0 | D86: 0
B87: Spill Surcharge | C87: 0 | D87: 0
B88: FRP Surcharge | C88: 11229.92502 | D88: 0
B89: Value of Slice Secondary | C89: -72850.57469 | D89: -106182.7614 | E89: -0.4575418493
B90: Net Power Cost to All PF | C90: 2105920.069 | D90: 2002993.4 | E90: -0.04887491711
B91: Total PF Load w/Slice (GWh)/yr | C91: 58896.49387 | D91: 57435.67953 | E91: 0.02458336518
B92: Average Net Cost $/MWh | C92: 35.75628923 | D92: 34.87367812 | E92: -0.02468408006

Sheet ResultsDetail
B1: Rate Analysis Model - Scenario Summary | G1: =IF(Init!$C$13="Yes","Results Under Settlement","Results while Running 7b2 Rate Test") -> Results Under Settlement
A2: TOC | B2: =Cover!$C$14 -> RAMmodel_REP2022.xls | G2: Not printed in documentation.
A3: é
C6: BP-22 | D6: % above prior Rate Period
B7: Unbifurcated PF | C7: =ScenarioResults!C7 -> 44.77602222 | D7: =C7/ScenarioResults!H23-1 -> -0.04754898734
B8: PF Public (Tier 1 + Tier 2) | C8: =ScenarioResults!C8 -> 34.87 | D8: =C8/ScenarioResults!H24-1 -> -0.02447917481
B9: PF Exchange (IOU) | C9: =ScenarioResults!C9 -> 62 | D9: =C9/ScenarioResults!H25-1 -> -0.06738868833
B10: IP with 7(b)(3) | C10: =ScenarioResults!C10 -> 40.69 | D10: =C10/ScenarioResults!H26-1 -> -0.007682191027
B11: NR | C11: =ScenarioResults!C11 -> 78.84 | D11: =C11/ScenarioResults!H27-1 -> -0.01072850515
B14: Annual Average $ (1000s) | C14: BP-20 | D14: BP22 | E14: Change
A15: 1 | B15: Composite Rate Revenues | C15: 2244314.157 | D15: =Cost_Allocation_TRM!$E$59/2 -> 2275474.636 | E15: =D15/C15-1 -> 0.01388418742
A16: =+A15+1 -> 2 | B16: Non-Slice Rate Revenues | C16: -173280.0459 | D16: =Cost_Allocation_TRM!$E$60/2 -> -287145.3118 | E16: =-(D16/C16-1) -> -0.6571170119
A17: =+A16+1 -> 3 | B17: Slice Rate Revenues | C17: 0 | D17: =Cost_Allocation_TRM!$E$61/2 -> 0
A18: 4 | B18: Load Shaping Rate Revenues | C18: 28041.87596 | D18: =-Cost_Allocation_TRM!$E$44/2 -> 17897.52721 | E18: =D18/C18-1 -> -0.3617571363
A19: 5 | B19: Demand Rate Revenues | C19: 53528.96763 | D19: =-Cost_Allocation_TRM!$E$46/2 -> 55457.28824 | E19: =D19/C19-1 -> 0.03602387062
A20: 6 | B20: Tier 1 Revenue Requirement | C20: =SUM(C15:C19) -> 2152604.955 | D20: =SUM(D15:D19) -> 2061684.139 | E20: =D20/C20-1 -> -0.04223757615
A21: 7 | B21: Tier 2 Revenue Requirement | C21: 14935.76388 | D21: =(Cost_Allocation_TRM!$H$13+Cost_Allocation_TRM!$I$13)/2 -> 47492.02244
A22: 8 | B22: Value of Slice Surplus | C22: -72850.57469 | D22: =-(Secondary!D27+Secondary!E27)/2 -> -106182.7614 | E22: =-(D22/C22-1) -> -0.4575418493
A23: 9 | B23: Value of CHWM RECs (credit)
A24: 10 | B24: Lookback Return (credit) | C24: 0 | D24: 0
A25: 11 | B25: Net Power Cost to All PF | C25: =SUM(C20:C22) -> 2094690.144 | D25: =SUM(D20:D24) -> 2002993.4 | E25: =D25/C25-1 -> -0.04377580334
A26: 12 | B26: Surcharges | C26: =ScenarioResults!H39 -> 11229.92502 | D26: =ScenarioResults!I39 -> 0
A27: 13 | B27: Annual PF Load (w/firm Slice) (GWh) | C27: 58896.49387 | D27: =('PF Public'!$D$77+'PF Public'!$E$77)/2 -> 57435.67953 | E27: =D27/C27-1 -> -0.02480307822
A28: 14 | B28: PF Average Net Cost ($/MWh) | C28: =+(C25+C26)/C27 -> 35.75628923 | D28: =+(D25+D26)/D27 -> 34.87367812 | E28: =D28/C28-1 -> -0.02468408006
A30: =A28+1 -> 15 | B30: Tier 1 Average Net Cost without FRP ($/MWh) | C30: =ScenarioResults!C48 -> 35.82 | D30: =ScenarioResults!D48 -> 34.93 | E30: =D30/C30-1 -> -0.02484645449
A31: =+A30+1 -> 16 | B31: Tier 1 Average Net Cost max FRP ($/MWh) | C31: =ScenarioResults!C50 -> 35.82 | D31: =ScenarioResults!D50 -> 35.64 | E31: -0.005025125628
A32: 17 | B32: Tier 2 ($/MWh) | C32: 31.76411205 | D32: =+'Cost Contribution'!F31 -> 33.65474222 | E32: =D32/C32-1 -> 0.05952095133
B35: Slice Sales | C35: BP-20 | D35: BP22 | E35: Change
A36: =+A32+1 -> 18 | B36: Composite+Slice | C36: 531485.5367 | D36: =(Cost_Allocation_TRM!C68*Cost_Allocation_TRM!E71+Cost_Allocation_TRM!D68*Cost_Allocation_TRM!E71+Cost_Allocation_TRM!C68*Cost_Allocation_TRM!E73+Cost_Allocation_TRM!D68*Cost_Allocation_TRM!E73)/2 -> 536279.3683
A37: 19 | B37: Surcharges
A38: 20 | B38: Tier 1 Average Cost ($/MWh) | C38: =ROUND(SUM(C36:C37)/C59,2) -> 38.57 | D38: =D36/((Loads!E8+Loads!F8)/1000/2) -> 40.64700248 | E38: =D38/C38-1 -> 0.0538502069
A39: 21 | B39: Value of Slice Surplus+Credits | C39: -72850.57469 | D39: =D22+((D23+D24)*(Cost_Allocation_TRM!E68/Cost_Allocation_TRM!E66)) -> -106182.7614
A40: 22 | B40: Net Cost of Slice Power | C40: =+C36+C37+C39 -> 458634.962 | D40: =D36+D39 -> 430096.607
A41: 23 | B41: Tier 1 Average Net Cost ($/MWh) | C41: =C40/C59 -> 33.28348072 | D41: =D40/((Cost_Allocation_TRM!H36+Cost_Allocation_TRM!I36)/2/1000) -> 32.59215323 | E41: =D41/C41-1 -> -0.02077088926
B44: Non-Slice Sales | C44: BP-20 | D44: BP22 | E44: Change
A45: =+A41+1 -> 24 | B45: Composite+NonSlice+Shape+Demand | C45: 1620982.95 | D45: ='LSTUR&PFT1Eqv_RateOutput'!D52/2 -> 1525503.5
A46: 25 | B46: Tier 1 Average Cost ($/MWh) | C46: 36.34220813 | D46: =D45/(('LSTUR&PFT1Eqv_RateOutput'!E54)/2) -> 35.6445936 | E46: =D46/C46-1 -> -0.01919571119
A47: 26 | B47: Credits | C47: 0 | D47: =(D23+D24)*(Cost_Allocation_TRM!E67/Cost_Allocation_TRM!E66) -> 0
A48: 27 | B48: Net Cost of Non-Slice Power | C48: 1620982.95 | D48: =D45+D47 -> 1525503.5
A49: 28 | B49: Surcharges | C49: =ScenarioResults!H39 -> 11229.92502 | D49: =+ScenarioResults!K39 -> 39926.8693
A50: 29 | B50: Tier 1 Average Net Cost without FRP ($/MWh) | C50: =ROUND((C48+C49)/C58,2) -> 36.59 | D50: =(D48)/(('LSTUR&PFT1Eqv_RateOutput'!E54)/2) -> 35.6445936 | E50: =D50/C50-1 -> -0.02583783544
A51: 30 | B51: Tier 1 Average Net Cost max FRP ($/MWh) | C51: =+C50 -> 36.59 | D51: =(D48+D49)/(('LSTUR&PFT1Eqv_RateOutput'!E54)/2) -> 36.57751642 | E51: =D51/C51-1 -> -0.0003411745465
B54: Tiered PF Rate Components | C54: BP-20 | D54: BP22 | E54: Change
A55: =+A51+1 -> 31 | B55: Composite Rate ($/ pct/month) | C55: 1980553.368 | D55: =+Cost_Allocation_TRM!E76 -> 1998417.334 | E55: =D55/C55-1 -> 0.009019684042
A56: 32 | B56: Non-Slice Rate ($/ pct/month) | C56: -200364.6917 | D56: =+Cost_Allocation_TRM!E77 -> -329943.497 | E56: =D56/C56-1 -> 0.646714769
A58: =+A56+1 -> 33 | B58: NonSlice Load | C58: 44603.31481 | D58: =AVERAGE(NonSliceLossAdjust!C5:D5)/1000 -> 42797.61236
A59: 34 | B59: Slice Load | C59: 13779.65742 | D59: =AVERAGE(Cost_Allocation_TRM!H36:I36)/1000 -> 13196.32379
A60: 35 | B60: PF load w/slice | C60: 58896.49387 | D60: =D27 -> 57435.67953
B62: REP Summary Information
B63: Residential Exchange Program Benefits
C64: BP-12 | D64: REP Benefits | G64: Delta | H64: Change
C65: Errata | D65: Preliminary | E65: Reallocations | F65: Planned
B66: Avista | C66: 11818 | D66: ='Utility Specific PFx Settle'!P8 -> 15935.78786 | E66: ='Utility Specific PFx Settle'!J41-'Utility Specific PFx Settle'!D47 -> -2004.778 | F66: =AVERAGE('Utility Specific PFx Settle'!O27,'Utility Specific PFx Settle'!P27) -> 13931.08697 | G66: =+F66-C66 -> 2113.086967 | H66: =F66/C66-1 -> 0.1788024173
B67: Idaho Power | C67: 2024 | D67: ='Utility Specific PFx Settle'!P9 -> 17135.2683 | E67: ='Utility Specific PFx Settle'!J42-'Utility Specific PFx Settle'!E47 -> 0 | F67: =AVERAGE('Utility Specific PFx Settle'!O28,'Utility Specific PFx Settle'!P28) -> 17135.14212 | G67: =+F67-C67 -> 15111.14212 | H67: =F67/C67-1 -> 7.465979308
B68: Northwestern | C68: 2903 | D68: ='Utility Specific PFx Settle'!P10 -> 4094.024312 | E68: ='Utility Specific PFx Settle'!J43-'Utility Specific PFx Settle'!F47 -> 56.01517416 | F68: =AVERAGE('Utility Specific PFx Settle'!O29,'Utility Specific PFx Settle'!P29) -> 4150.059981 | G68: 1247.059981 | H68: 0.4295762939
B69: PacifiCorp | C69: 32167 | D69: ='Utility Specific PFx Settle'!P11 -> 79404.18523 | E69: ='Utility Specific PFx Settle'!J44-'Utility Specific PFx Settle'!G47 -> 0 | F69: =AVERAGE('Utility Specific PFx Settle'!O30,'Utility Specific PFx Settle'!P30) -> 79404.64014 | G69: 47237.64014 | H69: 1.468512455
B70: PGE | C70: 58178 | D70: ='Utility Specific PFx Settle'!P12 -> 77937.06614 | E70: ='Utility Specific PFx Settle'!J45-'Utility Specific PFx Settle'!H47 -> 1066.348903 | F70: =AVERAGE('Utility Specific PFx Settle'!O31,'Utility Specific PFx Settle'!P31) -> 79003.69521 | G70: 20825.69521 | H70: 0.3579651278
B71: Puget Sound | C71: 75012 | D71: ='Utility Specific PFx Settle'!P13 -> 64493.66816 | E71: ='Utility Specific PFx Settle'!J46-'Utility Specific PFx Settle'!I47 -> 882.413923 | F71: =AVERAGE('Utility Specific PFx Settle'!O32,'Utility Specific PFx Settle'!P32) -> 65376.27113 | G71: -9635.728868 | H71: -0.128455832
B72: Clark | C72: =AVERAGE(14893,15048) -> 14970.5 | D72: ='Utility Specific PFx Settle'!P14 -> 0 | E72: 0 | F72: =IF(SUM(('Utility Specific PFx Settle'!O35,'Utility Specific PFx Settle'!P35))=0,0,AVERAGE('Utility Specific PFx Settle'!O35,'Utility Specific PFx Settle'!P35)) -> 0 | G72: -14970.5 | H72: -1
B73: Snohomish | C73: =AVERAGE(4593,4637) -> 4615 | D73: ='Utility Specific PFx Settle'!P16 -> 6321.163287 | E73: 0 | F73: =IF(SUM(('Utility Specific PFx Settle'!O37,'Utility Specific PFx Settle'!P37))=0,0,AVERAGE('Utility Specific PFx Settle'!O37,'Utility Specific PFx Settle'!P37)) -> 6321.163287 | G73: 1706.163287 | H73: 0.3696995205
B74: Total | C74: 201660.3145 | D74: 198924.2241 | E74: =+SUM(E66:E73) -> 0 | F74: =+SUM(F66:F73) -> 265322.0588 | G74: =+SUM(G66:G73) -> 63634.55883 | H74: =F74/C74-1 -> 0.3156880149
B75: IOU Total | C75: =SUM(C66:C71) -> 182102 | D75: =SUM(D66:D71) -> 259000 | E75: =SUM(E66:E72) -> 0 | F75: =SUM(F66:F71) -> 259000.8955 | G75: =SUM(G66:G71) -> 76898.89554 | H75: =F75/C75-1 -> 0.422284739
B76: COU Total | C76: =SUM(C72:C73) -> 19585.5 | D76: =SUM(D72:D73) -> 6321.163287 | E76: =SUM(E72:E73) -> 0 | F76: =SUM(F72:F73) -> 6321.163287 | G76: =SUM(G72:G73) -> -13264.33671 | H76: -0.677252902
B81: Residential Exchange Program Cost Allocations
E83: ='Rates After Settlement'!C13 -> 2022 | F83: ='Rates After Settlement'!D13 -> 2023
B84: Unconstrained REP Benefits | E84: ='Rates After Settlement'!C14 -> 834312.4566 | F84: ='Rates After Settlement'!D14 -> 834397.8952
B85: 7(b)(2) Rate Protection | E85: =E84*(Loads!E5/(Loads!E5+Loads!E11+Loads!E14))-E93 -> 567960.4211 | F85: =F84*(Loads!F5/(Loads!F5+Loads!F11+Loads!F14))-F93 -> 568026.4815
B86: 7(b)(3) PFx Allocation | E86: ='Rates After Settlement'!C28 -> 569003.9823 | F86: ='Rates After Settlement'!D28 -> 569062.2519
B87: 7(b)(3) IP Allocation | E87: ='WP-10 Adjustment'!C55 -> 772.465547 | F87: ='WP-10 Adjustment'!D55 -> 772.5682208
B88: 7(b)(3) NR Allocation | E88: ='WP-10 Adjustment'!C56 -> 0.0724257909 | F88: ='WP-10 Adjustment'!D56 -> 0.07220010047
B89: REP Benefits | E89: ='Utility Specific PFx Settle'!O39 -> 265308.4743 | F89: ='Utility Specific PFx Settle'!P39 -> 265335.6434
B90: Refund Amounts | E90: ='Utility Specific PFx Settle'!O41 -> 0 | F90: ='Utility Specific PFx Settle'!P41 -> 0
B91: Total REP Costs (Benefits + Refunds) | E91: ='Utility Specific PFx Settle'!O42 -> 265308.4743 | F91: ='Utility Specific PFx Settle'!P42 -> 265335.6434
B93: REP Benefits paid by PFp | E93: =E89*(Loads!E5/(Loads!E5+Loads!E11+Loads!E14)) -> 264821.8948 | F93: =F89*(Loads!F5/(Loads!F5+Loads!F11+Loads!F14)) -> 264852.6966
B94: REP Benefits paid by IP | E94: =E89*(Loads!E11/(Loads!E5+Loads!E11+Loads!E14)) -> 486.5338311 | F94: =F89*(Loads!F11/(Loads!F5+Loads!F11+Loads!F14)) -> 482.9016706
B95: REP Benefits paid by NR | E95: =E89*(Loads!E14/(Loads!E5+Loads!E11+Loads!E14)) -> 0.04561717503 | F95: =F89*(Loads!F14/(Loads!F5+Loads!F11+Loads!F14)) -> 0.0451296234

Sheet Loads
B1: Loads (MWh)
A2: TOC | B2: =Cover!$C$14 -> RAMmodel_REP2022.xls
A3: é | E3: Annual | L3: HLH | CG3: LLH
E4: =Init!$C$9 -> 2022 | F4: =E4+1 -> 2023 | G4: =F4+1 -> 2024 | H4: 2025 | I4: 2026 | J4: 2027 | L4: =DATE($E$4-1,10,1) -> 2021-10-01 | M4: =EOMONTH(L4,0)+1 -> 2021-11-01 | N4: =EOMONTH(M4,0)+1 -> 2021-12-01 | O4: 2022-01-01 | P4: 2022-02-01 | Q4: 2022-03-01 | R4: 2022-04-01 | S4: 2022-05-01 | T4: 2022-06-01 | U4: 2022-07-01 | V4: 2022-08-01 | W4: 2022-09-01 | X4: 2022-10-01 | Y4: =EOMONTH(X4,0)+1 -> 2022-11-01 | Z4: 2022-12-01 | AA4: 2023-01-01 | AB4: 2023-02-01 | AC4: 2023-03-01 | AD4: 2023-04-01 | AE4: 2023-05-01 | AF4: 2023-06-01 | AG4: 2023-07-01 | AH4: 2023-08-01 | AI4: 2023-09-01 | AJ4: 2023-10-01 | AK4: 2023-11-01 | AL4: 2023-12-01 | AM4: 2024-01-01 | AN4: 2024-02-01 | AO4: 2024-03-01 | AP4: 2024-04-01 | AQ4: 2024-05-01 | AR4: 2024-06-01 | AS4: 2024-07-01 | AT4: 2024-08-01 | AU4: 2024-09-01 | AV4: 2024-10-01 | AW4: 2024-11-01 | AX4: 2024-12-01 | AY4: 2025-01-01 | AZ4: 2025-02-01 | BA4: 2025-03-01 | BB4: 2025-04-01 | BC4: 2025-05-01 | BD4: 2025-06-01 | BE4: 2025-07-01 | BF4: 2025-08-01 | BG4: 2025-09-01 | BH4: 2025-10-01 | BI4: 2025-11-01 | BJ4: 2025-12-01 | BK4: 2026-01-01 | BL4: 2026-02-01 | BM4: 2026-03-01 | BN4: 2026-04-01 | BO4: 2026-05-01 | BP4: 2026-06-01 | BQ4: 2026-07-01 | BR4: 2026-08-01 | BS4: 2026-09-01 | BT4: 2026-10-01 | BU4: 2026-11-01 | BV4: 2026-12-01 | BW4: 2027-01-01 | BX4: 2027-02-01 | BY4: 2027-03-01 | BZ4: =EOMONTH(BY4,0)+1 -> 2027-04-01 | CA4: 2027-05-01 | CB4: 2027-06-01 | CC4: 2027-07-01 | CD4: 2027-08-01 | CE4: 2027-09-01 | CG4: =DATE($E$4-1,10,1) -> 2021-10-01 | CH4: =EOMONTH(CG4,0)+1 -> 2021-11-01 | CI4: =EOMONTH(CH4,0)+1 -> 2021-12-01 | CJ4: 2022-01-01 | CK4: 2022-02-01 | CL4: 2022-03-01 | CM4: 2022-04-01 | CN4: 2022-05-01 | CO4: 2022-06-01 | CP4: 2022-07-01 | CQ4: 2022-08-01 | CR4: 2022-09-01 | CS4: 2022-10-01 | CT4: 2022-11-01 | CU4: 2022-12-01 | CV4: 2023-01-01 | CW4: 2023-02-01 | CX4: 2023-03-01 | CY4: 2023-04-01 | CZ4: 2023-05-01 | DA4: 2023-06-01 | DB4: 2023-07-01 | DC4: 2023-08-01 | DD4: 2023-09-01 | DE4: 2023-10-01 | DF4: 2023-11-01 | DG4: 2023-12-01 | DH4: 2024-01-01 | DI4: 2024-02-01 | DJ4: 2024-03-01 | DK4: 2024-04-01 | DL4: 2024-05-01 | DM4: 2024-06-01 | DN4: 2024-07-01 | DO4: 2024-08-01 | DP4: 2024-09-01 | DQ4: 2024-10-01 | DR4: 2024-11-01 | DS4: 2024-12-01 | DT4: 2025-01-01 | DU4: 2025-02-01 | DV4: 2025-03-01 | DW4: 2025-04-01 | DX4: 2025-05-01 | DY4: 2025-06-01 | DZ4: 2025-07-01 | EA4: 2025-08-01 | EB4: 2025-09-01 | EC4: 2025-10-01 | ED4: 2025-11-01 | EE4: 2025-12-01 | EF4: 2026-01-01 | EG4: 2026-02-01 | EH4: 2026-03-01 | EI4: 2026-04-01 | EJ4: 2026-05-01 | EK4: 2026-06-01 | EL4: 2026-07-01 | EM4: 2026-08-01 | EN4: 2026-09-01 | EO4: 2026-10-01 | EP4: 2026-11-01 | EQ4: 2026-12-01 | ER4: 2027-01-01 | ES4: 2027-02-01 | ET4: 2027-03-01 | EU4: =EOMONTH(ET4,0)+1 -> 2027-04-01 | EV4: 2027-05-01 | EW4: 2027-06-01 | EX4: 2027-07-01 | EY4: 2027-08-01 | EZ4: 2027-09-01
A5: Preference | D5: PRE | E5: =+SUM(E6:E10) -> 57217146.7 | F5: =+SUM(F6:F10) -> 57654212.35 | G5: 57441435.84 | H5: 57858506.35 | I5: 57441435.84 | J5: 57858506.35 | L5: 2632603.448 | M5: 3020734.101 | N5: 3383739.639 | O5: 3262342.751 | P5: 2828177.244 | Q5: 2989277.209 | R5: 2490490.657 | S5: 2596543.13 | T5: 2783828.22 | U5: 2848503.731 | V5: 2923484.155 | W5: 2562607.356 | X5: 2660206.663 | Y5: 3058206.531 | Z5: 3450553.974 | AA5: 3277283.628 | AB5: 2861749.837 | AC5: 3026330.538 | AD5: 2478652.701 | AE5: 2603794.151 | AF5: 2748815.275 | AG5: 2874517.666 | AH5: 2955545.762 | AI5: 2596477.801 | AJ5: 2619528.883 | AK5: 3083324.255 | AL5: 3380417.903 | AM5: 3229616.655 | AN5: 2855668.946 | AO5: 2970379.242 | AP5: 2490150.419 | AQ5: 2624404.533 | AR5: 2799063.386 | AS5: 2857431.516 | AT5: 2929335.1 | AU5: 2580324.78 | AV5: 2646803.148 | AW5: 3126123.011 | AX5: 3448106.874 | AY5: 3243939.709 | AZ5: 2888466.741 | BA5: 3009796.759 | BB5: 2472758.712 | BC5: 2628431.357 | BD5: 2758760.554 | BE5: 2878091.079 | BF5: 2960629.615 | BG5: 2613579.324 | BH5: 2619528.883 | BI5: 3083324.255 | BJ5: 3380417.903 | BK5: 3229616.655 | BL5: 2855668.946 | BM5: 2970379.242 | BN5: 2490150.419 | BO5: 2624404.533 | BP5: 2799063.386 | BQ5: 2857431.516 | BR5: 2929335.1 | BS5: 2580324.78 | BT5: 2646803.148 | BU5: 3126123.011 | BV5: 3448106.874 | BW5: 3243939.709 | BX5: 2888466.741 | BY5: 3009796.759 | BZ5: 2472758.712 | CA5: 2628431.357 | CB5: 2758760.554 | CC5: 2878091.079 | CD5: 2960629.615 | CE5: 2613579.324 | CG5: 1711976.133 | CH5: 2100676.401 | CI5: 2481647.956 | CJ5: 2421878.653 | CK5: 1946998.585 | CL5: 1965563.07 | CM5: 1636396.312 | CN5: 1725175.994 | CO5: 1575249.077 | CP5: 1894679.116 | CQ5: 1722930.744 | CR5: 1711643.015 | CS5: 1721962.12 | CT5: 2117401.702 | CU5: 2476926.445 | CV5: 2471344.788 | CW5: 1969906.558 | CX5: 1987135.133 | CY5: 1702027.277 | CZ5: 1652455.757 | DA5: 1553324.059 | DB5: 1921586.428 | DC5: 1746287.399 | DD5: 1741720.164 | DE5: 1704861.079 | DF5: 2153146.691 | DG5: 2482253.888 | DH5: 2415000.069 | DI5: 1968187.424 | DJ5: 1950993.315 | DK5: 1639947.498 | DL5: 1752429.595 | DM5: 1588485.707 | DN5: 1910410.67 | DO5: 1728379.818 | DP5: 1727694.467 | DQ5: 1716412.617 | DR5: 2171750.037 | DS5: 2477032.604 | DT5: 2466080.282 | DU5: 1990854.039 | DV5: 1972280.138 | DW5: 1704903.582 | DX5: 1674079.15 | DY5: 1563980.108 | DZ5: 1937546.808 | EA5: 1749849.562 | EB5: 1758250.541 | EC5: 1704861.079 | ED5: 2153146.691 | EE5: 2482253.888 | EF5: 2415000.069 | EG5: 1968187.424 | EH5: 1950993.315 | EI5: 1639947.498 | EJ5: 1752429.595 | EK5: 1588485.707 | EL5: 1910410.67 | EM5: 1728379.818 | EN5: 1727694.467 | EO5: 1716412.617 | EP5: 2171750.037 | EQ5: 2477032.604 | ER5: 2466080.282 | ES5: 1990854.039 | ET5: 1972280.138 | EU5: 1704903.582 | EV5: 1674079.15 | EW5: 1563980.108 | EX5: 1937546.808 | EY5: 1749849.562 | EZ5: 1758250.541
B6: Block | D6: PRE_BLK | E6: =+SUM(L6:W6,CG6:CR6) -> 4155927.888 | F6: =+SUM(X6:AI6,CS6:DD6) -> 4144329.695 | G6: =+SUM(AJ6:AU6,DE6:DP6) -> 4104270.181 | H6: =+SUM(AV6:BG6,DQ6:EB6) -> 4173526.709 | I6: =+SUM(BH6:BS6,EC6:EN6) -> 4104270.181 | J6: =+SUM(BT6:CE6,EO6:EZ6) -> 4173526.709 | L6: 198793.984 | M6: 307244.07 | N6: 319366.945 | O6: 347026.28 | P6: 294201.174 | Q6: 309814.582 | R6: 154408.832 | S6: 57927.664 | T6: 8747.088 | U6: 127056.699 | V6: 143053.476 | W6: 225915.918 | X6: 198237.265 | Y6: 306360.289 | Z6: 318469.258 | AA6: 346052.03 | AB6: 293373.081 | AC6: 308937.77 | AD6: 153984.332 | AE6: 57788.485 | AF6: 8747.088 | AG6: 126722.66 | AH6: 142656.812 | AI6: 225268.73 | AJ6: 195107.395 | AK6: 301816.096 | AL6: 313503.225 | AM6: 339552.475 | AN6: 289329.073 | AO6: 305146.975 | AP6: 151912.9 | AQ6: 55991.74 | AR6: 8423.154 | AS6: 123654.719 | AT6: 140833.945 | AU6: 221891.142 | AV6: 198431.691 | AW6: 307093.471 | AX6: 318863.693 | AY6: 345370.006 | AZ6: 294274.01 | BA6: 310382.787 | BB6: 153842.452 | BC6: 57276.685 | BD6: 8423.154 | BE6: 125649.305 | BF6: 143202.516 | BG6: 225755.657 | BH6: 195107.395 | BI6: 301816.096 | BJ6: 313503.225 | BK6: 339552.475 | BL6: 289329.073 | BM6: 305146.975 | BN6: 151912.9 | BO6: 55991.74 | BP6: 8423.154 | BQ6: 123654.719 | BR6: 140833.945 | BS6: 221891.142 | BT6: 198431.691 | BU6: 307093.471 | BV6: 318863.693 | BW6: 345370.006 | BX6: 294274.01 | BY6: 310382.787 | BZ6: 153842.452 | CA6: 57276.685 | CB6: 8423.154 | CC6: 125649.305 | CD6: 143202.516 | CE6: 225755.657 | CG6: 132529.303 | CH6: 204829.359 | CI6: 212911.309 | CJ6: 231350.861 | CK6: 196134.147 | CL6: 206543.098 | CM6: 102939.211 | CN6: 38618.438 | CO6: 5831.393 | CP6: 84704.455 | CQ6: 95368.985 | CR6: 150610.617 | CS6: 132158.178 | CT6: 204240.172 | CU6: 212312.84 | CV6: 230701.361 | CW6: 195582.053 | CX6: 205958.536 | CY6: 102656.211 | CZ6: 38525.656 | DA6: 5831.393 | DB6: 84481.775 | DC6: 95104.54 | DD6: 150179.18 | DE6: 132083.299 | DF6: 203696.803 | DG6: 212111.186 | DH6: 231592.541 | DI6: 194858.999 | DJ6: 204701.831 | DK6: 102284.017 | DL6: 39521.214 | DM6: 6155.326 | DN6: 85626.858 | DO6: 94644.031 | DP6: 149831.237 | DQ6: 134299.502 | DR6: 207215.021 | DS6: 215684.811 | DT6: 235470.948 | DU6: 198155.592 | DV6: 208192.331 | DW6: 104579.106 | DX6: 39621.394 | DY6: 6155.326 | DZ6: 86956.584 | EA6: 96223.07 | EB6: 152407.597 | EC6: 132083.299 | ED6: 203696.803 | EE6: 212111.186 | EF6: 231592.541 | EG6: 194858.999 | EH6: 204701.831 | EI6: 102284.017 | EJ6: 39521.214 | EK6: 6155.326 | EL6: 85626.858 | EM6: 94644.031 | EN6: 149831.237 | EO6: 134299.502 | EP6: 207215.021 | EQ6: 215684.811 | ER6: 235470.948 | ES6: 198155.592 | ET6: 208192.331 | EU6: 104579.106 | EV6: 39621.394 | EW6: 6155.326 | EX6: 86956.584 | EY6: 96223.07 | EZ6: 152407.597
B7: Slice Block | D7: PRE_BLK | E7: =+SUM(L7:W7,CG7:CR7) -> 11330797.57 | F7: =+SUM(X7:AI7,CS7:DD7) -> 11775170.03 | G7: =+SUM(AJ7:AU7,DE7:DP7) -> 11416558 | H7: =+SUM(AV7:BG7,DQ7:EB7) -> 11848754.03 | I7: =+SUM(BH7:BS7,EC7:EN7) -> 11416558 | J7: =+SUM(BT7:CE7,EO7:EZ7) -> 11848754.03 | L7: 486728.639 | M7: 546509.057 | N7: 651089.3 | O7: 623390.797 | P7: 548384.243 | Q7: 568712.97 | R7: 509233.326 | S7: 476337.738 | T7: 483955.023 | U7: 486766.062 | V7: 514022.208 | W7: 454366.176 | X7: 506452.068 | Y7: 567696.396 | Z7: 675275.011 | AA7: 646455.262 | AB7: 569240.097 | AC7: 590901.585 | AD7: 509505.274 | AE7: 515078.806 | AF7: 503384.661 | AG7: 506142.192 | AH7: 534711.849 | AI7: 473171.872 | AJ7: 490106.332 | AK7: 550649.698 | AL7: 656199.421 | AM7: 628089.906 | AN7: 552668.969 | AO7: 573631.399 | AP7: 513416.107 | AQ7: 479833.141 | AR7: 487368.046 | AS7: 490200.002 | AT7: 517572.958 | AU7: 457848.808 | AV7: 509390.79 | AW7: 571222.403 | AX7: 679624.554 | AY7: 650483.641 | AZ7: 572921.948 | BA7: 595087.647 | BB7: 512944.861 | BC7: 518178.145 | BD7: 506315.477 | BE7: 509112.45 | BF7: 537801.603 | BG7: 476174.786 | BH7: 490106.332 | BI7: 550649.698 | BJ7: 656199.421 | BK7: 628089.906 | BL7: 552668.969 | BM7: 573631.399 | BN7: 513416.107 | BO7: 479833.141 | BP7: 487368.046 | BQ7: 490200.002 | BR7: 517572.958 | BS7: 457848.808 | BT7: 509390.79 | BU7: 571222.403 | BV7: 679624.554 | BW7: 650483.641 | BX7: 572921.948 | BY7: 595087.647 | BZ7: 512944.861 | CA7: 518178.145 | CB7: 506315.477 | CC7: 509112.45 | CD7: 537801.603 | CE7: 476174.786 | CG7: 383766.478 | CH7: 438564.684 | CI7: 513358.391 | CJ7: 536125.614 | CK7: 411285.747 | CL7: 409414.989 | CM7: 372128.674 | CN7: 409657.713 | CO7: 353656.216 | CP7: 418626.228 | CQ7: 371230.896 | CR7: 363486.397 | CS7: 399317.623 | CT7: 455567.182 | CU7: 532427.856 | CV7: 555961.39 | CW7: 426927.565 | CX7: 425388.538 | CY7: 407596.886 | CZ7: 406119.429 | DA7: 367854.681 | DB7: 435289.98 | DC7: 386173.141 | DD7: 378530.685 | DE7: 386429.653 | DF7: 441887.488 | DG7: 517387.513 | DH7: 540166.918 | DI7: 414499.262 | DJ7: 412955.747 | DK7: 375185.291 | DL7: 412663.81 | DM7: 356150.334 | DN7: 421579.475 | DO7: 373795.262 | DP7: 366272.461 | DQ7: 401634.689 | DR7: 458396.744 | DS7: 535857.328 | DT7: 559425.854 | DU7: 429688.94 | DV7: 428402.1 | DW7: 410348.496 | DX7: 408563.152 | DY7: 369996.403 | DZ7: 437844.457 | EA7: 388404.583 | EB7: 380932.974 | EC7: 386429.653 | ED7: 441887.488 | EE7: 517387.513 | EF7: 540166.918 | EG7: 414499.262 | EH7: 412955.747 | EI7: 375185.291 | EJ7: 412663.81 | EK7: 356150.334 | EL7: 421579.475 | EM7: 373795.262 | EN7: 366272.461 | EO7: 401634.689 | EP7: 458396.744 | EQ7: 535857.328 | ER7: 559425.854 | ES7: 429688.94 | ET7: 428402.1 | EU7: 410348.496 | EV7: 408563.152 | EW7: 369996.403 | EX7: 437844.457 | EY7: 388404.583 | EZ7: 380932.974
B8: Slice | D8: PRE_SNB | E8: =+SUM(L8:W8,CG8:CR8) -> 13322796.44 | F8: =+SUM(X8:AI8,CS8:DD8) -> 13064358.12 | G8: 13322796.44 | H8: 13064358.12 | I8: 13322796.44 | J8: 13064358.12 | L8: 651447.8656 | M8: 787848.7199 | N8: 704823.6185 | O8: 604141.5501 | P8: 524981.981 | Q8: 660956.0518 | R8: 518515.6992 | S8: 813224.996 | T8: 917934.8486 | U8: 786875.7978 | V8: 767202.654 | W8: 673001.327 | X8: 654500.3827 | Y8: 794199.0525 | Z8: 736694.4785 | AA8: 581391.9152 | AB8: 524188.9935 | AC8: 663326.1745 | AD8: 513012.8536 | AE8: 749920.3005 | AF8: 849732.0852 | AG8: 780587.7956 | AH8: 765282.3551 | AI8: 669922.8616 | AJ8: 651447.8656 | AK8: 787848.7199 | AL8: 704823.6185 | AM8: 604141.5501 | AN8: 524981.981 | AO8: 660956.0518 | AP8: 518515.6992 | AQ8: 813224.996 | AR8: 917934.8486 | AS8: 786875.7978 | AT8: 767202.654 | AU8: 673001.327 | AV8: 654500.3827 | AW8: 794199.0525 | AX8: 736694.4785 | AY8: 581391.9152 | AZ8: 524188.9935 | BA8: 663326.1745 | BB8: 513012.8536 | BC8: 749920.3005 | BD8: 849732.0852 | BE8: 780587.7956 | BF8: 765282.3551 | BG8: 669922.8616 | BH8: 651447.8656 | BI8: 787848.7199 | BJ8: 704823.6185 | BK8: 604141.5501 | BL8: 524981.981 | BM8: 660956.0518 | BN8: 518515.6992 | BO8: 813224.996 | BP8: 917934.8486 | BQ8: 786875.7978 | BR8: 767202.654 | BS8: 673001.327 | BT8: 654500.3827 | BU8: 794199.0525 | BV8: 736694.4785 | BW8: 581391.9152 | BX8: 524188.9935 | BY8: 663326.1745 | BZ8: 513012.8536 | CA8: 749920.3005 | CB8: 849732.0852 | CC8: 780587.7956 | CD8: 765282.3551 | CE8: 669922.8616 | CG8: 367637.6814 | CH8: 502651.4179 | CI8: 558001.0774 | CJ8: 438622.4603 | CK8: 379026.898 | CL8: 418248.954 | CM8: 320979.7008 | CN8: 408309.5617 | CO8: 376538.4367 | CP8: 391069.4284 | CQ8: 368699.8483 | CR8: 382055.8631 | CS8: 362427.932 | CT8: 493305.0323 | CU8: 523773.5567 | CV8: 459779.1801 | CW8: 377952.9569 | CX8: 413738.4696 | CY8: 321329.8392 | CZ8: 348046.6656 | DA8: 334344.8731 | DB8: 394646.1408 | DC8: 368873.0133 | DD8: 383381.2096 | DE8: 367637.6814 | DF8: 502651.4179 | DG8: 558001.0774 | DH8: 438622.4603 | DI8: 379026.898 | DJ8: 418248.954 | DK8: 320979.7008 | DL8: 408309.5617 | DM8: 376538.4367 | DN8: 391069.4284 | DO8: 368699.8483 | DP8: 382055.8631 | DQ8: 362427.932 | DR8: 493305.0323 | DS8: 523773.5567 | DT8: 459779.1801 | DU8: 377952.9569 | DV8: 413738.4696 | DW8: 321329.8392 | DX8: 348046.6656 | DY8: 334344.8731 | DZ8: 394646.1408 | EA8: 368873.0133 | EB8: 383381.2096 | EC8: 367637.6814 | ED8: 502651.4179 | EE8: 558001.0774 | EF8: 438622.4603 | EG8: 379026.898 | EH8: 418248.954 | EI8: 320979.7008 | EJ8: 408309.5617 | EK8: 376538.4367 | EL8: 391069.4284 | EM8: 368699.8483 | EN8: 382055.8631 | EO8: 362427.932 | EP8: 493305.0323 | EQ8: 523773.5567 | ER8: 459779.1801 | ES8: 377952.9569 | ET8: 413738.4696 | EU8: 321329.8392 | EV8: 348046.6656 | EW8: 334344.8731 | EX8: 394646.1408 | EY8: 368873.0133 | EZ8: 383381.2096
B9: Load Following | D9: PRE_LDF | E9: =+SUM(L9:W9,CG9:CR9) -> 27035896.41 | F9: 27153104.99 | G9: 27168415.74 | H9: 27179430.9 | I9: 27168415.74 | J9: 27179430.9 | L9: 1230491.519 | M9: 1316496.254 | N9: 1643318.335 | O9: 1625148.124 | P9: 1400479.286 | Q9: 1382146.725 | R9: 1243191.36 | S9: 1186416.732 | T9: 1308049.82 | U9: 1385169.172 | V9: 1431558.937 | W9: 1146687.935 | X9: 1228964.915 | Y9: 1320669.993 | Z9: 1648063.195 | AA9: 1634103.621 | AB9: 1408438.097 | AC9: 1388341.744 | AD9: 1232869.441 | AE9: 1208954.528 | AF9: 1314899.409 | AG9: 1391784.218 | AH9: 1438071.482 | AI9: 1158833.537 | AJ9: 1214987.322 | AK9: 1377740.541 | AL9: 1638011.67 | AM9: 1592563.524 | AN9: 1426030.491 | AO9: 1360154.08 | AP9: 1238425.745 | AQ9: 1210085.456 | AR9: 1317457.369 | AS9: 1391431.797 | AT9: 1433234.807 | AU9: 1162314.303 | AV9: 1208857.724 | AW9: 1380894.084 | AX9: 1637301.589 | AY9: 1593980.147 | AZ9: 1427276.349 | BA9: 1362469.03 | BB9: 1220244.545 | BC9: 1227433.667 | BD9: 1318667.278 | BE9: 1390027.528 | BF9: 1435812.021 | BG9: 1169012.019 | BH9: 1214987.322 | BI9: 1377740.541 | BJ9: 1638011.67 | BK9: 1592563.524 | BL9: 1426030.491 | BM9: 1360154.08 | BN9: 1238425.745 | BO9: 1210085.456 | BP9: 1317457.369 | BQ9: 1391431.797 | BR9: 1433234.807 | BS9: 1162314.303 | BT9: 1208857.724 | BU9: 1380894.084 | BV9: 1637301.589 | BW9: 1593980.147 | BX9: 1427276.349 | BY9: 1362469.03 | BZ9: 1220244.545 | CA9: 1227433.667 | CB9: 1318667.278 | CC9: 1390027.528 | CD9: 1435812.021 | CE9: 1169012.019 | CG9: 776681.151 | CH9: 904365.55 | CI9: 1146015.659 | CJ9: 1161912.758 | CK9: 915453.873 | CL9: 882656.539 | CM9: 792745.366 | CN9: 814723.321 | CO9: 791619.671 | CP9: 946412.045 | CQ9: 838774.935 | CR9: 765381.338 | CS9: 771248.131 | CT9: 908691.474 | CU9: 1151601.936 | CV9: 1165321.369 | CW9: 919561.807 | CX9: 888183.767 | CY9: 815019.701 | CZ9: 802953.75 | DA9: 792639.704 | DB9: 947587.044 | DC9: 842097.681 | DD9: 774204.449 | DE9: 765189.702 | DF9: 952532.449 | DG9: 1141233.368 | DH9: 1148486.638 | DI9: 932808.441 | DJ9: 864339.98 | DK9: 791893.897 | DL9: 835803.497 | DM9: 800037.018 | DN9: 956003.397 | DO9: 840330.701 | DP9: 777319.546 | DQ9: 758425.014 | DR9: 954480.255 | DS9: 1142091.428 | DT9: 1148870.26 | DU9: 932702.47 | DV9: 865412.102 | DW9: 810474.941 | DX9: 818222.458 | DY9: 798220.866 | DZ9: 955565.586 | EA9: 839631.976 | EB9: 783357.56 | EC9: 765189.702 | ED9: 952532.449 | EE9: 1141233.368 | EF9: 1148486.638 | EG9: 932808.441 | EH9: 864339.98 | EI9: 791893.897 | EJ9: 835803.497 | EK9: 800037.018 | EL9: 956003.397 | EM9: 840330.701 | EN9: 777319.546 | EO9: 758425.014 | EP9: 954480.255 | EQ9: 1142091.428 | ER9: 1148870.26 | ES9: 932702.47 | ET9: 865412.102 | EU9: 810474.941 | EV9: 818222.458 | EW9: 798220.866 | EX9: 955565.586 | EY9: 839631.976 | EZ9: 783357.56
B10: Tier 2 | D10: PRE_T2 | E10: =+SUM(L10:W10,CG10:CR10) -> 1371728.4 | F10: =+SUM(X10:AI10,CS10:DD10) -> 1517249.52 | G10: =+SUM(AJ10:AU10,DE10:DP10) -> 1429395.48 | H10: 1592436.6 | I10: 1429395.48 | J10: 1592436.6 | L10: 65141.44 | M10: 62636 | N10: 65141.44 | O10: 62636 | P10: 60130.56 | Q10: 67646.88 | R10: 65141.44 | S10: 62636 | T10: 65141.44 | U10: 62636 | V10: 67646.88 | W10: 62636 | X10: 72052.032 | Y10: 69280.8 | Z10: 72052.032 | AA10: 69280.8 | AB10: 66509.568 | AC10: 74823.264 | AD10: 69280.8 | AE10: 72052.032 | AF10: 72052.032 | AG10: 69280.8 | AH10: 74823.264 | AI10: 69280.8 | AJ10: 67879.968 | AK10: 65269.2 | AL10: 67879.968 | AM10: 65269.2 | AN10: 62658.432 | AO10: 70490.736 | AP10: 67879.968 | AQ10: 65269.2 | AR10: 67879.968 | AS10: 65269.2 | AT10: 70490.736 | AU10: 65269.2 | AV10: 75622.56 | AW10: 72714 | AX10: 75622.56 | AY10: 72714 | AZ10: 69805.44 | BA10: 78531.12 | BB10: 72714 | BC10: 75622.56 | BD10: 75622.56 | BE10: 72714 | BF10: 78531.12 | BG10: 72714 | BH10: 67879.968 | BI10: 65269.2 | BJ10: 67879.968 | BK10: 65269.2 | BL10: 62658.432 | BM10: 70490.736 | BN10: 67879.968 | BO10: 65269.2 | BP10: 67879.968 | BQ10: 65269.2 | BR10: 70490.736 | BS10: 65269.2 | BT10: 75622.56 | BU10: 72714 | BV10: 75622.56 | BW10: 72714 | BX10: 69805.44 | BY10: 78531.12 | BZ10: 72714 | CA10: 75622.56 | CB10: 75622.56 | CC10: 72714 | CD10: 78531.12 | CE10: 72714 | CG10: 51361.52 | CH10: 50265.39 | CI10: 51361.52 | CJ10: 53866.96 | CK10: 45097.92 | CL10: 48699.49 | CM10: 47603.36 | CN10: 53866.96 | CO10: 47603.36 | CP10: 53866.96 | CQ10: 48856.08 | CR10: 50108.8 | CS10: 56810.256 | CT10: 55597.842 | CU10: 56810.256 | CV10: 59581.488 | CW10: 49882.176 | CX10: 53865.822 | CY10: 55424.64 | CZ10: 56810.256 | DA10: 52653.408 | DB10: 59581.488 | DC10: 54039.024 | DD10: 55424.64 | DE10: 53520.744 | DF10: 52378.533 | DG10: 53520.744 | DH10: 56131.512 | DI10: 46993.824 | DJ10: 50746.803 | DK10: 49604.592 | DL10: 56131.512 | DM10: 49604.592 | DN10: 56131.512 | DO10: 50909.976 | DP10: 52215.36 | DQ10: 59625.48 | DR10: 58352.985 | DS10: 59625.48 | DT10: 62534.04 | DU10: 52354.08 | DV10: 56535.135 | DW10: 58171.2 | DX10: 59625.48 | DY10: 55262.64 | DZ10: 62534.04 | EA10: 56716.92 | EB10: 58171.2 | EC10: 53520.744 | ED10: 52378.533 | EE10: 53520.744 | EF10: 56131.512 | EG10: 46993.824 | EH10: 50746.803 | EI10: 49604.592 | EJ10: 56131.512 | EK10: 49604.592 | EL10: 56131.512 | EM10: 50909.976 | EN10: 52215.36 | EO10: 59625.48 | EP10: 58352.985 | EQ10: 59625.48 | ER10: 62534.04 | ES10: 52354.08 | ET10: 56535.135 | EU10: 58171.2 | EV10: 59625.48 | EW10: 55262.64 | EX10: 62534.04 | EY10: 56716.92 | EZ10: 58171.2
A11: Industrial | D11: IND | E11: =+SUM(E12:E13) -> 105120 | F11: =+SUM(F12:F13) -> 105120 | G11: 105120 | H11: 105120 | I11: 105120 | J11: 105120 | L11: 5084.197 | M11: 4746.837 | N11: 4809.003 | O11: 4826.339 | P11: 4532.686 | Q11: 5080.741 | R11: 4884.59 | S11: 4885.416 | T11: 4936.183 | U11: 4823.606 | V11: 5130.258 | W11: 4570.003 | X11: 5084.197 | Y11: 4746.837 | Z11: 4809.003 | AA11: 4826.339 | AB11: 4532.686 | AC11: 5080.741 | AD11: 4884.59 | AE11: 4885.416 | AF11: 4936.183 | AG11: 4823.606 | AH11: 5130.258 | AI11: 4570.003 | AJ11: 5084.197 | AK11: 4746.837 | AL11: 4809.003 | AM11: 4826.339 | AN11: 4532.686 | AO11: 5080.741 | AP11: 4884.59 | AQ11: 4885.416 | AR11: 4936.183 | AS11: 4823.606 | AT11: 5130.258 | AU11: 4570.003 | AV11: 5084.197 | AW11: 4746.837 | AX11: 4809.003 | AY11: 4826.339 | AZ11: 4532.686 | BA11: 5080.741 | BB11: 4884.59 | BC11: 4885.416 | BD11: 4936.183 | BE11: 4823.606 | BF11: 5130.258 | BG11: 4570.003 | BH11: 5084.197 | BI11: 4746.837 | BJ11: 4809.003 | BK11: 4826.339 | BL11: 4532.686 | BM11: 5080.741 | BN11: 4884.59 | BO11: 4885.416 | BP11: 4936.183 | BQ11: 4823.606 | BR11: 5130.258 | BS11: 4570.003 | BT11: 5084.197 | BU11: 4746.837 | BV11: 4809.003 | BW11: 4826.339 | BX11: 4532.686 | BY11: 5080.741 | BZ11: 4884.59 | CA11: 4885.416 | CB11: 4936.183 | CC11: 4823.606 | CD11: 5130.258 | CE11: 4570.003 | CG11: 3843.803 | CH11: 3905.163 | CI11: 4118.997 | CJ11: 4101.661 | CK11: 3531.314 | CL11: 3835.259 | CM11: 3755.41 | CN11: 4042.584 | CO11: 3703.817 | CP11: 4104.394 | CQ11: 3797.742 | CR11: 4069.997 | CS11: 3843.803 | CT11: 3905.163 | CU11: 4118.997 | CV11: 4101.661 | CW11: 3531.314 | CX11: 3835.259 | CY11: 3755.41 | CZ11: 4042.584 | DA11: 3703.817 | DB11: 4104.394 | DC11: 3797.742 | DD11: 4069.997 | DE11: 3843.803 | DF11: 3905.163 | DG11: 4118.997 | DH11: 4101.661 | DI11: 3531.314 | DJ11: 3835.259 | DK11: 3755.41 | DL11: 4042.584 | DM11: 3703.817 | DN11: 4104.394 | DO11: 3797.742 | DP11: 4069.997 | DQ11: 3843.803 | DR11: 3905.163 | DS11: 4118.997 | DT11: 4101.661 | DU11: 3531.314 | DV11: 3835.259 | DW11: 3755.41 | DX11: 4042.584 | DY11: 3703.817 | DZ11: 4104.394 | EA11: 3797.742 | EB11: 4069.997 | EC11: 3843.803 | ED11: 3905.163 | EE11: 4118.997 | EF11: 4101.661 | EG11: 3531.314 | EH11: 3835.259 | EI11: 3755.41 | EJ11: 4042.584 | EK11: 3703.817 | EL11: 4104.394 | EM11: 3797.742 | EN11: 4069.997 | EO11: 3843.803 | EP11: 3905.163 | EQ11: 4118.997 | ER11: 4101.661 | ES11: 3531.314 | ET11: 3835.259 | EU11: 3755.41 | EV11: 4042.584 | EW11: 3703.817 | EX11: 4104.394 | EY11: 3797.742 | EZ11: 4069.997
B12: Smelter | D12: IND_SMT | E12: 0 | F12: 0 | G12: =+SUM(AJ12:AU12,DE12:DP12) -> 0 | H12: 0 | I12: 0 | J12: 0 | L12: 0 | M12: 0 | N12: 0 | O12: 0 | P12: 0 | Q12: 0 | R12: 0 | S12: 0 | T12: 0 | U12: 0 | V12: 0 | W12: 0 | X12: 0 | Y12: 0 | Z12: 0 | AA12: 0 | AB12: 0 | AC12: 0 | AD12: 0 | AE12: 0 | AF12: 0 | AG12: 0 | AH12: 0 | AI12: 0 | AJ12: 0 | AK12: 0 | AL12: 0 | AM12: 0 | AN12: 0 | AO12: 0 | AP12: 0 | AQ12: 0 | AR12: 0 | AS12: 0 | AT12: 0 | AU12: 0 | AV12: 0 | AW12: 0 | AX12: 0 | AY12: 0 | AZ12: 0 | BA12: 0 | BB12: 0 | BC12: 0 | BD12: 0 | BE12: 0 | BF12: 0 | BG12: 0 | BH12: 0 | BI12: 0 | BJ12: 0 | BK12: 0 | BL12: 0 | BM12: 0 | BN12: 0 | BO12: 0 | BP12: 0 | BQ12: 0 | BR12: 0 | BS12: 0 | BT12: 0 | BU12: 0 | BV12: 0 | BW12: 0 | BX12: 0 | BY12: 0 | BZ12: 0 | CA12: 0 | CB12: 0 | CC12: 0 | CD12: 0 | CE12: 0 | CG12: 0 | CH12: 0 | CI12: 0 | CJ12: 0 | CK12: 0 | CL12: 0 | CM12: 0 | CN12: 0 | CO12: 0 | CP12: 0 | CQ12: 0 | CR12: 0 | CS12: 0 | CT12: 0 | CU12: 0 | CV12: 0 | CW12: 0 | CX12: 0 | CY12: 0 | CZ12: 0 | DA12: 0 | DB12: 0 | DC12: 0 | DD12: 0 | DE12: 0 | DF12: 0 | DG12: 0 | DH12: 0 | DI12: 0 | DJ12: 0 | DK12: 0 | DL12: 0 | DM12: 0 | DN12: 0 | DO12: 0 | DP12: 0 | DQ12: 0 | DR12: 0 | DS12: 0 | DT12: 0 | DU12: 0 | DV12: 0 | DW12: 0 | DX12: 0 | DY12: 0 | DZ12: 0 | EA12: 0 | EB12: 0 | EC12: 0 | ED12: 0 | EE12: 0 | EF12: 0 | EG12: 0 | EH12: 0 | EI12: 0 | EJ12: 0 | EK12: 0 | EL12: 0 | EM12: 0 | EN12: 0 | EO12: 0 | EP12: 0 | EQ12: 0 | ER12: 0 | ES12: 0 | ET12: 0 | EU12: 0 | EV12: 0 | EW12: 0 | EX12: 0 | EY12: 0 | EZ12: 0
B13: Other Industrial | D13: IND_OTH | E13: 105120 | F13: 105120 | G13: 105120 | H13: 105120 | I13: 105120 | J13: 105120 | L13: 5084.197 | M13: 4746.837 | N13: 4809.003 | O13: 4826.339 | P13: 4532.686 | Q13: 5080.741 | R13: 4884.59 | S13: 4885.416 | T13: 4936.183 | U13: 4823.606 | V13: 5130.258 | W13: 4570.003 | X13: 5084.197 | Y13: 4746.837 | Z13: 4809.003 | AA13: 4826.339 | AB13: 4532.686 | AC13: 5080.741 | AD13: 4884.59 | AE13: 4885.416 | AF13: 4936.183 | AG13: 4823.606 | AH13: 5130.258 | AI13: 4570.003 | AJ13: 5084.197 | AK13: 4746.837 | AL13: 4809.003 | AM13: 4826.339 | AN13: 4532.686 | AO13: 5080.741 | AP13: 4884.59 | AQ13: 4885.416 | AR13: 4936.183 | AS13: 4823.606 | AT13: 5130.258 | AU13: 4570.003 | AV13: 5084.197 | AW13: 4746.837 | AX13: 4809.003 | AY13: 4826.339 | AZ13: 4532.686 | BA13: 5080.741 | BB13: 4884.59 | BC13: 4885.416 | BD13: 4936.183 | BE13: 4823.606 | BF13: 5130.258 | BG13: 4570.003 | BH13: 5084.197 | BI13: 4746.837 | BJ13: 4809.003 | BK13: 4826.339 | BL13: 4532.686 | BM13: 5080.741 | BN13: 4884.59 | BO13: 4885.416 | BP13: 4936.183 | BQ13: 4823.606 | BR13: 5130.258 | BS13: 4570.003 | BT13: 5084.197 | BU13: 4746.837 | BV13: 4809.003 | BW13: 4826.339 | BX13: 4532.686 | BY13: 5080.741 | BZ13: 4884.59 | CA13: 4885.416 | CB13: 4936.183 | CC13: 4823.606 | CD13: 5130.258 | CE13: 4570.003 | CG13: 3843.803 | CH13: 3905.163 | CI13: 4118.997 | CJ13: 4101.661 | CK13: 3531.314 | CL13: 3835.259 | CM13: 3755.41 | CN13: 4042.584 | CO13: 3703.817 | CP13: 4104.394 | CQ13: 3797.742 | CR13: 4069.997 | CS13: 3843.803 | CT13: 3905.163 | CU13: 4118.997 | CV13: 4101.661 | CW13: 3531.314 | CX13: 3835.259 | CY13: 3755.41 | CZ13: 4042.584 | DA13: 3703.817 | DB13: 4104.394 | DC13: 3797.742 | DD13: 4069.997 | DE13: 3843.803 | DF13: 3905.163 | DG13: 4118.997 | DH13: 4101.661 | DI13: 3531.314 | DJ13: 3835.259 | DK13: 3755.41 | DL13: 4042.584 | DM13: 3703.817 | DN13: 4104.394 | DO13: 3797.742 | DP13: 4069.997 | DQ13: 3843.803 | DR13: 3905.163 | DS13: 4118.997 | DT13: 4101.661 | DU13: 3531.314 | DV13: 3835.259 | DW13: 3755.41 | DX13: 4042.584 | DY13: 3703.817 | DZ13: 4104.394 | EA13: 3797.742 | EB13: 4069.997 | EC13: 3843.803 | ED13: 3905.163 | EE13: 4118.997 | EF13: 4101.661 | EG13: 3531.314 | EH13: 3835.259 | EI13: 3755.41 | EJ13: 4042.584 | EK13: 3703.817 | EL13: 4104.394 | EM13: 3797.742 | EN13: 4069.997 | EO13: 3843.803 | EP13: 3905.163 | EQ13: 4118.997 | ER13: 4101.661 | ES13: 3531.314 | ET13: 3835.259 | EU13: 3755.41 | EV13: 4042.584 | EW13: 3703.817 | EX13: 4104.394 | EY13: 3797.742 | EZ13: 4069.997
A14: New Resource | D14: NR | E14: 9.856 | F14: 9.824 | G14: 9.856 | H14: 9.824 | I14: 9.856 | J14: 9.824 | L14: 0.432 | M14: 0.4 | N14: 0.4 | O14: 0.416 | P14: 0.4 | Q14: 0.416 | R14: 0.416 | S14: 0.4 | T14: 0.416 | U14: 0.416 | V14: 0.416 | W14: 0.4 | X14: 0.432 | Y14: 0.384 | Z14: 0.416 | AA14: 0.4 | AB14: 0.384 | AC14: 0.432 | AD14: 0.416 | AE14: 0.4 | AF14: 0.416 | AG14: 0.416 | AH14: 0.416 | AI14: 0.4 | AJ14: 0.432 | AK14: 0.4 | AL14: 0.4 | AM14: 0.416 | AN14: 0.4 | AO14: 0.416 | AP14: 0.416 | AQ14: 0.4 | AR14: 0.416 | AS14: 0.416 | AT14: 0.416 | AU14: 0.4 | AV14: 0.432 | AW14: 0.384 | AX14: 0.416 | AY14: 0.4 | AZ14: 0.384 | BA14: 0.432 | BB14: 0.416 | BC14: 0.4 | BD14: 0.416 | BE14: 0.416 | BF14: 0.416 | BG14: 0.4 | BH14: 0.432 | BI14: 0.4 | BJ14: 0.4 | BK14: 0.416 | BL14: 0.4 | BM14: 0.416 | BN14: 0.416 | BO14: 0.4 | BP14: 0.416 | BQ14: 0.416 | BR14: 0.416 | BS14: 0.4 | BT14: 0.432 | BU14: 0.384 | BV14: 0.416 | BW14: 0.4 | BX14: 0.384 | BY14: 0.432 | BZ14: 0.416 | CA14: 0.4 | CB14: 0.416 | CC14: 0.416 | CD14: 0.416 | CE14: 0.4 | CG14: 0.432 | CH14: 0.4 | CI14: 0.4 | CJ14: 0.416 | CK14: 0.4 | CL14: 0.416 | CM14: 0.416 | CN14: 0.4 | CO14: 0.416 | CP14: 0.416 | CQ14: 0.416 | CR14: 0.4 | CS14: 0.432 | CT14: 0.384 | CU14: 0.416 | CV14: 0.4 | CW14: 0.384 | CX14: 0.432 | CY14: 0.416 | CZ14: 0.4 | DA14: 0.416 | DB14: 0.416 | DC14: 0.416 | DD14: 0.4 | DE14: 0.432 | DF14: 0.4 | DG14: 0.4 | DH14: 0.416 | DI14: 0.4 | DJ14: 0.416 | DK14: 0.416 | DL14: 0.4 | DM14: 0.416 | DN14: 0.416 | DO14: 0.416 | DP14: 0.4 | DQ14: 0.432 | DR14: 0.384 | DS14: 0.416 | DT14: 0.4 | DU14: 0.384 | DV14: 0.432 | DW14: 0.416 | DX14: 0.4 | DY14: 0.416 | DZ14: 0.416 | EA14: 0.416 | EB14: 0.4 | EC14: 0.432 | ED14: 0.4 | EE14: 0.4 | EF14: 0.416 | EG14: 0.4 | EH14: 0.416 | EI14: 0.416 | EJ14: 0.4 | EK14: 0.416 | EL14: 0.416 | EM14: 0.416 | EN14: 0.4 | EO14: 0.432 | EP14: 0.384 | EQ14: 0.416 | ER14: 0.4 | ES14: 0.384 | ET14: 0.432 | EU14: 0.416 | EV14: 0.4 | EW14: 0.416 | EX14: 0.416 | EY14: 0.416 | EZ14: 0.4
A15: Firm Power and Services | D15: FPS | E15: =+SUM(E16,E27,E38) -> 5839869.017 | F15: =+SUM(F16,F27,F38) -> 5826616.561 | G15: 5741997.298 | H15: 5730899.248 | I15: 5741997.298 | J15: 5730899.248 | L15: 381393.3729 | M15: 340186.4931 | N15: 352630.7279 | O15: 348640.7153 | P15: 316829.7303 | Q15: 359731.2148 | R15: 415797.5816 | S15: 468744.0079 | T15: 465287.9686 | U15: 492831.2487 | V15: 485619.4796 | W15: 415921.6106 | X15: 378897.3729 | Y15: 337786.4931 | Z15: 350134.7279 | AA15: 348640.7153 | AB15: 316829.7303 | AC15: 359731.2148 | AD15: 415557.8726 | AE15: 469133.8957 | AF15: 465287.9686 | AG15: 492831.2487 | AH15: 485619.9436 | AI15: 415921.6106 | AJ15: 371999.9709 | AK15: 341560.3251 | AL15: 352309.2329 | AM15: 349526.5003 | AN15: 316538.5793 | AO15: 359640.0168 | AP15: 421209.9636 | AQ15: 465663.7769 | AR15: 456440.7046 | AS15: 485133.4457 | AT15: 482575.0946 | AU15: 406345.2166 | AV15: 369815.9709 | AW15: 339460.3251 | AX15: 350125.2329 | AY15: 349526.5003 | AZ15: 316538.5793 | BA15: 359640.0168 | BB15: 420960.6616 | BC15: 466053.4287 | BD15: 456440.7046 | BE15: 485133.4457 | BF15: 482866.2946 | BG15: 406345.2166 | BH15: 371999.9709 | BI15: 341560.3251 | BJ15: 352309.2329 | BK15: 349526.5003 | BL15: 316538.5793 | BM15: 359640.0168 | BN15: 421209.9636 | BO15: 465663.7769 | BP15: 456440.7046 | BQ15: 485133.4457 | BR15: 482575.0946 | BS15: 406345.2166 | BT15: 369815.9709 | BU15: 339460.3251 | BV15: 350125.2329 | BW15: 349526.5003 | BX15: 316538.5793 | BY15: 359640.0168 | BZ15: 420960.6616 | CA15: 466053.4287 | CB15: 456440.7046 | CC15: 485133.4457 | CD15: 482866.2946 | CE15: 406345.2166 | CG15: 60846.25188 | CH15: 9079.73191 | CI15: 8733.37596 | CJ15: 6309.824652 | CK15: 10245.1154 | CL15: 30947.18542 | CM15: 87569.5271 | CN15: 135368.2619 | CO15: 155059.6314 | CP15: 184954.1564 | CQ15: 182226.4991 | CR15: 124915.3047 | CS15: 58878.25188 | CT15: 7153.73191 | CU15: 6766.12596 | CV15: 6309.824652 | CW15: 10245.1154 | CX15: 30947.18542 | CY15: 87809.23603 | CZ15: 134978.3761 | DA15: 155059.6314 | DB15: 184954.1564 | DC15: 182226.8271 | DD15: 124915.3047 | DE15: 57946.94588 | DF15: 11156.84891 | DG15: 10411.98596 | DH15: 6606.102651 | DI15: 8532.826398 | DJ15: 33369.96442 | DK15: 83500.2981 | DL15: 124747.1719 | DM15: 134656.1244 | DN15: 171453.1454 | DO15: 171460.1971 | DP15: 119212.8597 | DQ15: 56224.94588 | DR15: 9471.59891 | DS15: 8689.985961 | DT15: 6606.102651 | DU15: 8532.826398 | DV15: 33369.96442 | DW15: 83749.60003 | DX15: 124357.5201 | DY15: 134656.1244 | DZ15: 171453.1454 | EA15: 171668.1971 | EB15: 119212.8597 | EC15: 57946.94588 | ED15: 11156.84891 | EE15: 10411.98596 | EF15: 6606.102651 | EG15: 8532.826398 | EH15: 33369.96442 | EI15: 83500.2981 | EJ15: 124747.1719 | EK15: 134656.1244 | EL15: 171453.1454 | EM15: 171460.1971 | EN15: 119212.8597 | EO15: 56224.94588 | EP15: 9471.59891 | EQ15: 8689.985961 | ER15: 6606.102651 | ES15: 8532.826398 | ET15: 33369.96442 | EU15: 83749.60003 | EV15: 124357.5201 | EW15: 134656.1244 | EX15: 171453.1454 | EY15: 171668.1971 | EZ15: 119212.8597
B16: Intraregional Transfer | D16: FPS_IRT | E16: =+SUM(E17:E26) -> 98426.04389 | F16: =+SUM(F17:F26) -> 98426.04389 | G16: 98426.04389 | H16: 98426.04389 | I16: 98426.04389 | J16: 98426.04389 | L16: 4740.994876 | M16: 4298.672055 | N16: 4524.395889 | O16: 4337.103297 | P16: 4054.858291 | Q16: 4636.124813 | R16: 4510.176553 | S16: 5110.827863 | T16: 5308.096586 | U16: 4835.715728 | V16: 5081.524575 | W16: 4358.384568 | X16: 4740.994876 | Y16: 4298.672055 | Z16: 4524.395889 | AA16: 4337.103297 | AB16: 4054.858291 | AC16: 4636.124813 | AD16: 4348.030629 | AE16: 5301.976663 | AF16: 5308.096586 | AG16: 4835.715728 | AH16: 5081.524575 | AI16: 4358.384568 | AJ16: 4740.994876 | AK16: 4298.672055 | AL16: 4524.395889 | AM16: 4337.103297 | AN16: 4054.858291 | AO16: 4636.124813 | AP16: 4510.176553 | AQ16: 5110.827863 | AR16: 5308.096586 | AS16: 4835.715728 | AT16: 5081.524575 | AU16: 4358.384568 | AV16: 4740.994876 | AW16: 4298.672055 | AX16: 4524.395889 | AY16: 4337.103297 | AZ16: 4054.858291 | BA16: 4636.124813 | BB16: 4348.030629 | BC16: 5301.976663 | BD16: 5308.096586 | BE16: 4835.715728 | BF16: 5081.524575 | BG16: 4358.384568 | BH16: 4740.994876 | BI16: 4298.672055 | BJ16: 4524.395889 | BK16: 4337.103297 | BL16: 4054.858291 | BM16: 4636.124813 | BN16: 4510.176553 | BO16: 5110.827863 | BP16: 5308.096586 | BQ16: 4835.715728 | BR16: 5081.524575 | BS16: 4358.384568 | BT16: 4740.994876 | BU16: 4298.672055 | BV16: 4524.395889 | BW16: 4337.103297 | BX16: 4054.858291 | BY16: 4636.124813 | BZ16: 4348.030629 | CA16: 5301.976663 | CB16: 5308.096586 | CC16: 4835.715728 | CD16: 5081.524575 | CE16: 4358.384568 | CG16: 3695.907883 | CH16: 3316.937909 | CI16: 3413.71496 | CJ16: 3563.372651 | CK16: 2923.335398 | CL16: 3212.042423 | CM16: 3207.960103 | CN16: 4304.763887 | CO16: 3820.016414 | CP16: 4093.485368 | CQ16: 3624.478055 | CR16: 3453.153739 | CS16: 3695.907883 | CT16: 3316.937909 | CU16: 3413.71496 | CV16: 3563.372651 | CW16: 2923.335398 | CX16: 3212.042423 | CY16: 3370.106027 | CZ16: 4113.615087 | DA16: 3820.016414 | DB16: 4093.485368 | DC16: 3624.478055 | DD16: 3453.153739 | DE16: 3695.907883 | DF16: 3316.937909 | DG16: 3413.71496 | DH16: 3563.372651 | DI16: 2923.335398 | DJ16: 3212.042423 | DK16: 3207.960103 | DL16: 4304.763887 | DM16: 3820.016414 | DN16: 4093.485368 | DO16: 3624.478055 | DP16: 3453.153739 | DQ16: 3695.907883 | DR16: 3316.937909 | DS16: 3413.71496 | DT16: 3563.372651 | DU16: 2923.335398 | DV16: 3212.042423 | DW16: 3370.106027 | DX16: 4113.615087 | DY16: 3820.016414 | DZ16: 4093.485368 | EA16: 3624.478055 | EB16: 3453.153739 | EC16: 3695.907883 | ED16: 3316.937909 | EE16: 3413.71496 | EF16: 3563.372651 | EG16: 2923.335398 | EH16: 3212.042423 | EI16: 3207.960103 | EJ16: 4304.763887 | EK16: 3820.016414 | EL16: 4093.485368 | EM16: 3624.478055 | EN16: 3453.153739 | EO16: 3695.907883 | EP16: 3316.937909 | EQ16: 3413.71496 | ER16: 3563.372651 | ES16: 2923.335398 | ET16: 3212.042423 | EU16: 3370.106027 | EV16: 4113.615087 | EW16: 3820.016414 | EX16: 4093.485368 | EY16: 3624.478055 | EZ16: 3453.153739
C17: WNP#3 Settlement | D17: FPS_IRT_WNP | E17: 0 | F17: 0 | G17: 0 | H17: 0 | I17: 0 | J17: 0 | L17: 0 | M17: 0 | N17: 0 | O17: 0 | P17: 0 | Q17: 0 | R17: 0 | S17: 0 | T17: 0 | U17: 0 | V17: 0 | W17: 0 | X17: 0 | Y17: 0 | Z17: 0 | AA17: 0 | AB17: 0 | AC17: 0 | AD17: 0 | AE17: 0 | AF17: 0 | AG17: 0 | AH17: 0 | AI17: 0 | AJ17: 0 | AK17: 0 | AL17: 0 | AM17: 0 | AN17: 0 | AO17: 0 | AP17: 0 | AQ17: 0 | AR17: 0 | AS17: 0 | AT17: 0 | AU17: 0 | AV17: 0 | AW17: 0 | AX17: 0 | AY17: 0 | AZ17: 0 | BA17: 0 | BB17: 0 | BC17: 0 | BD17: 0 | BE17: 0 | BF17: 0 | BG17: 0 | BH17: 0 | BI17: 0 | BJ17: 0 | BK17: 0 | BL17: 0 | BM17: 0 | BN17: 0 | BO17: 0 | BP17: 0 | BQ17: 0 | BR17: 0 | BS17: 0 | BT17: 0 | BU17: 0 | BV17: 0 | BW17: 0 | BX17: 0 | BY17: 0 | BZ17: 0 | CA17: 0 | CB17: 0 | CC17: 0 | CD17: 0 | CE17: 0 | CG17: 0 | CH17: 0 | CI17: 0 | CJ17: 0 | CK17: 0 | CL17: 0 | CM17: 0 | CN17: 0 | CO17: 0 | CP17: 0 | CQ17: 0 | CR17: 0 | CS17: 0 | CT17: 0 | CU17: 0 | CV17: 0 | CW17: 0 | CX17: 0 | CY17: 0 | CZ17: 0 | DA17: 0 | DB17: 0 | DC17: 0 | DD17: 0 | DE17: 0 | DF17: 0 | DG17: 0 | DH17: 0 | DI17: 0 | DJ17: 0 | DK17: 0 | DL17: 0 | DM17: 0 | DN17: 0 | DO17: 0 | DP17: 0 | DQ17: 0 | DR17: 0 | DS17: 0 | DT17: 0 | DU17: 0 | DV17: 0 | DW17: 0 | DX17: 0 | DY17: 0 | DZ17: 0 | EA17: 0 | EB17: 0 | EC17: 0 | ED17: 0 | EE17: 0 | EF17: 0 | EG17: 0 | EH17: 0 | EI17: 0 | EJ17: 0 | EK17: 0 | EL17: 0 | EM17: 0 | EN17: 0 | EO17: 0 | EP17: 0 | EQ17: 0 | ER17: 0 | ES17: 0 | ET17: 0 | EU17: 0 | EV17: 0 | EW17: 0 | EX17: 0 | EY17: 0 | EZ17: 0
C18: Dittmer Station Service | D18: FPS_IRT_DIT | E18: 82668.12 | F18: 82668.12 | G18: 82668.12 | H18: 82668.12 | I18: 82668.12 | J18: 82668.12 | L18: 3925.792 | M18: 3774.8 | N18: 3925.792 | O18: 3774.8 | P18: 3623.808 | Q18: 4076.784 | R18: 3925.792 | S18: 3774.8 | T18: 3925.792 | U18: 3774.8 | V18: 4076.784 | W18: 3774.8 | X18: 3925.792 | Y18: 3774.8 | Z18: 3925.792 | AA18: 3774.8 | AB18: 3623.808 | AC18: 4076.784 | AD18: 3774.8 | AE18: 3925.792 | AF18: 3925.792 | AG18: 3774.8 | AH18: 4076.784 | AI18: 3774.8 | AJ18: 3925.792 | AK18: 3774.8 | AL18: 3925.792 | AM18: 3774.8 | AN18: 3623.808 | AO18: 4076.784 | AP18: 3925.792 | AQ18: 3774.8 | AR18: 3925.792 | AS18: 3774.8 | AT18: 4076.784 | AU18: 3774.8 | AV18: 3925.792 | AW18: 3774.8 | AX18: 3925.792 | AY18: 3774.8 | AZ18: 3623.808 | BA18: 4076.784 | BB18: 3774.8 | BC18: 3925.792 | BD18: 3925.792 | BE18: 3774.8 | BF18: 4076.784 | BG18: 3774.8 | BH18: 3925.792 | BI18: 3774.8 | BJ18: 3925.792 | BK18: 3774.8 | BL18: 3623.808 | BM18: 4076.784 | BN18: 3925.792 | BO18: 3774.8 | BP18: 3925.792 | BQ18: 3774.8 | BR18: 4076.784 | BS18: 3774.8 | BT18: 3925.792 | BU18: 3774.8 | BV18: 3925.792 | BW18: 3774.8 | BX18: 3623.808 | BY18: 4076.784 | BZ18: 3774.8 | CA18: 3925.792 | CB18: 3925.792 | CC18: 3774.8 | CD18: 4076.784 | CE18: 3774.8 | CG18: 3095.336 | CH18: 3029.277 | CI18: 3095.336 | CJ18: 3246.328 | CK18: 2717.856 | CL18: 2934.907 | CM18: 2868.848 | CN18: 3246.328 | CO18: 2868.848 | CP18: 3246.328 | CQ18: 2944.344 | CR18: 3019.84 | CS18: 3095.336 | CT18: 3029.277 | CU18: 3095.336 | CV18: 3246.328 | CW18: 2717.856 | CX18: 2934.907 | CY18: 3019.84 | CZ18: 3095.336 | DA18: 2868.848 | DB18: 3246.328 | DC18: 2944.344 | DD18: 3019.84 | DE18: 3095.336 | DF18: 3029.277 | DG18: 3095.336 | DH18: 3246.328 | DI18: 2717.856 | DJ18: 2934.907 | DK18: 2868.848 | DL18: 3246.328 | DM18: 2868.848 | DN18: 3246.328 | DO18: 2944.344 | DP18: 3019.84 | DQ18: 3095.336 | DR18: 3029.277 | DS18: 3095.336 | DT18: 3246.328 | DU18: 2717.856 | DV18: 2934.907 | DW18: 3019.84 | DX18: 3095.336 | DY18: 2868.848 | DZ18: 3246.328 | EA18: 2944.344 | EB18: 3019.84 | EC18: 3095.336 | ED18: 3029.277 | EE18: 3095.336 | EF18: 3246.328 | EG18: 2717.856 | EH18: 2934.907 | EI18: 2868.848 | EJ18: 3246.328 | EK18: 2868.848 | EL18: 3246.328 | EM18: 2944.344 | EN18: 3019.84 | EO18: 3095.336 | EP18: 3029.277 | EQ18: 3095.336 | ER18: 3246.328 | ES18: 2717.856 | ET18: 2934.907 | EU18: 3019.84 | EV18: 3095.336 | EW18: 2868.848 | EX18: 3246.328 | EY18: 2944.344 | EZ18: 3019.84
C19: Transfer Gen Losses | D19: FPS_IRT_TGL | E19: 15757.92389 | F19: 15757.92389 | G19: 15757.92389 | H19: 15757.92389 | I19: 15757.92389 | J19: 15757.92389 | L19: 815.2028765 | M19: 523.872055 | N19: 598.6038895 | O19: 562.303297 | P19: 431.0502915 | Q19: 559.3408125 | R19: 584.3845535 | S19: 1336.027863 | T19: 1382.304586 | U19: 1060.915728 | V19: 1004.740575 | W19: 583.5845675 | X19: 815.2028765 | Y19: 523.872055 | Z19: 598.6038895 | AA19: 562.303297 | AB19: 431.0502915 | AC19: 559.3408125 | AD19: 573.2306285 | AE19: 1376.184663 | AF19: 1382.304586 | AG19: 1060.915728 | AH19: 1004.740575 | AI19: 583.5845675 | AJ19: 815.2028765 | AK19: 523.872055 | AL19: 598.6038895 | AM19: 562.303297 | AN19: 431.0502915 | AO19: 559.3408125 | AP19: 584.3845535 | AQ19: 1336.027863 | AR19: 1382.304586 | AS19: 1060.915728 | AT19: 1004.740575 | AU19: 583.5845675 | AV19: 815.2028765 | AW19: 523.872055 | AX19: 598.6038895 | AY19: 562.303297 | AZ19: 431.0502915 | BA19: 559.3408125 | BB19: 573.2306285 | BC19: 1376.184663 | BD19: 1382.304586 | BE19: 1060.915728 | BF19: 1004.740575 | BG19: 583.5845675 | BH19: 815.2028765 | BI19: 523.872055 | BJ19: 598.6038895 | BK19: 562.303297 | BL19: 431.0502915 | BM19: 559.3408125 | BN19: 584.3845535 | BO19: 1336.027863 | BP19: 1382.304586 | BQ19: 1060.915728 | BR19: 1004.740575 | BS19: 583.5845675 | BT19: 815.2028765 | BU19: 523.872055 | BV19: 598.6038895 | BW19: 562.303297 | BX19: 431.0502915 | BY19: 559.3408125 | BZ19: 573.2306285 | CA19: 1376.184663 | CB19: 1382.304586 | CC19: 1060.915728 | CD19: 1004.740575 | CE19: 583.5845675 | CG19: 600.571883 | CH19: 287.6609095 | CI19: 318.3789605 | CJ19: 317.0446515 | CK19: 205.479398 | CL19: 277.1354225 | CM19: 339.1121025 | CN19: 1058.435887 | CO19: 951.168414 | CP19: 847.1573685 | CQ19: 680.1340545 | CR19: 433.3137385 | CS19: 600.571883 | CT19: 287.6609095 | CU19: 318.3789605 | CV19: 317.0446515 | CW19: 205.479398 | CX19: 277.1354225 | CY19: 350.2660275 | CZ19: 1018.279087 | DA19: 951.168414 | DB19: 847.1573685 | DC19: 680.1340545 | DD19: 433.3137385 | DE19: 600.571883 | DF19: 287.6609095 | DG19: 318.3789605 | DH19: 317.0446515 | DI19: 205.479398 | DJ19: 277.1354225 | DK19: 339.1121025 | DL19: 1058.435887 | DM19: 951.168414 | DN19: 847.1573685 | DO19: 680.1340545 | DP19: 433.3137385 | DQ19: 600.571883 | DR19: 287.6609095 | DS19: 318.3789605 | DT19: 317.0446515 | DU19: 205.479398 | DV19: 277.1354225 | DW19: 350.2660275 | DX19: 1018.279087 | DY19: 951.168414 | DZ19: 847.1573685 | EA19: 680.1340545 | EB19: 433.3137385 | EC19: 600.571883 | ED19: 287.6609095 | EE19: 318.3789605 | EF19: 317.0446515 | EG19: 205.479398 | EH19: 277.1354225 | EI19: 339.1121025 | EJ19: 1058.435887 | EK19: 951.168414 | EL19: 847.1573685 | EM19: 680.1340545 | EN19: 433.3137385 | EO19: 600.571883 | EP19: 287.6609095 | EQ19: 318.3789605 | ER19: 317.0446515 | ES19: 205.479398 | ET19: 277.1354225 | EU19: 350.2660275 | EV19: 1018.279087 | EW19: 951.168414 | EX19: 847.1573685 | EY19: 680.1340545 | EZ19: 433.3137385
E20: 0 | F20: 0 | G20: 0 | H20: 0 | I20: 0 | J20: 0 | L20: 0 | M20: 0 | N20: 0 | O20: 0 | P20: 0 | Q20: 0 | R20: 0 | S20: 0 | T20: 0 | U20: 0 | V20: 0 | W20: 0 | X20: 0 | Y20: 0 | Z20: 0 | AA20: 0 | AB20: 0 | AC20: 0 | AD20: 0 | AE20: 0 | AF20: 0 | AG20: 0 | AH20: 0 | AI20: 0 | AJ20: 0 | AK20: 0 | AL20: 0 | AM20: 0 | AN20: 0 | AO20: 0 | AP20: 0 | AQ20: 0 | AR20: 0 | AS20: 0 | AT20: 0 | AU20: 0 | AV20: 0 | AW20: 0 | AX20: 0 | AY20: 0 | AZ20: 0 | BA20: 0 | BB20: 0 | BC20: 0 | BD20: 0 | BE20: 0 | BF20: 0 | BG20: 0 | BH20: 0 | BI20: 0 | BJ20: 0 | BK20: 0 | BL20: 0 | BM20: 0 | BN20: 0 | BO20: 0 | BP20: 0 | BQ20: 0 | BR20: 0 | BS20: 0 | BT20: 0 | BU20: 0 | BV20: 0 | BW20: 0 | BX20: 0 | BY20: 0 | BZ20: 0 | CA20: 0 | CB20: 0 | CC20: 0 | CD20: 0 | CE20: 0 | CG20: 0 | CH20: 0 | CI20: 0 | CJ20: 0 | CK20: 0 | CL20: 0 | CM20: 0 | CN20: 0 | CO20: 0 | CP20: 0 | CQ20: 0 | CR20: 0 | CS20: 0 | CT20: 0 | CU20: 0 | CV20: 0 | CW20: 0 | CX20: 0 | CY20: 0 | CZ20: 0 | DA20: 0 | DB20: 0 | DC20: 0 | DD20: 0 | DE20: 0 | DF20: 0 | DG20: 0 | DH20: 0 | DI20: 0 | DJ20: 0 | DK20: 0 | DL20: 0 | DM20: 0 | DN20: 0 | DO20: 0 | DP20: 0 | DQ20: 0 | DR20: 0 | DS20: 0 | DT20: 0 | DU20: 0 | DV20: 0 | DW20: 0 | DX20: 0 | DY20: 0 | DZ20: 0 | EA20: 0 | EB20: 0 | EC20: 0 | ED20: 0 | EE20: 0 | EF20: 0 | EG20: 0 | EH20: 0 | EI20: 0 | EJ20: 0 | EK20: 0 | EL20: 0 | EM20: 0 | EN20: 0 | EO20: 0 | EP20: 0 | EQ20: 0 | ER20: 0 | ES20: 0 | ET20: 0 | EU20: 0 | EV20: 0 | EW20: 0 | EX20: 0 | EY20: 0 | EZ20: 0
E21: 0 | F21: 0 | G21: 0 | H21: 0 | I21: 0 | J21: 0 | L21: 0 | M21: 0 | N21: 0 | O21: 0 | P21: 0 | Q21: 0 | R21: 0 | S21: 0 | T21: 0 | U21: 0 | V21: 0 | W21: 0 | X21: 0 | Y21: 0 | Z21: 0 | AA21: 0 | AB21: 0 | AC21: 0 | AD21: 0 | AE21: 0 | AF21: 0 | AG21: 0 | AH21: 0 | AI21: 0 | AJ21: 0 | AK21: 0 | AL21: 0 | AM21: 0 | AN21: 0 | AO21: 0 | AP21: 0 | AQ21: 0 | AR21: 0 | AS21: 0 | AT21: 0 | AU21: 0 | AV21: 0 | AW21: 0 | AX21: 0 | AY21: 0 | AZ21: 0 | BA21: 0 | BB21: 0 | BC21: 0 | BD21: 0 | BE21: 0 | BF21: 0 | BG21: 0 | BH21: 0 | BI21: 0 | BJ21: 0 | BK21: 0 | BL21: 0 | BM21: 0 | BN21: 0 | BO21: 0 | BP21: 0 | BQ21: 0 | BR21: 0 | BS21: 0 | BT21: 0 | BU21: 0 | BV21: 0 | BW21: 0 | BX21: 0 | BY21: 0 | BZ21: 0 | CA21: 0 | CB21: 0 | CC21: 0 | CD21: 0 | CE21: 0 | CG21: 0 | CH21: 0 | CI21: 0 | CJ21: 0 | CK21: 0 | CL21: 0 | CM21: 0 | CN21: 0 | CO21: 0 | CP21: 0 | CQ21: 0 | CR21: 0 | CS21: 0 | CT21: 0 | CU21: 0 | CV21: 0 | CW21: 0 | CX21: 0 | CY21: 0 | CZ21: 0 | DA21: 0 | DB21: 0 | DC21: 0 | DD21: 0 | DE21: 0 | DF21: 0 | DG21: 0 | DH21: 0 | DI21: 0 | DJ21: 0 | DK21: 0 | DL21: 0 | DM21: 0 | DN21: 0 | DO21: 0 | DP21: 0 | DQ21: 0 | DR21: 0 | DS21: 0 | DT21: 0 | DU21: 0 | DV21: 0 | DW21: 0 | DX21: 0 | DY21: 0 | DZ21: 0 | EA21: 0 | EB21: 0 | EC21: 0 | ED21: 0 | EE21: 0 | EF21: 0 | EG21: 0 | EH21: 0 | EI21: 0 | EJ21: 0 | EK21: 0 | EL21: 0 | EM21: 0 | EN21: 0 | EO21: 0 | EP21: 0 | EQ21: 0 | ER21: 0 | ES21: 0 | ET21: 0 | EU21: 0 | EV21: 0 | EW21: 0 | EX21: 0 | EY21: 0 | EZ21: 0
E22: 0 | F22: 0 | G22: 0 | H22: 0 | I22: 0 | J22: 0 | L22: 0 | M22: 0 | N22: 0 | O22: 0 | P22: 0 | Q22: 0 | R22: 0 | S22: 0 | T22: 0 | U22: 0 | V22: 0 | W22: 0 | X22: 0 | Y22: 0 | Z22: 0 | AA22: 0 | AB22: 0 | AC22: 0 | AD22: 0 | AE22: 0 | AF22: 0 | AG22: 0 | AH22: 0 | AI22: 0 | AJ22: 0 | AK22: 0 | AL22: 0 | AM22: 0 | AN22: 0 | AO22: 0 | AP22: 0 | AQ22: 0 | AR22: 0 | AS22: 0 | AT22: 0 | AU22: 0 | AV22: 0 | AW22: 0 | AX22: 0 | AY22: 0 | AZ22: 0 | BA22: 0 | BB22: 0 | BC22: 0 | BD22: 0 | BE22: 0 | BF22: 0 | BG22: 0 | BH22: 0 | BI22: 0 | BJ22: 0 | BK22: 0 | BL22: 0 | BM22: 0 | BN22: 0 | BO22: 0 | BP22: 0 | BQ22: 0 | BR22: 0 | BS22: 0 | BT22: 0 | BU22: 0 | BV22: 0 | BW22: 0 | BX22: 0 | BY22: 0 | BZ22: 0 | CA22: 0 | CB22: 0 | CC22: 0 | CD22: 0 | CE22: 0 | CG22: 0 | CH22: 0 | CI22: 0 | CJ22: 0 | CK22: 0 | CL22: 0 | CM22: 0 | CN22: 0 | CO22: 0 | CP22: 0 | CQ22: 0 | CR22: 0 | CS22: 0 | CT22: 0 | CU22: 0 | CV22: 0 | CW22: 0 | CX22: 0 | CY22: 0 | CZ22: 0 | DA22: 0 | DB22: 0 | DC22: 0 | DD22: 0 | DE22: 0 | DF22: 0 | DG22: 0 | DH22: 0 | DI22: 0 | DJ22: 0 | DK22: 0 | DL22: 0 | DM22: 0 | DN22: 0 | DO22: 0 | DP22: 0 | DQ22: 0 | DR22: 0 | DS22: 0 | DT22: 0 | DU22: 0 | DV22: 0 | DW22: 0 | DX22: 0 | DY22: 0 | DZ22: 0 | EA22: 0 | EB22: 0 | EC22: 0 | ED22: 0 | EE22: 0 | EF22: 0 | EG22: 0 | EH22: 0 | EI22: 0 | EJ22: 0 | EK22: 0 | EL22: 0 | EM22: 0 | EN22: 0 | EO22: 0 | EP22: 0 | EQ22: 0 | ER22: 0 | ES22: 0 | ET22: 0 | EU22: 0 | EV22: 0 | EW22: 0 | EX22: 0 | EY22: 0 | EZ22: 0
E23: 0 | F23: 0 | G23: 0 | H23: 0 | I23: 0 | J23: 0 | L23: 0 | M23: 0 | N23: 0 | O23: 0 | P23: 0 | Q23: 0 | R23: 0 | S23: 0 | T23: 0 | U23: 0 | V23: 0 | W23: 0 | X23: 0 | Y23: 0 | Z23: 0 | AA23: 0 | AB23: 0 | AC23: 0 | AD23: 0 | AE23: 0 | AF23: 0 | AG23: 0 | AH23: 0 | AI23: 0 | AJ23: 0 | AK23: 0 | AL23: 0 | AM23: 0 | AN23: 0 | AO23: 0 | AP23: 0 | AQ23: 0 | AR23: 0 | AS23: 0 | AT23: 0 | AU23: 0 | AV23: 0 | AW23: 0 | AX23: 0 | AY23: 0 | AZ23: 0 | BA23: 0 | BB23: 0 | BC23: 0 | BD23: 0 | BE23: 0 | BF23: 0 | BG23: 0 | BH23: 0 | BI23: 0 | BJ23: 0 | BK23: 0 | BL23: 0 | BM23: 0 | BN23: 0 | BO23: 0 | BP23: 0 | BQ23: 0 | BR23: 0 | BS23: 0 | BT23: 0 | BU23: 0 | BV23: 0 | BW23: 0 | BX23: 0 | BY23: 0 | BZ23: 0 | CA23: 0 | CB23: 0 | CC23: 0 | CD23: 0 | CE23: 0 | CG23: 0 | CH23: 0 | CI23: 0 | CJ23: 0 | CK23: 0 | CL23: 0 | CM23: 0 | CN23: 0 | CO23: 0 | CP23: 0 | CQ23: 0 | CR23: 0 | CS23: 0 | CT23: 0 | CU23: 0 | CV23: 0 | CW23: 0 | CX23: 0 | CY23: 0 | CZ23: 0 | DA23: 0 | DB23: 0 | DC23: 0 | DD23: 0 | DE23: 0 | DF23: 0 | DG23: 0 | DH23: 0 | DI23: 0 | DJ23: 0 | DK23: 0 | DL23: 0 | DM23: 0 | DN23: 0 | DO23: 0 | DP23: 0 | DQ23: 0 | DR23: 0 | DS23: 0 | DT23: 0 | DU23: 0 | DV23: 0 | DW23: 0 | DX23: 0 | DY23: 0 | DZ23: 0 | EA23: 0 | EB23: 0 | EC23: 0 | ED23: 0 | EE23: 0 | EF23: 0 | EG23: 0 | EH23: 0 | EI23: 0 | EJ23: 0 | EK23: 0 | EL23: 0 | EM23: 0 | EN23: 0 | EO23: 0 | EP23: 0 | EQ23: 0 | ER23: 0 | ES23: 0 | ET23: 0 | EU23: 0 | EV23: 0 | EW23: 0 | EX23: 0 | EY23: 0 | EZ23: 0
E24: 0 | F24: 0 | G24: 0 | H24: 0 | I24: 0 | J24: 0 | L24: 0 | M24: 0 | N24: 0 | O24: 0 | P24: 0 | Q24: 0 | R24: 0 | S24: 0 | T24: 0 | U24: 0 | V24: 0 | W24: 0 | X24: 0 | Y24: 0 | Z24: 0 | AA24: 0 | AB24: 0 | AC24: 0 | AD24: 0 | AE24: 0 | AF24: 0 | AG24: 0 | AH24: 0 | AI24: 0 | AJ24: 0 | AK24: 0 | AL24: 0 | AM24: 0 | AN24: 0 | AO24: 0 | AP24: 0 | AQ24: 0 | AR24: 0 | AS24: 0 | AT24: 0 | AU24: 0 | AV24: 0 | AW24: 0 | AX24: 0 | AY24: 0 | AZ24: 0 | BA24: 0 | BB24: 0 | BC24: 0 | BD24: 0 | BE24: 0 | BF24: 0 | BG24: 0 | BH24: 0 | BI24: 0 | BJ24: 0 | BK24: 0 | BL24: 0 | BM24: 0 | BN24: 0 | BO24: 0 | BP24: 0 | BQ24: 0 | BR24: 0 | BS24: 0 | BT24: 0 | BU24: 0 | BV24: 0 | BW24: 0 | BX24: 0 | BY24: 0 | BZ24: 0 | CA24: 0 | CB24: 0 | CC24: 0 | CD24: 0 | CE24: 0 | CG24: 0 | CH24: 0 | CI24: 0 | CJ24: 0 | CK24: 0 | CL24: 0 | CM24: 0 | CN24: 0 | CO24: 0 | CP24: 0 | CQ24: 0 | CR24: 0 | CS24: 0 | CT24: 0 | CU24: 0 | CV24: 0 | CW24: 0 | CX24: 0 | CY24: 0 | CZ24: 0 | DA24: 0 | DB24: 0 | DC24: 0 | DD24: 0 | DE24: 0 | DF24: 0 | DG24: 0 | DH24: 0 | DI24: 0 | DJ24: 0 | DK24: 0 | DL24: 0 | DM24: 0 | DN24: 0 | DO24: 0 | DP24: 0 | DQ24: 0 | DR24: 0 | DS24: 0 | DT24: 0 | DU24: 0 | DV24: 0 | DW24: 0 | DX24: 0 | DY24: 0 | DZ24: 0 | EA24: 0 | EB24: 0 | EC24: 0 | ED24: 0 | EE24: 0 | EF24: 0 | EG24: 0 | EH24: 0 | EI24: 0 | EJ24: 0 | EK24: 0 | EL24: 0 | EM24: 0 | EN24: 0 | EO24: 0 | EP24: 0 | EQ24: 0 | ER24: 0 | ES24: 0 | ET24: 0 | EU24: 0 | EV24: 0 | EW24: 0 | EX24: 0 | EY24: 0 | EZ24: 0
E25: 0 | F25: 0 | G25: 0 | H25: 0 | I25: 0 | J25: 0 | L25: 0 | M25: 0 | N25: 0 | O25: 0 | P25: 0 | Q25: 0 | R25: 0 | S25: 0 | T25: 0 | U25: 0 | V25: 0 | W25: 0 | X25: 0 | Y25: 0 | Z25: 0 | AA25: 0 | AB25: 0 | AC25: 0 | AD25: 0 | AE25: 0 | AF25: 0 | AG25: 0 | AH25: 0 | AI25: 0 | AJ25: 0 | AK25: 0 | AL25: 0 | AM25: 0 | AN25: 0 | AO25: 0 | AP25: 0 | AQ25: 0 | AR25: 0 | AS25: 0 | AT25: 0 | AU25: 0 | AV25: 0 | AW25: 0 | AX25: 0 | AY25: 0 | AZ25: 0 | BA25: 0 | BB25: 0 | BC25: 0 | BD25: 0 | BE25: 0 | BF25: 0 | BG25: 0 | BH25: 0 | BI25: 0 | BJ25: 0 | BK25: 0 | BL25: 0 | BM25: 0 | BN25: 0 | BO25: 0 | BP25: 0 | BQ25: 0 | BR25: 0 | BS25: 0 | BT25: 0 | BU25: 0 | BV25: 0 | BW25: 0 | BX25: 0 | BY25: 0 | BZ25: 0 | CA25: 0 | CB25: 0 | CC25: 0 | CD25: 0 | CE25: 0 | CG25: 0 | CH25: 0 | CI25: 0 | CJ25: 0 | CK25: 0 | CL25: 0 | CM25: 0 | CN25: 0 | CO25: 0 | CP25: 0 | CQ25: 0 | CR25: 0 | CS25: 0 | CT25: 0 | CU25: 0 | CV25: 0 | CW25: 0 | CX25: 0 | CY25: 0 | CZ25: 0 | DA25: 0 | DB25: 0 | DC25: 0 | DD25: 0 | DE25: 0 | DF25: 0 | DG25: 0 | DH25: 0 | DI25: 0 | DJ25: 0 | DK25: 0 | DL25: 0 | DM25: 0 | DN25: 0 | DO25: 0 | DP25: 0 | DQ25: 0 | DR25: 0 | DS25: 0 | DT25: 0 | DU25: 0 | DV25: 0 | DW25: 0 | DX25: 0 | DY25: 0 | DZ25: 0 | EA25: 0 | EB25: 0 | EC25: 0 | ED25: 0 | EE25: 0 | EF25: 0 | EG25: 0 | EH25: 0 | EI25: 0 | EJ25: 0 | EK25: 0 | EL25: 0 | EM25: 0 | EN25: 0 | EO25: 0 | EP25: 0 | EQ25: 0 | ER25: 0 | ES25: 0 | ET25: 0 | EU25: 0 | EV25: 0 | EW25: 0 | EX25: 0 | EY25: 0 | EZ25: 0
E26: 0 | F26: 0 | G26: 0 | H26: 0 | I26: 0 | J26: 0 | L26: 0 | M26: 0 | N26: 0 | O26: 0 | P26: 0 | Q26: 0 | R26: 0 | S26: 0 | T26: 0 | U26: 0 | V26: 0 | W26: 0 | X26: 0 | Y26: 0 | Z26: 0 | AA26: 0 | AB26: 0 | AC26: 0 | AD26: 0 | AE26: 0 | AF26: 0 | AG26: 0 | AH26: 0 | AI26: 0 | AJ26: 0 | AK26: 0 | AL26: 0 | AM26: 0 | AN26: 0 | AO26: 0 | AP26: 0 | AQ26: 0 | AR26: 0 | AS26: 0 | AT26: 0 | AU26: 0 | AV26: 0 | AW26: 0 | AX26: 0 | AY26: 0 | AZ26: 0 | BA26: 0 | BB26: 0 | BC26: 0 | BD26: 0 | BE26: 0 | BF26: 0 | BG26: 0 | BH26: 0 | BI26: 0 | BJ26: 0 | BK26: 0 | BL26: 0 | BM26: 0 | BN26: 0 | BO26: 0 | BP26: 0 | BQ26: 0 | BR26: 0 | BS26: 0 | BT26: 0 | BU26: 0 | BV26: 0 | BW26: 0 | BX26: 0 | BY26: 0 | BZ26: 0 | CA26: 0 | CB26: 0 | CC26: 0 | CD26: 0 | CE26: 0 | CG26: 0 | CH26: 0 | CI26: 0 | CJ26: 0 | CK26: 0 | CL26: 0 | CM26: 0 | CN26: 0 | CO26: 0 | CP26: 0 | CQ26: 0 | CR26: 0 | CS26: 0 | CT26: 0 | CU26: 0 | CV26: 0 | CW26: 0 | CX26: 0 | CY26: 0 | CZ26: 0 | DA26: 0 | DB26: 0 | DC26: 0 | DD26: 0 | DE26: 0 | DF26: 0 | DG26: 0 | DH26: 0 | DI26: 0 | DJ26: 0 | DK26: 0 | DL26: 0 | DM26: 0 | DN26: 0 | DO26: 0 | DP26: 0 | DQ26: 0 | DR26: 0 | DS26: 0 | DT26: 0 | DU26: 0 | DV26: 0 | DW26: 0 | DX26: 0 | DY26: 0 | DZ26: 0 | EA26: 0 | EB26: 0 | EC26: 0 | ED26: 0 | EE26: 0 | EF26: 0 | EG26: 0 | EH26: 0 | EI26: 0 | EJ26: 0 | EK26: 0 | EL26: 0 | EM26: 0 | EN26: 0 | EO26: 0 | EP26: 0 | EQ26: 0 | ER26: 0 | ES26: 0 | ET26: 0 | EU26: 0 | EV26: 0 | EW26: 0 | EX26: 0 | EY26: 0 | EZ26: 0
B27: FBS Obligation | D27: FPS_FBS | E27: =+SUM(E28:E37) -> 5728189.723 | F27: =+SUM(F28:F37) -> 5728190.517 | G27: 5631974.004 | H27: 5632473.204 | I27: 5631974.004 | J27: 5632473.204 | L27: 374156.378 | M27: 333487.821 | N27: 345610.332 | O27: 344303.612 | P27: 312774.872 | Q27: 355095.09 | R27: 411287.405 | S27: 463633.18 | T27: 459979.872 | U27: 487995.533 | V27: 480537.955 | W27: 411563.226 | X27: 374156.378 | Y27: 333487.821 | Z27: 345610.332 | AA27: 344303.612 | AB27: 312774.872 | AC27: 355095.09 | AD27: 411209.842 | AE27: 463831.919 | AF27: 459979.872 | AG27: 487995.533 | AH27: 480538.419 | AI27: 411563.226 | AJ27: 365074.976 | AK27: 335161.653 | AL27: 345600.837 | AM27: 345189.397 | AN27: 312483.721 | AO27: 355003.892 | AP27: 416699.787 | AQ27: 460552.949 | AR27: 451132.608 | AS27: 480297.73 | AT27: 477493.57 | AU27: 401986.832 | AV27: 365074.976 | AW27: 335161.653 | AX27: 345600.837 | AY27: 345189.397 | AZ27: 312483.721 | BA27: 355003.892 | BB27: 416612.631 | BC27: 460751.452 | BD27: 451132.608 | BE27: 480297.73 | BF27: 477784.77 | BG27: 401986.832 | BH27: 365074.976 | BI27: 335161.653 | BJ27: 345600.837 | BK27: 345189.397 | BL27: 312483.721 | BM27: 355003.892 | BN27: 416699.787 | BO27: 460552.949 | BP27: 451132.608 | BQ27: 480297.73 | BR27: 477493.57 | BS27: 401986.832 | BT27: 365074.976 | BU27: 335161.653 | BV27: 345600.837 | BW27: 345189.397 | BX27: 312483.721 | BY27: 355003.892 | BZ27: 416612.631 | CA27: 460751.452 | CB27: 451132.608 | CC27: 480297.73 | CD27: 477784.77 | CE27: 401986.832 | CG27: 55182.344 | CH27: 3836.794 | CI27: 3352.411 | CJ27: 2746.452 | CK27: 7321.78 | CL27: 27735.143 | CM27: 84361.567 | CN27: 131063.498 | CO27: 151239.615 | CP27: 180860.671 | CQ27: 178602.021 | CR27: 121462.151 | CS27: 55182.344 | CT27: 3836.794 | CU27: 3352.411 | CV27: 2746.452 | CW27: 7321.78 | CX27: 27735.143 | CY27: 84439.13 | CZ27: 130864.761 | DA27: 151239.615 | DB27: 180860.671 | DC27: 178602.349 | DD27: 121462.151 | DE27: 52529.038 | DF27: 6154.661 | DG27: 5276.271 | DH27: 3042.73 | DI27: 5609.491 | DJ27: 30157.922 | DK27: 80292.338 | DL27: 120442.408 | DM27: 130836.108 | DN27: 167359.66 | DO27: 167835.719 | DP27: 115759.706 | DQ27: 52529.038 | DR27: 6154.661 | DS27: 5276.271 | DT27: 3042.73 | DU27: 5609.491 | DV27: 30157.922 | DW27: 80379.494 | DX27: 120243.905 | DY27: 130836.108 | DZ27: 167359.66 | EA27: 168043.719 | EB27: 115759.706 | EC27: 52529.038 | ED27: 6154.661 | EE27: 5276.271 | EF27: 3042.73 | EG27: 5609.491 | EH27: 30157.922 | EI27: 80292.338 | EJ27: 120442.408 | EK27: 130836.108 | EL27: 167359.66 | EM27: 167835.719 | EN27: 115759.706 | EO27: 52529.038 | EP27: 6154.661 | EQ27: 5276.271 | ER27: 3042.73 | ES27: 5609.491 | ET27: 30157.922 | EU27: 80379.494 | EV27: 120243.905 | EW27: 130836.108 | EX27: 167359.66 | EY27: 168043.719 | EZ27: 115759.706
C28: Canadian Entitlement | D28: FPS_FBS_CDN | E28: 3979668 | F28: 3979668 | G28: 3979667.968 | H28: 3979667.968 | I28: 3979667.968 | J28: 3979667.968 | L28: 337999.2 | M28: 327550.3 | N28: 337999.2 | O28: 337999.2 | P28: 305289.6 | Q28: 337544.9 | R28: 327096 | S28: 337999.2 | T28: 327096 | U28: 337999.2 | V28: 337999.2 | W28: 327096 | X28: 337999.2 | Y28: 327550.3 | Z28: 337999.2 | AA28: 337999.2 | AB28: 305289.6 | AC28: 337544.9 | AD28: 327096 | AE28: 337999.2 | AF28: 327096 | AG28: 337999.2 | AH28: 337999.2 | AI28: 327096 | AJ28: 337999.392 | AK28: 327550.4 | AL28: 337999.2 | AM28: 337999.168 | AN28: 305289.6 | AO28: 337544.896 | AP28: 327095.808 | AQ28: 337999.168 | AR28: 327096 | AS28: 337999.168 | AT28: 337999.168 | AU28: 327096 | AV28: 337999.392 | AW28: 327550.4 | AX28: 337999.2 | AY28: 337999.168 | AZ28: 305289.6 | BA28: 337544.896 | BB28: 327095.808 | BC28: 337999.168 | BD28: 327096 | BE28: 337999.168 | BF28: 337999.168 | BG28: 327096 | BH28: 337999.392 | BI28: 327550.4 | BJ28: 337999.2 | BK28: 337999.168 | BL28: 305289.6 | BM28: 337544.896 | BN28: 327095.808 | BO28: 337999.168 | BP28: 327096 | BQ28: 337999.168 | BR28: 337999.168 | BS28: 327096 | BT28: 337999.392 | BU28: 327550.4 | BV28: 337999.2 | BW28: 337999.168 | BX28: 305289.6 | BY28: 337544.896 | BZ28: 327095.808 | CA28: 337999.168 | CB28: 327096 | CC28: 337999.168 | CD28: 337999.168 | CE28: 327096 | CG28: 0 | CH28: 0 | CI28: 0 | CJ28: 0 | CK28: 0 | CL28: 0 | CM28: 0 | CN28: 0 | CO28: 0 | CP28: 0 | CQ28: 0 | CR28: 0 | CS28: 0 | CT28: 0 | CU28: 0 | CV28: 0 | CW28: 0 | CX28: 0 | CY28: 0 | CZ28: 0 | DA28: 0 | DB28: 0 | DC28: 0 | DD28: 0 | DE28: 0 | DF28: 0 | DG28: 0 | DH28: 0 | DI28: 0 | DJ28: 0 | DK28: 0 | DL28: 0 | DM28: 0 | DN28: 0 | DO28: 0 | DP28: 0 | DQ28: 0 | DR28: 0 | DS28: 0 | DT28: 0 | DU28: 0 | DV28: 0 | DW28: 0 | DX28: 0 | DY28: 0 | DZ28: 0 | EA28: 0 | EB28: 0 | EC28: 0 | ED28: 0 | EE28: 0 | EF28: 0 | EG28: 0 | EH28: 0 | EI28: 0 | EJ28: 0 | EK28: 0 | EL28: 0 | EM28: 0 | EN28: 0 | EO28: 0 | EP28: 0 | EQ28: 0 | ER28: 0 | ES28: 0 | ET28: 0 | EU28: 0 | EV28: 0 | EW28: 0 | EX28: 0 | EY28: 0 | EZ28: 0
C29: USBR Pump Load | D29: FPS_FBS_UBR | E29: 1648375.733 | F29: 1648375.735 | G29: 1550948.694 | H29: 1550948.694 | I29: 1550948.694 | J29: 1550948.694 | L29: 36157.178 | M29: 3137.521 | N29: 4699.132 | O29: 3504.412 | P29: 4797.272 | Q29: 17550.19 | R29: 84191.405 | S29: 125633.98 | T29: 132883.872 | U29: 142994.333 | V29: 98386.819 | W29: 84467.226 | X29: 36157.178 | Y29: 3137.521 | Z29: 4699.132 | AA29: 3504.412 | AB29: 4797.272 | AC29: 17550.19 | AD29: 84113.842 | AE29: 125832.719 | AF29: 132883.872 | AG29: 142994.333 | AH29: 98386.819 | AI29: 84467.226 | AJ29: 27075.584 | AK29: 4811.253 | AL29: 4689.637 | AM29: 4390.229 | AN29: 4506.121 | AO29: 17458.996 | AP29: 89603.979 | AQ29: 122553.781 | AR29: 124036.608 | AS29: 135818.562 | AT29: 94067.202 | AU29: 74890.832 | AV29: 27075.584 | AW29: 4811.253 | AX29: 4689.637 | AY29: 4390.229 | AZ29: 4506.121 | BA29: 17458.996 | BB29: 89516.823 | BC29: 122752.284 | BD29: 124036.608 | BE29: 135818.562 | BF29: 94067.202 | BG29: 74890.832 | BH29: 27075.584 | BI29: 4811.253 | BJ29: 4689.637 | BK29: 4390.229 | BL29: 4506.121 | BM29: 17458.996 | BN29: 89603.979 | BO29: 122553.781 | BP29: 124036.608 | BQ29: 135818.562 | BR29: 94067.202 | BS29: 74890.832 | BT29: 27075.584 | BU29: 4811.253 | BV29: 4689.637 | BW29: 4390.229 | BX29: 4506.121 | BY29: 17458.996 | BZ29: 89516.823 | CA29: 122752.284 | CB29: 124036.608 | CC29: 135818.562 | CD29: 94067.202 | CE29: 74890.832 | CG29: 55182.344 | CH29: 3829.732 | CI29: 3345.523 | CJ29: 2739.572 | CK29: 7314.868 | CL29: 27735.143 | CM29: 84361.567 | CN29: 131063.498 | CO29: 151239.615 | CP29: 174838.951 | CQ29: 146859.429 | CR29: 121462.151 | CS29: 55182.344 | CT29: 3829.732 | CU29: 3345.523 | CV29: 2739.572 | CW29: 7314.868 | CX29: 27735.143 | CY29: 84439.13 | CZ29: 130864.761 | DA29: 151239.615 | DB29: 174838.951 | DC29: 146859.429 | DD29: 121462.151 | DE29: 52529.038 | DF29: 6147.599 | DG29: 5269.383 | DH29: 3035.85 | DI29: 5602.579 | DJ29: 30157.922 | DK29: 80292.338 | DL29: 120442.408 | DM29: 130836.108 | DN29: 161786.86 | DO29: 135186.119 | DP29: 115759.706 | DQ29: 52529.038 | DR29: 6147.599 | DS29: 5269.383 | DT29: 3035.85 | DU29: 5602.579 | DV29: 30157.922 | DW29: 80379.494 | DX29: 120243.905 | DY29: 130836.108 | DZ29: 161786.86 | EA29: 135186.119 | EB29: 115759.706 | EC29: 52529.038 | ED29: 6147.599 | EE29: 5269.383 | EF29: 3035.85 | EG29: 5602.579 | EH29: 30157.922 | EI29: 80292.338 | EJ29: 120442.408 | EK29: 130836.108 | EL29: 161786.86 | EM29: 135186.119 | EN29: 115759.706 | EO29: 52529.038 | EP29: 6147.599 | EQ29: 5269.383 | ER29: 3035.85 | ES29: 5602.579 | ET29: 30157.922 | EU29: 80379.494 | EV29: 120243.905 | EW29: 130836.108 | EX29: 161786.86 | EY29: 135186.119 | EZ29: 115759.706
C30: Hungry Horse | D30: FPS_FBS_HH | E30: 0 | F30: 0 | G30: 0 | H30: 0 | I30: 0 | J30: 0 | L30: 0 | M30: 0 | N30: 0 | O30: 0 | P30: 0 | Q30: 0 | R30: 0 | S30: 0 | T30: 0 | U30: 0 | V30: 0 | W30: 0 | X30: 0 | Y30: 0 | Z30: 0 | AA30: 0 | AB30: 0 | AC30: 0 | AD30: 0 | AE30: 0 | AF30: 0 | AG30: 0 | AH30: 0 | AI30: 0 | AJ30: 0 | AK30: 0 | AL30: 0 | AM30: 0 | AN30: 0 | AO30: 0 | AP30: 0 | AQ30: 0 | AR30: 0 | AS30: 0 | AT30: 0 | AU30: 0 | AV30: 0 | AW30: 0 | AX30: 0 | AY30: 0 | AZ30: 0 | BA30: 0 | BB30: 0 | BC30: 0 | BD30: 0 | BE30: 0 | BF30: 0 | BG30: 0 | BH30: 0 | BI30: 0 | BJ30: 0 | BK30: 0 | BL30: 0 | BM30: 0 | BN30: 0 | BO30: 0 | BP30: 0 | BQ30: 0 | BR30: 0 | BS30: 0 | BT30: 0 | BU30: 0 | BV30: 0 | BW30: 0 | BX30: 0 | BY30: 0 | BZ30: 0 | CA30: 0 | CB30: 0 | CC30: 0 | CD30: 0 | CE30: 0 | CG30: 0 | CH30: 0 | CI30: 0 | CJ30: 0 | CK30: 0 | CL30: 0 | CM30: 0 | CN30: 0 | CO30: 0 | CP30: 0 | CQ30: 0 | CR30: 0 | CS30: 0 | CT30: 0 | CU30: 0 | CV30: 0 | CW30: 0 | CX30: 0 | CY30: 0 | CZ30: 0 | DA30: 0 | DB30: 0 | DC30: 0 | DD30: 0 | DE30: 0 | DF30: 0 | DG30: 0 | DH30: 0 | DI30: 0 | DJ30: 0 | DK30: 0 | DL30: 0 | DM30: 0 | DN30: 0 | DO30: 0 | DP30: 0 | DQ30: 0 | DR30: 0 | DS30: 0 | DT30: 0 | DU30: 0 | DV30: 0 | DW30: 0 | DX30: 0 | DY30: 0 | DZ30: 0 | EA30: 0 | EB30: 0 | EC30: 0 | ED30: 0 | EE30: 0 | EF30: 0 | EG30: 0 | EH30: 0 | EI30: 0 | EJ30: 0 | EK30: 0 | EL30: 0 | EM30: 0 | EN30: 0 | EO30: 0 | EP30: 0 | EQ30: 0 | ER30: 0 | ES30: 0 | ET30: 0 | EU30: 0 | EV30: 0 | EW30: 0 | EX30: 0 | EY30: 0 | EZ30: 0
C31: Upper Baker | D31: FPS_FBS_UPB | E31: 11227.742 | F31: 11227.742 | G31: 11227.742 | H31: 11227.742 | I31: 11227.742 | J31: 11227.742 | L31: 0 | M31: 2800 | N31: 2912 | O31: 2800 | P31: 2688 | Q31: 0 | R31: 0 | S31: 0 | T31: 0 | U31: 0 | V31: 0 | W31: 0 | X31: 0 | Y31: 2800 | Z31: 2912 | AA31: 2800 | AB31: 2688 | AC31: 0 | AD31: 0 | AE31: 0 | AF31: 0 | AG31: 0 | AH31: 0 | AI31: 0 | AJ31: 0 | AK31: 2800 | AL31: 2912 | AM31: 2800 | AN31: 2688 | AO31: 0 | AP31: 0 | AQ31: 0 | AR31: 0 | AS31: 0 | AT31: 0 | AU31: 0 | AV31: 0 | AW31: 2800 | AX31: 2912 | AY31: 2800 | AZ31: 2688 | BA31: 0 | BB31: 0 | BC31: 0 | BD31: 0 | BE31: 0 | BF31: 0 | BG31: 0 | BH31: 0 | BI31: 2800 | BJ31: 2912 | BK31: 2800 | BL31: 2688 | BM31: 0 | BN31: 0 | BO31: 0 | BP31: 0 | BQ31: 0 | BR31: 0 | BS31: 0 | BT31: 0 | BU31: 2800 | BV31: 2912 | BW31: 2800 | BX31: 2688 | BY31: 0 | BZ31: 0 | CA31: 0 | CB31: 0 | CC31: 0 | CD31: 0 | CE31: 0 | CG31: 0 | CH31: 7.062 | CI31: 6.888 | CJ31: 6.88 | CK31: 6.912 | CL31: 0 | CM31: 0 | CN31: 0 | CO31: 0 | CP31: 0 | CQ31: 0 | CR31: 0 | CS31: 0 | CT31: 7.062 | CU31: 6.888 | CV31: 6.88 | CW31: 6.912 | CX31: 0 | CY31: 0 | CZ31: 0 | DA31: 0 | DB31: 0 | DC31: 0 | DD31: 0 | DE31: 0 | DF31: 7.062 | DG31: 6.888 | DH31: 6.88 | DI31: 6.912 | DJ31: 0 | DK31: 0 | DL31: 0 | DM31: 0 | DN31: 0 | DO31: 0 | DP31: 0 | DQ31: 0 | DR31: 7.062 | DS31: 6.888 | DT31: 6.88 | DU31: 6.912 | DV31: 0 | DW31: 0 | DX31: 0 | DY31: 0 | DZ31: 0 | EA31: 0 | EB31: 0 | EC31: 0 | ED31: 7.062 | EE31: 6.888 | EF31: 6.88 | EG31: 6.912 | EH31: 0 | EI31: 0 | EJ31: 0 | EK31: 0 | EL31: 0 | EM31: 0 | EN31: 0 | EO31: 0 | EP31: 7.062 | EQ31: 6.888 | ER31: 6.88 | ES31: 6.912 | ET31: 0 | EU31: 0 | EV31: 0 | EW31: 0 | EX31: 0 | EY31: 0 | EZ31: 0
C32: Non-Treaty Storage | D32: FPS_FBS_NTS | E32: 88918.248 | F32: 88919.04 | G32: 90129.6 | H32: 90628.8 | I32: 90129.6 | J32: 90628.8 | L32: 0 | M32: 0 | N32: 0 | O32: 0 | P32: 0 | Q32: 0 | R32: 0 | S32: 0 | T32: 0 | U32: 7002 | V32: 44151.936 | W32: 0 | X32: 0 | Y32: 0 | Z32: 0 | AA32: 0 | AB32: 0 | AC32: 0 | AD32: 0 | AE32: 0 | AF32: 0 | AG32: 7002 | AH32: 44152.4 | AI32: 0 | AJ32: 0 | AK32: 0 | AL32: 0 | AM32: 0 | AN32: 0 | AO32: 0 | AP32: 0 | AQ32: 0 | AR32: 0 | AS32: 6480 | AT32: 45427.2 | AU32: 0 | AV32: 0 | AW32: 0 | AX32: 0 | AY32: 0 | AZ32: 0 | BA32: 0 | BB32: 0 | BC32: 0 | BD32: 0 | BE32: 6480 | BF32: 45718.4 | BG32: 0 | BH32: 0 | BI32: 0 | BJ32: 0 | BK32: 0 | BL32: 0 | BM32: 0 | BN32: 0 | BO32: 0 | BP32: 0 | BQ32: 6480 | BR32: 45427.2 | BS32: 0 | BT32: 0 | BU32: 0 | BV32: 0 | BW32: 0 | BX32: 0 | BY32: 0 | BZ32: 0 | CA32: 0 | CB32: 0 | CC32: 6480 | CD32: 45718.4 | CE32: 0 | CG32: 0 | CH32: 0 | CI32: 0 | CJ32: 0 | CK32: 0 | CL32: 0 | CM32: 0 | CN32: 0 | CO32: 0 | CP32: 6021.72 | CQ32: 31742.592 | CR32: 0 | CS32: 0 | CT32: 0 | CU32: 0 | CV32: 0 | CW32: 0 | CX32: 0 | CY32: 0 | CZ32: 0 | DA32: 0 | DB32: 6021.72 | DC32: 31742.92 | DD32: 0 | DE32: 0 | DF32: 0 | DG32: 0 | DH32: 0 | DI32: 0 | DJ32: 0 | DK32: 0 | DL32: 0 | DM32: 0 | DN32: 5572.8 | DO32: 32649.6 | DP32: 0 | DQ32: 0 | DR32: 0 | DS32: 0 | DT32: 0 | DU32: 0 | DV32: 0 | DW32: 0 | DX32: 0 | DY32: 0 | DZ32: 5572.8 | EA32: 32857.6 | EB32: 0 | EC32: 0 | ED32: 0 | EE32: 0 | EF32: 0 | EG32: 0 | EH32: 0 | EI32: 0 | EJ32: 0 | EK32: 0 | EL32: 5572.8 | EM32: 32649.6 | EN32: 0 | EO32: 0 | EP32: 0 | EQ32: 0 | ER32: 0 | ES32: 0 | ET32: 0 | EU32: 0 | EV32: 0 | EW32: 0 | EX32: 5572.8 | EY32: 32857.6 | EZ32: 0
C33: Libby Coordination | D33: FPS_FBS_LCA | E33: 0 | F33: 0 | G33: 0 | H33: 0 | I33: 0 | J33: 0 | L33: 0 | M33: 0 | N33: 0 | O33: 0 | P33: 0 | Q33: 0 | R33: 0 | S33: 0 | T33: 0 | U33: 0 | V33: 0 | W33: 0 | X33: 0 | Y33: 0 | Z33: 0 | AA33: 0 | AB33: 0 | AC33: 0 | AD33: 0 | AE33: 0 | AF33: 0 | AG33: 0 | AH33: 0 | AI33: 0 | AJ33: 0 | AK33: 0 | AL33: 0 | AM33: 0 | AN33: 0 | AO33: 0 | AP33: 0 | AQ33: 0 | AR33: 0 | AS33: 0 | AT33: 0 | AU33: 0 | AV33: 0 | AW33: 0 | AX33: 0 | AY33: 0 | AZ33: 0 | BA33: 0 | BB33: 0 | BC33: 0 | BD33: 0 | BE33: 0 | BF33: 0 | BG33: 0 | BH33: 0 | BI33: 0 | BJ33: 0 | BK33: 0 | BL33: 0 | BM33: 0 | BN33: 0 | BO33: 0 | BP33: 0 | BQ33: 0 | BR33: 0 | BS33: 0 | BT33: 0 | BU33: 0 | BV33: 0 | BW33: 0 | BX33: 0 | BY33: 0 | BZ33: 0 | CA33: 0 | CB33: 0 | CC33: 0 | CD33: 0 | CE33: 0 | CG33: 0 | CH33: 0 | CI33: 0 | CJ33: 0 | CK33: 0 | CL33: 0 | CM33: 0 | CN33: 0 | CO33: 0 | CP33: 0 | CQ33: 0 | CR33: 0 | CS33: 0 | CT33: 0 | CU33: 0 | CV33: 0 | CW33: 0 | CX33: 0 | CY33: 0 | CZ33: 0 | DA33: 0 | DB33: 0 | DC33: 0 | DD33: 0 | DE33: 0 | DF33: 0 | DG33: 0 | DH33: 0 | DI33: 0 | DJ33: 0 | DK33: 0 | DL33: 0 | DM33: 0 | DN33: 0 | DO33: 0 | DP33: 0 | DQ33: 0 | DR33: 0 | DS33: 0 | DT33: 0 | DU33: 0 | DV33: 0 | DW33: 0 | DX33: 0 | DY33: 0 | DZ33: 0 | EA33: 0 | EB33: 0 | EC33: 0 | ED33: 0 | EE33: 0 | EF33: 0 | EG33: 0 | EH33: 0 | EI33: 0 | EJ33: 0 | EK33: 0 | EL33: 0 | EM33: 0 | EN33: 0 | EO33: 0 | EP33: 0 | EQ33: 0 | ER33: 0 | ES33: 0 | ET33: 0 | EU33: 0 | EV33: 0 | EW33: 0 | EX33: 0 | EY33: 0 | EZ33: 0
E34: 0 | F34: 0 | G34: 0 | H34: 0 | I34: 0 | J34: 0 | L34: 0 | M34: 0 | N34: 0 | O34: 0 | P34: 0 | Q34: 0 | R34: 0 | S34: 0 | T34: 0 | U34: 0 | V34: 0 | W34: 0 | X34: 0 | Y34: 0 | Z34: 0 | AA34: 0 | AB34: 0 | AC34: 0 | AD34: 0 | AE34: 0 | AF34: 0 | AG34: 0 | AH34: 0 | AI34: 0 | AJ34: 0 | AK34: 0 | AL34: 0 | AM34: 0 | AN34: 0 | AO34: 0 | AP34: 0 | AQ34: 0 | AR34: 0 | AS34: 0 | AT34: 0 | AU34: 0 | AV34: 0 | AW34: 0 | AX34: 0 | AY34: 0 | AZ34: 0 | BA34: 0 | BB34: 0 | BC34: 0 | BD34: 0 | BE34: 0 | BF34: 0 | BG34: 0 | BH34: 0 | BI34: 0 | BJ34: 0 | BK34: 0 | BL34: 0 | BM34: 0 | BN34: 0 | BO34: 0 | BP34: 0 | BQ34: 0 | BR34: 0 | BS34: 0 | BT34: 0 | BU34: 0 | BV34: 0 | BW34: 0 | BX34: 0 | BY34: 0 | BZ34: 0 | CA34: 0 | CB34: 0 | CC34: 0 | CD34: 0 | CE34: 0 | CG34: 0 | CH34: 0 | CI34: 0 | CJ34: 0 | CK34: 0 | CL34: 0 | CM34: 0 | CN34: 0 | CO34: 0 | CP34: 0 | CQ34: 0 | CR34: 0 | CS34: 0 | CT34: 0 | CU34: 0 | CV34: 0 | CW34: 0 | CX34: 0 | CY34: 0 | CZ34: 0 | DA34: 0 | DB34: 0 | DC34: 0 | DD34: 0 | DE34: 0 | DF34: 0 | DG34: 0 | DH34: 0 | DI34: 0 | DJ34: 0 | DK34: 0 | DL34: 0 | DM34: 0 | DN34: 0 | DO34: 0 | DP34: 0 | DQ34: 0 | DR34: 0 | DS34: 0 | DT34: 0 | DU34: 0 | DV34: 0 | DW34: 0 | DX34: 0 | DY34: 0 | DZ34: 0 | EA34: 0 | EB34: 0 | EC34: 0 | ED34: 0 | EE34: 0 | EF34: 0 | EG34: 0 | EH34: 0 | EI34: 0 | EJ34: 0 | EK34: 0 | EL34: 0 | EM34: 0 | EN34: 0 | EO34: 0 | EP34: 0 | EQ34: 0 | ER34: 0 | ES34: 0 | ET34: 0 | EU34: 0 | EV34: 0 | EW34: 0 | EX34: 0 | EY34: 0 | EZ34: 0
E35: 0 | F35: 0 | G35: 0 | H35: 0 | I35: 0 | J35: 0 | L35: 0 | M35: 0 | N35: 0 | O35: 0 | P35: 0 | Q35: 0 | R35: 0 | S35: 0 | T35: 0 | U35: 0 | V35: 0 | W35: 0 | X35: 0 | Y35: 0 | Z35: 0 | AA35: 0 | AB35: 0 | AC35: 0 | AD35: 0 | AE35: 0 | AF35: 0 | AG35: 0 | AH35: 0 | AI35: 0 | AJ35: 0 | AK35: 0 | AL35: 0 | AM35: 0 | AN35: 0 | AO35: 0 | AP35: 0 | AQ35: 0 | AR35: 0 | AS35: 0 | AT35: 0 | AU35: 0 | AV35: 0 | AW35: 0 | AX35: 0 | AY35: 0 | AZ35: 0 | BA35: 0 | BB35: 0 | BC35: 0 | BD35: 0 | BE35: 0 | BF35: 0 | BG35: 0 | BH35: 0 | BI35: 0 | BJ35: 0 | BK35: 0 | BL35: 0 | BM35: 0 | BN35: 0 | BO35: 0 | BP35: 0 | BQ35: 0 | BR35: 0 | BS35: 0 | BT35: 0 | BU35: 0 | BV35: 0 | BW35: 0 | BX35: 0 | BY35: 0 | BZ35: 0 | CA35: 0 | CB35: 0 | CC35: 0 | CD35: 0 | CE35: 0 | CG35: 0 | CH35: 0 | CI35: 0 | CJ35: 0 | CK35: 0 | CL35: 0 | CM35: 0 | CN35: 0 | CO35: 0 | CP35: 0 | CQ35: 0 | CR35: 0 | CS35: 0 | CT35: 0 | CU35: 0 | CV35: 0 | CW35: 0 | CX35: 0 | CY35: 0 | CZ35: 0 | DA35: 0 | DB35: 0 | DC35: 0 | DD35: 0 | DE35: 0 | DF35: 0 | DG35: 0 | DH35: 0 | DI35: 0 | DJ35: 0 | DK35: 0 | DL35: 0 | DM35: 0 | DN35: 0 | DO35: 0 | DP35: 0 | DQ35: 0 | DR35: 0 | DS35: 0 | DT35: 0 | DU35: 0 | DV35: 0 | DW35: 0 | DX35: 0 | DY35: 0 | DZ35: 0 | EA35: 0 | EB35: 0 | EC35: 0 | ED35: 0 | EE35: 0 | EF35: 0 | EG35: 0 | EH35: 0 | EI35: 0 | EJ35: 0 | EK35: 0 | EL35: 0 | EM35: 0 | EN35: 0 | EO35: 0 | EP35: 0 | EQ35: 0 | ER35: 0 | ES35: 0 | ET35: 0 | EU35: 0 | EV35: 0 | EW35: 0 | EX35: 0 | EY35: 0 | EZ35: 0
E36: 0 | F36: 0 | G36: 0 | H36: 0 | I36: 0 | J36: 0 | L36: 0 | M36: 0 | N36: 0 | O36: 0 | P36: 0 | Q36: 0 | R36: 0 | S36: 0 | T36: 0 | U36: 0 | V36: 0 | W36: 0 | X36: 0 | Y36: 0 | Z36: 0 | AA36: 0 | AB36: 0 | AC36: 0 | AD36: 0 | AE36: 0 | AF36: 0 | AG36: 0 | AH36: 0 | AI36: 0 | AJ36: 0 | AK36: 0 | AL36: 0 | AM36: 0 | AN36: 0 | AO36: 0 | AP36: 0 | AQ36: 0 | AR36: 0 | AS36: 0 | AT36: 0 | AU36: 0 | AV36: 0 | AW36: 0 | AX36: 0 | AY36: 0 | AZ36: 0 | BA36: 0 | BB36: 0 | BC36: 0 | BD36: 0 | BE36: 0 | BF36: 0 | BG36: 0 | BH36: 0 | BI36: 0 | BJ36: 0 | BK36: 0 | BL36: 0 | BM36: 0 | BN36: 0 | BO36: 0 | BP36: 0 | BQ36: 0 | BR36: 0 | BS36: 0 | BT36: 0 | BU36: 0 | BV36: 0 | BW36: 0 | BX36: 0 | BY36: 0 | BZ36: 0 | CA36: 0 | CB36: 0 | CC36: 0 | CD36: 0 | CE36: 0 | CG36: 0 | CH36: 0 | CI36: 0 | CJ36: 0 | CK36: 0 | CL36: 0 | CM36: 0 | CN36: 0 | CO36: 0 | CP36: 0 | CQ36: 0 | CR36: 0 | CS36: 0 | CT36: 0 | CU36: 0 | CV36: 0 | CW36: 0 | CX36: 0 | CY36: 0 | CZ36: 0 | DA36: 0 | DB36: 0 | DC36: 0 | DD36: 0 | DE36: 0 | DF36: 0 | DG36: 0 | DH36: 0 | DI36: 0 | DJ36: 0 | DK36: 0 | DL36: 0 | DM36: 0 | DN36: 0 | DO36: 0 | DP36: 0 | DQ36: 0 | DR36: 0 | DS36: 0 | DT36: 0 | DU36: 0 | DV36: 0 | DW36: 0 | DX36: 0 | DY36: 0 | DZ36: 0 | EA36: 0 | EB36: 0 | EC36: 0 | ED36: 0 | EE36: 0 | EF36: 0 | EG36: 0 | EH36: 0 | EI36: 0 | EJ36: 0 | EK36: 0 | EL36: 0 | EM36: 0 | EN36: 0 | EO36: 0 | EP36: 0 | EQ36: 0 | ER36: 0 | ES36: 0 | ET36: 0 | EU36: 0 | EV36: 0 | EW36: 0 | EX36: 0 | EY36: 0 | EZ36: 0
E37: 0 | F37: 0 | G37: 0 | H37: 0 | I37: 0 | J37: 0 | L37: 0 | M37: 0 | N37: 0 | O37: 0 | P37: 0 | Q37: 0 | R37: 0 | S37: 0 | T37: 0 | U37: 0 | V37: 0 | W37: 0 | X37: 0 | Y37: 0 | Z37: 0 | AA37: 0 | AB37: 0 | AC37: 0 | AD37: 0 | AE37: 0 | AF37: 0 | AG37: 0 | AH37: 0 | AI37: 0 | AJ37: 0 | AK37: 0 | AL37: 0 | AM37: 0 | AN37: 0 | AO37: 0 | AP37: 0 | AQ37: 0 | AR37: 0 | AS37: 0 | AT37: 0 | AU37: 0 | AV37: 0 | AW37: 0 | AX37: 0 | AY37: 0 | AZ37: 0 | BA37: 0 | BB37: 0 | BC37: 0 | BD37: 0 | BE37: 0 | BF37: 0 | BG37: 0 | BH37: 0 | BI37: 0 | BJ37: 0 | BK37: 0 | BL37: 0 | BM37: 0 | BN37: 0 | BO37: 0 | BP37: 0 | BQ37: 0 | BR37: 0 | BS37: 0 | BT37: 0 | BU37: 0 | BV37: 0 | BW37: 0 | BX37: 0 | BY37: 0 | BZ37: 0 | CA37: 0 | CB37: 0 | CC37: 0 | CD37: 0 | CE37: 0 | CG37: 0 | CH37: 0 | CI37: 0 | CJ37: 0 | CK37: 0 | CL37: 0 | CM37: 0 | CN37: 0 | CO37: 0 | CP37: 0 | CQ37: 0 | CR37: 0 | CS37: 0 | CT37: 0 | CU37: 0 | CV37: 0 | CW37: 0 | CX37: 0 | CY37: 0 | CZ37: 0 | DA37: 0 | DB37: 0 | DC37: 0 | DD37: 0 | DE37: 0 | DF37: 0 | DG37: 0 | DH37: 0 | DI37: 0 | DJ37: 0 | DK37: 0 | DL37: 0 | DM37: 0 | DN37: 0 | DO37: 0 | DP37: 0 | DQ37: 0 | DR37: 0 | DS37: 0 | DT37: 0 | DU37: 0 | DV37: 0 | DW37: 0 | DX37: 0 | DY37: 0 | DZ37: 0 | EA37: 0 | EB37: 0 | EC37: 0 | ED37: 0 | EE37: 0 | EF37: 0 | EG37: 0 | EH37: 0 | EI37: 0 | EJ37: 0 | EK37: 0 | EL37: 0 | EM37: 0 | EN37: 0 | EO37: 0 | EP37: 0 | EQ37: 0 | ER37: 0 | ES37: 0 | ET37: 0 | EU37: 0 | EV37: 0 | EW37: 0 | EX37: 0 | EY37: 0 | EZ37: 0
B38: Seasonal or Capacity Exchange | D38: FPS_EXS | E38: =+SUM(E39:E48) -> 13253.25 | F38: =+SUM(F39:F48) -> 0 | G38: 11597.25 | H38: 0 | I38: 11597.25 | J38: 0 | L38: 2496 | M38: 2400 | N38: 2496 | O38: 0 | P38: 0 | Q38: 0 | R38: 0 | S38: 0 | T38: 0 | U38: 0 | V38: 0 | W38: 0 | X38: 0 | Y38: 0 | Z38: 0 | AA38: 0 | AB38: 0 | AC38: 0 | AD38: 0 | AE38: 0 | AF38: 0 | AG38: 0 | AH38: 0 | AI38: 0 | AJ38: 2184 | AK38: 2100 | AL38: 2184 | AM38: 0 | AN38: 0 | AO38: 0 | AP38: 0 | AQ38: 0 | AR38: 0 | AS38: 0 | AT38: 0 | AU38: 0 | AV38: 0 | AW38: 0 | AX38: 0 | AY38: 0 | AZ38: 0 | BA38: 0 | BB38: 0 | BC38: 0 | BD38: 0 | BE38: 0 | BF38: 0 | BG38: 0 | BH38: 2184 | BI38: 2100 | BJ38: 2184 | BK38: 0 | BL38: 0 | BM38: 0 | BN38: 0 | BO38: 0 | BP38: 0 | BQ38: 0 | BR38: 0 | BS38: 0 | BT38: 0 | BU38: 0 | BV38: 0 | BW38: 0 | BX38: 0 | BY38: 0 | BZ38: 0 | CA38: 0 | CB38: 0 | CC38: 0 | CD38: 0 | CE38: 0 | CG38: 1968 | CH38: 1926 | CI38: 1967.25 | CJ38: 0 | CK38: 0 | CL38: 0 | CM38: 0 | CN38: 0 | CO38: 0 | CP38: 0 | CQ38: 0 | CR38: 0 | CS38: 0 | CT38: 0 | CU38: 0 | CV38: 0 | CW38: 0 | CX38: 0 | CY38: 0 | CZ38: 0 | DA38: 0 | DB38: 0 | DC38: 0 | DD38: 0 | DE38: 1722 | DF38: 1685.25 | DG38: 1722 | DH38: 0 | DI38: 0 | DJ38: 0 | DK38: 0 | DL38: 0 | DM38: 0 | DN38: 0 | DO38: 0 | DP38: 0 | DQ38: 0 | DR38: 0 | DS38: 0 | DT38: 0 | DU38: 0 | DV38: 0 | DW38: 0 | DX38: 0 | DY38: 0 | DZ38: 0 | EA38: 0 | EB38: 0 | EC38: 1722 | ED38: 1685.25 | EE38: 1722 | EF38: 0 | EG38: 0 | EH38: 0 | EI38: 0 | EJ38: 0 | EK38: 0 | EL38: 0 | EM38: 0 | EN38: 0 | EO38: 0 | EP38: 0 | EQ38: 0 | ER38: 0 | ES38: 0 | ET38: 0 | EU38: 0 | EV38: 0 | EW38: 0 | EX38: 0 | EY38: 0 | EZ38: 0
C39: Riverside Capacity | D39: FPS_EXS_RVC | E39: 0 | F39: 0 | G39: 0 | H39: 0 | I39: 0 | J39: 0 | L39: 0 | M39: 0 | N39: 0 | O39: 0 | P39: 0 | Q39: 0 | R39: 0 | S39: 0 | T39: 0 | U39: 0 | V39: 0 | W39: 0 | X39: 0 | Y39: 0 | Z39: 0 | AA39: 0 | AB39: 0 | AC39: 0 | AD39: 0 | AE39: 0 | AF39: 0 | AG39: 0 | AH39: 0 | AI39: 0 | AJ39: 0 | AK39: 0 | AL39: 0 | AM39: 0 | AN39: 0 | AO39: 0 | AP39: 0 | AQ39: 0 | AR39: 0 | AS39: 0 | AT39: 0 | AU39: 0 | AV39: 0 | AW39: 0 | AX39: 0 | AY39: 0 | AZ39: 0 | BA39: 0 | BB39: 0 | BC39: 0 | BD39: 0 | BE39: 0 | BF39: 0 | BG39: 0 | BH39: 0 | BI39: 0 | BJ39: 0 | BK39: 0 | BL39: 0 | BM39: 0 | BN39: 0 | BO39: 0 | BP39: 0 | BQ39: 0 | BR39: 0 | BS39: 0 | BT39: 0 | BU39: 0 | BV39: 0 | BW39: 0 | BX39: 0 | BY39: 0 | BZ39: 0 | CA39: 0 | CB39: 0 | CC39: 0 | CD39: 0 | CE39: 0 | CG39: 0 | CH39: 0 | CI39: 0 | CJ39: 0 | CK39: 0 | CL39: 0 | CM39: 0 | CN39: 0 | CO39: 0 | CP39: 0 | CQ39: 0 | CR39: 0 | CS39: 0 | CT39: 0 | CU39: 0 | CV39: 0 | CW39: 0 | CX39: 0 | CY39: 0 | CZ39: 0 | DA39: 0 | DB39: 0 | DC39: 0 | DD39: 0 | DE39: 0 | DF39: 0 | DG39: 0 | DH39: 0 | DI39: 0 | DJ39: 0 | DK39: 0 | DL39: 0 | DM39: 0 | DN39: 0 | DO39: 0 | DP39: 0 | DQ39: 0 | DR39: 0 | DS39: 0 | DT39: 0 | DU39: 0 | DV39: 0 | DW39: 0 | DX39: 0 | DY39: 0 | DZ39: 0 | EA39: 0 | EB39: 0 | EC39: 0 | ED39: 0 | EE39: 0 | EF39: 0 | EG39: 0 | EH39: 0 | EI39: 0 | EJ39: 0 | EK39: 0 | EL39: 0 | EM39: 0 | EN39: 0 | EO39: 0 | EP39: 0 | EQ39: 0 | ER39: 0 | ES39: 0 | ET39: 0 | EU39: 0 | EV39: 0 | EW39: 0 | EX39: 0 | EY39: 0 | EZ39: 0
C40: Riverside Seasonal | D40: FPS_EXS_RVS | E40: 0 | F40: 0 | G40: 0 | H40: 0 | I40: 0 | J40: 0 | L40: 0 | M40: 0 | N40: 0 | O40: 0 | P40: 0 | Q40: 0 | R40: 0 | S40: 0 | T40: 0 | U40: 0 | V40: 0 | W40: 0 | X40: 0 | Y40: 0 | Z40: 0 | AA40: 0 | AB40: 0 | AC40: 0 | AD40: 0 | AE40: 0 | AF40: 0 | AG40: 0 | AH40: 0 | AI40: 0 | AJ40: 0 | AK40: 0 | AL40: 0 | AM40: 0 | AN40: 0 | AO40: 0 | AP40: 0 | AQ40: 0 | AR40: 0 | AS40: 0 | AT40: 0 | AU40: 0 | AV40: 0 | AW40: 0 | AX40: 0 | AY40: 0 | AZ40: 0 | BA40: 0 | BB40: 0 | BC40: 0 | BD40: 0 | BE40: 0 | BF40: 0 | BG40: 0 | BH40: 0 | BI40: 0 | BJ40: 0 | BK40: 0 | BL40: 0 | BM40: 0 | BN40: 0 | BO40: 0 | BP40: 0 | BQ40: 0 | BR40: 0 | BS40: 0 | BT40: 0 | BU40: 0 | BV40: 0 | BW40: 0 | BX40: 0 | BY40: 0 | BZ40: 0 | CA40: 0 | CB40: 0 | CC40: 0 | CD40: 0 | CE40: 0 | CG40: 0 | CH40: 0 | CI40: 0 | CJ40: 0 | CK40: 0 | CL40: 0 | CM40: 0 | CN40: 0 | CO40: 0 | CP40: 0 | CQ40: 0 | CR40: 0 | CS40: 0 | CT40: 0 | CU40: 0 | CV40: 0 | CW40: 0 | CX40: 0 | CY40: 0 | CZ40: 0 | DA40: 0 | DB40: 0 | DC40: 0 | DD40: 0 | DE40: 0 | DF40: 0 | DG40: 0 | DH40: 0 | DI40: 0 | DJ40: 0 | DK40: 0 | DL40: 0 | DM40: 0 | DN40: 0 | DO40: 0 | DP40: 0 | DQ40: 0 | DR40: 0 | DS40: 0 | DT40: 0 | DU40: 0 | DV40: 0 | DW40: 0 | DX40: 0 | DY40: 0 | DZ40: 0 | EA40: 0 | EB40: 0 | EC40: 0 | ED40: 0 | EE40: 0 | EF40: 0 | EG40: 0 | EH40: 0 | EI40: 0 | EJ40: 0 | EK40: 0 | EL40: 0 | EM40: 0 | EN40: 0 | EO40: 0 | EP40: 0 | EQ40: 0 | ER40: 0 | ES40: 0 | ET40: 0 | EU40: 0 | EV40: 0 | EW40: 0 | EX40: 0 | EY40: 0 | EZ40: 0
C41: Pasadena Capacity | D41: FPS_EXS_PAC | E41: 0 | F41: 0 | G41: 0 | H41: 0 | I41: 0 | J41: 0 | L41: 0 | M41: 0 | N41: 0 | O41: 0 | P41: 0 | Q41: 0 | R41: 0 | S41: 0 | T41: 0 | U41: 0 | V41: 0 | W41: 0 | X41: 0 | Y41: 0 | Z41: 0 | AA41: 0 | AB41: 0 | AC41: 0 | AD41: 0 | AE41: 0 | AF41: 0 | AG41: 0 | AH41: 0 | AI41: 0 | AJ41: 0 | AK41: 0 | AL41: 0 | AM41: 0 | AN41: 0 | AO41: 0 | AP41: 0 | AQ41: 0 | AR41: 0 | AS41: 0 | AT41: 0 | AU41: 0 | AV41: 0 | AW41: 0 | AX41: 0 | AY41: 0 | AZ41: 0 | BA41: 0 | BB41: 0 | BC41: 0 | BD41: 0 | BE41: 0 | BF41: 0 | BG41: 0 | BH41: 0 | BI41: 0 | BJ41: 0 | BK41: 0 | BL41: 0 | BM41: 0 | BN41: 0 | BO41: 0 | BP41: 0 | BQ41: 0 | BR41: 0 | BS41: 0 | BT41: 0 | BU41: 0 | BV41: 0 | BW41: 0 | BX41: 0 | BY41: 0 | BZ41: 0 | CA41: 0 | CB41: 0 | CC41: 0 | CD41: 0 | CE41: 0 | CG41: 0 | CH41: 0 | CI41: 0 | CJ41: 0 | CK41: 0 | CL41: 0 | CM41: 0 | CN41: 0 | CO41: 0 | CP41: 0 | CQ41: 0 | CR41: 0 | CS41: 0 | CT41: 0 | CU41: 0 | CV41: 0 | CW41: 0 | CX41: 0 | CY41: 0 | CZ41: 0 | DA41: 0 | DB41: 0 | DC41: 0 | DD41: 0 | DE41: 0 | DF41: 0 | DG41: 0 | DH41: 0 | DI41: 0 | DJ41: 0 | DK41: 0 | DL41: 0 | DM41: 0 | DN41: 0 | DO41: 0 | DP41: 0 | DQ41: 0 | DR41: 0 | DS41: 0 | DT41: 0 | DU41: 0 | DV41: 0 | DW41: 0 | DX41: 0 | DY41: 0 | DZ41: 0 | EA41: 0 | EB41: 0 | EC41: 0 | ED41: 0 | EE41: 0 | EF41: 0 | EG41: 0 | EH41: 0 | EI41: 0 | EJ41: 0 | EK41: 0 | EL41: 0 | EM41: 0 | EN41: 0 | EO41: 0 | EP41: 0 | EQ41: 0 | ER41: 0 | ES41: 0 | ET41: 0 | EU41: 0 | EV41: 0 | EW41: 0 | EX41: 0 | EY41: 0 | EZ41: 0
C42: Pasadena Seasonal | D42: FPS_EXS_PAS | E42: 0 | F42: 0 | G42: 0 | H42: 0 | I42: 0 | J42: 0 | L42: 0 | M42: 0 | N42: 0 | O42: 0 | P42: 0 | Q42: 0 | R42: 0 | S42: 0 | T42: 0 | U42: 0 | V42: 0 | W42: 0 | X42: 0 | Y42: 0 | Z42: 0 | AA42: 0 | AB42: 0 | AC42: 0 | AD42: 0 | AE42: 0 | AF42: 0 | AG42: 0 | AH42: 0 | AI42: 0 | AJ42: 0 | AK42: 0 | AL42: 0 | AM42: 0 | AN42: 0 | AO42: 0 | AP42: 0 | AQ42: 0 | AR42: 0 | AS42: 0 | AT42: 0 | AU42: 0 | AV42: 0 | AW42: 0 | AX42: 0 | AY42: 0 | AZ42: 0 | BA42: 0 | BB42: 0 | BC42: 0 | BD42: 0 | BE42: 0 | BF42: 0 | BG42: 0 | BH42: 0 | BI42: 0 | BJ42: 0 | BK42: 0 | BL42: 0 | BM42: 0 | BN42: 0 | BO42: 0 | BP42: 0 | BQ42: 0 | BR42: 0 | BS42: 0 | BT42: 0 | BU42: 0 | BV42: 0 | BW42: 0 | BX42: 0 | BY42: 0 | BZ42: 0 | CA42: 0 | CB42: 0 | CC42: 0 | CD42: 0 | CE42: 0 | CG42: 0 | CH42: 0 | CI42: 0 | CJ42: 0 | CK42: 0 | CL42: 0 | CM42: 0 | CN42: 0 | CO42: 0 | CP42: 0 | CQ42: 0 | CR42: 0 | CS42: 0 | CT42: 0 | CU42: 0 | CV42: 0 | CW42: 0 | CX42: 0 | CY42: 0 | CZ42: 0 | DA42: 0 | DB42: 0 | DC42: 0 | DD42: 0 | DE42: 0 | DF42: 0 | DG42: 0 | DH42: 0 | DI42: 0 | DJ42: 0 | DK42: 0 | DL42: 0 | DM42: 0 | DN42: 0 | DO42: 0 | DP42: 0 | DQ42: 0 | DR42: 0 | DS42: 0 | DT42: 0 | DU42: 0 | DV42: 0 | DW42: 0 | DX42: 0 | DY42: 0 | DZ42: 0 | EA42: 0 | EB42: 0 | EC42: 0 | ED42: 0 | EE42: 0 | EF42: 0 | EG42: 0 | EH42: 0 | EI42: 0 | EJ42: 0 | EK42: 0 | EL42: 0 | EM42: 0 | EN42: 0 | EO42: 0 | EP42: 0 | EQ42: 0 | ER42: 0 | ES42: 0 | ET42: 0 | EU42: 0 | EV42: 0 | EW42: 0 | EX42: 0 | EY42: 0 | EZ42: 0
C43: PG&E | D43: FPS_EXS_PGE | E43: 0 | F43: 0 | G43: 0 | H43: 0 | I43: 0 | J43: 0 | L43: 0 | M43: 0 | N43: 0 | O43: 0 | P43: 0 | Q43: 0 | R43: 0 | S43: 0 | T43: 0 | U43: 0 | V43: 0 | W43: 0 | X43: 0 | Y43: 0 | Z43: 0 | AA43: 0 | AB43: 0 | AC43: 0 | AD43: 0 | AE43: 0 | AF43: 0 | AG43: 0 | AH43: 0 | AI43: 0 | AJ43: 0 | AK43: 0 | AL43: 0 | AM43: 0 | AN43: 0 | AO43: 0 | AP43: 0 | AQ43: 0 | AR43: 0 | AS43: 0 | AT43: 0 | AU43: 0 | AV43: 0 | AW43: 0 | AX43: 0 | AY43: 0 | AZ43: 0 | BA43: 0 | BB43: 0 | BC43: 0 | BD43: 0 | BE43: 0 | BF43: 0 | BG43: 0 | BH43: 0 | BI43: 0 | BJ43: 0 | BK43: 0 | BL43: 0 | BM43: 0 | BN43: 0 | BO43: 0 | BP43: 0 | BQ43: 0 | BR43: 0 | BS43: 0 | BT43: 0 | BU43: 0 | BV43: 0 | BW43: 0 | BX43: 0 | BY43: 0 | BZ43: 0 | CA43: 0 | CB43: 0 | CC43: 0 | CD43: 0 | CE43: 0 | CG43: 0 | CH43: 0 | CI43: 0 | CJ43: 0 | CK43: 0 | CL43: 0 | CM43: 0 | CN43: 0 | CO43: 0 | CP43: 0 | CQ43: 0 | CR43: 0 | CS43: 0 | CT43: 0 | CU43: 0 | CV43: 0 | CW43: 0 | CX43: 0 | CY43: 0 | CZ43: 0 | DA43: 0 | DB43: 0 | DC43: 0 | DD43: 0 | DE43: 0 | DF43: 0 | DG43: 0 | DH43: 0 | DI43: 0 | DJ43: 0 | DK43: 0 | DL43: 0 | DM43: 0 | DN43: 0 | DO43: 0 | DP43: 0 | DQ43: 0 | DR43: 0 | DS43: 0 | DT43: 0 | DU43: 0 | DV43: 0 | DW43: 0 | DX43: 0 | DY43: 0 | DZ43: 0 | EA43: 0 | EB43: 0 | EC43: 0 | ED43: 0 | EE43: 0 | EF43: 0 | EG43: 0 | EH43: 0 | EI43: 0 | EJ43: 0 | EK43: 0 | EL43: 0 | EM43: 0 | EN43: 0 | EO43: 0 | EP43: 0 | EQ43: 0 | ER43: 0 | ES43: 0 | ET43: 0 | EU43: 0 | EV43: 0 | EW43: 0 | EX43: 0 | EY43: 0 | EZ43: 0
C44: Intertie Losses | D44: FPS_EXS_LSS | E44: 13253.25 | F44: 0 | G44: 11597.25 | H44: 0 | I44: 11597.25 | J44: 0 | L44: 2496 | M44: 2400 | N44: 2496 | O44: 0 | P44: 0 | Q44: 0 | R44: 0 | S44: 0 | T44: 0 | U44: 0 | V44: 0 | W44: 0 | X44: 0 | Y44: 0 | Z44: 0 | AA44: 0 | AB44: 0 | AC44: 0 | AD44: 0 | AE44: 0 | AF44: 0 | AG44: 0 | AH44: 0 | AI44: 0 | AJ44: 2184 | AK44: 2100 | AL44: 2184 | AM44: 0 | AN44: 0 | AO44: 0 | AP44: 0 | AQ44: 0 | AR44: 0 | AS44: 0 | AT44: 0 | AU44: 0 | AV44: 0 | AW44: 0 | AX44: 0 | AY44: 0 | AZ44: 0 | BA44: 0 | BB44: 0 | BC44: 0 | BD44: 0 | BE44: 0 | BF44: 0 | BG44: 0 | BH44: 2184 | BI44: 2100 | BJ44: 2184 | BK44: 0 | BL44: 0 | BM44: 0 | BN44: 0 | BO44: 0 | BP44: 0 | BQ44: 0 | BR44: 0 | BS44: 0 | BT44: 0 | BU44: 0 | BV44: 0 | BW44: 0 | BX44: 0 | BY44: 0 | BZ44: 0 | CA44: 0 | CB44: 0 | CC44: 0 | CD44: 0 | CE44: 0 | CG44: 1968 | CH44: 1926 | CI44: 1967.25 | CJ44: 0 | CK44: 0 | CL44: 0 | CM44: 0 | CN44: 0 | CO44: 0 | CP44: 0 | CQ44: 0 | CR44: 0 | CS44: 0 | CT44: 0 | CU44: 0 | CV44: 0 | CW44: 0 | CX44: 0 | CY44: 0 | CZ44: 0 | DA44: 0 | DB44: 0 | DC44: 0 | DD44: 0 | DE44: 1722 | DF44: 1685.25 | DG44: 1722 | DH44: 0 | DI44: 0 | DJ44: 0 | DK44: 0 | DL44: 0 | DM44: 0 | DN44: 0 | DO44: 0 | DP44: 0 | DQ44: 0 | DR44: 0 | DS44: 0 | DT44: 0 | DU44: 0 | DV44: 0 | DW44: 0 | DX44: 0 | DY44: 0 | DZ44: 0 | EA44: 0 | EB44: 0 | EC44: 1722 | ED44: 1685.25 | EE44: 1722 | EF44: 0 | EG44: 0 | EH44: 0 | EI44: 0 | EJ44: 0 | EK44: 0 | EL44: 0 | EM44: 0 | EN44: 0 | EO44: 0 | EP44: 0 | EQ44: 0 | ER44: 0 | ES44: 0 | ET44: 0 | EU44: 0 | EV44: 0 | EW44: 0 | EX44: 0 | EY44: 0 | EZ44: 0
C45: PacifiCorp | D45: FPS_EXS_PPL | E45: 0 | F45: 0 | G45: 0 | H45: 0 | I45: 0 | J45: 0 | L45: 0 | M45: 0 | N45: 0 | O45: 0 | P45: 0 | Q45: 0 | R45: 0 | S45: 0 | T45: 0 | U45: 0 | V45: 0 | W45: 0 | X45: 0 | Y45: 0 | Z45: 0 | AA45: 0 | AB45: 0 | AC45: 0 | AD45: 0 | AE45: 0 | AF45: 0 | AG45: 0 | AH45: 0 | AI45: 0 | AJ45: 0 | AK45: 0 | AL45: 0 | AM45: 0 | AN45: 0 | AO45: 0 | AP45: 0 | AQ45: 0 | AR45: 0 | AS45: 0 | AT45: 0 | AU45: 0 | AV45: 0 | AW45: 0 | AX45: 0 | AY45: 0 | AZ45: 0 | BA45: 0 | BB45: 0 | BC45: 0 | BD45: 0 | BE45: 0 | BF45: 0 | BG45: 0 | BH45: 0 | BI45: 0 | BJ45: 0 | BK45: 0 | BL45: 0 | BM45: 0 | BN45: 0 | BO45: 0 | BP45: 0 | BQ45: 0 | BR45: 0 | BS45: 0 | BT45: 0 | BU45: 0 | BV45: 0 | BW45: 0 | BX45: 0 | BY45: 0 | BZ45: 0 | CA45: 0 | CB45: 0 | CC45: 0 | CD45: 0 | CE45: 0 | CG45: 0 | CH45: 0 | CI45: 0 | CJ45: 0 | CK45: 0 | CL45: 0 | CM45: 0 | CN45: 0 | CO45: 0 | CP45: 0 | CQ45: 0 | CR45: 0 | CS45: 0 | CT45: 0 | CU45: 0 | CV45: 0 | CW45: 0 | CX45: 0 | CY45: 0 | CZ45: 0 | DA45: 0 | DB45: 0 | DC45: 0 | DD45: 0 | DE45: 0 | DF45: 0 | DG45: 0 | DH45: 0 | DI45: 0 | DJ45: 0 | DK45: 0 | DL45: 0 | DM45: 0 | DN45: 0 | DO45: 0 | DP45: 0 | DQ45: 0 | DR45: 0 | DS45: 0 | DT45: 0 | DU45: 0 | DV45: 0 | DW45: 0 | DX45: 0 | DY45: 0 | DZ45: 0 | EA45: 0 | EB45: 0 | EC45: 0 | ED45: 0 | EE45: 0 | EF45: 0 | EG45: 0 | EH45: 0 | EI45: 0 | EJ45: 0 | EK45: 0 | EL45: 0 | EM45: 0 | EN45: 0 | EO45: 0 | EP45: 0 | EQ45: 0 | ER45: 0 | ES45: 0 | ET45: 0 | EU45: 0 | EV45: 0 | EW45: 0 | EX45: 0 | EY45: 0 | EZ45: 0
E46: 0 | F46: 0 | G46: 0 | H46: 0 | I46: 0 | J46: 0 | L46: 0 | M46: 0 | N46: 0 | O46: 0 | P46: 0 | Q46: 0 | R46: 0 | S46: 0 | T46: 0 | U46: 0 | V46: 0 | W46: 0 | X46: 0 | Y46: 0 | Z46: 0 | AA46: 0 | AB46: 0 | AC46: 0 | AD46: 0 | AE46: 0 | AF46: 0 | AG46: 0 | AH46: 0 | AI46: 0 | AJ46: 0 | AK46: 0 | AL46: 0 | AM46: 0 | AN46: 0 | AO46: 0 | AP46: 0 | AQ46: 0 | AR46: 0 | AS46: 0 | AT46: 0 | AU46: 0 | AV46: 0 | AW46: 0 | AX46: 0 | AY46: 0 | AZ46: 0 | BA46: 0 | BB46: 0 | BC46: 0 | BD46: 0 | BE46: 0 | BF46: 0 | BG46: 0 | BH46: 0 | BI46: 0 | BJ46: 0 | BK46: 0 | BL46: 0 | BM46: 0 | BN46: 0 | BO46: 0 | BP46: 0 | BQ46: 0 | BR46: 0 | BS46: 0 | BT46: 0 | BU46: 0 | BV46: 0 | BW46: 0 | BX46: 0 | BY46: 0 | BZ46: 0 | CA46: 0 | CB46: 0 | CC46: 0 | CD46: 0 | CE46: 0 | CG46: 0 | CH46: 0 | CI46: 0 | CJ46: 0 | CK46: 0 | CL46: 0 | CM46: 0 | CN46: 0 | CO46: 0 | CP46: 0 | CQ46: 0 | CR46: 0 | CS46: 0 | CT46: 0 | CU46: 0 | CV46: 0 | CW46: 0 | CX46: 0 | CY46: 0 | CZ46: 0 | DA46: 0 | DB46: 0 | DC46: 0 | DD46: 0 | DE46: 0 | DF46: 0 | DG46: 0 | DH46: 0 | DI46: 0 | DJ46: 0 | DK46: 0 | DL46: 0 | DM46: 0 | DN46: 0 | DO46: 0 | DP46: 0 | DQ46: 0 | DR46: 0 | DS46: 0 | DT46: 0 | DU46: 0 | DV46: 0 | DW46: 0 | DX46: 0 | DY46: 0 | DZ46: 0 | EA46: 0 | EB46: 0 | EC46: 0 | ED46: 0 | EE46: 0 | EF46: 0 | EG46: 0 | EH46: 0 | EI46: 0 | EJ46: 0 | EK46: 0 | EL46: 0 | EM46: 0 | EN46: 0 | EO46: 0 | EP46: 0 | EQ46: 0 | ER46: 0 | ES46: 0 | ET46: 0 | EU46: 0 | EV46: 0 | EW46: 0 | EX46: 0 | EY46: 0 | EZ46: 0
E47: 0 | F47: 0 | G47: 0 | H47: 0 | I47: 0 | J47: 0 | L47: 0 | M47: 0 | N47: 0 | O47: 0 | P47: 0 | Q47: 0 | R47: 0 | S47: 0 | T47: 0 | U47: 0 | V47: 0 | W47: 0 | X47: 0 | Y47: 0 | Z47: 0 | AA47: 0 | AB47: 0 | AC47: 0 | AD47: 0 | AE47: 0 | AF47: 0 | AG47: 0 | AH47: 0 | AI47: 0 | AJ47: 0 | AK47: 0 | AL47: 0 | AM47: 0 | AN47: 0 | AO47: 0 | AP47: 0 | AQ47: 0 | AR47: 0 | AS47: 0 | AT47: 0 | AU47: 0 | AV47: 0 | AW47: 0 | AX47: 0 | AY47: 0 | AZ47: 0 | BA47: 0 | BB47: 0 | BC47: 0 | BD47: 0 | BE47: 0 | BF47: 0 | BG47: 0 | BH47: 0 | BI47: 0 | BJ47: 0 | BK47: 0 | BL47: 0 | BM47: 0 | BN47: 0 | BO47: 0 | BP47: 0 | BQ47: 0 | BR47: 0 | BS47: 0 | BT47: 0 | BU47: 0 | BV47: 0 | BW47: 0 | BX47: 0 | BY47: 0 | BZ47: 0 | CA47: 0 | CB47: 0 | CC47: 0 | CD47: 0 | CE47: 0 | CG47: 0 | CH47: 0 | CI47: 0 | CJ47: 0 | CK47: 0 | CL47: 0 | CM47: 0 | CN47: 0 | CO47: 0 | CP47: 0 | CQ47: 0 | CR47: 0 | CS47: 0 | CT47: 0 | CU47: 0 | CV47: 0 | CW47: 0 | CX47: 0 | CY47: 0 | CZ47: 0 | DA47: 0 | DB47: 0 | DC47: 0 | DD47: 0 | DE47: 0 | DF47: 0 | DG47: 0 | DH47: 0 | DI47: 0 | DJ47: 0 | DK47: 0 | DL47: 0 | DM47: 0 | DN47: 0 | DO47: 0 | DP47: 0 | DQ47: 0 | DR47: 0 | DS47: 0 | DT47: 0 | DU47: 0 | DV47: 0 | DW47: 0 | DX47: 0 | DY47: 0 | DZ47: 0 | EA47: 0 | EB47: 0 | EC47: 0 | ED47: 0 | EE47: 0 | EF47: 0 | EG47: 0 | EH47: 0 | EI47: 0 | EJ47: 0 | EK47: 0 | EL47: 0 | EM47: 0 | EN47: 0 | EO47: 0 | EP47: 0 | EQ47: 0 | ER47: 0 | ES47: 0 | ET47: 0 | EU47: 0 | EV47: 0 | EW47: 0 | EX47: 0 | EY47: 0 | EZ47: 0
E48: 0 | F48: 0 | G48: 0 | H48: 0 | I48: 0 | J48: 0 | L48: 0 | M48: 0 | N48: 0 | O48: 0 | P48: 0 | Q48: 0 | R48: 0 | S48: 0 | T48: 0 | U48: 0 | V48: 0 | W48: 0 | X48: 0 | Y48: 0 | Z48: 0 | AA48: 0 | AB48: 0 | AC48: 0 | AD48: 0 | AE48: 0 | AF48: 0 | AG48: 0 | AH48: 0 | AI48: 0 | AJ48: 0 | AK48: 0 | AL48: 0 | AM48: 0 | AN48: 0 | AO48: 0 | AP48: 0 | AQ48: 0 | AR48: 0 | AS48: 0 | AT48: 0 | AU48: 0 | AV48: 0 | AW48: 0 | AX48: 0 | AY48: 0 | AZ48: 0 | BA48: 0 | BB48: 0 | BC48: 0 | BD48: 0 | BE48: 0 | BF48: 0 | BG48: 0 | BH48: 0 | BI48: 0 | BJ48: 0 | BK48: 0 | BL48: 0 | BM48: 0 | BN48: 0 | BO48: 0 | BP48: 0 | BQ48: 0 | BR48: 0 | BS48: 0 | BT48: 0 | BU48: 0 | BV48: 0 | BW48: 0 | BX48: 0 | BY48: 0 | BZ48: 0 | CA48: 0 | CB48: 0 | CC48: 0 | CD48: 0 | CE48: 0 | CG48: 0 | CH48: 0 | CI48: 0 | CJ48: 0 | CK48: 0 | CL48: 0 | CM48: 0 | CN48: 0 | CO48: 0 | CP48: 0 | CQ48: 0 | CR48: 0 | CS48: 0 | CT48: 0 | CU48: 0 | CV48: 0 | CW48: 0 | CX48: 0 | CY48: 0 | CZ48: 0 | DA48: 0 | DB48: 0 | DC48: 0 | DD48: 0 | DE48: 0 | DF48: 0 | DG48: 0 | DH48: 0 | DI48: 0 | DJ48: 0 | DK48: 0 | DL48: 0 | DM48: 0 | DN48: 0 | DO48: 0 | DP48: 0 | DQ48: 0 | DR48: 0 | DS48: 0 | DT48: 0 | DU48: 0 | DV48: 0 | DW48: 0 | DX48: 0 | DY48: 0 | DZ48: 0 | EA48: 0 | EB48: 0 | EC48: 0 | ED48: 0 | EE48: 0 | EF48: 0 | EG48: 0 | EH48: 0 | EI48: 0 | EJ48: 0 | EK48: 0 | EL48: 0 | EM48: 0 | EN48: 0 | EO48: 0 | EP48: 0 | EQ48: 0 | ER48: 0 | ES48: 0 | ET48: 0 | EU48: 0 | EV48: 0 | EW48: 0 | EX48: 0 | EY48: 0 | EZ48: 0
A49: Firm Surplus Sale | D49: FSS | E49: =+SUM(L49:W49,CG49:CR49) -> 441775 | F49: 0 | G49: 386575 | H49: 0 | I49: 386575 | J49: 0 | L49: 83200 | M49: 80000 | N49: 83200 | O49: 0 | P49: 0 | Q49: 0 | R49: 0 | S49: 0 | T49: 0 | U49: 0 | V49: 0 | W49: 0 | X49: 0 | Y49: 0 | Z49: 0 | AA49: 0 | AB49: 0 | AC49: 0 | AD49: 0 | AE49: 0 | AF49: 0 | AG49: 0 | AH49: 0 | AI49: 0 | AJ49: 72800 | AK49: 70000 | AL49: 72800 | AM49: 0 | AN49: 0 | AO49: 0 | AP49: 0 | AQ49: 0 | AR49: 0 | AS49: 0 | AT49: 0 | AU49: 0 | AV49: 0 | AW49: 0 | AX49: 0 | AY49: 0 | AZ49: 0 | BA49: 0 | BB49: 0 | BC49: 0 | BD49: 0 | BE49: 0 | BF49: 0 | BG49: 0 | BH49: 72800 | BI49: 70000 | BJ49: 72800 | BK49: 0 | BL49: 0 | BM49: 0 | BN49: 0 | BO49: 0 | BP49: 0 | BQ49: 0 | BR49: 0 | BS49: 0 | BT49: 0 | BU49: 0 | BV49: 0 | BW49: 0 | BX49: 0 | BY49: 0 | BZ49: 0 | CA49: 0 | CB49: 0 | CC49: 0 | CD49: 0 | CE49: 0 | CG49: 65600 | CH49: 64200 | CI49: 65575 | CJ49: 0 | CK49: 0 | CL49: 0 | CM49: 0 | CN49: 0 | CO49: 0 | CP49: 0 | CQ49: 0 | CR49: 0 | CS49: 0 | CT49: 0 | CU49: 0 | CV49: 0 | CW49: 0 | CX49: 0 | CY49: 0 | CZ49: 0 | DA49: 0 | DB49: 0 | DC49: 0 | DD49: 0 | DE49: 57400 | DF49: 56175 | DG49: 57400 | DH49: 0 | DI49: 0 | DJ49: 0 | DK49: 0 | DL49: 0 | DM49: 0 | DN49: 0 | DO49: 0 | DP49: 0 | DQ49: 0 | DR49: 0 | DS49: 0 | DT49: 0 | DU49: 0 | DV49: 0 | DW49: 0 | DX49: 0 | DY49: 0 | DZ49: 0 | EA49: 0 | EB49: 0 | EC49: 57400 | ED49: 56175 | EE49: 57400 | EF49: 0 | EG49: 0 | EH49: 0 | EI49: 0 | EJ49: 0 | EK49: 0 | EL49: 0 | EM49: 0 | EN49: 0 | EO49: 0 | EP49: 0 | EQ49: 0 | ER49: 0 | ES49: 0 | ET49: 0 | EU49: 0 | EV49: 0 | EW49: 0 | EX49: 0 | EY49: 0 | EZ49: 0
A50: Presale of Secondary | D50: PRS | E50: 0 | F50: 0 | G50: 0 | H50: 0 | I50: 0 | J50: 0 | L50: 0 | M50: 0 | N50: 0 | O50: 0 | P50: 0 | Q50: 0 | R50: 0 | S50: 0 | T50: 0 | U50: 0 | V50: 0 | W50: 0 | X50: 0 | Y50: 0 | Z50: 0 | AA50: 0 | AB50: 0 | AC50: 0 | AD50: 0 | AE50: 0 | AF50: 0 | AG50: 0 | AH50: 0 | AI50: 0 | AJ50: 0 | AK50: 0 | AL50: 0 | AM50: 0 | AN50: 0 | AO50: 0 | AP50: 0 | AQ50: 0 | AR50: 0 | AS50: 0 | AT50: 0 | AU50: 0 | AV50: 0 | AW50: 0 | AX50: 0 | AY50: 0 | AZ50: 0 | BA50: 0 | BB50: 0 | BC50: 0 | BD50: 0 | BE50: 0 | BF50: 0 | BG50: 0 | BH50: 0 | BI50: 0 | BJ50: 0 | BK50: 0 | BL50: 0 | BM50: 0 | BN50: 0 | BO50: 0 | BP50: 0 | BQ50: 0 | BR50: 0 | BS50: 0 | BT50: 0 | BU50: 0 | BV50: 0 | BW50: 0 | BX50: 0 | BY50: 0 | BZ50: 0 | CA50: 0 | CB50: 0 | CC50: 0 | CD50: 0 | CE50: 0 | CG50: 0 | CH50: 0 | CI50: 0 | CJ50: 0 | CK50: 0 | CL50: 0 | CM50: 0 | CN50: 0 | CO50: 0 | CP50: 0 | CQ50: 0 | CR50: 0 | CS50: 0 | CT50: 0 | CU50: 0 | CV50: 0 | CW50: 0 | CX50: 0 | CY50: 0 | CZ50: 0 | DA50: 0 | DB50: 0 | DC50: 0 | DD50: 0 | DE50: 0 | DF50: 0 | DG50: 0 | DH50: 0 | DI50: 0 | DJ50: 0 | DK50: 0 | DL50: 0 | DM50: 0 | DN50: 0 | DO50: 0 | DP50: 0 | DQ50: 0 | DR50: 0 | DS50: 0 | DT50: 0 | DU50: 0 | DV50: 0 | DW50: 0 | DX50: 0 | DY50: 0 | DZ50: 0 | EA50: 0 | EB50: 0 | EC50: 0 | ED50: 0 | EE50: 0 | EF50: 0 | EG50: 0 | EH50: 0 | EI50: 0 | EJ50: 0 | EK50: 0 | EL50: 0 | EM50: 0 | EN50: 0 | EO50: 0 | EP50: 0 | EQ50: 0 | ER50: 0 | ES50: 0 | ET50: 0 | EU50: 0 | EV50: 0 | EW50: 0 | EX50: 0 | EY50: 0 | EZ50: 0
A51: Conservation | D51: CON | E51: 0 | F51: 0 | G51: 0 | H51: 0 | I51: 0 | J51: 0 | L51: 0 | M51: 0 | N51: 0 | O51: 0 | P51: 0 | Q51: 0 | R51: 0 | S51: 0 | T51: 0 | U51: 0 | V51: 0 | W51: 0 | X51: 0 | Y51: 0 | Z51: 0 | AA51: 0 | AB51: 0 | AC51: 0 | AD51: 0 | AE51: 0 | AF51: 0 | AG51: 0 | AH51: 0 | AI51: 0 | AJ51: 0 | AK51: 0 | AL51: 0 | AM51: 0 | AN51: 0 | AO51: 0 | AP51: 0 | AQ51: 0 | AR51: 0 | AS51: 0 | AT51: 0 | AU51: 0 | AV51: 0 | AW51: 0 | AX51: 0 | AY51: 0 | AZ51: 0 | BA51: 0 | BB51: 0 | BC51: 0 | BD51: 0 | BE51: 0 | BF51: 0 | BG51: 0 | BH51: 0 | BI51: 0 | BJ51: 0 | BK51: 0 | BL51: 0 | BM51: 0 | BN51: 0 | BO51: 0 | BP51: 0 | BQ51: 0 | BR51: 0 | BS51: 0 | BT51: 0 | BU51: 0 | BV51: 0 | BW51: 0 | BX51: 0 | BY51: 0 | BZ51: 0 | CA51: 0 | CB51: 0 | CC51: 0 | CD51: 0 | CE51: 0 | CG51: 0 | CH51: 0 | CI51: 0 | CJ51: 0 | CK51: 0 | CL51: 0 | CM51: 0 | CN51: 0 | CO51: 0 | CP51: 0 | CQ51: 0 | CR51: 0 | CS51: 0 | CT51: 0 | CU51: 0 | CV51: 0 | CW51: 0 | CX51: 0 | CY51: 0 | CZ51: 0 | DA51: 0 | DB51: 0 | DC51: 0 | DD51: 0 | DE51: 0 | DF51: 0 | DG51: 0 | DH51: 0 | DI51: 0 | DJ51: 0 | DK51: 0 | DL51: 0 | DM51: 0 | DN51: 0 | DO51: 0 | DP51: 0 | DQ51: 0 | DR51: 0 | DS51: 0 | DT51: 0 | DU51: 0 | DV51: 0 | DW51: 0 | DX51: 0 | DY51: 0 | DZ51: 0 | EA51: 0 | EB51: 0 | EC51: 0 | ED51: 0 | EE51: 0 | EF51: 0 | EG51: 0 | EH51: 0 | EI51: 0 | EJ51: 0 | EK51: 0 | EL51: 0 | EM51: 0 | EN51: 0 | EO51: 0 | EP51: 0 | EQ51: 0 | ER51: 0 | ES51: 0 | ET51: 0 | EU51: 0 | EV51: 0 | EW51: 0 | EX51: 0 | EY51: 0 | EZ51: 0
A54: Loss Percentage | E54: =Loads_MthLoss!E54 -> 0.03209127801 | F54: =E54 -> 0.03209127801 | G54: =F54 -> 0.03209127801 | H54: =E54 -> 0.03209127801 | I54: =E54 -> 0.03209127801 | J54: =E54 -> 0.03209127801 | L54: =E54 -> 0.03209127801 | M54: =E54 -> 0.03209127801 | N54: =E54 -> 0.03209127801 | O54: =E54 -> 0.03209127801 | P54: =E54 -> 0.03209127801 | Q54: =E54 -> 0.03209127801 | R54: =E54 -> 0.03209127801 | S54: =E54 -> 0.03209127801 | T54: =E54 -> 0.03209127801 | U54: =E54 -> 0.03209127801 | V54: =E54 -> 0.03209127801 | W54: =E54 -> 0.03209127801 | X54: =E54 -> 0.03209127801 | Y54: =E54 -> 0.03209127801 | Z54: =E54 -> 0.03209127801 | AA54: =E54 -> 0.03209127801 | AB54: =E54 -> 0.03209127801 | AC54: =E54 -> 0.03209127801 | AD54: =E54 -> 0.03209127801 | AE54: =E54 -> 0.03209127801 | AF54: =E54 -> 0.03209127801 | AG54: =E54 -> 0.03209127801 | AH54: =E54 -> 0.03209127801 | AI54: =E54 -> 0.03209127801 | AJ54: =E54 -> 0.03209127801 | AK54: =E54 -> 0.03209127801 | AL54: =E54 -> 0.03209127801 | AM54: =E54 -> 0.03209127801 | AN54: =E54 -> 0.03209127801 | AO54: =E54 -> 0.03209127801 | AP54: =E54 -> 0.03209127801 | AQ54: =E54 -> 0.03209127801 | AR54: =E54 -> 0.03209127801 | AS54: =E54 -> 0.03209127801 | AT54: =E54 -> 0.03209127801 | AU54: =E54 -> 0.03209127801 | AV54: =E54 -> 0.03209127801 | AW54: =E54 -> 0.03209127801 | AX54: =E54 -> 0.03209127801 | AY54: =E54 -> 0.03209127801 | AZ54: =E54 -> 0.03209127801 | BA54: =E54 -> 0.03209127801 | BB54: =E54 -> 0.03209127801 | BC54: =E54 -> 0.03209127801 | BD54: =E54 -> 0.03209127801 | BE54: =E54 -> 0.03209127801 | BF54: =E54 -> 0.03209127801 | BG54: =E54 -> 0.03209127801 | BH54: =E54 -> 0.03209127801 | BI54: =E54 -> 0.03209127801 | BJ54: =E54 -> 0.03209127801 | BK54: =E54 -> 0.03209127801 | BL54: =E54 -> 0.03209127801 | BM54: =E54 -> 0.03209127801 | BN54: =E54 -> 0.03209127801 | BO54: =E54 -> 0.03209127801 | BP54: =E54 -> 0.03209127801 | BQ54: =E54 -> 0.03209127801 | BR54: =E54 -> 0.03209127801 | BS54: =E54 -> 0.03209127801 | BT54: =E54 -> 0.03209127801 | BU54: =E54 -> 0.03209127801 | BV54: =E54 -> 0.03209127801 | BW54: =E54 -> 0.03209127801 | BX54: =E54 -> 0.03209127801 | BY54: =E54 -> 0.03209127801 | BZ54: =E54 -> 0.03209127801 | CA54: =E54 -> 0.03209127801 | CB54: =E54 -> 0.03209127801 | CC54: =E54 -> 0.03209127801 | CD54: =E54 -> 0.03209127801 | CE54: =E54 -> 0.03209127801 | CG54: =E54 -> 0.03209127801 | CH54: =E54 -> 0.03209127801 | CI54: =E54 -> 0.03209127801 | CJ54: =E54 -> 0.03209127801 | CK54: =E54 -> 0.03209127801 | CL54: =E54 -> 0.03209127801 | CM54: =E54 -> 0.03209127801 | CN54: =E54 -> 0.03209127801 | CO54: =E54 -> 0.03209127801 | CP54: =E54 -> 0.03209127801 | CQ54: =E54 -> 0.03209127801 | CR54: =E54 -> 0.03209127801 | CS54: =E54 -> 0.03209127801 | CT54: =E54 -> 0.03209127801 | CU54: =E54 -> 0.03209127801 | CV54: =E54 -> 0.03209127801 | CW54: =E54 -> 0.03209127801 | CX54: =E54 -> 0.03209127801 | CY54: =E54 -> 0.03209127801 | CZ54: =E54 -> 0.03209127801 | DA54: =E54 -> 0.03209127801 | DB54: =E54 -> 0.03209127801 | DC54: =E54 -> 0.03209127801 | DD54: =E54 -> 0.03209127801 | DE54: =E54 -> 0.03209127801 | DF54: =E54 -> 0.03209127801 | DG54: =E54 -> 0.03209127801 | DH54: =E54 -> 0.03209127801 | DI54: =E54 -> 0.03209127801 | DJ54: =E54 -> 0.03209127801 | DK54: =E54 -> 0.03209127801 | DL54: =E54 -> 0.03209127801 | DM54: =E54 -> 0.03209127801 | DN54: =E54 -> 0.03209127801 | DO54: =E54 -> 0.03209127801 | DP54: =E54 -> 0.03209127801 | DQ54: =E54 -> 0.03209127801 | DR54: =E54 -> 0.03209127801 | DS54: =E54 -> 0.03209127801 | DT54: =E54 -> 0.03209127801 | DU54: =E54 -> 0.03209127801 | DV54: =E54 -> 0.03209127801 | DW54: =E54 -> 0.03209127801 | DX54: =E54 -> 0.03209127801 | DY54: =E54 -> 0.03209127801 | DZ54: =E54 -> 0.03209127801 | EA54: =E54 -> 0.03209127801 | EB54: =E54 -> 0.03209127801 | EC54: =E54 -> 0.03209127801 | ED54: =E54 -> 0.03209127801 | EE54: =E54 -> 0.03209127801 | EF54: =E54 -> 0.03209127801 | EG54: =E54 -> 0.03209127801 | EH54: =E54 -> 0.03209127801 | EI54: =E54 -> 0.03209127801 | EJ54: =E54 -> 0.03209127801 | EK54: =E54 -> 0.03209127801 | EL54: =E54 -> 0.03209127801 | EM54: =E54 -> 0.03209127801 | EN54: =E54 -> 0.03209127801 | EO54: =E54 -> 0.03209127801 | EP54: =E54 -> 0.03209127801 | EQ54: =E54 -> 0.03209127801 | ER54: =E54 -> 0.03209127801 | ES54: =E54 -> 0.03209127801 | ET54: =E54 -> 0.03209127801 | EU54: =E54 -> 0.03209127801 | EV54: =E54 -> 0.03209127801 | EW54: =E54 -> 0.03209127801 | EX54: =E54 -> 0.03209127801 | EY54: =E54 -> 0.03209127801 | EZ54: =E54 -> 0.03209127801

Sheet Loads_MthLoss
B1: Loads (MWh) including Monthly Losses
A2: TOC | B2: =Cover!$C$14 -> RAMmodel_REP2022.xls
A3: é | E3: Annual
E4: =Init!$C$9 -> 2022 | F4: =E4+1 -> 2023 | G4: =F4+1 -> 2024 | H4: 2025 | I4: 2026 | J4: 2027
A5: Preference | D5: PRE | E5: =+SUM(E6:E10) -> 59051735.81 | F5: =+SUM(F6:F10) -> 59502609.37 | G5: =+SUM(G6:G10) -> 59283256.96 | H5: 59713452.58 | I5: 59283256.96 | J5: =+SUM(J6:J10) -> 59713452.58
B6: Block | D6: PRE_BLK | E6: =+Loads!E6+((SUMPRODUCT(Loads!L6:W6,LossesInput!$C$20:$N$20)+SUMPRODUCT(Loads!CG6:CR6,LossesInput!$C$20:$N$20))) -> 4287130.916 | F6: =+Loads!F6+((SUMPRODUCT(Loads!X6:AI6,LossesInput!$O$20:$Z$20)+SUMPRODUCT(Loads!CS6:DD6,LossesInput!$O$20:$Z$20))) -> 4275166.871 | G6: =+Loads!G6+SUMPRODUCT(Loads!AJ6:AU6,LossesInput!$AA$20:$AL$20)+SUMPRODUCT(LossesInput!$AA$20:$AL$20,Loads!DE6:DP6) -> 4233843.726 | H6: =+Loads!H6+SUMPRODUCT(Loads!AV6:BG6,LossesInput!$AY$20:$BJ$20)+SUMPRODUCT(LossesInput!$AY$20:$BJ$20,Loads!DQ6:EB6) -> 4305284.871 | I6: =+Loads!I6+SUMPRODUCT(Loads!BH6:BS6,LossesInput!$AY$20:$BJ$20)+SUMPRODUCT(LossesInput!$AY$20:$BJ$20,Loads!EC6:EN6) -> 4233843.726 | J6: =+Loads!J6+SUMPRODUCT(Loads!BT6:CE6,LossesInput!$BK$20:$BV$20)+SUMPRODUCT(LossesInput!$BK$20:$BV$20,Loads!EO6:EZ6) -> 4305284.871
B7: Slice Block | D7: PRE_BLK | E7: =+Loads!E7+((SUMPRODUCT(Loads!L7:W7,LossesInput!$C$20:$N$20)+SUMPRODUCT(Loads!CG7:CR7,LossesInput!$C$20:$N$20))) -> 11693741.27 | F7: =+Loads!F7+((SUMPRODUCT(Loads!X7:AI7,LossesInput!$O$20:$Z$20)+SUMPRODUCT(Loads!CS7:DD7,LossesInput!$O$20:$Z$20))) -> 12152356.25 | G7: =+Loads!G7+SUMPRODUCT(Loads!AJ7:AU7,LossesInput!$AA$20:$AL$20)+SUMPRODUCT(LossesInput!$AA$20:$AL$20,Loads!DE7:DP7) -> 11782243.05 | H7: =+Loads!H7+SUMPRODUCT(Loads!AV7:BG7,LossesInput!$AY$20:$BJ$20)+SUMPRODUCT(LossesInput!$AY$20:$BJ$20,Loads!DQ7:EB7) -> 12228292.84 | I7: =+Loads!I7+SUMPRODUCT(Loads!BH7:BS7,LossesInput!$AY$20:$BJ$20)+SUMPRODUCT(LossesInput!$AY$20:$BJ$20,Loads!EC7:EN7) -> 11782243.05 | J7: =+Loads!J7+SUMPRODUCT(Loads!BT7:CE7,LossesInput!$BK$20:$BV$20)+SUMPRODUCT(LossesInput!$BK$20:$BV$20,Loads!EO7:EZ7) -> 12228292.84
B8: Slice | D8: PRE_SNB | E8: =+Loads!E8+((SUMPRODUCT(Loads!L8:W8,LossesInput!$C$20:$N$20)+SUMPRODUCT(Loads!CG8:CR8,LossesInput!$C$20:$N$20))) -> 13751537.24 | F8: =+Loads!F8+((SUMPRODUCT(Loads!X8:AI8,LossesInput!$O$20:$Z$20)+SUMPRODUCT(Loads!CS8:DD8,LossesInput!$O$20:$Z$20))) -> 13484609.77 | G8: =+Loads!G8+SUMPRODUCT(Loads!AJ8:AU8,LossesInput!$AA$20:$AL$20)+SUMPRODUCT(LossesInput!$AA$20:$AL$20,Loads!DE8:DP8) -> 13751537.24 | H8: =+Loads!H8+SUMPRODUCT(Loads!AV8:BG8,LossesInput!$AY$20:$BJ$20)+SUMPRODUCT(LossesInput!$AY$20:$BJ$20,Loads!DQ8:EB8) -> 13484609.77 | I8: =+Loads!I8+SUMPRODUCT(Loads!BH8:BS8,LossesInput!$AY$20:$BJ$20)+SUMPRODUCT(LossesInput!$AY$20:$BJ$20,Loads!EC8:EN8) -> 13751537.24 | J8: =+Loads!J8+SUMPRODUCT(Loads!BT8:CE8,LossesInput!$BK$20:$BV$20)+SUMPRODUCT(LossesInput!$BK$20:$BV$20,Loads!EO8:EZ8) -> 13484609.77
B9: Load Following | D9: PRE_LDF | E9: =+Loads!E9+((SUMPRODUCT(Loads!L9:W9,LossesInput!$C$20:$N$20)+SUMPRODUCT(Loads!CG9:CR9,LossesInput!$C$20:$N$20))) -> 27903553.4 | F9: =+Loads!F9+((SUMPRODUCT(Loads!X9:AI9,LossesInput!$O$20:$Z$20)+SUMPRODUCT(Loads!CS9:DD9,LossesInput!$O$20:$Z$20))) -> 28024509.86 | G9: =+Loads!G9+SUMPRODUCT(Loads!AJ9:AU9,LossesInput!$AM$20:$AX$20)+SUMPRODUCT(LossesInput!$AM$20:$AX$20,Loads!DE9:DP9) -> 28040341.25 | H9: =+Loads!H9+SUMPRODUCT(Loads!AV9:BG9,LossesInput!$AY$20:$BJ$20)+SUMPRODUCT(LossesInput!$AY$20:$BJ$20,Loads!DQ9:EB9) -> 28051697.24 | I9: =+Loads!I9+SUMPRODUCT(Loads!BH9:BS9,LossesInput!$AY$20:$BJ$20)+SUMPRODUCT(LossesInput!$AY$20:$BJ$20,Loads!EC9:EN9) -> 28040341.25 | J9: =+Loads!J9+SUMPRODUCT(Loads!BT9:CE9,LossesInput!$BK$20:$BV$20)+SUMPRODUCT(LossesInput!$BK$20:$BV$20,Loads!EO9:EZ9) -> 28051697.24
B10: Tier 2 | D10: PRE_T2 | E10: =+Loads!E10+((SUMPRODUCT(Loads!L10:W10,LossesInput!$C$20:$N$20)+SUMPRODUCT(Loads!CG10:CR10,LossesInput!$C$20:$N$20))) -> 1415772.99 | F10: =+Loads!F10+((SUMPRODUCT(Loads!X10:AI10,LossesInput!$O$20:$Z$20)+SUMPRODUCT(Loads!CS10:DD10,LossesInput!$O$20:$Z$20))) -> 1565966.622 | G10: =+Loads!G10+SUMPRODUCT(Loads!AJ10:AU10,LossesInput!$AM$20:$AX$20)+SUMPRODUCT(LossesInput!$AM$20:$AX$20,Loads!DE10:DP10) -> 1475291.692 | H10: =+Loads!H10+SUMPRODUCT(Loads!AV10:BG10,LossesInput!$AY$20:$BJ$20)+SUMPRODUCT(LossesInput!$AY$20:$BJ$20,Loads!DQ10:EB10) -> 1643567.871 | I10: =+Loads!I10+SUMPRODUCT(Loads!BH10:BS10,LossesInput!$AY$20:$BJ$20)+SUMPRODUCT(LossesInput!$AY$20:$BJ$20,Loads!EC10:EN10) -> 1475291.692 | J10: =+Loads!J10+SUMPRODUCT(Loads!BT10:CE10,LossesInput!$BK$20:$BV$20)+SUMPRODUCT(LossesInput!$BK$20:$BV$20,Loads!EO10:EZ10) -> 1643567.871
A11: Industrial | D11: IND | E11: =+SUM(E12:E13) -> 108495.2799 | F11: =+SUM(F12:F13) -> 108495.2799 | G11: 108495.2799 | H11: 108495.2799 | I11: 108495.2799 | J11: 108495.2799
B12: Smelter | D12: IND_SMT | E12: =+Loads!E12+((SUMPRODUCT(Loads!L12:W12,LossesInput!$C$20:$N$20)+SUMPRODUCT(Loads!CG12:CR12,LossesInput!$C$20:$N$20))) -> 0 | F12: =+Loads!F12+((SUMPRODUCT(Loads!X12:AI12,LossesInput!$O$20:$Z$20)+SUMPRODUCT(Loads!CS12:DD12,LossesInput!$O$20:$Z$20))) -> 0 | G12: =+Loads!G12+SUMPRODUCT(Loads!AJ12:AU12,LossesInput!$AM$20:$AX$20)+SUMPRODUCT(LossesInput!$AM$20:$AX$20,Loads!DE12:DP12) -> 0 | H12: =+Loads!H12+SUMPRODUCT(Loads!AV12:BG12,LossesInput!$AY$20:$BJ$20)+SUMPRODUCT(LossesInput!$AY$20:$BJ$20,Loads!DQ12:EB12) -> 0 | I12: =+Loads!I12+SUMPRODUCT(Loads!BH12:BS12,LossesInput!$AY$20:$BJ$20)+SUMPRODUCT(LossesInput!$AY$20:$BJ$20,Loads!EC12:EN12) -> 0 | J12: =+Loads!J12+SUMPRODUCT(Loads!BT12:CE12,LossesInput!$BK$20:$BV$20)+SUMPRODUCT(LossesInput!$BK$20:$BV$20,Loads!EO12:EZ12) -> 0
B13: Other Industrial | D13: IND_OTH | E13: =+Loads!E13+((SUMPRODUCT(Loads!L13:W13,LossesInput!$C$20:$N$20)+SUMPRODUCT(Loads!CG13:CR13,LossesInput!$C$20:$N$20))) -> 108495.2799 | F13: =+Loads!F13+((SUMPRODUCT(Loads!X13:AI13,LossesInput!$O$20:$Z$20)+SUMPRODUCT(Loads!CS13:DD13,LossesInput!$O$20:$Z$20))) -> 108495.2799 | G13: =+Loads!G13+SUMPRODUCT(Loads!AJ13:AU13,LossesInput!$AM$20:$AX$20)+SUMPRODUCT(LossesInput!$AM$20:$AX$20,Loads!DE13:DP13) -> 108495.2799 | H13: =+Loads!H13+SUMPRODUCT(Loads!AV13:BG13,LossesInput!$AY$20:$BJ$20)+SUMPRODUCT(LossesInput!$AY$20:$BJ$20,Loads!DQ13:EB13) -> 108495.2799 | I13: =+Loads!I13+SUMPRODUCT(Loads!BH13:BS13,LossesInput!$AY$20:$BJ$20)+SUMPRODUCT(LossesInput!$AY$20:$BJ$20,Loads!EC13:EN13) -> 108495.2799 | J13: =+Loads!J13+SUMPRODUCT(Loads!BT13:CE13,LossesInput!$BK$20:$BV$20)+SUMPRODUCT(LossesInput!$BK$20:$BV$20,Loads!EO13:EZ13) -> 108495.2799
A14: New Resource | D14: NR | E14: =+Loads!E14+((SUMPRODUCT(Loads!L14:W14,LossesInput!$C$20:$N$20)+SUMPRODUCT(Loads!CG14:CR14,LossesInput!$C$20:$N$20))) -> 10.17250973 | F14: =+Loads!F14+((SUMPRODUCT(Loads!X14:AI14,LossesInput!$O$20:$Z$20)+SUMPRODUCT(Loads!CS14:DD14,LossesInput!$O$20:$Z$20))) -> 10.13951324 | G14: =+Loads!G14+SUMPRODUCT(Loads!AJ14:AU14,LossesInput!$AM$20:$AX$20)+SUMPRODUCT(LossesInput!$AM$20:$AX$20,Loads!DE14:DP14) -> 10.17250973 | H14: =+Loads!H14+SUMPRODUCT(Loads!AV14:BG14,LossesInput!$AY$20:$BJ$20)+SUMPRODUCT(LossesInput!$AY$20:$BJ$20,Loads!DQ14:EB14) -> 10.13951324 | I14: =+Loads!I14+SUMPRODUCT(Loads!BH14:BS14,LossesInput!$AY$20:$BJ$20)+SUMPRODUCT(LossesInput!$AY$20:$BJ$20,Loads!EC14:EN14) -> 10.17250973 | J14: =+Loads!J14+SUMPRODUCT(Loads!BT14:CE14,LossesInput!$BK$20:$BV$20)+SUMPRODUCT(LossesInput!$BK$20:$BV$20,Loads!EO14:EZ14) -> 10.13951324
A15: Firm Power and Services | D15: FPS | E15: =+SUM(E16,E27,E38) -> 6029278.336 | F15: =+SUM(F16,F27,F38) -> 6015613.196 | G15: 5928111.963 | H15: 5916670.232 | I15: 5928111.963 | J15: 5916670.232
B16: Intraregional Transfer | D16: FPS_IRT | E16: =+SUM(E17:E26) -> 101593.898 | F16: =+SUM(F17:F26) -> 101593.898 | G16: 101593.898 | H16: 101593.898 | I16: 101593.898 | J16: 101593.898
C17: WNP#3 Settlement | D17: FPS_IRT_WNP | E17: =+Loads!E17+((SUMPRODUCT(Loads!L17:W17,LossesInput!$C$20:$N$20)+SUMPRODUCT(Loads!CG17:CR17,LossesInput!$C$20:$N$20))) -> 0 | F17: =+Loads!F17+((SUMPRODUCT(Loads!X17:AI17,LossesInput!$O$20:$Z$20)+SUMPRODUCT(Loads!CS17:DD17,LossesInput!$O$20:$Z$20))) -> 0 | G17: =+Loads!G17+SUMPRODUCT(Loads!AJ17:AU17,LossesInput!$AM$20:$AX$20)+SUMPRODUCT(LossesInput!$AM$20:$AX$20,Loads!DE17:DP17) -> 0 | H17: =+Loads!H17+SUMPRODUCT(Loads!AV17:BG17,LossesInput!$AY$20:$BJ$20)+SUMPRODUCT(LossesInput!$AY$20:$BJ$20,Loads!DQ17:EB17) -> 0 | I17: =+Loads!I17+SUMPRODUCT(Loads!BH17:BS17,LossesInput!$AY$20:$BJ$20)+SUMPRODUCT(LossesInput!$AY$20:$BJ$20,Loads!EC17:EN17) -> 0 | J17: =+Loads!J17+SUMPRODUCT(Loads!BT17:CE17,LossesInput!$BK$20:$BV$20)+SUMPRODUCT(LossesInput!$BK$20:$BV$20,Loads!EO17:EZ17) -> 0
C18: Dittmer Station Service | D18: FPS_IRT_DIT | E18: =+Loads!E18+((SUMPRODUCT(Loads!L18:W18,LossesInput!$C$20:$N$20)+SUMPRODUCT(Loads!CG18:CR18,LossesInput!$C$20:$N$20))) -> 85322.49634 | F18: =+Loads!F18+((SUMPRODUCT(Loads!X18:AI18,LossesInput!$O$20:$Z$20)+SUMPRODUCT(Loads!CS18:DD18,LossesInput!$O$20:$Z$20))) -> 85322.49634 | G18: =+Loads!G18+SUMPRODUCT(Loads!AJ18:AU18,LossesInput!$AM$20:$AX$20)+SUMPRODUCT(LossesInput!$AM$20:$AX$20,Loads!DE18:DP18) -> 85322.49634 | H18: =+Loads!H18+SUMPRODUCT(Loads!AV18:BG18,LossesInput!$AY$20:$BJ$20)+SUMPRODUCT(LossesInput!$AY$20:$BJ$20,Loads!DQ18:EB18) -> 85322.49634 | I18: =+Loads!I18+SUMPRODUCT(Loads!BH18:BS18,LossesInput!$AY$20:$BJ$20)+SUMPRODUCT(LossesInput!$AY$20:$BJ$20,Loads!EC18:EN18) -> 85322.49634 | J18: =+Loads!J18+SUMPRODUCT(Loads!BT18:CE18,LossesInput!$BK$20:$BV$20)+SUMPRODUCT(LossesInput!$BK$20:$BV$20,Loads!EO18:EZ18) -> 85322.49634
C19: Transfer Gen Losses | D19: FPS_IRT_TGL | E19: =+Loads!E19+((SUMPRODUCT(Loads!L19:W19,LossesInput!$C$20:$N$20)+SUMPRODUCT(Loads!CG19:CR19,LossesInput!$C$20:$N$20))) -> 16271.40168 | F19: =+Loads!F19+((SUMPRODUCT(Loads!X19:AI19,LossesInput!$O$20:$Z$20)+SUMPRODUCT(Loads!CS19:DD19,LossesInput!$O$20:$Z$20))) -> 16271.40168 | G19: =+Loads!G19+SUMPRODUCT(Loads!AJ19:AU19,LossesInput!$AM$20:$AX$20)+SUMPRODUCT(LossesInput!$AM$20:$AX$20,Loads!DE19:DP19) -> 16271.40168 | H19: =+Loads!H19+SUMPRODUCT(Loads!AV19:BG19,LossesInput!$AY$20:$BJ$20)+SUMPRODUCT(LossesInput!$AY$20:$BJ$20,Loads!DQ19:EB19) -> 16271.40168 | I19: =+Loads!I19+SUMPRODUCT(Loads!BH19:BS19,LossesInput!$AY$20:$BJ$20)+SUMPRODUCT(LossesInput!$AY$20:$BJ$20,Loads!EC19:EN19) -> 16271.40168 | J19: =+Loads!J19+SUMPRODUCT(Loads!BT19:CE19,LossesInput!$BK$20:$BV$20)+SUMPRODUCT(LossesInput!$BK$20:$BV$20,Loads!EO19:EZ19) -> 16271.40168
E20: =+Loads!E20+((SUMPRODUCT(Loads!L20:W20,LossesInput!$C$20:$N$20)+SUMPRODUCT(Loads!CG20:CR20,LossesInput!$C$20:$N$20))) -> 0 | F20: =+Loads!F20+((SUMPRODUCT(Loads!X20:AI20,LossesInput!$O$20:$Z$20)+SUMPRODUCT(Loads!CS20:DD20,LossesInput!$O$20:$Z$20))) -> 0 | G20: =+Loads!G20+SUMPRODUCT(Loads!AJ20:AU20,LossesInput!$AM$20:$AX$20)+SUMPRODUCT(LossesInput!$AM$20:$AX$20,Loads!DE20:DP20) -> 0 | H20: =+Loads!H20+SUMPRODUCT(Loads!AV20:BG20,LossesInput!$AY$20:$BJ$20)+SUMPRODUCT(LossesInput!$AY$20:$BJ$20,Loads!DQ20:EB20) -> 0 | I20: =+Loads!I20+SUMPRODUCT(Loads!BH20:BS20,LossesInput!$AY$20:$BJ$20)+SUMPRODUCT(LossesInput!$AY$20:$BJ$20,Loads!EC20:EN20) -> 0 | J20: =+Loads!J20+SUMPRODUCT(Loads!BT20:CE20,LossesInput!$BK$20:$BV$20)+SUMPRODUCT(LossesInput!$BK$20:$BV$20,Loads!EO20:EZ20) -> 0
E21: =+Loads!E21+((SUMPRODUCT(Loads!L21:W21,LossesInput!$C$20:$N$20)+SUMPRODUCT(Loads!CG21:CR21,LossesInput!$C$20:$N$20))) -> 0 | F21: =+Loads!F21+((SUMPRODUCT(Loads!X21:AI21,LossesInput!$O$20:$Z$20)+SUMPRODUCT(Loads!CS21:DD21,LossesInput!$O$20:$Z$20))) -> 0 | G21: =+Loads!G21+SUMPRODUCT(Loads!AJ21:AU21,LossesInput!$AM$20:$AX$20)+SUMPRODUCT(LossesInput!$AM$20:$AX$20,Loads!DE21:DP21) -> 0 | H21: =+Loads!H21+SUMPRODUCT(Loads!AV21:BG21,LossesInput!$AY$20:$BJ$20)+SUMPRODUCT(LossesInput!$AY$20:$BJ$20,Loads!DQ21:EB21) -> 0 | I21: =+Loads!I21+SUMPRODUCT(Loads!BH21:BS21,LossesInput!$AY$20:$BJ$20)+SUMPRODUCT(LossesInput!$AY$20:$BJ$20,Loads!EC21:EN21) -> 0 | J21: =+Loads!J21+SUMPRODUCT(Loads!BT21:CE21,LossesInput!$BK$20:$BV$20)+SUMPRODUCT(LossesInput!$BK$20:$BV$20,Loads!EO21:EZ21) -> 0
E22: =+Loads!E22+((SUMPRODUCT(Loads!L22:W22,LossesInput!$C$20:$N$20)+SUMPRODUCT(Loads!CG22:CR22,LossesInput!$C$20:$N$20))) -> 0 | F22: =+Loads!F22+((SUMPRODUCT(Loads!X22:AI22,LossesInput!$O$20:$Z$20)+SUMPRODUCT(Loads!CS22:DD22,LossesInput!$O$20:$Z$20))) -> 0 | G22: =+Loads!G22+SUMPRODUCT(Loads!AJ22:AU22,LossesInput!$AM$20:$AX$20)+SUMPRODUCT(LossesInput!$AM$20:$AX$20,Loads!DE22:DP22) -> 0 | H22: =+Loads!H22+SUMPRODUCT(Loads!AV22:BG22,LossesInput!$AY$20:$BJ$20)+SUMPRODUCT(LossesInput!$AY$20:$BJ$20,Loads!DQ22:EB22) -> 0 | I22: =+Loads!I22+SUMPRODUCT(Loads!BH22:BS22,LossesInput!$AY$20:$BJ$20)+SUMPRODUCT(LossesInput!$AY$20:$BJ$20,Loads!EC22:EN22) -> 0 | J22: =+Loads!J22+SUMPRODUCT(Loads!BT22:CE22,LossesInput!$BK$20:$BV$20)+SUMPRODUCT(LossesInput!$BK$20:$BV$20,Loads!EO22:EZ22) -> 0
E23: =+Loads!E23+((SUMPRODUCT(Loads!L23:W23,LossesInput!$C$20:$N$20)+SUMPRODUCT(Loads!CG23:CR23,LossesInput!$C$20:$N$20))) -> 0 | F23: =+Loads!F23+((SUMPRODUCT(Loads!X23:AI23,LossesInput!$O$20:$Z$20)+SUMPRODUCT(Loads!CS23:DD23,LossesInput!$O$20:$Z$20))) -> 0 | G23: =+Loads!G23+SUMPRODUCT(Loads!AJ23:AU23,LossesInput!$AM$20:$AX$20)+SUMPRODUCT(LossesInput!$AM$20:$AX$20,Loads!DE23:DP23) -> 0 | H23: =+Loads!H23+SUMPRODUCT(Loads!AV23:BG23,LossesInput!$AY$20:$BJ$20)+SUMPRODUCT(LossesInput!$AY$20:$BJ$20,Loads!DQ23:EB23) -> 0 | I23: =+Loads!I23+SUMPRODUCT(Loads!BH23:BS23,LossesInput!$AY$20:$BJ$20)+SUMPRODUCT(LossesInput!$AY$20:$BJ$20,Loads!EC23:EN23) -> 0 | J23: =+Loads!J23+SUMPRODUCT(Loads!BT23:CE23,LossesInput!$BK$20:$BV$20)+SUMPRODUCT(LossesInput!$BK$20:$BV$20,Loads!EO23:EZ23) -> 0
E24: =+Loads!E24+((SUMPRODUCT(Loads!L24:W24,LossesInput!$C$20:$N$20)+SUMPRODUCT(Loads!CG24:CR24,LossesInput!$C$20:$N$20))) -> 0 | F24: =+Loads!F24+((SUMPRODUCT(Loads!X24:AI24,LossesInput!$O$20:$Z$20)+SUMPRODUCT(Loads!CS24:DD24,LossesInput!$O$20:$Z$20))) -> 0 | G24: =+Loads!G24+SUMPRODUCT(Loads!AJ24:AU24,LossesInput!$AM$20:$AX$20)+SUMPRODUCT(LossesInput!$AM$20:$AX$20,Loads!DE24:DP24) -> 0 | H24: =+Loads!H24+SUMPRODUCT(Loads!AV24:BG24,LossesInput!$AY$20:$BJ$20)+SUMPRODUCT(LossesInput!$AY$20:$BJ$20,Loads!DQ24:EB24) -> 0 | I24: =+Loads!I24+SUMPRODUCT(Loads!BH24:BS24,LossesInput!$AY$20:$BJ$20)+SUMPRODUCT(LossesInput!$AY$20:$BJ$20,Loads!EC24:EN24) -> 0 | J24: =+Loads!J24+SUMPRODUCT(Loads!BT24:CE24,LossesInput!$BK$20:$BV$20)+SUMPRODUCT(LossesInput!$BK$20:$BV$20,Loads!EO24:EZ24) -> 0
E25: =+Loads!E25+((SUMPRODUCT(Loads!L25:W25,LossesInput!$C$20:$N$20)+SUMPRODUCT(Loads!CG25:CR25,LossesInput!$C$20:$N$20))) -> 0 | F25: =+Loads!F25+((SUMPRODUCT(Loads!X25:AI25,LossesInput!$O$20:$Z$20)+SUMPRODUCT(Loads!CS25:DD25,LossesInput!$O$20:$Z$20))) -> 0 | G25: =+Loads!G25+SUMPRODUCT(Loads!AJ25:AU25,LossesInput!$AM$20:$AX$20)+SUMPRODUCT(LossesInput!$AM$20:$AX$20,Loads!DE25:DP25) -> 0 | H25: =+Loads!H25+SUMPRODUCT(Loads!AV25:BG25,LossesInput!$AY$20:$BJ$20)+SUMPRODUCT(LossesInput!$AY$20:$BJ$20,Loads!DQ25:EB25) -> 0 | I25: =+Loads!I25+SUMPRODUCT(Loads!BH25:BS25,LossesInput!$AY$20:$BJ$20)+SUMPRODUCT(LossesInput!$AY$20:$BJ$20,Loads!EC25:EN25) -> 0 | J25: =+Loads!J25+SUMPRODUCT(Loads!BT25:CE25,LossesInput!$BK$20:$BV$20)+SUMPRODUCT(LossesInput!$BK$20:$BV$20,Loads!EO25:EZ25) -> 0
E26: =+Loads!E26+((SUMPRODUCT(Loads!L26:W26,LossesInput!$C$20:$N$20)+SUMPRODUCT(Loads!CG26:CR26,LossesInput!$C$20:$N$20))) -> 0 | F26: =+Loads!F26+((SUMPRODUCT(Loads!X26:AI26,LossesInput!$O$20:$Z$20)+SUMPRODUCT(Loads!CS26:DD26,LossesInput!$O$20:$Z$20))) -> 0 | G26: =+Loads!G26+SUMPRODUCT(Loads!AJ26:AU26,LossesInput!$AM$20:$AX$20)+SUMPRODUCT(LossesInput!$AM$20:$AX$20,Loads!DE26:DP26) -> 0 | H26: =+Loads!H26+SUMPRODUCT(Loads!AV26:BG26,LossesInput!$AY$20:$BJ$20)+SUMPRODUCT(LossesInput!$AY$20:$BJ$20,Loads!DQ26:EB26) -> 0 | I26: =+Loads!I26+SUMPRODUCT(Loads!BH26:BS26,LossesInput!$AY$20:$BJ$20)+SUMPRODUCT(LossesInput!$AY$20:$BJ$20,Loads!EC26:EN26) -> 0 | J26: =+Loads!J26+SUMPRODUCT(Loads!BT26:CE26,LossesInput!$BK$20:$BV$20)+SUMPRODUCT(LossesInput!$BK$20:$BV$20,Loads!EO26:EZ26) -> 0
B27: FBS Obligation | D27: FPS_FBS | E27: =+SUM(E28:E37) -> 5914018.476 | F27: =+SUM(F28:F37) -> 5914019.297 | G27: 5814559.671 | H27: 5815076.334 | I27: 5814559.671 | J27: 5815076.334
C28: Canadian Entitlement | D28: FPS_FBS_CDN | E28: =+Loads!E28+((SUMPRODUCT(Loads!L28:W28,LossesInput!$C$20:$N$20)+SUMPRODUCT(Loads!CG28:CR28,LossesInput!$C$20:$N$20))) -> 4107450.47 | F28: =+Loads!F28+((SUMPRODUCT(Loads!X28:AI28,LossesInput!$O$20:$Z$20)+SUMPRODUCT(Loads!CS28:DD28,LossesInput!$O$20:$Z$20))) -> 4107450.47 | G28: =+Loads!G28+SUMPRODUCT(Loads!AJ28:AU28,LossesInput!$AM$20:$AX$20)+SUMPRODUCT(LossesInput!$AM$20:$AX$20,Loads!DE28:DP28) -> 4107450.437 | H28: =+Loads!H28+SUMPRODUCT(Loads!AV28:BG28,LossesInput!$AY$20:$BJ$20)+SUMPRODUCT(LossesInput!$AY$20:$BJ$20,Loads!DQ28:EB28) -> 4107450.437 | I28: =+Loads!I28+SUMPRODUCT(Loads!BH28:BS28,LossesInput!$AY$20:$BJ$20)+SUMPRODUCT(LossesInput!$AY$20:$BJ$20,Loads!EC28:EN28) -> 4107450.437 | J28: =+Loads!J28+SUMPRODUCT(Loads!BT28:CE28,LossesInput!$BK$20:$BV$20)+SUMPRODUCT(LossesInput!$BK$20:$BV$20,Loads!EO28:EZ28) -> 4107450.437
C29: USBR Pump Load | D29: FPS_FBS_UBR | E29: =+Loads!E29+((SUMPRODUCT(Loads!L29:W29,LossesInput!$C$20:$N$20)+SUMPRODUCT(Loads!CG29:CR29,LossesInput!$C$20:$N$20))) -> 1702961.804 | F29: =+Loads!F29+((SUMPRODUCT(Loads!X29:AI29,LossesInput!$O$20:$Z$20)+SUMPRODUCT(Loads!CS29:DD29,LossesInput!$O$20:$Z$20))) -> 1702961.806 | G29: =+Loads!G29+SUMPRODUCT(Loads!AJ29:AU29,LossesInput!$AM$20:$AX$20)+SUMPRODUCT(LossesInput!$AM$20:$AX$20,Loads!DE29:DP29) -> 1602249.305 | H29: =+Loads!H29+SUMPRODUCT(Loads!AV29:BG29,LossesInput!$AY$20:$BJ$20)+SUMPRODUCT(LossesInput!$AY$20:$BJ$20,Loads!DQ29:EB29) -> 1602249.305 | I29: =+Loads!I29+SUMPRODUCT(Loads!BH29:BS29,LossesInput!$AY$20:$BJ$20)+SUMPRODUCT(LossesInput!$AY$20:$BJ$20,Loads!EC29:EN29) -> 1602249.305 | J29: =+Loads!J29+SUMPRODUCT(Loads!BT29:CE29,LossesInput!$BK$20:$BV$20)+SUMPRODUCT(LossesInput!$BK$20:$BV$20,Loads!EO29:EZ29) -> 1602249.305
C30: Hungry Horse | D30: FPS_FBS_HH | E30: =+Loads!E30+((SUMPRODUCT(Loads!L30:W30,LossesInput!$C$20:$N$20)+SUMPRODUCT(Loads!CG30:CR30,LossesInput!$C$20:$N$20))) -> 0 | F30: =+Loads!F30+((SUMPRODUCT(Loads!X30:AI30,LossesInput!$O$20:$Z$20)+SUMPRODUCT(Loads!CS30:DD30,LossesInput!$O$20:$Z$20))) -> 0 | G30: =+Loads!G30+SUMPRODUCT(Loads!AJ30:AU30,LossesInput!$AM$20:$AX$20)+SUMPRODUCT(LossesInput!$AM$20:$AX$20,Loads!DE30:DP30) -> 0 | H30: =+Loads!H30+SUMPRODUCT(Loads!AV30:BG30,LossesInput!$AY$20:$BJ$20)+SUMPRODUCT(LossesInput!$AY$20:$BJ$20,Loads!DQ30:EB30) -> 0 | I30: =+Loads!I30+SUMPRODUCT(Loads!BH30:BS30,LossesInput!$AY$20:$BJ$20)+SUMPRODUCT(LossesInput!$AY$20:$BJ$20,Loads!EC30:EN30) -> 0 | J30: =+Loads!J30+SUMPRODUCT(Loads!BT30:CE30,LossesInput!$BK$20:$BV$20)+SUMPRODUCT(LossesInput!$BK$20:$BV$20,Loads!EO30:EZ30) -> 0
C31: Upper Baker | D31: FPS_FBS_UPB | E31: =+Loads!E31+((SUMPRODUCT(Loads!L31:W31,LossesInput!$C$20:$N$20)+SUMPRODUCT(Loads!CG31:CR31,LossesInput!$C$20:$N$20))) -> 11577.37884 | F31: =+Loads!F31+((SUMPRODUCT(Loads!X31:AI31,LossesInput!$O$20:$Z$20)+SUMPRODUCT(Loads!CS31:DD31,LossesInput!$O$20:$Z$20))) -> 11577.37884 | G31: =+Loads!G31+SUMPRODUCT(Loads!AJ31:AU31,LossesInput!$AM$20:$AX$20)+SUMPRODUCT(LossesInput!$AM$20:$AX$20,Loads!DE31:DP31) -> 11577.37884 | H31: =+Loads!H31+SUMPRODUCT(Loads!AV31:BG31,LossesInput!$AY$20:$BJ$20)+SUMPRODUCT(LossesInput!$AY$20:$BJ$20,Loads!DQ31:EB31) -> 11577.37884 | I31: =+Loads!I31+SUMPRODUCT(Loads!BH31:BS31,LossesInput!$AY$20:$BJ$20)+SUMPRODUCT(LossesInput!$AY$20:$BJ$20,Loads!EC31:EN31) -> 11577.37884 | J31: =+Loads!J31+SUMPRODUCT(Loads!BT31:CE31,LossesInput!$BK$20:$BV$20)+SUMPRODUCT(LossesInput!$BK$20:$BV$20,Loads!EO31:EZ31) -> 11577.37884
C32: Non-Treaty Storage | D32: FPS_FBS_NTS | E32: =+Loads!E32+((SUMPRODUCT(Loads!L32:W32,LossesInput!$C$20:$N$20)+SUMPRODUCT(Loads!CG32:CR32,LossesInput!$C$20:$N$20))) -> 92028.82219 | F32: =+Loads!F32+((SUMPRODUCT(Loads!X32:AI32,LossesInput!$O$20:$Z$20)+SUMPRODUCT(Loads!CS32:DD32,LossesInput!$O$20:$Z$20))) -> 92029.6419 | G32: =+Loads!G32+SUMPRODUCT(Loads!AJ32:AU32,LossesInput!$AM$20:$AX$20)+SUMPRODUCT(LossesInput!$AM$20:$AX$20,Loads!DE32:DP32) -> 93282.5502 | H32: =+Loads!H32+SUMPRODUCT(Loads!AV32:BG32,LossesInput!$AY$20:$BJ$20)+SUMPRODUCT(LossesInput!$AY$20:$BJ$20,Loads!DQ32:EB32) -> 93799.21341 | I32: =+Loads!I32+SUMPRODUCT(Loads!BH32:BS32,LossesInput!$AY$20:$BJ$20)+SUMPRODUCT(LossesInput!$AY$20:$BJ$20,Loads!EC32:EN32) -> 93282.5502 | J32: =+Loads!J32+SUMPRODUCT(Loads!BT32:CE32,LossesInput!$BK$20:$BV$20)+SUMPRODUCT(LossesInput!$BK$20:$BV$20,Loads!EO32:EZ32) -> 93799.21341
C33: Libby Coordination | D33: FPS_FBS_LCA | E33: =+Loads!E33+((SUMPRODUCT(Loads!L33:W33,LossesInput!$C$20:$N$20)+SUMPRODUCT(Loads!CG33:CR33,LossesInput!$C$20:$N$20))) -> 0 | F33: =+Loads!F33+((SUMPRODUCT(Loads!X33:AI33,LossesInput!$O$20:$Z$20)+SUMPRODUCT(Loads!CS33:DD33,LossesInput!$O$20:$Z$20))) -> 0 | G33: =+Loads!G33+SUMPRODUCT(Loads!AJ33:AU33,LossesInput!$AM$20:$AX$20)+SUMPRODUCT(LossesInput!$AM$20:$AX$20,Loads!DE33:DP33) -> 0 | H33: =+Loads!H33+SUMPRODUCT(Loads!AV33:BG33,LossesInput!$AY$20:$BJ$20)+SUMPRODUCT(LossesInput!$AY$20:$BJ$20,Loads!DQ33:EB33) -> 0 | I33: =+Loads!I33+SUMPRODUCT(Loads!BH33:BS33,LossesInput!$AY$20:$BJ$20)+SUMPRODUCT(LossesInput!$AY$20:$BJ$20,Loads!EC33:EN33) -> 0 | J33: =+Loads!J33+SUMPRODUCT(Loads!BT33:CE33,LossesInput!$BK$20:$BV$20)+SUMPRODUCT(LossesInput!$BK$20:$BV$20,Loads!EO33:EZ33) -> 0
E34: =+Loads!E34+((SUMPRODUCT(Loads!L34:W34,LossesInput!$C$20:$N$20)+SUMPRODUCT(Loads!CG34:CR34,LossesInput!$C$20:$N$20))) -> 0 | F34: =+Loads!F34+((SUMPRODUCT(Loads!X34:AI34,LossesInput!$O$20:$Z$20)+SUMPRODUCT(Loads!CS34:DD34,LossesInput!$O$20:$Z$20))) -> 0 | G34: =+Loads!G34+SUMPRODUCT(Loads!AJ34:AU34,LossesInput!$AM$20:$AX$20)+SUMPRODUCT(LossesInput!$AM$20:$AX$20,Loads!DE34:DP34) -> 0 | H34: =+Loads!H34+SUMPRODUCT(Loads!AV34:BG34,LossesInput!$AY$20:$BJ$20)+SUMPRODUCT(LossesInput!$AY$20:$BJ$20,Loads!DQ34:EB34) -> 0 | I34: =+Loads!I34+SUMPRODUCT(Loads!BH34:BS34,LossesInput!$AY$20:$BJ$20)+SUMPRODUCT(LossesInput!$AY$20:$BJ$20,Loads!EC34:EN34) -> 0 | J34: =+Loads!J34+SUMPRODUCT(Loads!BT34:CE34,LossesInput!$BK$20:$BV$20)+SUMPRODUCT(LossesInput!$BK$20:$BV$20,Loads!EO34:EZ34) -> 0
E35: =+Loads!E35+((SUMPRODUCT(Loads!L35:W35,LossesInput!$C$20:$N$20)+SUMPRODUCT(Loads!CG35:CR35,LossesInput!$C$20:$N$20))) -> 0 | F35: =+Loads!F35+((SUMPRODUCT(Loads!X35:AI35,LossesInput!$O$20:$Z$20)+SUMPRODUCT(Loads!CS35:DD35,LossesInput!$O$20:$Z$20))) -> 0 | G35: =+Loads!G35+SUMPRODUCT(Loads!AJ35:AU35,LossesInput!$AM$20:$AX$20)+SUMPRODUCT(LossesInput!$AM$20:$AX$20,Loads!DE35:DP35) -> 0 | H35: =+Loads!H35+SUMPRODUCT(Loads!AV35:BG35,LossesInput!$AY$20:$BJ$20)+SUMPRODUCT(LossesInput!$AY$20:$BJ$20,Loads!DQ35:EB35) -> 0 | I35: =+Loads!I35+SUMPRODUCT(Loads!BH35:BS35,LossesInput!$AY$20:$BJ$20)+SUMPRODUCT(LossesInput!$AY$20:$BJ$20,Loads!EC35:EN35) -> 0 | J35: =+Loads!J35+SUMPRODUCT(Loads!BT35:CE35,LossesInput!$BK$20:$BV$20)+SUMPRODUCT(LossesInput!$BK$20:$BV$20,Loads!EO35:EZ35) -> 0
E36: =+Loads!E36+((SUMPRODUCT(Loads!L36:W36,LossesInput!$C$20:$N$20)+SUMPRODUCT(Loads!CG36:CR36,LossesInput!$C$20:$N$20))) -> 0 | F36: =+Loads!F36+((SUMPRODUCT(Loads!X36:AI36,LossesInput!$O$20:$Z$20)+SUMPRODUCT(Loads!CS36:DD36,LossesInput!$O$20:$Z$20))) -> 0 | G36: =+Loads!G36+SUMPRODUCT(Loads!AJ36:AU36,LossesInput!$AM$20:$AX$20)+SUMPRODUCT(LossesInput!$AM$20:$AX$20,Loads!DE36:DP36) -> 0 | H36: =+Loads!H36+SUMPRODUCT(Loads!AV36:BG36,LossesInput!$AY$20:$BJ$20)+SUMPRODUCT(LossesInput!$AY$20:$BJ$20,Loads!DQ36:EB36) -> 0 | I36: =+Loads!I36+SUMPRODUCT(Loads!BH36:BS36,LossesInput!$AY$20:$BJ$20)+SUMPRODUCT(LossesInput!$AY$20:$BJ$20,Loads!EC36:EN36) -> 0 | J36: =+Loads!J36+SUMPRODUCT(Loads!BT36:CE36,LossesInput!$BK$20:$BV$20)+SUMPRODUCT(LossesInput!$BK$20:$BV$20,Loads!EO36:EZ36) -> 0
E37: =+Loads!E37+((SUMPRODUCT(Loads!L37:W37,LossesInput!$C$20:$N$20)+SUMPRODUCT(Loads!CG37:CR37,LossesInput!$C$20:$N$20))) -> 0 | F37: =+Loads!F37+((SUMPRODUCT(Loads!X37:AI37,LossesInput!$O$20:$Z$20)+SUMPRODUCT(Loads!CS37:DD37,LossesInput!$O$20:$Z$20))) -> 0 | G37: =+Loads!G37+SUMPRODUCT(Loads!AJ37:AU37,LossesInput!$AM$20:$AX$20)+SUMPRODUCT(LossesInput!$AM$20:$AX$20,Loads!DE37:DP37) -> 0 | H37: =+Loads!H37+SUMPRODUCT(Loads!AV37:BG37,LossesInput!$AY$20:$BJ$20)+SUMPRODUCT(LossesInput!$AY$20:$BJ$20,Loads!DQ37:EB37) -> 0 | I37: =+Loads!I37+SUMPRODUCT(Loads!BH37:BS37,LossesInput!$AY$20:$BJ$20)+SUMPRODUCT(LossesInput!$AY$20:$BJ$20,Loads!EC37:EN37) -> 0 | J37: =+Loads!J37+SUMPRODUCT(Loads!BT37:CE37,LossesInput!$BK$20:$BV$20)+SUMPRODUCT(LossesInput!$BK$20:$BV$20,Loads!EO37:EZ37) -> 0
B38: Seasonal or Capacity Exchange | D38: FPS_EXS | E38: =+SUM(E39:E48) -> 13665.96205 | F38: =+SUM(F39:F48) -> 0 | G38: 11958.39348 | H38: 0 | I38: 11958.39348 | J38: 0
C39: Riverside Capacity | D39: FPS_EXS_RVC | E39: =+Loads!E39+((SUMPRODUCT(Loads!L39:W39,LossesInput!$C$20:$N$20)+SUMPRODUCT(Loads!CG39:CR39,LossesInput!$C$20:$N$20))) -> 0 | F39: =+Loads!F39+((SUMPRODUCT(Loads!X39:AI39,LossesInput!$O$20:$Z$20)+SUMPRODUCT(Loads!CS39:DD39,LossesInput!$O$20:$Z$20))) -> 0 | G39: =+Loads!G39+SUMPRODUCT(Loads!AJ39:AU39,LossesInput!$AM$20:$AX$20)+SUMPRODUCT(LossesInput!$AM$20:$AX$20,Loads!DE39:DP39) -> 0 | H39: =+Loads!H39+SUMPRODUCT(Loads!AV39:BG39,LossesInput!$AY$20:$BJ$20)+SUMPRODUCT(LossesInput!$AY$20:$BJ$20,Loads!DQ39:EB39) -> 0 | I39: =+Loads!I39+SUMPRODUCT(Loads!BH39:BS39,LossesInput!$AY$20:$BJ$20)+SUMPRODUCT(LossesInput!$AY$20:$BJ$20,Loads!EC39:EN39) -> 0 | J39: =+Loads!J39+SUMPRODUCT(Loads!BT39:CE39,LossesInput!$BK$20:$BV$20)+SUMPRODUCT(LossesInput!$BK$20:$BV$20,Loads!EO39:EZ39) -> 0
C40: Riverside Seasonal | D40: FPS_EXS_RVS | E40: =+Loads!E40+((SUMPRODUCT(Loads!L40:W40,LossesInput!$C$20:$N$20)+SUMPRODUCT(Loads!CG40:CR40,LossesInput!$C$20:$N$20))) -> 0 | F40: =+Loads!F40+((SUMPRODUCT(Loads!X40:AI40,LossesInput!$O$20:$Z$20)+SUMPRODUCT(Loads!CS40:DD40,LossesInput!$O$20:$Z$20))) -> 0 | G40: =+Loads!G40+SUMPRODUCT(Loads!AJ40:AU40,LossesInput!$AM$20:$AX$20)+SUMPRODUCT(LossesInput!$AM$20:$AX$20,Loads!DE40:DP40) -> 0 | H40: =+Loads!H40+SUMPRODUCT(Loads!AV40:BG40,LossesInput!$AY$20:$BJ$20)+SUMPRODUCT(LossesInput!$AY$20:$BJ$20,Loads!DQ40:EB40) -> 0 | I40: =+Loads!I40+SUMPRODUCT(Loads!BH40:BS40,LossesInput!$AY$20:$BJ$20)+SUMPRODUCT(LossesInput!$AY$20:$BJ$20,Loads!EC40:EN40) -> 0 | J40: =+Loads!J40+SUMPRODUCT(Loads!BT40:CE40,LossesInput!$BK$20:$BV$20)+SUMPRODUCT(LossesInput!$BK$20:$BV$20,Loads!EO40:EZ40) -> 0
C41: Pasadena Capacity | D41: FPS_EXS_PAC | E41: =+Loads!E41+((SUMPRODUCT(Loads!L41:W41,LossesInput!$C$20:$N$20)+SUMPRODUCT(Loads!CG41:CR41,LossesInput!$C$20:$N$20))) -> 0 | F41: =+Loads!F41+((SUMPRODUCT(Loads!X41:AI41,LossesInput!$O$20:$Z$20)+SUMPRODUCT(Loads!CS41:DD41,LossesInput!$O$20:$Z$20))) -> 0 | G41: =+Loads!G41+SUMPRODUCT(Loads!AJ41:AU41,LossesInput!$AM$20:$AX$20)+SUMPRODUCT(LossesInput!$AM$20:$AX$20,Loads!DE41:DP41) -> 0 | H41: =+Loads!H41+SUMPRODUCT(Loads!AV41:BG41,LossesInput!$AY$20:$BJ$20)+SUMPRODUCT(LossesInput!$AY$20:$BJ$20,Loads!DQ41:EB41) -> 0 | I41: =+Loads!I41+SUMPRODUCT(Loads!BH41:BS41,LossesInput!$AY$20:$BJ$20)+SUMPRODUCT(LossesInput!$AY$20:$BJ$20,Loads!EC41:EN41) -> 0 | J41: =+Loads!J41+SUMPRODUCT(Loads!BT41:CE41,LossesInput!$BK$20:$BV$20)+SUMPRODUCT(LossesInput!$BK$20:$BV$20,Loads!EO41:EZ41) -> 0
C42: Pasadena Seasonal | D42: FPS_EXS_PAS | E42: =+Loads!E42+((SUMPRODUCT(Loads!L42:W42,LossesInput!$C$20:$N$20)+SUMPRODUCT(Loads!CG42:CR42,LossesInput!$C$20:$N$20))) -> 0 | F42: =+Loads!F42+((SUMPRODUCT(Loads!X42:AI42,LossesInput!$O$20:$Z$20)+SUMPRODUCT(Loads!CS42:DD42,LossesInput!$O$20:$Z$20))) -> 0 | G42: =+Loads!G42+SUMPRODUCT(Loads!AJ42:AU42,LossesInput!$AM$20:$AX$20)+SUMPRODUCT(LossesInput!$AM$20:$AX$20,Loads!DE42:DP42) -> 0 | H42: =+Loads!H42+SUMPRODUCT(Loads!AV42:BG42,LossesInput!$AY$20:$BJ$20)+SUMPRODUCT(LossesInput!$AY$20:$BJ$20,Loads!DQ42:EB42) -> 0 | I42: =+Loads!I42+SUMPRODUCT(Loads!BH42:BS42,LossesInput!$AY$20:$BJ$20)+SUMPRODUCT(LossesInput!$AY$20:$BJ$20,Loads!EC42:EN42) -> 0 | J42: =+Loads!J42+SUMPRODUCT(Loads!BT42:CE42,LossesInput!$BK$20:$BV$20)+SUMPRODUCT(LossesInput!$BK$20:$BV$20,Loads!EO42:EZ42) -> 0
C43: PG&E | D43: FPS_EXS_PGE | E43: =+Loads!E43+((SUMPRODUCT(Loads!L43:W43,LossesInput!$C$20:$N$20)+SUMPRODUCT(Loads!CG43:CR43,LossesInput!$C$20:$N$20))) -> 0 | F43: =+Loads!F43+((SUMPRODUCT(Loads!X43:AI43,LossesInput!$O$20:$Z$20)+SUMPRODUCT(Loads!CS43:DD43,LossesInput!$O$20:$Z$20))) -> 0 | G43: =+Loads!G43+SUMPRODUCT(Loads!AJ43:AU43,LossesInput!$AM$20:$AX$20)+SUMPRODUCT(LossesInput!$AM$20:$AX$20,Loads!DE43:DP43) -> 0 | H43: =+Loads!H43+SUMPRODUCT(Loads!AV43:BG43,LossesInput!$AY$20:$BJ$20)+SUMPRODUCT(LossesInput!$AY$20:$BJ$20,Loads!DQ43:EB43) -> 0 | I43: =+Loads!I43+SUMPRODUCT(Loads!BH43:BS43,LossesInput!$AY$20:$BJ$20)+SUMPRODUCT(LossesInput!$AY$20:$BJ$20,Loads!EC43:EN43) -> 0 | J43: =+Loads!J43+SUMPRODUCT(Loads!BT43:CE43,LossesInput!$BK$20:$BV$20)+SUMPRODUCT(LossesInput!$BK$20:$BV$20,Loads!EO43:EZ43) -> 0
C44: Intertie Losses | D44: FPS_EXS_LSS | E44: =+Loads!E44+((SUMPRODUCT(Loads!L44:W44,LossesInput!$C$20:$N$20)+SUMPRODUCT(Loads!CG44:CR44,LossesInput!$C$20:$N$20))) -> 13665.96205 | F44: =+Loads!F44+((SUMPRODUCT(Loads!X44:AI44,LossesInput!$O$20:$Z$20)+SUMPRODUCT(Loads!CS44:DD44,LossesInput!$O$20:$Z$20))) -> 0 | G44: =+Loads!G44+SUMPRODUCT(Loads!AJ44:AU44,LossesInput!$AM$20:$AX$20)+SUMPRODUCT(LossesInput!$AM$20:$AX$20,Loads!DE44:DP44) -> 11958.39348 | H44: =+Loads!H44+SUMPRODUCT(Loads!AV44:BG44,LossesInput!$AY$20:$BJ$20)+SUMPRODUCT(LossesInput!$AY$20:$BJ$20,Loads!DQ44:EB44) -> 0 | I44: =+Loads!I44+SUMPRODUCT(Loads!BH44:BS44,LossesInput!$AY$20:$BJ$20)+SUMPRODUCT(LossesInput!$AY$20:$BJ$20,Loads!EC44:EN44) -> 11958.39348 | J44: =+Loads!J44+SUMPRODUCT(Loads!BT44:CE44,LossesInput!$BK$20:$BV$20)+SUMPRODUCT(LossesInput!$BK$20:$BV$20,Loads!EO44:EZ44) -> 0
C45: PacifiCorp | D45: FPS_EXS_PPL | E45: =+Loads!E45+((SUMPRODUCT(Loads!L45:W45,LossesInput!$C$20:$N$20)+SUMPRODUCT(Loads!CG45:CR45,LossesInput!$C$20:$N$20))) -> 0 | F45: =+Loads!F45+((SUMPRODUCT(Loads!X45:AI45,LossesInput!$O$20:$Z$20)+SUMPRODUCT(Loads!CS45:DD45,LossesInput!$O$20:$Z$20))) -> 0 | G45: =+Loads!G45+SUMPRODUCT(Loads!AJ45:AU45,LossesInput!$AM$20:$AX$20)+SUMPRODUCT(LossesInput!$AM$20:$AX$20,Loads!DE45:DP45) -> 0 | H45: =+Loads!H45+SUMPRODUCT(Loads!AV45:BG45,LossesInput!$AY$20:$BJ$20)+SUMPRODUCT(LossesInput!$AY$20:$BJ$20,Loads!DQ45:EB45) -> 0 | I45: =+Loads!I45+SUMPRODUCT(Loads!BH45:BS45,LossesInput!$AY$20:$BJ$20)+SUMPRODUCT(LossesInput!$AY$20:$BJ$20,Loads!EC45:EN45) -> 0 | J45: =+Loads!J45+SUMPRODUCT(Loads!BT45:CE45,LossesInput!$BK$20:$BV$20)+SUMPRODUCT(LossesInput!$BK$20:$BV$20,Loads!EO45:EZ45) -> 0
E46: =+Loads!E46+((SUMPRODUCT(Loads!L46:W46,LossesInput!$C$20:$N$20)+SUMPRODUCT(Loads!CG46:CR46,LossesInput!$C$20:$N$20))) -> 0 | F46: =+Loads!F46+((SUMPRODUCT(Loads!X46:AI46,LossesInput!$O$20:$Z$20)+SUMPRODUCT(Loads!CS46:DD46,LossesInput!$O$20:$Z$20))) -> 0 | G46: =+Loads!G46+SUMPRODUCT(Loads!AJ46:AU46,LossesInput!$AM$20:$AX$20)+SUMPRODUCT(LossesInput!$AM$20:$AX$20,Loads!DE46:DP46) -> 0 | H46: =+Loads!H46+SUMPRODUCT(Loads!AV46:BG46,LossesInput!$AY$20:$BJ$20)+SUMPRODUCT(LossesInput!$AY$20:$BJ$20,Loads!DQ46:EB46) -> 0 | I46: =+Loads!I46+SUMPRODUCT(Loads!BH46:BS46,LossesInput!$AY$20:$BJ$20)+SUMPRODUCT(LossesInput!$AY$20:$BJ$20,Loads!EC46:EN46) -> 0 | J46: =+Loads!J46+SUMPRODUCT(Loads!BT46:CE46,LossesInput!$BK$20:$BV$20)+SUMPRODUCT(LossesInput!$BK$20:$BV$20,Loads!EO46:EZ46) -> 0
E47: =+Loads!E47+((SUMPRODUCT(Loads!L47:W47,LossesInput!$C$20:$N$20)+SUMPRODUCT(Loads!CG47:CR47,LossesInput!$C$20:$N$20))) -> 0 | F47: =+Loads!F47+((SUMPRODUCT(Loads!X47:AI47,LossesInput!$O$20:$Z$20)+SUMPRODUCT(Loads!CS47:DD47,LossesInput!$O$20:$Z$20))) -> 0 | G47: =+Loads!G47+SUMPRODUCT(Loads!AJ47:AU47,LossesInput!$AM$20:$AX$20)+SUMPRODUCT(LossesInput!$AM$20:$AX$20,Loads!DE47:DP47) -> 0 | H47: =+Loads!H47+SUMPRODUCT(Loads!AV47:BG47,LossesInput!$AY$20:$BJ$20)+SUMPRODUCT(LossesInput!$AY$20:$BJ$20,Loads!DQ47:EB47) -> 0 | I47: =+Loads!I47+SUMPRODUCT(Loads!BH47:BS47,LossesInput!$AY$20:$BJ$20)+SUMPRODUCT(LossesInput!$AY$20:$BJ$20,Loads!EC47:EN47) -> 0 | J47: =+Loads!J47+SUMPRODUCT(Loads!BT47:CE47,LossesInput!$BK$20:$BV$20)+SUMPRODUCT(LossesInput!$BK$20:$BV$20,Loads!EO47:EZ47) -> 0
E48: =+Loads!E48+((SUMPRODUCT(Loads!L48:W48,LossesInput!$C$20:$N$20)+SUMPRODUCT(Loads!CG48:CR48,LossesInput!$C$20:$N$20))) -> 0 | F48: =+Loads!F48+((SUMPRODUCT(Loads!X48:AI48,LossesInput!$O$20:$Z$20)+SUMPRODUCT(Loads!CS48:DD48,LossesInput!$O$20:$Z$20))) -> 0 | G48: =+Loads!G48+SUMPRODUCT(Loads!AJ48:AU48,LossesInput!$AM$20:$AX$20)+SUMPRODUCT(LossesInput!$AM$20:$AX$20,Loads!DE48:DP48) -> 0 | H48: =+Loads!H48+SUMPRODUCT(Loads!AV48:BG48,LossesInput!$AY$20:$BJ$20)+SUMPRODUCT(LossesInput!$AY$20:$BJ$20,Loads!DQ48:EB48) -> 0 | I48: =+Loads!I48+SUMPRODUCT(Loads!BH48:BS48,LossesInput!$AY$20:$BJ$20)+SUMPRODUCT(LossesInput!$AY$20:$BJ$20,Loads!EC48:EN48) -> 0 | J48: =+Loads!J48+SUMPRODUCT(Loads!BT48:CE48,LossesInput!$BK$20:$BV$20)+SUMPRODUCT(LossesInput!$BK$20:$BV$20,Loads!EO48:EZ48) -> 0
A49: Firm Surplus Sale | D49: FSS | E49: =+Loads!E49+((SUMPRODUCT(Loads!L49:W49,LossesInput!$C$20:$N$20)+SUMPRODUCT(Loads!CG49:CR49,LossesInput!$C$20:$N$20))) -> 455532.0685 | F49: =+Loads!F49+((SUMPRODUCT(Loads!X49:AI49,LossesInput!$O$20:$Z$20)+SUMPRODUCT(Loads!CS49:DD49,LossesInput!$O$20:$Z$20))) -> 0 | G49: =+Loads!G49+SUMPRODUCT(Loads!AJ49:AU49,LossesInput!$AM$20:$AX$20)+SUMPRODUCT(LossesInput!$AM$20:$AX$20,Loads!DE49:DP49) -> 398613.1161 | H49: =+Loads!H49+SUMPRODUCT(Loads!AV49:BG49,LossesInput!$AY$20:$BJ$20)+SUMPRODUCT(LossesInput!$AY$20:$BJ$20,Loads!DQ49:EB49) -> 0 | I49: =+Loads!I49+SUMPRODUCT(Loads!BH49:BS49,LossesInput!$AY$20:$BJ$20)+SUMPRODUCT(LossesInput!$AY$20:$BJ$20,Loads!EC49:EN49) -> 398613.1161 | J49: =+Loads!J49+SUMPRODUCT(Loads!BT49:CE49,LossesInput!$BK$20:$BV$20)+SUMPRODUCT(LossesInput!$BK$20:$BV$20,Loads!EO49:EZ49) -> 0
A50: Presale of Secondary | D50: PRS | E50: =+Loads!E50+((SUMPRODUCT(Loads!L50:W50,LossesInput!$C$20:$N$20)+SUMPRODUCT(Loads!CG50:CR50,LossesInput!$C$20:$N$20))) -> 0 | F50: =+Loads!F50+((SUMPRODUCT(Loads!X50:AI50,LossesInput!$O$20:$Z$20)+SUMPRODUCT(Loads!CS50:DD50,LossesInput!$O$20:$Z$20))) -> 0 | G50: =+Loads!G50+SUMPRODUCT(Loads!AJ50:AU50,LossesInput!$AM$20:$AX$20)+SUMPRODUCT(LossesInput!$AM$20:$AX$20,Loads!DE50:DP50) -> 0 | H50: =+Loads!H50+SUMPRODUCT(Loads!AV50:BG50,LossesInput!$AY$20:$BJ$20)+SUMPRODUCT(LossesInput!$AY$20:$BJ$20,Loads!DQ50:EB50) -> 0 | I50: =+Loads!I50+SUMPRODUCT(Loads!BH50:BS50,LossesInput!$AY$20:$BJ$20)+SUMPRODUCT(LossesInput!$AY$20:$BJ$20,Loads!EC50:EN50) -> 0 | J50: =+Loads!J50+SUMPRODUCT(Loads!BT50:CE50,LossesInput!$BK$20:$BV$20)+SUMPRODUCT(LossesInput!$BK$20:$BV$20,Loads!EO50:EZ50) -> 0
A51: Conservation | D51: CON | E51: =+Loads!E51+((SUMPRODUCT(Loads!L51:W51,LossesInput!$C$20:$N$20)+SUMPRODUCT(Loads!CG51:CR51,LossesInput!$C$20:$N$20))) -> 0 | F51: =+Loads!F51+((SUMPRODUCT(Loads!X51:AI51,LossesInput!$O$20:$Z$20)+SUMPRODUCT(Loads!CS51:DD51,LossesInput!$O$20:$Z$20))) -> 0 | G51: =+Loads!G51+SUMPRODUCT(Loads!AJ51:AU51,LossesInput!$AM$20:$AX$20)+SUMPRODUCT(LossesInput!$AM$20:$AX$20,Loads!DE51:DP51) -> 0 | H51: =+Loads!H51+SUMPRODUCT(Loads!AV51:BG51,LossesInput!$AY$20:$BJ$20)+SUMPRODUCT(LossesInput!$AY$20:$BJ$20,Loads!DQ51:EB51) -> 0 | I51: =+Loads!I51+SUMPRODUCT(Loads!BH51:BS51,LossesInput!$AY$20:$BJ$20)+SUMPRODUCT(LossesInput!$AY$20:$BJ$20,Loads!EC51:EN51) -> 0 | J51: =+Loads!J51+SUMPRODUCT(Loads!BT51:CE51,LossesInput!$BK$20:$BV$20)+SUMPRODUCT(LossesInput!$BK$20:$BV$20,Loads!EO51:EZ51) -> 0
A54: Loss Percentage | E54: =(((SUM(E5,E11,E14,E15,E49,E50,E51)-SUM(Loads!E5,Loads!E11,Loads!E14,Loads!E15,Loads!E49,Loads!E50,Loads!E51))/VLOOKUP(E4,Init!$N:$P,3,0))/(SUM(Loads!E5,Loads!E11,Loads!E14,Loads!E15,Loads!E49,Loads!E50,Loads!E51)/VLOOKUP(E4,Init!$N:$P,3,0))) -> 0.03209127801 | F54: =(((SUM(F5,F11,F14,F15,F49,F50,F51)-SUM(Loads!F5,Loads!F11,Loads!F14,Loads!F15,Loads!F49,Loads!F50,Loads!F51))/VLOOKUP(F4,Init!$N:$P,3,0))/(SUM(Loads!F5,Loads!F11,Loads!F14,Loads!F15,Loads!F49,Loads!F50,Loads!F51)/VLOOKUP(F4,Init!$N:$P,3,0))) -> 0.03209465241 | G54: =(((SUM(G5,G11,G14,G15,G49,G50,G51)-SUM(Loads!G5,Loads!G11,Loads!G14,Loads!G15,Loads!G49,Loads!G50,Loads!G51))/VLOOKUP(G4,Init!$N:$P,3,0))/(SUM(Loads!G5,Loads!G11,Loads!G14,Loads!G15,Loads!G49,Loads!G50,Loads!G51)/VLOOKUP(G4,Init!$N:$P,3,0))) -> 0.03209022486 | H54: =(((SUM(H5,H11,H14,H15,H49,H50,H51)-SUM(Loads!H5,Loads!H11,Loads!H14,Loads!H15,Loads!H49,Loads!H50,Loads!H51))/VLOOKUP(H4,Init!$N:$P,3,0))/(SUM(Loads!H5,Loads!H11,Loads!H14,Loads!H15,Loads!H49,Loads!H50,Loads!H51)/VLOOKUP(H4,Init!$N:$P,3,0))) -> 0.03209212221 | I54: =(((SUM(I5,I11,I14,I15,I49,I50,I51)-SUM(Loads!I5,Loads!I11,Loads!I14,Loads!I15,Loads!I49,Loads!I50,Loads!I51))/VLOOKUP(I4,Init!$N:$P,3,0))/(SUM(Loads!I5,Loads!I11,Loads!I14,Loads!I15,Loads!I49,Loads!I50,Loads!I51)/VLOOKUP(I4,Init!$N:$P,3,0))) -> 0.03209022486 | J54: =(((SUM(J5,J11,J14,J15,J49,J50,J51)-SUM(Loads!J5,Loads!J11,Loads!J14,Loads!J15,Loads!J49,Loads!J50,Loads!J51))/VLOOKUP(J4,Init!$N:$P,3,0))/(SUM(Loads!J5,Loads!J11,Loads!J14,Loads!J15,Loads!J49,Loads!J50,Loads!J51)/VLOOKUP(J4,Init!$N:$P,3,0))) -> 0.03209212221

Sheet PF Public
B1: Billing Determinants Needed for Rates Analysis Model | O1: Not printed in documentation.
A2: TOC | B2: =Cover!$C$14 -> RAMmodel_REP2022.xls | U2: Not printed in documentation.
A3: é
D4: =+DATE(Init!$C$9-1,10,1) -> 2021-10-01 | E4: =+EOMONTH(D4,0)+1 -> 2021-11-01 | F4: 2021-12-01 | G4: 2022-01-01 | H4: 2022-02-01 | I4: 2022-03-01 | J4: 2022-04-01 | K4: 2022-05-01 | L4: 2022-06-01 | M4: 2022-07-01 | N4: 2022-08-01 | O4: 2022-09-01 | P4: 2022-10-01 | Q4: 2022-11-01 | R4: 2022-12-01 | S4: 2023-01-01 | T4: 2023-02-01 | U4: 2023-03-01 | V4: 2023-04-01 | W4: 2023-05-01 | X4: 2023-06-01 | Y4: 2023-07-01 | Z4: 2023-08-01 | AA4: 2023-09-01 | AB4: 2023-10-01 | AC4: 2023-11-01 | AD4: 2023-12-01 | AE4: 2024-01-01 | AF4: 2024-02-01 | AG4: 2024-03-01 | AH4: 2024-04-01 | AI4: 2024-05-01 | AJ4: 2024-06-01 | AK4: =+EOMONTH(AJ4,0)+1 -> 2024-07-01 | AL4: 2024-08-01 | AM4: 2024-09-01 | AN4: 2024-10-01 | AO4: 2024-11-01 | AP4: 2024-12-01 | AQ4: 2025-01-01 | AR4: 2025-02-01 | AS4: 2025-03-01 | AT4: 2025-04-01 | AU4: 2025-05-01 | AV4: 2025-06-01 | AW4: 2025-07-01 | AX4: 2025-08-01 | AY4: 2025-09-01 | AZ4: 2025-10-01 | BA4: 2025-11-01 | BB4: 2025-12-01 | BC4: 2026-01-01 | BD4: 2026-02-01 | BE4: 2026-03-01 | BF4: 2026-04-01 | BG4: 2026-05-01 | BH4: 2026-06-01 | BI4: 2026-07-01 | BJ4: 2026-08-01 | BK4: 2026-09-01 | BL4: 2026-10-01 | BM4: 2026-11-01 | BN4: 2026-12-01 | BO4: 2027-01-01 | BP4: 2027-02-01 | BQ4: =+EOMONTH(BP4,0)+1 -> 2027-03-01 | BR4: 2027-04-01 | BS4: 2027-05-01 | BT4: 2027-06-01 | BU4: 2027-07-01 | BV4: 2027-08-01 | BW4: 2027-09-01
B5: Public without Undistributed Conservation
B6: HLH | C6: PRE | D6: =+INDEX(Loads!$L:$CE,MATCH($C6,Loads!$D:$D,0),MATCH(D$4,Loads!$L$4:$CE$4,0)) -> 2632603.448 | E6: =+INDEX(Loads!$L:$CE,MATCH($C6,Loads!$D:$D,0),MATCH(E$4,Loads!$L$4:$CE$4,0)) -> 3020734.101 | F6: =+INDEX(Loads!$L:$CE,MATCH($C6,Loads!$D:$D,0),MATCH(F$4,Loads!$L$4:$CE$4,0)) -> 3383739.639 | G6: =+INDEX(Loads!$L:$CE,MATCH($C6,Loads!$D:$D,0),MATCH(G$4,Loads!$L$4:$CE$4,0)) -> 3262342.751 | H6: =+INDEX(Loads!$L:$CE,MATCH($C6,Loads!$D:$D,0),MATCH(H$4,Loads!$L$4:$CE$4,0)) -> 2828177.244 | I6: =+INDEX(Loads!$L:$CE,MATCH($C6,Loads!$D:$D,0),MATCH(I$4,Loads!$L$4:$CE$4,0)) -> 2989277.209 | J6: =+INDEX(Loads!$L:$CE,MATCH($C6,Loads!$D:$D,0),MATCH(J$4,Loads!$L$4:$CE$4,0)) -> 2490490.657 | K6: =+INDEX(Loads!$L:$CE,MATCH($C6,Loads!$D:$D,0),MATCH(K$4,Loads!$L$4:$CE$4,0)) -> 2596543.13 | L6: =+INDEX(Loads!$L:$CE,MATCH($C6,Loads!$D:$D,0),MATCH(L$4,Loads!$L$4:$CE$4,0)) -> 2783828.22 | M6: =+INDEX(Loads!$L:$CE,MATCH($C6,Loads!$D:$D,0),MATCH(M$4,Loads!$L$4:$CE$4,0)) -> 2848503.731 | N6: =+INDEX(Loads!$L:$CE,MATCH($C6,Loads!$D:$D,0),MATCH(N$4,Loads!$L$4:$CE$4,0)) -> 2923484.155 | O6: =+INDEX(Loads!$L:$CE,MATCH($C6,Loads!$D:$D,0),MATCH(O$4,Loads!$L$4:$CE$4,0)) -> 2562607.356 | P6: =+INDEX(Loads!$L:$CE,MATCH($C6,Loads!$D:$D,0),MATCH(P$4,Loads!$L$4:$CE$4,0)) -> 2660206.663 | Q6: =+INDEX(Loads!$L:$CE,MATCH($C6,Loads!$D:$D,0),MATCH(Q$4,Loads!$L$4:$CE$4,0)) -> 3058206.531 | R6: =+INDEX(Loads!$L:$CE,MATCH($C6,Loads!$D:$D,0),MATCH(R$4,Loads!$L$4:$CE$4,0)) -> 3450553.974 | S6: =+INDEX(Loads!$L:$CE,MATCH($C6,Loads!$D:$D,0),MATCH(S$4,Loads!$L$4:$CE$4,0)) -> 3277283.628 | T6: =+INDEX(Loads!$L:$CE,MATCH($C6,Loads!$D:$D,0),MATCH(T$4,Loads!$L$4:$CE$4,0)) -> 2861749.837 | U6: =+INDEX(Loads!$L:$CE,MATCH($C6,Loads!$D:$D,0),MATCH(U$4,Loads!$L$4:$CE$4,0)) -> 3026330.538 | V6: =+INDEX(Loads!$L:$CE,MATCH($C6,Loads!$D:$D,0),MATCH(V$4,Loads!$L$4:$CE$4,0)) -> 2478652.701 | W6: =+INDEX(Loads!$L:$CE,MATCH($C6,Loads!$D:$D,0),MATCH(W$4,Loads!$L$4:$CE$4,0)) -> 2603794.151 | X6: =+INDEX(Loads!$L:$CE,MATCH($C6,Loads!$D:$D,0),MATCH(X$4,Loads!$L$4:$CE$4,0)) -> 2748815.275 | Y6: =+INDEX(Loads!$L:$CE,MATCH($C6,Loads!$D:$D,0),MATCH(Y$4,Loads!$L$4:$CE$4,0)) -> 2874517.666 | Z6: =+INDEX(Loads!$L:$CE,MATCH($C6,Loads!$D:$D,0),MATCH(Z$4,Loads!$L$4:$CE$4,0)) -> 2955545.762 | AA6: =+INDEX(Loads!$L:$CE,MATCH($C6,Loads!$D:$D,0),MATCH(AA$4,Loads!$L$4:$CE$4,0)) -> 2596477.801 | AB6: =+INDEX(Loads!$L:$CE,MATCH($C6,Loads!$D:$D,0),MATCH(AB$4,Loads!$L$4:$CE$4,0)) -> 2619528.883 | AC6: =+INDEX(Loads!$L:$CE,MATCH($C6,Loads!$D:$D,0),MATCH(AC$4,Loads!$L$4:$CE$4,0)) -> 3083324.255 | AD6: =+INDEX(Loads!$L:$CE,MATCH($C6,Loads!$D:$D,0),MATCH(AD$4,Loads!$L$4:$CE$4,0)) -> 3380417.903 | AE6: =+INDEX(Loads!$L:$CE,MATCH($C6,Loads!$D:$D,0),MATCH(AE$4,Loads!$L$4:$CE$4,0)) -> 3229616.655 | AF6: =+INDEX(Loads!$L:$CE,MATCH($C6,Loads!$D:$D,0),MATCH(AF$4,Loads!$L$4:$CE$4,0)) -> 2855668.946 | AG6: =+INDEX(Loads!$L:$CE,MATCH($C6,Loads!$D:$D,0),MATCH(AG$4,Loads!$L$4:$CE$4,0)) -> 2970379.242 | AH6: =+INDEX(Loads!$L:$CE,MATCH($C6,Loads!$D:$D,0),MATCH(AH$4,Loads!$L$4:$CE$4,0)) -> 2490150.419 | AI6: =+INDEX(Loads!$L:$CE,MATCH($C6,Loads!$D:$D,0),MATCH(AI$4,Loads!$L$4:$CE$4,0)) -> 2624404.533 | AJ6: =+INDEX(Loads!$L:$CE,MATCH($C6,Loads!$D:$D,0),MATCH(AJ$4,Loads!$L$4:$CE$4,0)) -> 2799063.386 | AK6: =+INDEX(Loads!$L:$CE,MATCH($C6,Loads!$D:$D,0),MATCH(AK$4,Loads!$L$4:$CE$4,0)) -> 2857431.516 | AL6: =+INDEX(Loads!$L:$CE,MATCH($C6,Loads!$D:$D,0),MATCH(AL$4,Loads!$L$4:$CE$4,0)) -> 2929335.1 | AM6: =+INDEX(Loads!$L:$CE,MATCH($C6,Loads!$D:$D,0),MATCH(AM$4,Loads!$L$4:$CE$4,0)) -> 2580324.78 | AN6: =+INDEX(Loads!$L:$CE,MATCH($C6,Loads!$D:$D,0),MATCH(AN$4,Loads!$L$4:$CE$4,0)) -> 2646803.148 | AO6: =+INDEX(Loads!$L:$CE,MATCH($C6,Loads!$D:$D,0),MATCH(AO$4,Loads!$L$4:$CE$4,0)) -> 3126123.011 | AP6: =+INDEX(Loads!$L:$CE,MATCH($C6,Loads!$D:$D,0),MATCH(AP$4,Loads!$L$4:$CE$4,0)) -> 3448106.874 | AQ6: =+INDEX(Loads!$L:$CE,MATCH($C6,Loads!$D:$D,0),MATCH(AQ$4,Loads!$L$4:$CE$4,0)) -> 3243939.709 | AR6: =+INDEX(Loads!$L:$CE,MATCH($C6,Loads!$D:$D,0),MATCH(AR$4,Loads!$L$4:$CE$4,0)) -> 2888466.741 | AS6: =+INDEX(Loads!$L:$CE,MATCH($C6,Loads!$D:$D,0),MATCH(AS$4,Loads!$L$4:$CE$4,0)) -> 3009796.759 | AT6: =+INDEX(Loads!$L:$CE,MATCH($C6,Loads!$D:$D,0),MATCH(AT$4,Loads!$L$4:$CE$4,0)) -> 2472758.712 | AU6: =+INDEX(Loads!$L:$CE,MATCH($C6,Loads!$D:$D,0),MATCH(AU$4,Loads!$L$4:$CE$4,0)) -> 2628431.357 | AV6: =+INDEX(Loads!$L:$CE,MATCH($C6,Loads!$D:$D,0),MATCH(AV$4,Loads!$L$4:$CE$4,0)) -> 2758760.554 | AW6: =+INDEX(Loads!$L:$CE,MATCH($C6,Loads!$D:$D,0),MATCH(AW$4,Loads!$L$4:$CE$4,0)) -> 2878091.079 | AX6: =+INDEX(Loads!$L:$CE,MATCH($C6,Loads!$D:$D,0),MATCH(AX$4,Loads!$L$4:$CE$4,0)) -> 2960629.615 | AY6: =+INDEX(Loads!$L:$CE,MATCH($C6,Loads!$D:$D,0),MATCH(AY$4,Loads!$L$4:$CE$4,0)) -> 2613579.324 | AZ6: =+INDEX(Loads!$L:$CE,MATCH($C6,Loads!$D:$D,0),MATCH(AZ$4,Loads!$L$4:$CE$4,0)) -> 2619528.883 | BA6: =+INDEX(Loads!$L:$CE,MATCH($C6,Loads!$D:$D,0),MATCH(BA$4,Loads!$L$4:$CE$4,0)) -> 3083324.255 | BB6: =+INDEX(Loads!$L:$CE,MATCH($C6,Loads!$D:$D,0),MATCH(BB$4,Loads!$L$4:$CE$4,0)) -> 3380417.903 | BC6: =+INDEX(Loads!$L:$CE,MATCH($C6,Loads!$D:$D,0),MATCH(BC$4,Loads!$L$4:$CE$4,0)) -> 3229616.655 | BD6: =+INDEX(Loads!$L:$CE,MATCH($C6,Loads!$D:$D,0),MATCH(BD$4,Loads!$L$4:$CE$4,0)) -> 2855668.946 | BE6: =+INDEX(Loads!$L:$CE,MATCH($C6,Loads!$D:$D,0),MATCH(BE$4,Loads!$L$4:$CE$4,0)) -> 2970379.242 | BF6: =+INDEX(Loads!$L:$CE,MATCH($C6,Loads!$D:$D,0),MATCH(BF$4,Loads!$L$4:$CE$4,0)) -> 2490150.419 | BG6: =+INDEX(Loads!$L:$CE,MATCH($C6,Loads!$D:$D,0),MATCH(BG$4,Loads!$L$4:$CE$4,0)) -> 2624404.533 | BH6: =+INDEX(Loads!$L:$CE,MATCH($C6,Loads!$D:$D,0),MATCH(BH$4,Loads!$L$4:$CE$4,0)) -> 2799063.386 | BI6: =+INDEX(Loads!$L:$CE,MATCH($C6,Loads!$D:$D,0),MATCH(BI$4,Loads!$L$4:$CE$4,0)) -> 2857431.516 | BJ6: =+INDEX(Loads!$L:$CE,MATCH($C6,Loads!$D:$D,0),MATCH(BJ$4,Loads!$L$4:$CE$4,0)) -> 2929335.1 | BK6: =+INDEX(Loads!$L:$CE,MATCH($C6,Loads!$D:$D,0),MATCH(BK$4,Loads!$L$4:$CE$4,0)) -> 2580324.78 | BL6: =+INDEX(Loads!$L:$CE,MATCH($C6,Loads!$D:$D,0),MATCH(BL$4,Loads!$L$4:$CE$4,0)) -> 2646803.148 | BM6: =+INDEX(Loads!$L:$CE,MATCH($C6,Loads!$D:$D,0),MATCH(BM$4,Loads!$L$4:$CE$4,0)) -> 3126123.011 | BN6: =+INDEX(Loads!$L:$CE,MATCH($C6,Loads!$D:$D,0),MATCH(BN$4,Loads!$L$4:$CE$4,0)) -> 3448106.874 | BO6: =+INDEX(Loads!$L:$CE,MATCH($C6,Loads!$D:$D,0),MATCH(BO$4,Loads!$L$4:$CE$4,0)) -> 3243939.709 | BP6: =+INDEX(Loads!$L:$CE,MATCH($C6,Loads!$D:$D,0),MATCH(BP$4,Loads!$L$4:$CE$4,0)) -> 2888466.741 | BQ6: =+INDEX(Loads!$L:$CE,MATCH($C6,Loads!$D:$D,0),MATCH(BQ$4,Loads!$L$4:$CE$4,0)) -> 3009796.759 | BR6: =+INDEX(Loads!$L:$CE,MATCH($C6,Loads!$D:$D,0),MATCH(BR$4,Loads!$L$4:$CE$4,0)) -> 2472758.712 | BS6: =+INDEX(Loads!$L:$CE,MATCH($C6,Loads!$D:$D,0),MATCH(BS$4,Loads!$L$4:$CE$4,0)) -> 2628431.357 | BT6: =+INDEX(Loads!$L:$CE,MATCH($C6,Loads!$D:$D,0),MATCH(BT$4,Loads!$L$4:$CE$4,0)) -> 2758760.554 | BU6: =+INDEX(Loads!$L:$CE,MATCH($C6,Loads!$D:$D,0),MATCH(BU$4,Loads!$L$4:$CE$4,0)) -> 2878091.079 | BV6: =+INDEX(Loads!$L:$CE,MATCH($C6,Loads!$D:$D,0),MATCH(BV$4,Loads!$L$4:$CE$4,0)) -> 2960629.615 | BW6: =+INDEX(Loads!$L:$CE,MATCH($C6,Loads!$D:$D,0),MATCH(BW$4,Loads!$L$4:$CE$4,0)) -> 2613579.324
B7: LLH | C7: PRE | D7: =+INDEX(Loads!$CG:$EZ,MATCH($C7,Loads!$D:$D,0),MATCH(D$4,Loads!$CG$4:$EZ$4,0)) -> 1711976.133 | E7: =+INDEX(Loads!$CG:$EZ,MATCH($C7,Loads!$D:$D,0),MATCH(E$4,Loads!$CG$4:$EZ$4,0)) -> 2100676.401 | F7: =+INDEX(Loads!$CG:$EZ,MATCH($C7,Loads!$D:$D,0),MATCH(F$4,Loads!$CG$4:$EZ$4,0)) -> 2481647.956 | G7: =+INDEX(Loads!$CG:$EZ,MATCH($C7,Loads!$D:$D,0),MATCH(G$4,Loads!$CG$4:$EZ$4,0)) -> 2421878.653 | H7: =+INDEX(Loads!$CG:$EZ,MATCH($C7,Loads!$D:$D,0),MATCH(H$4,Loads!$CG$4:$EZ$4,0)) -> 1946998.585 | I7: =+INDEX(Loads!$CG:$EZ,MATCH($C7,Loads!$D:$D,0),MATCH(I$4,Loads!$CG$4:$EZ$4,0)) -> 1965563.07 | J7: =+INDEX(Loads!$CG:$EZ,MATCH($C7,Loads!$D:$D,0),MATCH(J$4,Loads!$CG$4:$EZ$4,0)) -> 1636396.312 | K7: =+INDEX(Loads!$CG:$EZ,MATCH($C7,Loads!$D:$D,0),MATCH(K$4,Loads!$CG$4:$EZ$4,0)) -> 1725175.994 | L7: =+INDEX(Loads!$CG:$EZ,MATCH($C7,Loads!$D:$D,0),MATCH(L$4,Loads!$CG$4:$EZ$4,0)) -> 1575249.077 | M7: =+INDEX(Loads!$CG:$EZ,MATCH($C7,Loads!$D:$D,0),MATCH(M$4,Loads!$CG$4:$EZ$4,0)) -> 1894679.116 | N7: =+INDEX(Loads!$CG:$EZ,MATCH($C7,Loads!$D:$D,0),MATCH(N$4,Loads!$CG$4:$EZ$4,0)) -> 1722930.744 | O7: =+INDEX(Loads!$CG:$EZ,MATCH($C7,Loads!$D:$D,0),MATCH(O$4,Loads!$CG$4:$EZ$4,0)) -> 1711643.015 | P7: =+INDEX(Loads!$CG:$EZ,MATCH($C7,Loads!$D:$D,0),MATCH(P$4,Loads!$CG$4:$EZ$4,0)) -> 1721962.12 | Q7: =+INDEX(Loads!$CG:$EZ,MATCH($C7,Loads!$D:$D,0),MATCH(Q$4,Loads!$CG$4:$EZ$4,0)) -> 2117401.702 | R7: =+INDEX(Loads!$CG:$EZ,MATCH($C7,Loads!$D:$D,0),MATCH(R$4,Loads!$CG$4:$EZ$4,0)) -> 2476926.445 | S7: =+INDEX(Loads!$CG:$EZ,MATCH($C7,Loads!$D:$D,0),MATCH(S$4,Loads!$CG$4:$EZ$4,0)) -> 2471344.788 | T7: =+INDEX(Loads!$CG:$EZ,MATCH($C7,Loads!$D:$D,0),MATCH(T$4,Loads!$CG$4:$EZ$4,0)) -> 1969906.558 | U7: =+INDEX(Loads!$CG:$EZ,MATCH($C7,Loads!$D:$D,0),MATCH(U$4,Loads!$CG$4:$EZ$4,0)) -> 1987135.133 | V7: =+INDEX(Loads!$CG:$EZ,MATCH($C7,Loads!$D:$D,0),MATCH(V$4,Loads!$CG$4:$EZ$4,0)) -> 1702027.277 | W7: =+INDEX(Loads!$CG:$EZ,MATCH($C7,Loads!$D:$D,0),MATCH(W$4,Loads!$CG$4:$EZ$4,0)) -> 1652455.757 | X7: =+INDEX(Loads!$CG:$EZ,MATCH($C7,Loads!$D:$D,0),MATCH(X$4,Loads!$CG$4:$EZ$4,0)) -> 1553324.059 | Y7: =+INDEX(Loads!$CG:$EZ,MATCH($C7,Loads!$D:$D,0),MATCH(Y$4,Loads!$CG$4:$EZ$4,0)) -> 1921586.428 | Z7: =+INDEX(Loads!$CG:$EZ,MATCH($C7,Loads!$D:$D,0),MATCH(Z$4,Loads!$CG$4:$EZ$4,0)) -> 1746287.399 | AA7: =+INDEX(Loads!$CG:$EZ,MATCH($C7,Loads!$D:$D,0),MATCH(AA$4,Loads!$CG$4:$EZ$4,0)) -> 1741720.164 | AB7: =+INDEX(Loads!$CG:$EZ,MATCH($C7,Loads!$D:$D,0),MATCH(AB$4,Loads!$CG$4:$EZ$4,0)) -> 1704861.079 | AC7: =+INDEX(Loads!$CG:$EZ,MATCH($C7,Loads!$D:$D,0),MATCH(AC$4,Loads!$CG$4:$EZ$4,0)) -> 2153146.691 | AD7: =+INDEX(Loads!$CG:$EZ,MATCH($C7,Loads!$D:$D,0),MATCH(AD$4,Loads!$CG$4:$EZ$4,0)) -> 2482253.888 | AE7: =+INDEX(Loads!$CG:$EZ,MATCH($C7,Loads!$D:$D,0),MATCH(AE$4,Loads!$CG$4:$EZ$4,0)) -> 2415000.069 | AF7: =+INDEX(Loads!$CG:$EZ,MATCH($C7,Loads!$D:$D,0),MATCH(AF$4,Loads!$CG$4:$EZ$4,0)) -> 1968187.424 | AG7: =+INDEX(Loads!$CG:$EZ,MATCH($C7,Loads!$D:$D,0),MATCH(AG$4,Loads!$CG$4:$EZ$4,0)) -> 1950993.315 | AH7: =+INDEX(Loads!$CG:$EZ,MATCH($C7,Loads!$D:$D,0),MATCH(AH$4,Loads!$CG$4:$EZ$4,0)) -> 1639947.498 | AI7: =+INDEX(Loads!$CG:$EZ,MATCH($C7,Loads!$D:$D,0),MATCH(AI$4,Loads!$CG$4:$EZ$4,0)) -> 1752429.595 | AJ7: =+INDEX(Loads!$CG:$EZ,MATCH($C7,Loads!$D:$D,0),MATCH(AJ$4,Loads!$CG$4:$EZ$4,0)) -> 1588485.707 | AK7: =+INDEX(Loads!$CG:$EZ,MATCH($C7,Loads!$D:$D,0),MATCH(AK$4,Loads!$CG$4:$EZ$4,0)) -> 1910410.67 | AL7: =+INDEX(Loads!$CG:$EZ,MATCH($C7,Loads!$D:$D,0),MATCH(AL$4,Loads!$CG$4:$EZ$4,0)) -> 1728379.818 | AM7: =+INDEX(Loads!$CG:$EZ,MATCH($C7,Loads!$D:$D,0),MATCH(AM$4,Loads!$CG$4:$EZ$4,0)) -> 1727694.467 | AN7: =+INDEX(Loads!$CG:$EZ,MATCH($C7,Loads!$D:$D,0),MATCH(AN$4,Loads!$CG$4:$EZ$4,0)) -> 1716412.617 | AO7: =+INDEX(Loads!$CG:$EZ,MATCH($C7,Loads!$D:$D,0),MATCH(AO$4,Loads!$CG$4:$EZ$4,0)) -> 2171750.037 | AP7: =+INDEX(Loads!$CG:$EZ,MATCH($C7,Loads!$D:$D,0),MATCH(AP$4,Loads!$CG$4:$EZ$4,0)) -> 2477032.604 | AQ7: =+INDEX(Loads!$CG:$EZ,MATCH($C7,Loads!$D:$D,0),MATCH(AQ$4,Loads!$CG$4:$EZ$4,0)) -> 2466080.282 | AR7: =+INDEX(Loads!$CG:$EZ,MATCH($C7,Loads!$D:$D,0),MATCH(AR$4,Loads!$CG$4:$EZ$4,0)) -> 1990854.039 | AS7: =+INDEX(Loads!$CG:$EZ,MATCH($C7,Loads!$D:$D,0),MATCH(AS$4,Loads!$CG$4:$EZ$4,0)) -> 1972280.138 | AT7: =+INDEX(Loads!$CG:$EZ,MATCH($C7,Loads!$D:$D,0),MATCH(AT$4,Loads!$CG$4:$EZ$4,0)) -> 1704903.582 | AU7: =+INDEX(Loads!$CG:$EZ,MATCH($C7,Loads!$D:$D,0),MATCH(AU$4,Loads!$CG$4:$EZ$4,0)) -> 1674079.15 | AV7: =+INDEX(Loads!$CG:$EZ,MATCH($C7,Loads!$D:$D,0),MATCH(AV$4,Loads!$CG$4:$EZ$4,0)) -> 1563980.108 | AW7: =+INDEX(Loads!$CG:$EZ,MATCH($C7,Loads!$D:$D,0),MATCH(AW$4,Loads!$CG$4:$EZ$4,0)) -> 1937546.808 | AX7: =+INDEX(Loads!$CG:$EZ,MATCH($C7,Loads!$D:$D,0),MATCH(AX$4,Loads!$CG$4:$EZ$4,0)) -> 1749849.562 | AY7: =+INDEX(Loads!$CG:$EZ,MATCH($C7,Loads!$D:$D,0),MATCH(AY$4,Loads!$CG$4:$EZ$4,0)) -> 1758250.541 | AZ7: =+INDEX(Loads!$CG:$EZ,MATCH($C7,Loads!$D:$D,0),MATCH(AZ$4,Loads!$CG$4:$EZ$4,0)) -> 1704861.079 | BA7: =+INDEX(Loads!$CG:$EZ,MATCH($C7,Loads!$D:$D,0),MATCH(BA$4,Loads!$CG$4:$EZ$4,0)) -> 2153146.691 | BB7: =+INDEX(Loads!$CG:$EZ,MATCH($C7,Loads!$D:$D,0),MATCH(BB$4,Loads!$CG$4:$EZ$4,0)) -> 2482253.888 | BC7: =+INDEX(Loads!$CG:$EZ,MATCH($C7,Loads!$D:$D,0),MATCH(BC$4,Loads!$CG$4:$EZ$4,0)) -> 2415000.069 | BD7: =+INDEX(Loads!$CG:$EZ,MATCH($C7,Loads!$D:$D,0),MATCH(BD$4,Loads!$CG$4:$EZ$4,0)) -> 1968187.424 | BE7: =+INDEX(Loads!$CG:$EZ,MATCH($C7,Loads!$D:$D,0),MATCH(BE$4,Loads!$CG$4:$EZ$4,0)) -> 1950993.315 | BF7: =+INDEX(Loads!$CG:$EZ,MATCH($C7,Loads!$D:$D,0),MATCH(BF$4,Loads!$CG$4:$EZ$4,0)) -> 1639947.498 | BG7: =+INDEX(Loads!$CG:$EZ,MATCH($C7,Loads!$D:$D,0),MATCH(BG$4,Loads!$CG$4:$EZ$4,0)) -> 1752429.595 | BH7: =+INDEX(Loads!$CG:$EZ,MATCH($C7,Loads!$D:$D,0),MATCH(BH$4,Loads!$CG$4:$EZ$4,0)) -> 1588485.707 | BI7: =+INDEX(Loads!$CG:$EZ,MATCH($C7,Loads!$D:$D,0),MATCH(BI$4,Loads!$CG$4:$EZ$4,0)) -> 1910410.67 | BJ7: =+INDEX(Loads!$CG:$EZ,MATCH($C7,Loads!$D:$D,0),MATCH(BJ$4,Loads!$CG$4:$EZ$4,0)) -> 1728379.818 | BK7: =+INDEX(Loads!$CG:$EZ,MATCH($C7,Loads!$D:$D,0),MATCH(BK$4,Loads!$CG$4:$EZ$4,0)) -> 1727694.467 | BL7: =+INDEX(Loads!$CG:$EZ,MATCH($C7,Loads!$D:$D,0),MATCH(BL$4,Loads!$CG$4:$EZ$4,0)) -> 1716412.617 | BM7: =+INDEX(Loads!$CG:$EZ,MATCH($C7,Loads!$D:$D,0),MATCH(BM$4,Loads!$CG$4:$EZ$4,0)) -> 2171750.037 | BN7: =+INDEX(Loads!$CG:$EZ,MATCH($C7,Loads!$D:$D,0),MATCH(BN$4,Loads!$CG$4:$EZ$4,0)) -> 2477032.604 | BO7: =+INDEX(Loads!$CG:$EZ,MATCH($C7,Loads!$D:$D,0),MATCH(BO$4,Loads!$CG$4:$EZ$4,0)) -> 2466080.282 | BP7: =+INDEX(Loads!$CG:$EZ,MATCH($C7,Loads!$D:$D,0),MATCH(BP$4,Loads!$CG$4:$EZ$4,0)) -> 1990854.039 | BQ7: =+INDEX(Loads!$CG:$EZ,MATCH($C7,Loads!$D:$D,0),MATCH(BQ$4,Loads!$CG$4:$EZ$4,0)) -> 1972280.138 | BR7: =+INDEX(Loads!$CG:$EZ,MATCH($C7,Loads!$D:$D,0),MATCH(BR$4,Loads!$CG$4:$EZ$4,0)) -> 1704903.582 | BS7: =+INDEX(Loads!$CG:$EZ,MATCH($C7,Loads!$D:$D,0),MATCH(BS$4,Loads!$CG$4:$EZ$4,0)) -> 1674079.15 | BT7: =+INDEX(Loads!$CG:$EZ,MATCH($C7,Loads!$D:$D,0),MATCH(BT$4,Loads!$CG$4:$EZ$4,0)) -> 1563980.108 | BU7: =+INDEX(Loads!$CG:$EZ,MATCH($C7,Loads!$D:$D,0),MATCH(BU$4,Loads!$CG$4:$EZ$4,0)) -> 1937546.808 | BV7: =+INDEX(Loads!$CG:$EZ,MATCH($C7,Loads!$D:$D,0),MATCH(BV$4,Loads!$CG$4:$EZ$4,0)) -> 1749849.562 | BW7: =+INDEX(Loads!$CG:$EZ,MATCH($C7,Loads!$D:$D,0),MATCH(BW$4,Loads!$CG$4:$EZ$4,0)) -> 1758250.541
B8: Undistrubuted Conservation
B9: HLH | C9: CON | D9: =+INDEX(Loads!$L:$CE,MATCH($C9,Loads!$D:$D,0),MATCH(D$4,Loads!$L$4:$CE$4,0)) -> 0 | E9: =+INDEX(Loads!$L:$CE,MATCH($C9,Loads!$D:$D,0),MATCH(E$4,Loads!$L$4:$CE$4,0)) -> 0 | F9: =+INDEX(Loads!$L:$CE,MATCH($C9,Loads!$D:$D,0),MATCH(F$4,Loads!$L$4:$CE$4,0)) -> 0 | G9: =+INDEX(Loads!$L:$CE,MATCH($C9,Loads!$D:$D,0),MATCH(G$4,Loads!$L$4:$CE$4,0)) -> 0 | H9: =+INDEX(Loads!$L:$CE,MATCH($C9,Loads!$D:$D,0),MATCH(H$4,Loads!$L$4:$CE$4,0)) -> 0 | I9: =+INDEX(Loads!$L:$CE,MATCH($C9,Loads!$D:$D,0),MATCH(I$4,Loads!$L$4:$CE$4,0)) -> 0 | J9: =+INDEX(Loads!$L:$CE,MATCH($C9,Loads!$D:$D,0),MATCH(J$4,Loads!$L$4:$CE$4,0)) -> 0 | K9: =+INDEX(Loads!$L:$CE,MATCH($C9,Loads!$D:$D,0),MATCH(K$4,Loads!$L$4:$CE$4,0)) -> 0 | L9: =+INDEX(Loads!$L:$CE,MATCH($C9,Loads!$D:$D,0),MATCH(L$4,Loads!$L$4:$CE$4,0)) -> 0 | M9: =+INDEX(Loads!$L:$CE,MATCH($C9,Loads!$D:$D,0),MATCH(M$4,Loads!$L$4:$CE$4,0)) -> 0 | N9: =+INDEX(Loads!$L:$CE,MATCH($C9,Loads!$D:$D,0),MATCH(N$4,Loads!$L$4:$CE$4,0)) -> 0 | O9: =+INDEX(Loads!$L:$CE,MATCH($C9,Loads!$D:$D,0),MATCH(O$4,Loads!$L$4:$CE$4,0)) -> 0 | P9: =+INDEX(Loads!$L:$CE,MATCH($C9,Loads!$D:$D,0),MATCH(P$4,Loads!$L$4:$CE$4,0)) -> 0 | Q9: =+INDEX(Loads!$L:$CE,MATCH($C9,Loads!$D:$D,0),MATCH(Q$4,Loads!$L$4:$CE$4,0)) -> 0 | R9: =+INDEX(Loads!$L:$CE,MATCH($C9,Loads!$D:$D,0),MATCH(R$4,Loads!$L$4:$CE$4,0)) -> 0 | S9: =+INDEX(Loads!$L:$CE,MATCH($C9,Loads!$D:$D,0),MATCH(S$4,Loads!$L$4:$CE$4,0)) -> 0 | T9: =+INDEX(Loads!$L:$CE,MATCH($C9,Loads!$D:$D,0),MATCH(T$4,Loads!$L$4:$CE$4,0)) -> 0 | U9: =+INDEX(Loads!$L:$CE,MATCH($C9,Loads!$D:$D,0),MATCH(U$4,Loads!$L$4:$CE$4,0)) -> 0 | V9: =+INDEX(Loads!$L:$CE,MATCH($C9,Loads!$D:$D,0),MATCH(V$4,Loads!$L$4:$CE$4,0)) -> 0 | W9: =+INDEX(Loads!$L:$CE,MATCH($C9,Loads!$D:$D,0),MATCH(W$4,Loads!$L$4:$CE$4,0)) -> 0 | X9: =+INDEX(Loads!$L:$CE,MATCH($C9,Loads!$D:$D,0),MATCH(X$4,Loads!$L$4:$CE$4,0)) -> 0 | Y9: =+INDEX(Loads!$L:$CE,MATCH($C9,Loads!$D:$D,0),MATCH(Y$4,Loads!$L$4:$CE$4,0)) -> 0 | Z9: =+INDEX(Loads!$L:$CE,MATCH($C9,Loads!$D:$D,0),MATCH(Z$4,Loads!$L$4:$CE$4,0)) -> 0 | AA9: =+INDEX(Loads!$L:$CE,MATCH($C9,Loads!$D:$D,0),MATCH(AA$4,Loads!$L$4:$CE$4,0)) -> 0 | AB9: =+INDEX(Loads!$L:$CE,MATCH($C9,Loads!$D:$D,0),MATCH(AB$4,Loads!$L$4:$CE$4,0)) -> 0 | AC9: =+INDEX(Loads!$L:$CE,MATCH($C9,Loads!$D:$D,0),MATCH(AC$4,Loads!$L$4:$CE$4,0)) -> 0 | AD9: =+INDEX(Loads!$L:$CE,MATCH($C9,Loads!$D:$D,0),MATCH(AD$4,Loads!$L$4:$CE$4,0)) -> 0 | AE9: =+INDEX(Loads!$L:$CE,MATCH($C9,Loads!$D:$D,0),MATCH(AE$4,Loads!$L$4:$CE$4,0)) -> 0 | AF9: =+INDEX(Loads!$L:$CE,MATCH($C9,Loads!$D:$D,0),MATCH(AF$4,Loads!$L$4:$CE$4,0)) -> 0 | AG9: =+INDEX(Loads!$L:$CE,MATCH($C9,Loads!$D:$D,0),MATCH(AG$4,Loads!$L$4:$CE$4,0)) -> 0 | AH9: =+INDEX(Loads!$L:$CE,MATCH($C9,Loads!$D:$D,0),MATCH(AH$4,Loads!$L$4:$CE$4,0)) -> 0 | AI9: =+INDEX(Loads!$L:$CE,MATCH($C9,Loads!$D:$D,0),MATCH(AI$4,Loads!$L$4:$CE$4,0)) -> 0 | AJ9: =+INDEX(Loads!$L:$CE,MATCH($C9,Loads!$D:$D,0),MATCH(AJ$4,Loads!$L$4:$CE$4,0)) -> 0 | AK9: =+INDEX(Loads!$L:$CE,MATCH($C9,Loads!$D:$D,0),MATCH(AK$4,Loads!$L$4:$CE$4,0)) -> 0 | AL9: =+INDEX(Loads!$L:$CE,MATCH($C9,Loads!$D:$D,0),MATCH(AL$4,Loads!$L$4:$CE$4,0)) -> 0 | AM9: =+INDEX(Loads!$L:$CE,MATCH($C9,Loads!$D:$D,0),MATCH(AM$4,Loads!$L$4:$CE$4,0)) -> 0 | AN9: =+INDEX(Loads!$L:$CE,MATCH($C9,Loads!$D:$D,0),MATCH(AN$4,Loads!$L$4:$CE$4,0)) -> 0 | AO9: =+INDEX(Loads!$L:$CE,MATCH($C9,Loads!$D:$D,0),MATCH(AO$4,Loads!$L$4:$CE$4,0)) -> 0 | AP9: =+INDEX(Loads!$L:$CE,MATCH($C9,Loads!$D:$D,0),MATCH(AP$4,Loads!$L$4:$CE$4,0)) -> 0 | AQ9: =+INDEX(Loads!$L:$CE,MATCH($C9,Loads!$D:$D,0),MATCH(AQ$4,Loads!$L$4:$CE$4,0)) -> 0 | AR9: =+INDEX(Loads!$L:$CE,MATCH($C9,Loads!$D:$D,0),MATCH(AR$4,Loads!$L$4:$CE$4,0)) -> 0 | AS9: =+INDEX(Loads!$L:$CE,MATCH($C9,Loads!$D:$D,0),MATCH(AS$4,Loads!$L$4:$CE$4,0)) -> 0 | AT9: =+INDEX(Loads!$L:$CE,MATCH($C9,Loads!$D:$D,0),MATCH(AT$4,Loads!$L$4:$CE$4,0)) -> 0 | AU9: =+INDEX(Loads!$L:$CE,MATCH($C9,Loads!$D:$D,0),MATCH(AU$4,Loads!$L$4:$CE$4,0)) -> 0 | AV9: =+INDEX(Loads!$L:$CE,MATCH($C9,Loads!$D:$D,0),MATCH(AV$4,Loads!$L$4:$CE$4,0)) -> 0 | AW9: =+INDEX(Loads!$L:$CE,MATCH($C9,Loads!$D:$D,0),MATCH(AW$4,Loads!$L$4:$CE$4,0)) -> 0 | AX9: =+INDEX(Loads!$L:$CE,MATCH($C9,Loads!$D:$D,0),MATCH(AX$4,Loads!$L$4:$CE$4,0)) -> 0 | AY9: =+INDEX(Loads!$L:$CE,MATCH($C9,Loads!$D:$D,0),MATCH(AY$4,Loads!$L$4:$CE$4,0)) -> 0 | AZ9: =+INDEX(Loads!$L:$CE,MATCH($C9,Loads!$D:$D,0),MATCH(AZ$4,Loads!$L$4:$CE$4,0)) -> 0 | BA9: =+INDEX(Loads!$L:$CE,MATCH($C9,Loads!$D:$D,0),MATCH(BA$4,Loads!$L$4:$CE$4,0)) -> 0 | BB9: =+INDEX(Loads!$L:$CE,MATCH($C9,Loads!$D:$D,0),MATCH(BB$4,Loads!$L$4:$CE$4,0)) -> 0 | BC9: =+INDEX(Loads!$L:$CE,MATCH($C9,Loads!$D:$D,0),MATCH(BC$4,Loads!$L$4:$CE$4,0)) -> 0 | BD9: =+INDEX(Loads!$L:$CE,MATCH($C9,Loads!$D:$D,0),MATCH(BD$4,Loads!$L$4:$CE$4,0)) -> 0 | BE9: =+INDEX(Loads!$L:$CE,MATCH($C9,Loads!$D:$D,0),MATCH(BE$4,Loads!$L$4:$CE$4,0)) -> 0 | BF9: =+INDEX(Loads!$L:$CE,MATCH($C9,Loads!$D:$D,0),MATCH(BF$4,Loads!$L$4:$CE$4,0)) -> 0 | BG9: =+INDEX(Loads!$L:$CE,MATCH($C9,Loads!$D:$D,0),MATCH(BG$4,Loads!$L$4:$CE$4,0)) -> 0 | BH9: =+INDEX(Loads!$L:$CE,MATCH($C9,Loads!$D:$D,0),MATCH(BH$4,Loads!$L$4:$CE$4,0)) -> 0 | BI9: =+INDEX(Loads!$L:$CE,MATCH($C9,Loads!$D:$D,0),MATCH(BI$4,Loads!$L$4:$CE$4,0)) -> 0 | BJ9: =+INDEX(Loads!$L:$CE,MATCH($C9,Loads!$D:$D,0),MATCH(BJ$4,Loads!$L$4:$CE$4,0)) -> 0 | BK9: =+INDEX(Loads!$L:$CE,MATCH($C9,Loads!$D:$D,0),MATCH(BK$4,Loads!$L$4:$CE$4,0)) -> 0 | BL9: =+INDEX(Loads!$L:$CE,MATCH($C9,Loads!$D:$D,0),MATCH(BL$4,Loads!$L$4:$CE$4,0)) -> 0 | BM9: =+INDEX(Loads!$L:$CE,MATCH($C9,Loads!$D:$D,0),MATCH(BM$4,Loads!$L$4:$CE$4,0)) -> 0 | BN9: =+INDEX(Loads!$L:$CE,MATCH($C9,Loads!$D:$D,0),MATCH(BN$4,Loads!$L$4:$CE$4,0)) -> 0 | BO9: =+INDEX(Loads!$L:$CE,MATCH($C9,Loads!$D:$D,0),MATCH(BO$4,Loads!$L$4:$CE$4,0)) -> 0 | BP9: =+INDEX(Loads!$L:$CE,MATCH($C9,Loads!$D:$D,0),MATCH(BP$4,Loads!$L$4:$CE$4,0)) -> 0 | BQ9: =+INDEX(Loads!$L:$CE,MATCH($C9,Loads!$D:$D,0),MATCH(BQ$4,Loads!$L$4:$CE$4,0)) -> 0 | BR9: =+INDEX(Loads!$L:$CE,MATCH($C9,Loads!$D:$D,0),MATCH(BR$4,Loads!$L$4:$CE$4,0)) -> 0 | BS9: =+INDEX(Loads!$L:$CE,MATCH($C9,Loads!$D:$D,0),MATCH(BS$4,Loads!$L$4:$CE$4,0)) -> 0 | BT9: =+INDEX(Loads!$L:$CE,MATCH($C9,Loads!$D:$D,0),MATCH(BT$4,Loads!$L$4:$CE$4,0)) -> 0 | BU9: =+INDEX(Loads!$L:$CE,MATCH($C9,Loads!$D:$D,0),MATCH(BU$4,Loads!$L$4:$CE$4,0)) -> 0 | BV9: =+INDEX(Loads!$L:$CE,MATCH($C9,Loads!$D:$D,0),MATCH(BV$4,Loads!$L$4:$CE$4,0)) -> 0 | BW9: =+INDEX(Loads!$L:$CE,MATCH($C9,Loads!$D:$D,0),MATCH(BW$4,Loads!$L$4:$CE$4,0)) -> 0
B10: LLH | C10: CON | D10: =+INDEX(Loads!$CG:$EZ,MATCH($C10,Loads!$D:$D,0),MATCH(D$4,Loads!$CG$4:$EZ$4,0)) -> 0 | E10: =+INDEX(Loads!$CG:$EZ,MATCH($C10,Loads!$D:$D,0),MATCH(E$4,Loads!$CG$4:$EZ$4,0)) -> 0 | F10: =+INDEX(Loads!$CG:$EZ,MATCH($C10,Loads!$D:$D,0),MATCH(F$4,Loads!$CG$4:$EZ$4,0)) -> 0 | G10: =+INDEX(Loads!$CG:$EZ,MATCH($C10,Loads!$D:$D,0),MATCH(G$4,Loads!$CG$4:$EZ$4,0)) -> 0 | H10: =+INDEX(Loads!$CG:$EZ,MATCH($C10,Loads!$D:$D,0),MATCH(H$4,Loads!$CG$4:$EZ$4,0)) -> 0 | I10: =+INDEX(Loads!$CG:$EZ,MATCH($C10,Loads!$D:$D,0),MATCH(I$4,Loads!$CG$4:$EZ$4,0)) -> 0 | J10: =+INDEX(Loads!$CG:$EZ,MATCH($C10,Loads!$D:$D,0),MATCH(J$4,Loads!$CG$4:$EZ$4,0)) -> 0 | K10: =+INDEX(Loads!$CG:$EZ,MATCH($C10,Loads!$D:$D,0),MATCH(K$4,Loads!$CG$4:$EZ$4,0)) -> 0 | L10: =+INDEX(Loads!$CG:$EZ,MATCH($C10,Loads!$D:$D,0),MATCH(L$4,Loads!$CG$4:$EZ$4,0)) -> 0 | M10: =+INDEX(Loads!$CG:$EZ,MATCH($C10,Loads!$D:$D,0),MATCH(M$4,Loads!$CG$4:$EZ$4,0)) -> 0 | N10: =+INDEX(Loads!$CG:$EZ,MATCH($C10,Loads!$D:$D,0),MATCH(N$4,Loads!$CG$4:$EZ$4,0)) -> 0 | O10: =+INDEX(Loads!$CG:$EZ,MATCH($C10,Loads!$D:$D,0),MATCH(O$4,Loads!$CG$4:$EZ$4,0)) -> 0 | P10: =+INDEX(Loads!$CG:$EZ,MATCH($C10,Loads!$D:$D,0),MATCH(P$4,Loads!$CG$4:$EZ$4,0)) -> 0 | Q10: =+INDEX(Loads!$CG:$EZ,MATCH($C10,Loads!$D:$D,0),MATCH(Q$4,Loads!$CG$4:$EZ$4,0)) -> 0 | R10: =+INDEX(Loads!$CG:$EZ,MATCH($C10,Loads!$D:$D,0),MATCH(R$4,Loads!$CG$4:$EZ$4,0)) -> 0 | S10: =+INDEX(Loads!$CG:$EZ,MATCH($C10,Loads!$D:$D,0),MATCH(S$4,Loads!$CG$4:$EZ$4,0)) -> 0 | T10: =+INDEX(Loads!$CG:$EZ,MATCH($C10,Loads!$D:$D,0),MATCH(T$4,Loads!$CG$4:$EZ$4,0)) -> 0 | U10: =+INDEX(Loads!$CG:$EZ,MATCH($C10,Loads!$D:$D,0),MATCH(U$4,Loads!$CG$4:$EZ$4,0)) -> 0 | V10: =+INDEX(Loads!$CG:$EZ,MATCH($C10,Loads!$D:$D,0),MATCH(V$4,Loads!$CG$4:$EZ$4,0)) -> 0 | W10: =+INDEX(Loads!$CG:$EZ,MATCH($C10,Loads!$D:$D,0),MATCH(W$4,Loads!$CG$4:$EZ$4,0)) -> 0 | X10: =+INDEX(Loads!$CG:$EZ,MATCH($C10,Loads!$D:$D,0),MATCH(X$4,Loads!$CG$4:$EZ$4,0)) -> 0 | Y10: =+INDEX(Loads!$CG:$EZ,MATCH($C10,Loads!$D:$D,0),MATCH(Y$4,Loads!$CG$4:$EZ$4,0)) -> 0 | Z10: =+INDEX(Loads!$CG:$EZ,MATCH($C10,Loads!$D:$D,0),MATCH(Z$4,Loads!$CG$4:$EZ$4,0)) -> 0 | AA10: =+INDEX(Loads!$CG:$EZ,MATCH($C10,Loads!$D:$D,0),MATCH(AA$4,Loads!$CG$4:$EZ$4,0)) -> 0 | AB10: =+INDEX(Loads!$CG:$EZ,MATCH($C10,Loads!$D:$D,0),MATCH(AB$4,Loads!$CG$4:$EZ$4,0)) -> 0 | AC10: =+INDEX(Loads!$CG:$EZ,MATCH($C10,Loads!$D:$D,0),MATCH(AC$4,Loads!$CG$4:$EZ$4,0)) -> 0 | AD10: =+INDEX(Loads!$CG:$EZ,MATCH($C10,Loads!$D:$D,0),MATCH(AD$4,Loads!$CG$4:$EZ$4,0)) -> 0 | AE10: =+INDEX(Loads!$CG:$EZ,MATCH($C10,Loads!$D:$D,0),MATCH(AE$4,Loads!$CG$4:$EZ$4,0)) -> 0 | AF10: =+INDEX(Loads!$CG:$EZ,MATCH($C10,Loads!$D:$D,0),MATCH(AF$4,Loads!$CG$4:$EZ$4,0)) -> 0 | AG10: =+INDEX(Loads!$CG:$EZ,MATCH($C10,Loads!$D:$D,0),MATCH(AG$4,Loads!$CG$4:$EZ$4,0)) -> 0 | AH10: =+INDEX(Loads!$CG:$EZ,MATCH($C10,Loads!$D:$D,0),MATCH(AH$4,Loads!$CG$4:$EZ$4,0)) -> 0 | AI10: =+INDEX(Loads!$CG:$EZ,MATCH($C10,Loads!$D:$D,0),MATCH(AI$4,Loads!$CG$4:$EZ$4,0)) -> 0 | AJ10: =+INDEX(Loads!$CG:$EZ,MATCH($C10,Loads!$D:$D,0),MATCH(AJ$4,Loads!$CG$4:$EZ$4,0)) -> 0 | AK10: =+INDEX(Loads!$CG:$EZ,MATCH($C10,Loads!$D:$D,0),MATCH(AK$4,Loads!$CG$4:$EZ$4,0)) -> 0 | AL10: =+INDEX(Loads!$CG:$EZ,MATCH($C10,Loads!$D:$D,0),MATCH(AL$4,Loads!$CG$4:$EZ$4,0)) -> 0 | AM10: =+INDEX(Loads!$CG:$EZ,MATCH($C10,Loads!$D:$D,0),MATCH(AM$4,Loads!$CG$4:$EZ$4,0)) -> 0 | AN10: =+INDEX(Loads!$CG:$EZ,MATCH($C10,Loads!$D:$D,0),MATCH(AN$4,Loads!$CG$4:$EZ$4,0)) -> 0 | AO10: =+INDEX(Loads!$CG:$EZ,MATCH($C10,Loads!$D:$D,0),MATCH(AO$4,Loads!$CG$4:$EZ$4,0)) -> 0 | AP10: =+INDEX(Loads!$CG:$EZ,MATCH($C10,Loads!$D:$D,0),MATCH(AP$4,Loads!$CG$4:$EZ$4,0)) -> 0 | AQ10: =+INDEX(Loads!$CG:$EZ,MATCH($C10,Loads!$D:$D,0),MATCH(AQ$4,Loads!$CG$4:$EZ$4,0)) -> 0 | AR10: =+INDEX(Loads!$CG:$EZ,MATCH($C10,Loads!$D:$D,0),MATCH(AR$4,Loads!$CG$4:$EZ$4,0)) -> 0 | AS10: =+INDEX(Loads!$CG:$EZ,MATCH($C10,Loads!$D:$D,0),MATCH(AS$4,Loads!$CG$4:$EZ$4,0)) -> 0 | AT10: =+INDEX(Loads!$CG:$EZ,MATCH($C10,Loads!$D:$D,0),MATCH(AT$4,Loads!$CG$4:$EZ$4,0)) -> 0 | AU10: =+INDEX(Loads!$CG:$EZ,MATCH($C10,Loads!$D:$D,0),MATCH(AU$4,Loads!$CG$4:$EZ$4,0)) -> 0 | AV10: =+INDEX(Loads!$CG:$EZ,MATCH($C10,Loads!$D:$D,0),MATCH(AV$4,Loads!$CG$4:$EZ$4,0)) -> 0 | AW10: =+INDEX(Loads!$CG:$EZ,MATCH($C10,Loads!$D:$D,0),MATCH(AW$4,Loads!$CG$4:$EZ$4,0)) -> 0 | AX10: =+INDEX(Loads!$CG:$EZ,MATCH($C10,Loads!$D:$D,0),MATCH(AX$4,Loads!$CG$4:$EZ$4,0)) -> 0 | AY10: =+INDEX(Loads!$CG:$EZ,MATCH($C10,Loads!$D:$D,0),MATCH(AY$4,Loads!$CG$4:$EZ$4,0)) -> 0 | AZ10: =+INDEX(Loads!$CG:$EZ,MATCH($C10,Loads!$D:$D,0),MATCH(AZ$4,Loads!$CG$4:$EZ$4,0)) -> 0 | BA10: =+INDEX(Loads!$CG:$EZ,MATCH($C10,Loads!$D:$D,0),MATCH(BA$4,Loads!$CG$4:$EZ$4,0)) -> 0 | BB10: =+INDEX(Loads!$CG:$EZ,MATCH($C10,Loads!$D:$D,0),MATCH(BB$4,Loads!$CG$4:$EZ$4,0)) -> 0 | BC10: =+INDEX(Loads!$CG:$EZ,MATCH($C10,Loads!$D:$D,0),MATCH(BC$4,Loads!$CG$4:$EZ$4,0)) -> 0 | BD10: =+INDEX(Loads!$CG:$EZ,MATCH($C10,Loads!$D:$D,0),MATCH(BD$4,Loads!$CG$4:$EZ$4,0)) -> 0 | BE10: =+INDEX(Loads!$CG:$EZ,MATCH($C10,Loads!$D:$D,0),MATCH(BE$4,Loads!$CG$4:$EZ$4,0)) -> 0 | BF10: =+INDEX(Loads!$CG:$EZ,MATCH($C10,Loads!$D:$D,0),MATCH(BF$4,Loads!$CG$4:$EZ$4,0)) -> 0 | BG10: =+INDEX(Loads!$CG:$EZ,MATCH($C10,Loads!$D:$D,0),MATCH(BG$4,Loads!$CG$4:$EZ$4,0)) -> 0 | BH10: =+INDEX(Loads!$CG:$EZ,MATCH($C10,Loads!$D:$D,0),MATCH(BH$4,Loads!$CG$4:$EZ$4,0)) -> 0 | BI10: =+INDEX(Loads!$CG:$EZ,MATCH($C10,Loads!$D:$D,0),MATCH(BI$4,Loads!$CG$4:$EZ$4,0)) -> 0 | BJ10: =+INDEX(Loads!$CG:$EZ,MATCH($C10,Loads!$D:$D,0),MATCH(BJ$4,Loads!$CG$4:$EZ$4,0)) -> 0 | BK10: =+INDEX(Loads!$CG:$EZ,MATCH($C10,Loads!$D:$D,0),MATCH(BK$4,Loads!$CG$4:$EZ$4,0)) -> 0 | BL10: =+INDEX(Loads!$CG:$EZ,MATCH($C10,Loads!$D:$D,0),MATCH(BL$4,Loads!$CG$4:$EZ$4,0)) -> 0 | BM10: =+INDEX(Loads!$CG:$EZ,MATCH($C10,Loads!$D:$D,0),MATCH(BM$4,Loads!$CG$4:$EZ$4,0)) -> 0 | BN10: =+INDEX(Loads!$CG:$EZ,MATCH($C10,Loads!$D:$D,0),MATCH(BN$4,Loads!$CG$4:$EZ$4,0)) -> 0 | BO10: =+INDEX(Loads!$CG:$EZ,MATCH($C10,Loads!$D:$D,0),MATCH(BO$4,Loads!$CG$4:$EZ$4,0)) -> 0 | BP10: =+INDEX(Loads!$CG:$EZ,MATCH($C10,Loads!$D:$D,0),MATCH(BP$4,Loads!$CG$4:$EZ$4,0)) -> 0 | BQ10: =+INDEX(Loads!$CG:$EZ,MATCH($C10,Loads!$D:$D,0),MATCH(BQ$4,Loads!$CG$4:$EZ$4,0)) -> 0 | BR10: =+INDEX(Loads!$CG:$EZ,MATCH($C10,Loads!$D:$D,0),MATCH(BR$4,Loads!$CG$4:$EZ$4,0)) -> 0 | BS10: =+INDEX(Loads!$CG:$EZ,MATCH($C10,Loads!$D:$D,0),MATCH(BS$4,Loads!$CG$4:$EZ$4,0)) -> 0 | BT10: =+INDEX(Loads!$CG:$EZ,MATCH($C10,Loads!$D:$D,0),MATCH(BT$4,Loads!$CG$4:$EZ$4,0)) -> 0 | BU10: =+INDEX(Loads!$CG:$EZ,MATCH($C10,Loads!$D:$D,0),MATCH(BU$4,Loads!$CG$4:$EZ$4,0)) -> 0 | BV10: =+INDEX(Loads!$CG:$EZ,MATCH($C10,Loads!$D:$D,0),MATCH(BV$4,Loads!$CG$4:$EZ$4,0)) -> 0 | BW10: =+INDEX(Loads!$CG:$EZ,MATCH($C10,Loads!$D:$D,0),MATCH(BW$4,Loads!$CG$4:$EZ$4,0)) -> 0
B11: Public Load
B12: HLH | C12: PRE | D12: =+D6+D9 -> 2632603.448 | E12: =+E6+E9 -> 3020734.101 | F12: 3383739.639 | G12: 3262342.751 | H12: 2828177.244 | I12: 2989277.209 | J12: 2490490.657 | K12: 2596543.13 | L12: 2783828.22 | M12: 2848503.731 | N12: 2923484.155 | O12: 2562607.356 | P12: 2660206.663 | Q12: 3058206.531 | R12: 3450553.974 | S12: 3277283.628 | T12: 2861749.837 | U12: 3026330.538 | V12: 2478652.701 | W12: 2603794.151 | X12: 2748815.275 | Y12: 2874517.666 | Z12: 2955545.762 | AA12: 2596477.801 | AB12: 2619528.883 | AC12: 3083324.255 | AD12: 3380417.903 | AE12: 3229616.655 | AF12: 2855668.946 | AG12: 2970379.242 | AH12: 2490150.419 | AI12: 2624404.533 | AJ12: 2799063.386 | AK12: 2857431.516 | AL12: 2929335.1 | AM12: 2580324.78 | AN12: 2646803.148 | AO12: 3126123.011 | AP12: 3448106.874 | AQ12: 3243939.709 | AR12: 2888466.741 | AS12: 3009796.759 | AT12: 2472758.712 | AU12: 2628431.357 | AV12: 2758760.554 | AW12: 2878091.079 | AX12: 2960629.615 | AY12: 2613579.324 | AZ12: 2619528.883 | BA12: 3083324.255 | BB12: 3380417.903 | BC12: 3229616.655 | BD12: 2855668.946 | BE12: 2970379.242 | BF12: 2490150.419 | BG12: 2624404.533 | BH12: 2799063.386 | BI12: 2857431.516 | BJ12: 2929335.1 | BK12: 2580324.78 | BL12: 2646803.148 | BM12: 3126123.011 | BN12: 3448106.874 | BO12: 3243939.709 | BP12: 2888466.741 | BQ12: =+BQ6+BQ9 -> 3009796.759 | BR12: 2472758.712 | BS12: 2628431.357 | BT12: 2758760.554 | BU12: 2878091.079 | BV12: 2960629.615 | BW12: 2613579.324
B13: LLH | C13: PRE | D13: =+D7+D10 -> 1711976.133 | E13: 2100676.401 | F13: 2481647.956 | G13: 2421878.653 | H13: 1946998.585 | I13: 1965563.07 | J13: 1636396.312 | K13: 1725175.994 | L13: 1575249.077 | M13: 1894679.116 | N13: 1722930.744 | O13: 1711643.015 | P13: 1721962.12 | Q13: 2117401.702 | R13: 2476926.445 | S13: 2471344.788 | T13: 1969906.558 | U13: 1987135.133 | V13: 1702027.277 | W13: 1652455.757 | X13: 1553324.059 | Y13: 1921586.428 | Z13: 1746287.399 | AA13: 1741720.164 | AB13: 1704861.079 | AC13: 2153146.691 | AD13: 2482253.888 | AE13: 2415000.069 | AF13: 1968187.424 | AG13: 1950993.315 | AH13: 1639947.498 | AI13: 1752429.595 | AJ13: 1588485.707 | AK13: 1910410.67 | AL13: 1728379.818 | AM13: 1727694.467 | AN13: 1716412.617 | AO13: 2171750.037 | AP13: 2477032.604 | AQ13: 2466080.282 | AR13: 1990854.039 | AS13: 1972280.138 | AT13: 1704903.582 | AU13: 1674079.15 | AV13: 1563980.108 | AW13: 1937546.808 | AX13: 1749849.562 | AY13: 1758250.541 | AZ13: 1704861.079 | BA13: 2153146.691 | BB13: 2482253.888 | BC13: 2415000.069 | BD13: 1968187.424 | BE13: 1950993.315 | BF13: 1639947.498 | BG13: 1752429.595 | BH13: 1588485.707 | BI13: 1910410.67 | BJ13: 1728379.818 | BK13: 1727694.467 | BL13: 1716412.617 | BM13: 2171750.037 | BN13: 2477032.604 | BO13: 2466080.282 | BP13: =+BP7+BP10 -> 1990854.039 | BQ13: 1972280.138 | BR13: 1704903.582 | BS13: 1674079.15 | BT13: 1563980.108 | BU13: 1937546.808 | BV13: 1749849.562 | BW13: 1758250.541
B14: Tier 2 Load
B15: HLH | C15: PRE_T2 | D15: =+INDEX(Loads!$L:$CE,MATCH($C15,Loads!$D:$D,0),MATCH(D$4,Loads!$L$4:$CE$4,0)) -> 65141.44 | E15: =+INDEX(Loads!$L:$CE,MATCH($C15,Loads!$D:$D,0),MATCH(E$4,Loads!$L$4:$CE$4,0)) -> 62636 | F15: =+INDEX(Loads!$L:$CE,MATCH($C15,Loads!$D:$D,0),MATCH(F$4,Loads!$L$4:$CE$4,0)) -> 65141.44 | G15: =+INDEX(Loads!$L:$CE,MATCH($C15,Loads!$D:$D,0),MATCH(G$4,Loads!$L$4:$CE$4,0)) -> 62636 | H15: =+INDEX(Loads!$L:$CE,MATCH($C15,Loads!$D:$D,0),MATCH(H$4,Loads!$L$4:$CE$4,0)) -> 60130.56 | I15: =+INDEX(Loads!$L:$CE,MATCH($C15,Loads!$D:$D,0),MATCH(I$4,Loads!$L$4:$CE$4,0)) -> 67646.88 | J15: =+INDEX(Loads!$L:$CE,MATCH($C15,Loads!$D:$D,0),MATCH(J$4,Loads!$L$4:$CE$4,0)) -> 65141.44 | K15: =+INDEX(Loads!$L:$CE,MATCH($C15,Loads!$D:$D,0),MATCH(K$4,Loads!$L$4:$CE$4,0)) -> 62636 | L15: =+INDEX(Loads!$L:$CE,MATCH($C15,Loads!$D:$D,0),MATCH(L$4,Loads!$L$4:$CE$4,0)) -> 65141.44 | M15: =+INDEX(Loads!$L:$CE,MATCH($C15,Loads!$D:$D,0),MATCH(M$4,Loads!$L$4:$CE$4,0)) -> 62636 | N15: =+INDEX(Loads!$L:$CE,MATCH($C15,Loads!$D:$D,0),MATCH(N$4,Loads!$L$4:$CE$4,0)) -> 67646.88 | O15: =+INDEX(Loads!$L:$CE,MATCH($C15,Loads!$D:$D,0),MATCH(O$4,Loads!$L$4:$CE$4,0)) -> 62636 | P15: =+INDEX(Loads!$L:$CE,MATCH($C15,Loads!$D:$D,0),MATCH(P$4,Loads!$L$4:$CE$4,0)) -> 72052.032 | Q15: =+INDEX(Loads!$L:$CE,MATCH($C15,Loads!$D:$D,0),MATCH(Q$4,Loads!$L$4:$CE$4,0)) -> 69280.8 | R15: =+INDEX(Loads!$L:$CE,MATCH($C15,Loads!$D:$D,0),MATCH(R$4,Loads!$L$4:$CE$4,0)) -> 72052.032 | S15: =+INDEX(Loads!$L:$CE,MATCH($C15,Loads!$D:$D,0),MATCH(S$4,Loads!$L$4:$CE$4,0)) -> 69280.8 | T15: =+INDEX(Loads!$L:$CE,MATCH($C15,Loads!$D:$D,0),MATCH(T$4,Loads!$L$4:$CE$4,0)) -> 66509.568 | U15: =+INDEX(Loads!$L:$CE,MATCH($C15,Loads!$D:$D,0),MATCH(U$4,Loads!$L$4:$CE$4,0)) -> 74823.264 | V15: =+INDEX(Loads!$L:$CE,MATCH($C15,Loads!$D:$D,0),MATCH(V$4,Loads!$L$4:$CE$4,0)) -> 69280.8 | W15: =+INDEX(Loads!$L:$CE,MATCH($C15,Loads!$D:$D,0),MATCH(W$4,Loads!$L$4:$CE$4,0)) -> 72052.032 | X15: =+INDEX(Loads!$L:$CE,MATCH($C15,Loads!$D:$D,0),MATCH(X$4,Loads!$L$4:$CE$4,0)) -> 72052.032 | Y15: =+INDEX(Loads!$L:$CE,MATCH($C15,Loads!$D:$D,0),MATCH(Y$4,Loads!$L$4:$CE$4,0)) -> 69280.8 | Z15: =+INDEX(Loads!$L:$CE,MATCH($C15,Loads!$D:$D,0),MATCH(Z$4,Loads!$L$4:$CE$4,0)) -> 74823.264 | AA15: =+INDEX(Loads!$L:$CE,MATCH($C15,Loads!$D:$D,0),MATCH(AA$4,Loads!$L$4:$CE$4,0)) -> 69280.8 | AB15: =+INDEX(Loads!$L:$CE,MATCH($C15,Loads!$D:$D,0),MATCH(AB$4,Loads!$L$4:$CE$4,0)) -> 67879.968 | AC15: =+INDEX(Loads!$L:$CE,MATCH($C15,Loads!$D:$D,0),MATCH(AC$4,Loads!$L$4:$CE$4,0)) -> 65269.2 | AD15: =+INDEX(Loads!$L:$CE,MATCH($C15,Loads!$D:$D,0),MATCH(AD$4,Loads!$L$4:$CE$4,0)) -> 67879.968 | AE15: =+INDEX(Loads!$L:$CE,MATCH($C15,Loads!$D:$D,0),MATCH(AE$4,Loads!$L$4:$CE$4,0)) -> 65269.2 | AF15: =+INDEX(Loads!$L:$CE,MATCH($C15,Loads!$D:$D,0),MATCH(AF$4,Loads!$L$4:$CE$4,0)) -> 62658.432 | AG15: =+INDEX(Loads!$L:$CE,MATCH($C15,Loads!$D:$D,0),MATCH(AG$4,Loads!$L$4:$CE$4,0)) -> 70490.736 | AH15: =+INDEX(Loads!$L:$CE,MATCH($C15,Loads!$D:$D,0),MATCH(AH$4,Loads!$L$4:$CE$4,0)) -> 67879.968 | AI15: =+INDEX(Loads!$L:$CE,MATCH($C15,Loads!$D:$D,0),MATCH(AI$4,Loads!$L$4:$CE$4,0)) -> 65269.2 | AJ15: =+INDEX(Loads!$L:$CE,MATCH($C15,Loads!$D:$D,0),MATCH(AJ$4,Loads!$L$4:$CE$4,0)) -> 67879.968 | AK15: =+INDEX(Loads!$L:$CE,MATCH($C15,Loads!$D:$D,0),MATCH(AK$4,Loads!$L$4:$CE$4,0)) -> 65269.2 | AL15: =+INDEX(Loads!$L:$CE,MATCH($C15,Loads!$D:$D,0),MATCH(AL$4,Loads!$L$4:$CE$4,0)) -> 70490.736 | AM15: =+INDEX(Loads!$L:$CE,MATCH($C15,Loads!$D:$D,0),MATCH(AM$4,Loads!$L$4:$CE$4,0)) -> 65269.2 | AN15: =+INDEX(Loads!$L:$CE,MATCH($C15,Loads!$D:$D,0),MATCH(AN$4,Loads!$L$4:$CE$4,0)) -> 75622.56 | AO15: =+INDEX(Loads!$L:$CE,MATCH($C15,Loads!$D:$D,0),MATCH(AO$4,Loads!$L$4:$CE$4,0)) -> 72714 | AP15: =+INDEX(Loads!$L:$CE,MATCH($C15,Loads!$D:$D,0),MATCH(AP$4,Loads!$L$4:$CE$4,0)) -> 75622.56 | AQ15: =+INDEX(Loads!$L:$CE,MATCH($C15,Loads!$D:$D,0),MATCH(AQ$4,Loads!$L$4:$CE$4,0)) -> 72714 | AR15: =+INDEX(Loads!$L:$CE,MATCH($C15,Loads!$D:$D,0),MATCH(AR$4,Loads!$L$4:$CE$4,0)) -> 69805.44 | AS15: =+INDEX(Loads!$L:$CE,MATCH($C15,Loads!$D:$D,0),MATCH(AS$4,Loads!$L$4:$CE$4,0)) -> 78531.12 | AT15: =+INDEX(Loads!$L:$CE,MATCH($C15,Loads!$D:$D,0),MATCH(AT$4,Loads!$L$4:$CE$4,0)) -> 72714 | AU15: =+INDEX(Loads!$L:$CE,MATCH($C15,Loads!$D:$D,0),MATCH(AU$4,Loads!$L$4:$CE$4,0)) -> 75622.56 | AV15: =+INDEX(Loads!$L:$CE,MATCH($C15,Loads!$D:$D,0),MATCH(AV$4,Loads!$L$4:$CE$4,0)) -> 75622.56 | AW15: =+INDEX(Loads!$L:$CE,MATCH($C15,Loads!$D:$D,0),MATCH(AW$4,Loads!$L$4:$CE$4,0)) -> 72714 | AX15: =+INDEX(Loads!$L:$CE,MATCH($C15,Loads!$D:$D,0),MATCH(AX$4,Loads!$L$4:$CE$4,0)) -> 78531.12 | AY15: =+INDEX(Loads!$L:$CE,MATCH($C15,Loads!$D:$D,0),MATCH(AY$4,Loads!$L$4:$CE$4,0)) -> 72714 | AZ15: =+INDEX(Loads!$L:$CE,MATCH($C15,Loads!$D:$D,0),MATCH(AZ$4,Loads!$L$4:$CE$4,0)) -> 67879.968 | BA15: =+INDEX(Loads!$L:$CE,MATCH($C15,Loads!$D:$D,0),MATCH(BA$4,Loads!$L$4:$CE$4,0)) -> 65269.2 | BB15: =+INDEX(Loads!$L:$CE,MATCH($C15,Loads!$D:$D,0),MATCH(BB$4,Loads!$L$4:$CE$4,0)) -> 67879.968 | BC15: =+INDEX(Loads!$L:$CE,MATCH($C15,Loads!$D:$D,0),MATCH(BC$4,Loads!$L$4:$CE$4,0)) -> 65269.2 | BD15: =+INDEX(Loads!$L:$CE,MATCH($C15,Loads!$D:$D,0),MATCH(BD$4,Loads!$L$4:$CE$4,0)) -> 62658.432 | BE15: =+INDEX(Loads!$L:$CE,MATCH($C15,Loads!$D:$D,0),MATCH(BE$4,Loads!$L$4:$CE$4,0)) -> 70490.736 | BF15: =+INDEX(Loads!$L:$CE,MATCH($C15,Loads!$D:$D,0),MATCH(BF$4,Loads!$L$4:$CE$4,0)) -> 67879.968 | BG15: =+INDEX(Loads!$L:$CE,MATCH($C15,Loads!$D:$D,0),MATCH(BG$4,Loads!$L$4:$CE$4,0)) -> 65269.2 | BH15: =+INDEX(Loads!$L:$CE,MATCH($C15,Loads!$D:$D,0),MATCH(BH$4,Loads!$L$4:$CE$4,0)) -> 67879.968 | BI15: =+INDEX(Loads!$L:$CE,MATCH($C15,Loads!$D:$D,0),MATCH(BI$4,Loads!$L$4:$CE$4,0)) -> 65269.2 | BJ15: =+INDEX(Loads!$L:$CE,MATCH($C15,Loads!$D:$D,0),MATCH(BJ$4,Loads!$L$4:$CE$4,0)) -> 70490.736 | BK15: =+INDEX(Loads!$L:$CE,MATCH($C15,Loads!$D:$D,0),MATCH(BK$4,Loads!$L$4:$CE$4,0)) -> 65269.2 | BL15: =+INDEX(Loads!$L:$CE,MATCH($C15,Loads!$D:$D,0),MATCH(BL$4,Loads!$L$4:$CE$4,0)) -> 75622.56 | BM15: =+INDEX(Loads!$L:$CE,MATCH($C15,Loads!$D:$D,0),MATCH(BM$4,Loads!$L$4:$CE$4,0)) -> 72714 | BN15: =+INDEX(Loads!$L:$CE,MATCH($C15,Loads!$D:$D,0),MATCH(BN$4,Loads!$L$4:$CE$4,0)) -> 75622.56 | BO15: =+INDEX(Loads!$L:$CE,MATCH($C15,Loads!$D:$D,0),MATCH(BO$4,Loads!$L$4:$CE$4,0)) -> 72714 | BP15: =+INDEX(Loads!$L:$CE,MATCH($C15,Loads!$D:$D,0),MATCH(BP$4,Loads!$L$4:$CE$4,0)) -> 69805.44 | BQ15: =+INDEX(Loads!$L:$CE,MATCH($C15,Loads!$D:$D,0),MATCH(BQ$4,Loads!$L$4:$CE$4,0)) -> 78531.12 | BR15: =+INDEX(Loads!$L:$CE,MATCH($C15,Loads!$D:$D,0),MATCH(BR$4,Loads!$L$4:$CE$4,0)) -> 72714 | BS15: =+INDEX(Loads!$L:$CE,MATCH($C15,Loads!$D:$D,0),MATCH(BS$4,Loads!$L$4:$CE$4,0)) -> 75622.56 | BT15: =+INDEX(Loads!$L:$CE,MATCH($C15,Loads!$D:$D,0),MATCH(BT$4,Loads!$L$4:$CE$4,0)) -> 75622.56 | BU15: =+INDEX(Loads!$L:$CE,MATCH($C15,Loads!$D:$D,0),MATCH(BU$4,Loads!$L$4:$CE$4,0)) -> 72714 | BV15: =+INDEX(Loads!$L:$CE,MATCH($C15,Loads!$D:$D,0),MATCH(BV$4,Loads!$L$4:$CE$4,0)) -> 78531.12 | BW15: =+INDEX(Loads!$L:$CE,MATCH($C15,Loads!$D:$D,0),MATCH(BW$4,Loads!$L$4:$CE$4,0)) -> 72714
B16: LLH | C16: PRE_T2 | D16: =+INDEX(Loads!$CG:$EZ,MATCH($C16,Loads!$D:$D,0),MATCH(D$4,Loads!$CG$4:$EZ$4,0)) -> 51361.52 | E16: =+INDEX(Loads!$CG:$EZ,MATCH($C16,Loads!$D:$D,0),MATCH(E$4,Loads!$CG$4:$EZ$4,0)) -> 50265.39 | F16: =+INDEX(Loads!$CG:$EZ,MATCH($C16,Loads!$D:$D,0),MATCH(F$4,Loads!$CG$4:$EZ$4,0)) -> 51361.52 | G16: =+INDEX(Loads!$CG:$EZ,MATCH($C16,Loads!$D:$D,0),MATCH(G$4,Loads!$CG$4:$EZ$4,0)) -> 53866.96 | H16: =+INDEX(Loads!$CG:$EZ,MATCH($C16,Loads!$D:$D,0),MATCH(H$4,Loads!$CG$4:$EZ$4,0)) -> 45097.92 | I16: =+INDEX(Loads!$CG:$EZ,MATCH($C16,Loads!$D:$D,0),MATCH(I$4,Loads!$CG$4:$EZ$4,0)) -> 48699.49 | J16: =+INDEX(Loads!$CG:$EZ,MATCH($C16,Loads!$D:$D,0),MATCH(J$4,Loads!$CG$4:$EZ$4,0)) -> 47603.36 | K16: =+INDEX(Loads!$CG:$EZ,MATCH($C16,Loads!$D:$D,0),MATCH(K$4,Loads!$CG$4:$EZ$4,0)) -> 53866.96 | L16: =+INDEX(Loads!$CG:$EZ,MATCH($C16,Loads!$D:$D,0),MATCH(L$4,Loads!$CG$4:$EZ$4,0)) -> 47603.36 | M16: =+INDEX(Loads!$CG:$EZ,MATCH($C16,Loads!$D:$D,0),MATCH(M$4,Loads!$CG$4:$EZ$4,0)) -> 53866.96 | N16: =+INDEX(Loads!$CG:$EZ,MATCH($C16,Loads!$D:$D,0),MATCH(N$4,Loads!$CG$4:$EZ$4,0)) -> 48856.08 | O16: =+INDEX(Loads!$CG:$EZ,MATCH($C16,Loads!$D:$D,0),MATCH(O$4,Loads!$CG$4:$EZ$4,0)) -> 50108.8 | P16: =+INDEX(Loads!$CG:$EZ,MATCH($C16,Loads!$D:$D,0),MATCH(P$4,Loads!$CG$4:$EZ$4,0)) -> 56810.256 | Q16: =+INDEX(Loads!$CG:$EZ,MATCH($C16,Loads!$D:$D,0),MATCH(Q$4,Loads!$CG$4:$EZ$4,0)) -> 55597.842 | R16: =+INDEX(Loads!$CG:$EZ,MATCH($C16,Loads!$D:$D,0),MATCH(R$4,Loads!$CG$4:$EZ$4,0)) -> 56810.256 | S16: =+INDEX(Loads!$CG:$EZ,MATCH($C16,Loads!$D:$D,0),MATCH(S$4,Loads!$CG$4:$EZ$4,0)) -> 59581.488 | T16: =+INDEX(Loads!$CG:$EZ,MATCH($C16,Loads!$D:$D,0),MATCH(T$4,Loads!$CG$4:$EZ$4,0)) -> 49882.176 | U16: =+INDEX(Loads!$CG:$EZ,MATCH($C16,Loads!$D:$D,0),MATCH(U$4,Loads!$CG$4:$EZ$4,0)) -> 53865.822 | V16: =+INDEX(Loads!$CG:$EZ,MATCH($C16,Loads!$D:$D,0),MATCH(V$4,Loads!$CG$4:$EZ$4,0)) -> 55424.64 | W16: =+INDEX(Loads!$CG:$EZ,MATCH($C16,Loads!$D:$D,0),MATCH(W$4,Loads!$CG$4:$EZ$4,0)) -> 56810.256 | X16: =+INDEX(Loads!$CG:$EZ,MATCH($C16,Loads!$D:$D,0),MATCH(X$4,Loads!$CG$4:$EZ$4,0)) -> 52653.408 | Y16: =+INDEX(Loads!$CG:$EZ,MATCH($C16,Loads!$D:$D,0),MATCH(Y$4,Loads!$CG$4:$EZ$4,0)) -> 59581.488 | Z16: =+INDEX(Loads!$CG:$EZ,MATCH($C16,Loads!$D:$D,0),MATCH(Z$4,Loads!$CG$4:$EZ$4,0)) -> 54039.024 | AA16: =+INDEX(Loads!$CG:$EZ,MATCH($C16,Loads!$D:$D,0),MATCH(AA$4,Loads!$CG$4:$EZ$4,0)) -> 55424.64 | AB16: =+INDEX(Loads!$CG:$EZ,MATCH($C16,Loads!$D:$D,0),MATCH(AB$4,Loads!$CG$4:$EZ$4,0)) -> 53520.744 | AC16: =+INDEX(Loads!$CG:$EZ,MATCH($C16,Loads!$D:$D,0),MATCH(AC$4,Loads!$CG$4:$EZ$4,0)) -> 52378.533 | AD16: =+INDEX(Loads!$CG:$EZ,MATCH($C16,Loads!$D:$D,0),MATCH(AD$4,Loads!$CG$4:$EZ$4,0)) -> 53520.744 | AE16: =+INDEX(Loads!$CG:$EZ,MATCH($C16,Loads!$D:$D,0),MATCH(AE$4,Loads!$CG$4:$EZ$4,0)) -> 56131.512 | AF16: =+INDEX(Loads!$CG:$EZ,MATCH($C16,Loads!$D:$D,0),MATCH(AF$4,Loads!$CG$4:$EZ$4,0)) -> 46993.824 | AG16: =+INDEX(Loads!$CG:$EZ,MATCH($C16,Loads!$D:$D,0),MATCH(AG$4,Loads!$CG$4:$EZ$4,0)) -> 50746.803 | AH16: =+INDEX(Loads!$CG:$EZ,MATCH($C16,Loads!$D:$D,0),MATCH(AH$4,Loads!$CG$4:$EZ$4,0)) -> 49604.592 | AI16: =+INDEX(Loads!$CG:$EZ,MATCH($C16,Loads!$D:$D,0),MATCH(AI$4,Loads!$CG$4:$EZ$4,0)) -> 56131.512 | AJ16: =+INDEX(Loads!$CG:$EZ,MATCH($C16,Loads!$D:$D,0),MATCH(AJ$4,Loads!$CG$4:$EZ$4,0)) -> 49604.592 | AK16: =+INDEX(Loads!$CG:$EZ,MATCH($C16,Loads!$D:$D,0),MATCH(AK$4,Loads!$CG$4:$EZ$4,0)) -> 56131.512 | AL16: =+INDEX(Loads!$CG:$EZ,MATCH($C16,Loads!$D:$D,0),MATCH(AL$4,Loads!$CG$4:$EZ$4,0)) -> 50909.976 | AM16: =+INDEX(Loads!$CG:$EZ,MATCH($C16,Loads!$D:$D,0),MATCH(AM$4,Loads!$CG$4:$EZ$4,0)) -> 52215.36 | AN16: =+INDEX(Loads!$CG:$EZ,MATCH($C16,Loads!$D:$D,0),MATCH(AN$4,Loads!$CG$4:$EZ$4,0)) -> 59625.48 | AO16: =+INDEX(Loads!$CG:$EZ,MATCH($C16,Loads!$D:$D,0),MATCH(AO$4,Loads!$CG$4:$EZ$4,0)) -> 58352.985 | AP16: =+INDEX(Loads!$CG:$EZ,MATCH($C16,Loads!$D:$D,0),MATCH(AP$4,Loads!$CG$4:$EZ$4,0)) -> 59625.48 | AQ16: =+INDEX(Loads!$CG:$EZ,MATCH($C16,Loads!$D:$D,0),MATCH(AQ$4,Loads!$CG$4:$EZ$4,0)) -> 62534.04 | AR16: =+INDEX(Loads!$CG:$EZ,MATCH($C16,Loads!$D:$D,0),MATCH(AR$4,Loads!$CG$4:$EZ$4,0)) -> 52354.08 | AS16: =+INDEX(Loads!$CG:$EZ,MATCH($C16,Loads!$D:$D,0),MATCH(AS$4,Loads!$CG$4:$EZ$4,0)) -> 56535.135 | AT16: =+INDEX(Loads!$CG:$EZ,MATCH($C16,Loads!$D:$D,0),MATCH(AT$4,Loads!$CG$4:$EZ$4,0)) -> 58171.2 | AU16: =+INDEX(Loads!$CG:$EZ,MATCH($C16,Loads!$D:$D,0),MATCH(AU$4,Loads!$CG$4:$EZ$4,0)) -> 59625.48 | AV16: =+INDEX(Loads!$CG:$EZ,MATCH($C16,Loads!$D:$D,0),MATCH(AV$4,Loads!$CG$4:$EZ$4,0)) -> 55262.64 | AW16: =+INDEX(Loads!$CG:$EZ,MATCH($C16,Loads!$D:$D,0),MATCH(AW$4,Loads!$CG$4:$EZ$4,0)) -> 62534.04 | AX16: =+INDEX(Loads!$CG:$EZ,MATCH($C16,Loads!$D:$D,0),MATCH(AX$4,Loads!$CG$4:$EZ$4,0)) -> 56716.92 | AY16: =+INDEX(Loads!$CG:$EZ,MATCH($C16,Loads!$D:$D,0),MATCH(AY$4,Loads!$CG$4:$EZ$4,0)) -> 58171.2 | AZ16: =+INDEX(Loads!$CG:$EZ,MATCH($C16,Loads!$D:$D,0),MATCH(AZ$4,Loads!$CG$4:$EZ$4,0)) -> 53520.744 | BA16: =+INDEX(Loads!$CG:$EZ,MATCH($C16,Loads!$D:$D,0),MATCH(BA$4,Loads!$CG$4:$EZ$4,0)) -> 52378.533 | BB16: =+INDEX(Loads!$CG:$EZ,MATCH($C16,Loads!$D:$D,0),MATCH(BB$4,Loads!$CG$4:$EZ$4,0)) -> 53520.744 | BC16: =+INDEX(Loads!$CG:$EZ,MATCH($C16,Loads!$D:$D,0),MATCH(BC$4,Loads!$CG$4:$EZ$4,0)) -> 56131.512 | BD16: =+INDEX(Loads!$CG:$EZ,MATCH($C16,Loads!$D:$D,0),MATCH(BD$4,Loads!$CG$4:$EZ$4,0)) -> 46993.824 | BE16: =+INDEX(Loads!$CG:$EZ,MATCH($C16,Loads!$D:$D,0),MATCH(BE$4,Loads!$CG$4:$EZ$4,0)) -> 50746.803 | BF16: =+INDEX(Loads!$CG:$EZ,MATCH($C16,Loads!$D:$D,0),MATCH(BF$4,Loads!$CG$4:$EZ$4,0)) -> 49604.592 | BG16: =+INDEX(Loads!$CG:$EZ,MATCH($C16,Loads!$D:$D,0),MATCH(BG$4,Loads!$CG$4:$EZ$4,0)) -> 56131.512 | BH16: =+INDEX(Loads!$CG:$EZ,MATCH($C16,Loads!$D:$D,0),MATCH(BH$4,Loads!$CG$4:$EZ$4,0)) -> 49604.592 | BI16: =+INDEX(Loads!$CG:$EZ,MATCH($C16,Loads!$D:$D,0),MATCH(BI$4,Loads!$CG$4:$EZ$4,0)) -> 56131.512 | BJ16: =+INDEX(Loads!$CG:$EZ,MATCH($C16,Loads!$D:$D,0),MATCH(BJ$4,Loads!$CG$4:$EZ$4,0)) -> 50909.976 | BK16: =+INDEX(Loads!$CG:$EZ,MATCH($C16,Loads!$D:$D,0),MATCH(BK$4,Loads!$CG$4:$EZ$4,0)) -> 52215.36 | BL16: =+INDEX(Loads!$CG:$EZ,MATCH($C16,Loads!$D:$D,0),MATCH(BL$4,Loads!$CG$4:$EZ$4,0)) -> 59625.48 | BM16: =+INDEX(Loads!$CG:$EZ,MATCH($C16,Loads!$D:$D,0),MATCH(BM$4,Loads!$CG$4:$EZ$4,0)) -> 58352.985 | BN16: =+INDEX(Loads!$CG:$EZ,MATCH($C16,Loads!$D:$D,0),MATCH(BN$4,Loads!$CG$4:$EZ$4,0)) -> 59625.48 | BO16: =+INDEX(Loads!$CG:$EZ,MATCH($C16,Loads!$D:$D,0),MATCH(BO$4,Loads!$CG$4:$EZ$4,0)) -> 62534.04 | BP16: =+INDEX(Loads!$CG:$EZ,MATCH($C16,Loads!$D:$D,0),MATCH(BP$4,Loads!$CG$4:$EZ$4,0)) -> 52354.08 | BQ16: =+INDEX(Loads!$CG:$EZ,MATCH($C16,Loads!$D:$D,0),MATCH(BQ$4,Loads!$CG$4:$EZ$4,0)) -> 56535.135 | BR16: =+INDEX(Loads!$CG:$EZ,MATCH($C16,Loads!$D:$D,0),MATCH(BR$4,Loads!$CG$4:$EZ$4,0)) -> 58171.2 | BS16: =+INDEX(Loads!$CG:$EZ,MATCH($C16,Loads!$D:$D,0),MATCH(BS$4,Loads!$CG$4:$EZ$4,0)) -> 59625.48 | BT16: =+INDEX(Loads!$CG:$EZ,MATCH($C16,Loads!$D:$D,0),MATCH(BT$4,Loads!$CG$4:$EZ$4,0)) -> 55262.64 | BU16: =+INDEX(Loads!$CG:$EZ,MATCH($C16,Loads!$D:$D,0),MATCH(BU$4,Loads!$CG$4:$EZ$4,0)) -> 62534.04 | BV16: =+INDEX(Loads!$CG:$EZ,MATCH($C16,Loads!$D:$D,0),MATCH(BV$4,Loads!$CG$4:$EZ$4,0)) -> 56716.92 | BW16: =+INDEX(Loads!$CG:$EZ,MATCH($C16,Loads!$D:$D,0),MATCH(BW$4,Loads!$CG$4:$EZ$4,0)) -> 58171.2
B17: Demand
D18: =+INDEX(TRM_Billing!$Q$6:$Q$149,MATCH(D$4,TRM_Billing!$K$6:$K$149,0),1)/1000 -> 240.5984808 | E18: =+INDEX(TRM_Billing!$Q$6:$Q$149,MATCH(E$4,TRM_Billing!$K$6:$K$149,0),1)/1000 -> 311.366 | F18: =+INDEX(TRM_Billing!$Q$6:$Q$149,MATCH(F$4,TRM_Billing!$K$6:$K$149,0),1)/1000 -> 662.4066034 | G18: =+INDEX(TRM_Billing!$Q$6:$Q$149,MATCH(G$4,TRM_Billing!$K$6:$K$149,0),1)/1000 -> 513.0530925 | H18: =+INDEX(TRM_Billing!$Q$6:$Q$149,MATCH(H$4,TRM_Billing!$K$6:$K$149,0),1)/1000 -> 347.56625 | I18: =+INDEX(TRM_Billing!$Q$6:$Q$149,MATCH(I$4,TRM_Billing!$K$6:$K$149,0),1)/1000 -> 549.1720694 | J18: =+INDEX(TRM_Billing!$Q$6:$Q$149,MATCH(J$4,TRM_Billing!$K$6:$K$149,0),1)/1000 -> 504.3353942 | K18: =+INDEX(TRM_Billing!$Q$6:$Q$149,MATCH(K$4,TRM_Billing!$K$6:$K$149,0),1)/1000 -> 330.86734 | L18: =+INDEX(TRM_Billing!$Q$6:$Q$149,MATCH(L$4,TRM_Billing!$K$6:$K$149,0),1)/1000 -> 524.741726 | M18: =+INDEX(TRM_Billing!$Q$6:$Q$149,MATCH(M$4,TRM_Billing!$K$6:$K$149,0),1)/1000 -> 490.20624 | N18: =+INDEX(TRM_Billing!$Q$6:$Q$149,MATCH(N$4,TRM_Billing!$K$6:$K$149,0),1)/1000 -> 636.3173472 | O18: =+INDEX(TRM_Billing!$Q$6:$Q$149,MATCH(O$4,TRM_Billing!$K$6:$K$149,0),1)/1000 -> 476.739065 | P18: =+INDEX(TRM_Billing!$Q$6:$Q$149,MATCH(P$4,TRM_Billing!$K$6:$K$149,0),1)/1000 -> 261.6182933 | Q18: =+INDEX(TRM_Billing!$Q$6:$Q$149,MATCH(Q$4,TRM_Billing!$K$6:$K$149,0),1)/1000 -> 322.7614875 | R18: =+INDEX(TRM_Billing!$Q$6:$Q$149,MATCH(R$4,TRM_Billing!$K$6:$K$149,0),1)/1000 -> 674.4249856 | S18: =+INDEX(TRM_Billing!$Q$6:$Q$149,MATCH(S$4,TRM_Billing!$K$6:$K$149,0),1)/1000 -> 523.88132 | T18: =+INDEX(TRM_Billing!$Q$6:$Q$149,MATCH(T$4,TRM_Billing!$K$6:$K$149,0),1)/1000 -> 357.5027109 | U18: =+INDEX(TRM_Billing!$Q$6:$Q$149,MATCH(U$4,TRM_Billing!$K$6:$K$149,0),1)/1000 -> 558.2283935 | V18: =+INDEX(TRM_Billing!$Q$6:$Q$149,MATCH(V$4,TRM_Billing!$K$6:$K$149,0),1)/1000 -> 455.216855 | W18: =+INDEX(TRM_Billing!$Q$6:$Q$149,MATCH(W$4,TRM_Billing!$K$6:$K$149,0),1)/1000 -> 399.4632236 | X18: =+INDEX(TRM_Billing!$Q$6:$Q$149,MATCH(X$4,TRM_Billing!$K$6:$K$149,0),1)/1000 -> 532.6571538 | Y18: =+INDEX(TRM_Billing!$Q$6:$Q$149,MATCH(Y$4,TRM_Billing!$K$6:$K$149,0),1)/1000 -> 498.207495 | Z18: =+INDEX(TRM_Billing!$Q$6:$Q$149,MATCH(Z$4,TRM_Billing!$K$6:$K$149,0),1)/1000 -> 644.0595255 | AA18: =+INDEX(TRM_Billing!$Q$6:$Q$149,MATCH(AA$4,TRM_Billing!$K$6:$K$149,0),1)/1000 -> 467.29299 | AB18: =+INDEX(TRM_Billing!$Q$6:$Q$149,MATCH(AB$4,TRM_Billing!$K$6:$K$149,0),1)/1000 -> 1549.018308 | AC18: =+INDEX(TRM_Billing!$Q$6:$Q$149,MATCH(AC$4,TRM_Billing!$K$6:$K$149,0),1)/1000 -> 1554.358058 | AD18: =+INDEX(TRM_Billing!$Q$6:$Q$149,MATCH(AD$4,TRM_Billing!$K$6:$K$149,0),1)/1000 -> 1871.166768 | AE18: =+INDEX(TRM_Billing!$Q$6:$Q$149,MATCH(AE$4,TRM_Billing!$K$6:$K$149,0),1)/1000 -> 1856.963791 | AF18: =+INDEX(TRM_Billing!$Q$6:$Q$149,MATCH(AF$4,TRM_Billing!$K$6:$K$149,0),1)/1000 -> 1610.83554 | AG18: =+INDEX(TRM_Billing!$Q$6:$Q$149,MATCH(AG$4,TRM_Billing!$K$6:$K$149,0),1)/1000 -> 1715.814512 | AH18: =+INDEX(TRM_Billing!$Q$6:$Q$149,MATCH(AH$4,TRM_Billing!$K$6:$K$149,0),1)/1000 -> 1742.880471 | AI18: =+INDEX(TRM_Billing!$Q$6:$Q$149,MATCH(AI$4,TRM_Billing!$K$6:$K$149,0),1)/1000 -> 1686.215757 | AJ18: =+INDEX(TRM_Billing!$Q$6:$Q$149,MATCH(AJ$4,TRM_Billing!$K$6:$K$149,0),1)/1000 -> 1708.454825 | AK18: =+INDEX(TRM_Billing!$Q$6:$Q$149,MATCH(AK$4,TRM_Billing!$K$6:$K$149,0),1)/1000 -> 1963.415812 | AL18: =+INDEX(TRM_Billing!$Q$6:$Q$149,MATCH(AL$4,TRM_Billing!$K$6:$K$149,0),1)/1000 -> 1986.054021 | AM18: =+INDEX(TRM_Billing!$Q$6:$Q$149,MATCH(AM$4,TRM_Billing!$K$6:$K$149,0),1)/1000 -> 1771.705875 | AN18: =+INDEX(TRM_Billing!$Q$6:$Q$149,MATCH(AN$4,TRM_Billing!$K$6:$K$149,0),1)/1000 -> 1699.80256 | AO18: =+INDEX(TRM_Billing!$Q$6:$Q$149,MATCH(AO$4,TRM_Billing!$K$6:$K$149,0),1)/1000 -> 1646.89113 | AP18: =+INDEX(TRM_Billing!$Q$6:$Q$149,MATCH(AP$4,TRM_Billing!$K$6:$K$149,0),1)/1000 -> 1958.48697 | AQ18: =+INDEX(TRM_Billing!$Q$6:$Q$149,MATCH(AQ$4,TRM_Billing!$K$6:$K$149,0),1)/1000 -> 1947.565541 | AR18: =+INDEX(TRM_Billing!$Q$6:$Q$149,MATCH(AR$4,TRM_Billing!$K$6:$K$149,0),1)/1000 -> 1649.264409 | AS18: =+INDEX(TRM_Billing!$Q$6:$Q$149,MATCH(AS$4,TRM_Billing!$K$6:$K$149,0),1)/1000 -> 1790.663363 | AT18: =+INDEX(TRM_Billing!$Q$6:$Q$149,MATCH(AT$4,TRM_Billing!$K$6:$K$149,0),1)/1000 -> 1813.150341 | AU18: =+INDEX(TRM_Billing!$Q$6:$Q$149,MATCH(AU$4,TRM_Billing!$K$6:$K$149,0),1)/1000 -> 1761.177512 | AV18: =+INDEX(TRM_Billing!$Q$6:$Q$149,MATCH(AV$4,TRM_Billing!$K$6:$K$149,0),1)/1000 -> 1770.06315 | AW18: =+INDEX(TRM_Billing!$Q$6:$Q$149,MATCH(AW$4,TRM_Billing!$K$6:$K$149,0),1)/1000 -> 2027.302575 | AX18: =+INDEX(TRM_Billing!$Q$6:$Q$149,MATCH(AX$4,TRM_Billing!$K$6:$K$149,0),1)/1000 -> 1978.885442 | AY18: =+INDEX(TRM_Billing!$Q$6:$Q$149,MATCH(AY$4,TRM_Billing!$K$6:$K$149,0),1)/1000 -> 1907.079705 | AZ18: =+INDEX(TRM_Billing!$Q$6:$Q$149,MATCH(AZ$4,TRM_Billing!$K$6:$K$149,0),1)/1000 -> 1757.476521 | BA18: =+INDEX(TRM_Billing!$Q$6:$Q$149,MATCH(BA$4,TRM_Billing!$K$6:$K$149,0),1)/1000 -> 1626.617466 | BB18: =+INDEX(TRM_Billing!$Q$6:$Q$149,MATCH(BB$4,TRM_Billing!$K$6:$K$149,0),1)/1000 -> 2122.718726 | BC18: =+INDEX(TRM_Billing!$Q$6:$Q$149,MATCH(BC$4,TRM_Billing!$K$6:$K$149,0),1)/1000 -> 2013.793726 | BD18: =+INDEX(TRM_Billing!$Q$6:$Q$149,MATCH(BD$4,TRM_Billing!$K$6:$K$149,0),1)/1000 -> 1728.593594 | BE18: =+INDEX(TRM_Billing!$Q$6:$Q$149,MATCH(BE$4,TRM_Billing!$K$6:$K$149,0),1)/1000 -> 1844.271745 | BF18: =+INDEX(TRM_Billing!$Q$6:$Q$149,MATCH(BF$4,TRM_Billing!$K$6:$K$149,0),1)/1000 -> 1874.681827 | BG18: =+INDEX(TRM_Billing!$Q$6:$Q$149,MATCH(BG$4,TRM_Billing!$K$6:$K$149,0),1)/1000 -> 1753.271313 | BH18: =+INDEX(TRM_Billing!$Q$6:$Q$149,MATCH(BH$4,TRM_Billing!$K$6:$K$149,0),1)/1000 -> 1902.168094 | BI18: =+INDEX(TRM_Billing!$Q$6:$Q$149,MATCH(BI$4,TRM_Billing!$K$6:$K$149,0),1)/1000 -> 2094.685517 | BJ18: =+INDEX(TRM_Billing!$Q$6:$Q$149,MATCH(BJ$4,TRM_Billing!$K$6:$K$149,0),1)/1000 -> 2042.427296 | BK18: =+INDEX(TRM_Billing!$Q$6:$Q$149,MATCH(BK$4,TRM_Billing!$K$6:$K$149,0),1)/1000 -> 1972.68604 | BL18: =+INDEX(TRM_Billing!$Q$6:$Q$149,MATCH(BL$4,TRM_Billing!$K$6:$K$149,0),1)/1000 -> 1833.560669 | BM18: =+INDEX(TRM_Billing!$Q$6:$Q$149,MATCH(BM$4,TRM_Billing!$K$6:$K$149,0),1)/1000 -> 1692.069568 | BN18: =+INDEX(TRM_Billing!$Q$6:$Q$149,MATCH(BN$4,TRM_Billing!$K$6:$K$149,0),1)/1000 -> 2189.234007 | BO18: =+INDEX(TRM_Billing!$Q$6:$Q$149,MATCH(BO$4,TRM_Billing!$K$6:$K$149,0),1)/1000 -> 1985.00999 | BP18: =+INDEX(TRM_Billing!$Q$6:$Q$149,MATCH(BP$4,TRM_Billing!$K$6:$K$149,0),1)/1000 -> 1802.552909 | BQ18: =+INDEX(TRM_Billing!$Q$6:$Q$149,MATCH(BQ$4,TRM_Billing!$K$6:$K$149,0),1)/1000 -> 1980.70194 | BR18: =+INDEX(TRM_Billing!$Q$6:$Q$149,MATCH(BR$4,TRM_Billing!$K$6:$K$149,0),1)/1000 -> 1937.628606 | BS18: =+INDEX(TRM_Billing!$Q$6:$Q$149,MATCH(BS$4,TRM_Billing!$K$6:$K$149,0),1)/1000 -> 1816.164743 | BT18: =+INDEX(TRM_Billing!$Q$6:$Q$149,MATCH(BT$4,TRM_Billing!$K$6:$K$149,0),1)/1000 -> 1957.737106 | BU18: =+INDEX(TRM_Billing!$Q$6:$Q$149,MATCH(BU$4,TRM_Billing!$K$6:$K$149,0),1)/1000 -> 2162.051474 | BV18: =+INDEX(TRM_Billing!$Q$6:$Q$149,MATCH(BV$4,TRM_Billing!$K$6:$K$149,0),1)/1000 -> 2107.011505 | BW18: =+INDEX(TRM_Billing!$Q$6:$Q$149,MATCH(BW$4,TRM_Billing!$K$6:$K$149,0),1)/1000 -> 2039.107447
B19: Load Shaping
C20: HLH | D20: =+INDEX(TRM_Billing!$R$6:$R$149,IF($C20="HLH",MATCH(D$4,TRM_Billing!$K$6:$K$149,0),MATCH(D$4,TRM_Billing!$K$6:$K$149,0)+1),1) -> -197717.8001 | E20: =+INDEX(TRM_Billing!$R$6:$R$149,IF($C20="HLH",MATCH(E$4,TRM_Billing!$K$6:$K$149,0),MATCH(E$4,TRM_Billing!$K$6:$K$149,0)+1),1) -> -390111.2418 | F20: =+INDEX(TRM_Billing!$R$6:$R$149,IF($C20="HLH",MATCH(F$4,TRM_Billing!$K$6:$K$149,0),MATCH(F$4,TRM_Billing!$K$6:$K$149,0)+1),1) -> 280709.1125 | G20: =+INDEX(TRM_Billing!$R$6:$R$149,IF($C20="HLH",MATCH(G$4,TRM_Billing!$K$6:$K$149,0),MATCH(G$4,TRM_Billing!$K$6:$K$149,0)+1),1) -> 676660.631 | H20: =+INDEX(TRM_Billing!$R$6:$R$149,IF($C20="HLH",MATCH(H$4,TRM_Billing!$K$6:$K$149,0),MATCH(H$4,TRM_Billing!$K$6:$K$149,0)+1),1) -> 544800.2134 | I20: =+INDEX(TRM_Billing!$R$6:$R$149,IF($C20="HLH",MATCH(I$4,TRM_Billing!$K$6:$K$149,0),MATCH(I$4,TRM_Billing!$K$6:$K$149,0)+1),1) -> 117233.0236 | J20: =+INDEX(TRM_Billing!$R$6:$R$149,IF($C20="HLH",MATCH(J$4,TRM_Billing!$K$6:$K$149,0),MATCH(J$4,TRM_Billing!$K$6:$K$149,0)+1),1) -> 237065.1144 | K20: =+INDEX(TRM_Billing!$R$6:$R$149,IF($C20="HLH",MATCH(K$4,TRM_Billing!$K$6:$K$149,0),MATCH(K$4,TRM_Billing!$K$6:$K$149,0)+1),1) -> -809107.6159 | L20: =+INDEX(TRM_Billing!$R$6:$R$149,IF($C20="HLH",MATCH(L$4,TRM_Billing!$K$6:$K$149,0),MATCH(L$4,TRM_Billing!$K$6:$K$149,0)+1),1) -> -1059927.154 | M20: =+INDEX(TRM_Billing!$R$6:$R$149,IF($C20="HLH",MATCH(M$4,TRM_Billing!$K$6:$K$149,0),MATCH(M$4,TRM_Billing!$K$6:$K$149,0)+1),1) -> -537766.3547 | N20: =+INDEX(TRM_Billing!$R$6:$R$149,IF($C20="HLH",MATCH(N$4,TRM_Billing!$K$6:$K$149,0),MATCH(N$4,TRM_Billing!$K$6:$K$149,0)+1),1) -> -390177.7868 | O20: =+INDEX(TRM_Billing!$R$6:$R$149,IF($C20="HLH",MATCH(O$4,TRM_Billing!$K$6:$K$149,0),MATCH(O$4,TRM_Billing!$K$6:$K$149,0)+1),1) -> -343859.0382 | P20: =+INDEX(TRM_Billing!$R$6:$R$149,IF($C20="HLH",MATCH(P$4,TRM_Billing!$K$6:$K$149,0),MATCH(P$4,TRM_Billing!$K$6:$K$149,0)+1),1) -> -189155.1631 | Q20: =+INDEX(TRM_Billing!$R$6:$R$149,IF($C20="HLH",MATCH(Q$4,TRM_Billing!$K$6:$K$149,0),MATCH(Q$4,TRM_Billing!$K$6:$K$149,0)+1),1) -> -376629.4983 | R20: =+INDEX(TRM_Billing!$R$6:$R$149,IF($C20="HLH",MATCH(R$4,TRM_Billing!$K$6:$K$149,0),MATCH(R$4,TRM_Billing!$K$6:$K$149,0)+1),1) -> 298722.8449 | S20: =+INDEX(TRM_Billing!$R$6:$R$149,IF($C20="HLH",MATCH(S$4,TRM_Billing!$K$6:$K$149,0),MATCH(S$4,TRM_Billing!$K$6:$K$149,0)+1),1) -> 699465.433 | T20: =+INDEX(TRM_Billing!$R$6:$R$149,IF($C20="HLH",MATCH(T$4,TRM_Billing!$K$6:$K$149,0),MATCH(T$4,TRM_Billing!$K$6:$K$149,0)+1),1) -> 565494.2456 | U20: =+INDEX(TRM_Billing!$R$6:$R$149,IF($C20="HLH",MATCH(U$4,TRM_Billing!$K$6:$K$149,0),MATCH(U$4,TRM_Billing!$K$6:$K$149,0)+1),1) -> 135535.128 | V20: =+INDEX(TRM_Billing!$R$6:$R$149,IF($C20="HLH",MATCH(V$4,TRM_Billing!$K$6:$K$149,0),MATCH(V$4,TRM_Billing!$K$6:$K$149,0)+1),1) -> 219417.3254 | W20: =+INDEX(TRM_Billing!$R$6:$R$149,IF($C20="HLH",MATCH(W$4,TRM_Billing!$K$6:$K$149,0),MATCH(W$4,TRM_Billing!$K$6:$K$149,0)+1),1) -> -758832.4341 | X20: =+INDEX(TRM_Billing!$R$6:$R$149,IF($C20="HLH",MATCH(X$4,TRM_Billing!$K$6:$K$149,0),MATCH(X$4,TRM_Billing!$K$6:$K$149,0)+1),1) -> -1045932.545 | Y20: =+INDEX(TRM_Billing!$R$6:$R$149,IF($C20="HLH",MATCH(Y$4,TRM_Billing!$K$6:$K$149,0),MATCH(Y$4,TRM_Billing!$K$6:$K$149,0)+1),1) -> -523002.4052 | Z20: =+INDEX(TRM_Billing!$R$6:$R$149,IF($C20="HLH",MATCH(Z$4,TRM_Billing!$K$6:$K$149,0),MATCH(Z$4,TRM_Billing!$K$6:$K$149,0)+1),1) -> -374016.8188 | AA20: =+INDEX(TRM_Billing!$R$6:$R$149,IF($C20="HLH",MATCH(AA$4,TRM_Billing!$K$6:$K$149,0),MATCH(AA$4,TRM_Billing!$K$6:$K$149,0)+1),1) -> -322877.3134 | AB20: =+INDEX(TRM_Billing!$R$6:$R$149,IF($C20="HLH",MATCH(AB$4,TRM_Billing!$K$6:$K$149,0),MATCH(AB$4,TRM_Billing!$K$6:$K$149,0)+1),1) -> -216684.4938 | AC20: =+INDEX(TRM_Billing!$R$6:$R$149,IF($C20="HLH",MATCH(AC$4,TRM_Billing!$K$6:$K$149,0),MATCH(AC$4,TRM_Billing!$K$6:$K$149,0)+1),1) -> -347845.0808 | AD20: =+INDEX(TRM_Billing!$R$6:$R$149,IF($C20="HLH",MATCH(AD$4,TRM_Billing!$K$6:$K$149,0),MATCH(AD$4,TRM_Billing!$K$6:$K$149,0)+1),1) -> 47263.65678 | AE20: =+INDEX(TRM_Billing!$R$6:$R$149,IF($C20="HLH",MATCH(AE$4,TRM_Billing!$K$6:$K$149,0),MATCH(AE$4,TRM_Billing!$K$6:$K$149,0)+1),1) -> 539793.715 | AF20: =+INDEX(TRM_Billing!$R$6:$R$149,IF($C20="HLH",MATCH(AF$4,TRM_Billing!$K$6:$K$149,0),MATCH(AF$4,TRM_Billing!$K$6:$K$149,0)+1),1) -> 165857.5944 | AG20: =+INDEX(TRM_Billing!$R$6:$R$149,IF($C20="HLH",MATCH(AG$4,TRM_Billing!$K$6:$K$149,0),MATCH(AG$4,TRM_Billing!$K$6:$K$149,0)+1),1) -> 48943.30329 | AH20: =+INDEX(TRM_Billing!$R$6:$R$149,IF($C20="HLH",MATCH(AH$4,TRM_Billing!$K$6:$K$149,0),MATCH(AH$4,TRM_Billing!$K$6:$K$149,0)+1),1) -> 342963.2713 | AI20: =+INDEX(TRM_Billing!$R$6:$R$149,IF($C20="HLH",MATCH(AI$4,TRM_Billing!$K$6:$K$149,0),MATCH(AI$4,TRM_Billing!$K$6:$K$149,0)+1),1) -> -438491.5969 | AJ20: =+INDEX(TRM_Billing!$R$6:$R$149,IF($C20="HLH",MATCH(AJ$4,TRM_Billing!$K$6:$K$149,0),MATCH(AJ$4,TRM_Billing!$K$6:$K$149,0)+1),1) -> -1410362.61 | AK20: =+INDEX(TRM_Billing!$R$6:$R$149,IF($C20="HLH",MATCH(AK$4,TRM_Billing!$K$6:$K$149,0),MATCH(AK$4,TRM_Billing!$K$6:$K$149,0)+1),1) -> -572447.4054 | AL20: =+INDEX(TRM_Billing!$R$6:$R$149,IF($C20="HLH",MATCH(AL$4,TRM_Billing!$K$6:$K$149,0),MATCH(AL$4,TRM_Billing!$K$6:$K$149,0)+1),1) -> -304937.8807 | AM20: =+INDEX(TRM_Billing!$R$6:$R$149,IF($C20="HLH",MATCH(AM$4,TRM_Billing!$K$6:$K$149,0),MATCH(AM$4,TRM_Billing!$K$6:$K$149,0)+1),1) -> -292417.1666 | AN20: =+INDEX(TRM_Billing!$R$6:$R$149,IF($C20="HLH",MATCH(AN$4,TRM_Billing!$K$6:$K$149,0),MATCH(AN$4,TRM_Billing!$K$6:$K$149,0)+1),1) -> -170930.4111 | AO20: =+INDEX(TRM_Billing!$R$6:$R$149,IF($C20="HLH",MATCH(AO$4,TRM_Billing!$K$6:$K$149,0),MATCH(AO$4,TRM_Billing!$K$6:$K$149,0)+1),1) -> -345097.9346 | AP20: =+INDEX(TRM_Billing!$R$6:$R$149,IF($C20="HLH",MATCH(AP$4,TRM_Billing!$K$6:$K$149,0),MATCH(AP$4,TRM_Billing!$K$6:$K$149,0)+1),1) -> 54472.88633 | AQ20: =+INDEX(TRM_Billing!$R$6:$R$149,IF($C20="HLH",MATCH(AQ$4,TRM_Billing!$K$6:$K$149,0),MATCH(AQ$4,TRM_Billing!$K$6:$K$149,0)+1),1) -> 543806.0344 | AR20: =+INDEX(TRM_Billing!$R$6:$R$149,IF($C20="HLH",MATCH(AR$4,TRM_Billing!$K$6:$K$149,0),MATCH(AR$4,TRM_Billing!$K$6:$K$149,0)+1),1) -> 213188.6493 | AS20: =+INDEX(TRM_Billing!$R$6:$R$149,IF($C20="HLH",MATCH(AS$4,TRM_Billing!$K$6:$K$149,0),MATCH(AS$4,TRM_Billing!$K$6:$K$149,0)+1),1) -> 54365.73872 | AT20: =+INDEX(TRM_Billing!$R$6:$R$149,IF($C20="HLH",MATCH(AT$4,TRM_Billing!$K$6:$K$149,0),MATCH(AT$4,TRM_Billing!$K$6:$K$149,0)+1),1) -> 355174.1443 | AU20: =+INDEX(TRM_Billing!$R$6:$R$149,IF($C20="HLH",MATCH(AU$4,TRM_Billing!$K$6:$K$149,0),MATCH(AU$4,TRM_Billing!$K$6:$K$149,0)+1),1) -> -424263.5058 | AV20: =+INDEX(TRM_Billing!$R$6:$R$149,IF($C20="HLH",MATCH(AV$4,TRM_Billing!$K$6:$K$149,0),MATCH(AV$4,TRM_Billing!$K$6:$K$149,0)+1),1) -> -1394433.18 | AW20: =+INDEX(TRM_Billing!$R$6:$R$149,IF($C20="HLH",MATCH(AW$4,TRM_Billing!$K$6:$K$149,0),MATCH(AW$4,TRM_Billing!$K$6:$K$149,0)+1),1) -> -557343.331 | AX20: =+INDEX(TRM_Billing!$R$6:$R$149,IF($C20="HLH",MATCH(AX$4,TRM_Billing!$K$6:$K$149,0),MATCH(AX$4,TRM_Billing!$K$6:$K$149,0)+1),1) -> -339059.728 | AY20: =+INDEX(TRM_Billing!$R$6:$R$149,IF($C20="HLH",MATCH(AY$4,TRM_Billing!$K$6:$K$149,0),MATCH(AY$4,TRM_Billing!$K$6:$K$149,0)+1),1) -> -250171.0837 | AZ20: =+INDEX(TRM_Billing!$R$6:$R$149,IF($C20="HLH",MATCH(AZ$4,TRM_Billing!$K$6:$K$149,0),MATCH(AZ$4,TRM_Billing!$K$6:$K$149,0)+1),1) -> -185411.45 | BA20: =+INDEX(TRM_Billing!$R$6:$R$149,IF($C20="HLH",MATCH(BA$4,TRM_Billing!$K$6:$K$149,0),MATCH(BA$4,TRM_Billing!$K$6:$K$149,0)+1),1) -> -393271.7213 | BB20: =+INDEX(TRM_Billing!$R$6:$R$149,IF($C20="HLH",MATCH(BB$4,TRM_Billing!$K$6:$K$149,0),MATCH(BB$4,TRM_Billing!$K$6:$K$149,0)+1),1) -> 72106.46272 | BC20: =+INDEX(TRM_Billing!$R$6:$R$149,IF($C20="HLH",MATCH(BC$4,TRM_Billing!$K$6:$K$149,0),MATCH(BC$4,TRM_Billing!$K$6:$K$149,0)+1),1) -> 495785.9946 | BD20: =+INDEX(TRM_Billing!$R$6:$R$149,IF($C20="HLH",MATCH(BD$4,TRM_Billing!$K$6:$K$149,0),MATCH(BD$4,TRM_Billing!$K$6:$K$149,0)+1),1) -> 202170.4216 | BE20: =+INDEX(TRM_Billing!$R$6:$R$149,IF($C20="HLH",MATCH(BE$4,TRM_Billing!$K$6:$K$149,0),MATCH(BE$4,TRM_Billing!$K$6:$K$149,0)+1),1) -> 31127.59656 | BF20: =+INDEX(TRM_Billing!$R$6:$R$149,IF($C20="HLH",MATCH(BF$4,TRM_Billing!$K$6:$K$149,0),MATCH(BF$4,TRM_Billing!$K$6:$K$149,0)+1),1) -> 344479.8218 | BG20: =+INDEX(TRM_Billing!$R$6:$R$149,IF($C20="HLH",MATCH(BG$4,TRM_Billing!$K$6:$K$149,0),MATCH(BG$4,TRM_Billing!$K$6:$K$149,0)+1),1) -> -452564.1757 | BH20: =+INDEX(TRM_Billing!$R$6:$R$149,IF($C20="HLH",MATCH(BH$4,TRM_Billing!$K$6:$K$149,0),MATCH(BH$4,TRM_Billing!$K$6:$K$149,0)+1),1) -> -1331994.485 | BI20: =+INDEX(TRM_Billing!$R$6:$R$149,IF($C20="HLH",MATCH(BI$4,TRM_Billing!$K$6:$K$149,0),MATCH(BI$4,TRM_Billing!$K$6:$K$149,0)+1),1) -> -563022.7571 | BJ20: =+INDEX(TRM_Billing!$R$6:$R$149,IF($C20="HLH",MATCH(BJ$4,TRM_Billing!$K$6:$K$149,0),MATCH(BJ$4,TRM_Billing!$K$6:$K$149,0)+1),1) -> -344640.8419 | BK20: =+INDEX(TRM_Billing!$R$6:$R$149,IF($C20="HLH",MATCH(BK$4,TRM_Billing!$K$6:$K$149,0),MATCH(BK$4,TRM_Billing!$K$6:$K$149,0)+1),1) -> -259396.701 | BL20: =+INDEX(TRM_Billing!$R$6:$R$149,IF($C20="HLH",MATCH(BL$4,TRM_Billing!$K$6:$K$149,0),MATCH(BL$4,TRM_Billing!$K$6:$K$149,0)+1),1) -> -174853.4821 | BM20: =+INDEX(TRM_Billing!$R$6:$R$149,IF($C20="HLH",MATCH(BM$4,TRM_Billing!$K$6:$K$149,0),MATCH(BM$4,TRM_Billing!$K$6:$K$149,0)+1),1) -> -379010.6876 | BN20: =+INDEX(TRM_Billing!$R$6:$R$149,IF($C20="HLH",MATCH(BN$4,TRM_Billing!$K$6:$K$149,0),MATCH(BN$4,TRM_Billing!$K$6:$K$149,0)+1),1) -> 88243.20403 | BO20: =+INDEX(TRM_Billing!$R$6:$R$149,IF($C20="HLH",MATCH(BO$4,TRM_Billing!$K$6:$K$149,0),MATCH(BO$4,TRM_Billing!$K$6:$K$149,0)+1),1) -> 456595.2358 | BP20: =+INDEX(TRM_Billing!$R$6:$R$149,IF($C20="HLH",MATCH(BP$4,TRM_Billing!$K$6:$K$149,0),MATCH(BP$4,TRM_Billing!$K$6:$K$149,0)+1),1) -> 209979.0601 | BQ20: =+INDEX(TRM_Billing!$R$6:$R$149,IF($C20="HLH",MATCH(BQ$4,TRM_Billing!$K$6:$K$149,0),MATCH(BQ$4,TRM_Billing!$K$6:$K$149,0)+1),1) -> 82292.30324 | BR20: =+INDEX(TRM_Billing!$R$6:$R$149,IF($C20="HLH",MATCH(BR$4,TRM_Billing!$K$6:$K$149,0),MATCH(BR$4,TRM_Billing!$K$6:$K$149,0)+1),1) -> 357303.8749 | BS20: =+INDEX(TRM_Billing!$R$6:$R$149,IF($C20="HLH",MATCH(BS$4,TRM_Billing!$K$6:$K$149,0),MATCH(BS$4,TRM_Billing!$K$6:$K$149,0)+1),1) -> -436751.8011 | BT20: =+INDEX(TRM_Billing!$R$6:$R$149,IF($C20="HLH",MATCH(BT$4,TRM_Billing!$K$6:$K$149,0),MATCH(BT$4,TRM_Billing!$K$6:$K$149,0)+1),1) -> -1313335.169 | BU20: =+INDEX(TRM_Billing!$R$6:$R$149,IF($C20="HLH",MATCH(BU$4,TRM_Billing!$K$6:$K$149,0),MATCH(BU$4,TRM_Billing!$K$6:$K$149,0)+1),1) -> -545749.6568 | BV20: =+INDEX(TRM_Billing!$R$6:$R$149,IF($C20="HLH",MATCH(BV$4,TRM_Billing!$K$6:$K$149,0),MATCH(BV$4,TRM_Billing!$K$6:$K$149,0)+1),1) -> -327314.1505 | BW20: =+INDEX(TRM_Billing!$R$6:$R$149,IF($C20="HLH",MATCH(BW$4,TRM_Billing!$K$6:$K$149,0),MATCH(BW$4,TRM_Billing!$K$6:$K$149,0)+1),1) -> -247051.7065
C21: LLH | D21: =+INDEX(TRM_Billing!$R$6:$R$149,IF($C21="HLH",MATCH(D$4,TRM_Billing!$K$6:$K$149,0),MATCH(D$4,TRM_Billing!$K$6:$K$149,0)+1),1) -> 111102.7749 | E21: =+INDEX(TRM_Billing!$R$6:$R$149,IF($C21="HLH",MATCH(E$4,TRM_Billing!$K$6:$K$149,0),MATCH(E$4,TRM_Billing!$K$6:$K$149,0)+1),1) -> -64236.253 | F21: =+INDEX(TRM_Billing!$R$6:$R$149,IF($C21="HLH",MATCH(F$4,TRM_Billing!$K$6:$K$149,0),MATCH(F$4,TRM_Billing!$K$6:$K$149,0)+1),1) -> 121448.4027 | G21: =+INDEX(TRM_Billing!$R$6:$R$149,IF($C21="HLH",MATCH(G$4,TRM_Billing!$K$6:$K$149,0),MATCH(G$4,TRM_Billing!$K$6:$K$149,0)+1),1) -> 475163.3221 | H21: =+INDEX(TRM_Billing!$R$6:$R$149,IF($C21="HLH",MATCH(H$4,TRM_Billing!$K$6:$K$149,0),MATCH(H$4,TRM_Billing!$K$6:$K$149,0)+1),1) -> 297572.0849 | I21: =+INDEX(TRM_Billing!$R$6:$R$149,IF($C21="HLH",MATCH(I$4,TRM_Billing!$K$6:$K$149,0),MATCH(I$4,TRM_Billing!$K$6:$K$149,0)+1),1) -> 151909.2566 | J21: =+INDEX(TRM_Billing!$R$6:$R$149,IF($C21="HLH",MATCH(J$4,TRM_Billing!$K$6:$K$149,0),MATCH(J$4,TRM_Billing!$K$6:$K$149,0)+1),1) -> 227947.1167 | K21: =+INDEX(TRM_Billing!$R$6:$R$149,IF($C21="HLH",MATCH(K$4,TRM_Billing!$K$6:$K$149,0),MATCH(K$4,TRM_Billing!$K$6:$K$149,0)+1),1) -> 38570.08624 | L21: =+INDEX(TRM_Billing!$R$6:$R$149,IF($C21="HLH",MATCH(L$4,TRM_Billing!$K$6:$K$149,0),MATCH(L$4,TRM_Billing!$K$6:$K$149,0)+1),1) -> 323.4128101 | M21: =+INDEX(TRM_Billing!$R$6:$R$149,IF($C21="HLH",MATCH(M$4,TRM_Billing!$K$6:$K$149,0),MATCH(M$4,TRM_Billing!$K$6:$K$149,0)+1),1) -> 177800.9117 | N21: =+INDEX(TRM_Billing!$R$6:$R$149,IF($C21="HLH",MATCH(N$4,TRM_Billing!$K$6:$K$149,0),MATCH(N$4,TRM_Billing!$K$6:$K$149,0)+1),1) -> 103370.549 | O21: =+INDEX(TRM_Billing!$R$6:$R$149,IF($C21="HLH",MATCH(O$4,TRM_Billing!$K$6:$K$149,0),MATCH(O$4,TRM_Billing!$K$6:$K$149,0)+1),1) -> 48849.33726 | P21: =+INDEX(TRM_Billing!$R$6:$R$149,IF($C21="HLH",MATCH(P$4,TRM_Billing!$K$6:$K$149,0),MATCH(P$4,TRM_Billing!$K$6:$K$149,0)+1),1) -> 115774.7228 | Q21: =+INDEX(TRM_Billing!$R$6:$R$149,IF($C21="HLH",MATCH(Q$4,TRM_Billing!$K$6:$K$149,0),MATCH(Q$4,TRM_Billing!$K$6:$K$149,0)+1),1) -> -50419.29334 | R21: =+INDEX(TRM_Billing!$R$6:$R$149,IF($C21="HLH",MATCH(R$4,TRM_Billing!$K$6:$K$149,0),MATCH(R$4,TRM_Billing!$K$6:$K$149,0)+1),1) -> 137986.8703 | S21: =+INDEX(TRM_Billing!$R$6:$R$149,IF($C21="HLH",MATCH(S$4,TRM_Billing!$K$6:$K$149,0),MATCH(S$4,TRM_Billing!$K$6:$K$149,0)+1),1) -> 491513.2167 | T21: =+INDEX(TRM_Billing!$R$6:$R$149,IF($C21="HLH",MATCH(T$4,TRM_Billing!$K$6:$K$149,0),MATCH(T$4,TRM_Billing!$K$6:$K$149,0)+1),1) -> 311507.0601 | U21: =+INDEX(TRM_Billing!$R$6:$R$149,IF($C21="HLH",MATCH(U$4,TRM_Billing!$K$6:$K$149,0),MATCH(U$4,TRM_Billing!$K$6:$K$149,0)+1),1) -> 167041.9112 | V21: =+INDEX(TRM_Billing!$R$6:$R$149,IF($C21="HLH",MATCH(V$4,TRM_Billing!$K$6:$K$149,0),MATCH(V$4,TRM_Billing!$K$6:$K$149,0)+1),1) -> 280944.9461 | W21: =+INDEX(TRM_Billing!$R$6:$R$149,IF($C21="HLH",MATCH(W$4,TRM_Billing!$K$6:$K$149,0),MATCH(W$4,TRM_Billing!$K$6:$K$149,0)+1),1) -> 17911.65893 | X21: =+INDEX(TRM_Billing!$R$6:$R$149,IF($C21="HLH",MATCH(X$4,TRM_Billing!$K$6:$K$149,0),MATCH(X$4,TRM_Billing!$K$6:$K$149,0)+1),1) -> 10600.74123 | Y21: =+INDEX(TRM_Billing!$R$6:$R$149,IF($C21="HLH",MATCH(Y$4,TRM_Billing!$K$6:$K$149,0),MATCH(Y$4,TRM_Billing!$K$6:$K$149,0)+1),1) -> 189954.6754 | Z21: =+INDEX(TRM_Billing!$R$6:$R$149,IF($C21="HLH",MATCH(Z$4,TRM_Billing!$K$6:$K$149,0),MATCH(Z$4,TRM_Billing!$K$6:$K$149,0)+1),1) -> 116209.2686 | AA21: =+INDEX(TRM_Billing!$R$6:$R$149,IF($C21="HLH",MATCH(AA$4,TRM_Billing!$K$6:$K$149,0),MATCH(AA$4,TRM_Billing!$K$6:$K$149,0)+1),1) -> 67000.58698 | AB21: =+INDEX(TRM_Billing!$R$6:$R$149,IF($C21="HLH",MATCH(AB$4,TRM_Billing!$K$6:$K$149,0),MATCH(AB$4,TRM_Billing!$K$6:$K$149,0)+1),1) -> 148576.1916 | AC21: =+INDEX(TRM_Billing!$R$6:$R$149,IF($C21="HLH",MATCH(AC$4,TRM_Billing!$K$6:$K$149,0),MATCH(AC$4,TRM_Billing!$K$6:$K$149,0)+1),1) -> 52123.13468 | AD21: =+INDEX(TRM_Billing!$R$6:$R$149,IF($C21="HLH",MATCH(AD$4,TRM_Billing!$K$6:$K$149,0),MATCH(AD$4,TRM_Billing!$K$6:$K$149,0)+1),1) -> 355634.3471 | AE21: =+INDEX(TRM_Billing!$R$6:$R$149,IF($C21="HLH",MATCH(AE$4,TRM_Billing!$K$6:$K$149,0),MATCH(AE$4,TRM_Billing!$K$6:$K$149,0)+1),1) -> 586036.8805 | AF21: =+INDEX(TRM_Billing!$R$6:$R$149,IF($C21="HLH",MATCH(AF$4,TRM_Billing!$K$6:$K$149,0),MATCH(AF$4,TRM_Billing!$K$6:$K$149,0)+1),1) -> 343930.8105 | AG21: =+INDEX(TRM_Billing!$R$6:$R$149,IF($C21="HLH",MATCH(AG$4,TRM_Billing!$K$6:$K$149,0),MATCH(AG$4,TRM_Billing!$K$6:$K$149,0)+1),1) -> 291356.5828 | AH21: =+INDEX(TRM_Billing!$R$6:$R$149,IF($C21="HLH",MATCH(AH$4,TRM_Billing!$K$6:$K$149,0),MATCH(AH$4,TRM_Billing!$K$6:$K$149,0)+1),1) -> 305033.6703 | AI21: =+INDEX(TRM_Billing!$R$6:$R$149,IF($C21="HLH",MATCH(AI$4,TRM_Billing!$K$6:$K$149,0),MATCH(AI$4,TRM_Billing!$K$6:$K$149,0)+1),1) -> -36095.00019 | AJ21: =+INDEX(TRM_Billing!$R$6:$R$149,IF($C21="HLH",MATCH(AJ$4,TRM_Billing!$K$6:$K$149,0),MATCH(AJ$4,TRM_Billing!$K$6:$K$149,0)+1),1) -> -163515.6051 | AK21: =+INDEX(TRM_Billing!$R$6:$R$149,IF($C21="HLH",MATCH(AK$4,TRM_Billing!$K$6:$K$149,0),MATCH(AK$4,TRM_Billing!$K$6:$K$149,0)+1),1) -> 192604.203 | AL21: =+INDEX(TRM_Billing!$R$6:$R$149,IF($C21="HLH",MATCH(AL$4,TRM_Billing!$K$6:$K$149,0),MATCH(AL$4,TRM_Billing!$K$6:$K$149,0)+1),1) -> 186105.7876 | AM21: =+INDEX(TRM_Billing!$R$6:$R$149,IF($C21="HLH",MATCH(AM$4,TRM_Billing!$K$6:$K$149,0),MATCH(AM$4,TRM_Billing!$K$6:$K$149,0)+1),1) -> 153611.026 | AN21: =+INDEX(TRM_Billing!$R$6:$R$149,IF($C21="HLH",MATCH(AN$4,TRM_Billing!$K$6:$K$149,0),MATCH(AN$4,TRM_Billing!$K$6:$K$149,0)+1),1) -> 110560.9459 | AO21: =+INDEX(TRM_Billing!$R$6:$R$149,IF($C21="HLH",MATCH(AO$4,TRM_Billing!$K$6:$K$149,0),MATCH(AO$4,TRM_Billing!$K$6:$K$149,0)+1),1) -> 54465.95452 | AP21: =+INDEX(TRM_Billing!$R$6:$R$149,IF($C21="HLH",MATCH(AP$4,TRM_Billing!$K$6:$K$149,0),MATCH(AP$4,TRM_Billing!$K$6:$K$149,0)+1),1) -> 361197.1481 | AQ21: =+INDEX(TRM_Billing!$R$6:$R$149,IF($C21="HLH",MATCH(AQ$4,TRM_Billing!$K$6:$K$149,0),MATCH(AQ$4,TRM_Billing!$K$6:$K$149,0)+1),1) -> 588927.1843 | AR21: =+INDEX(TRM_Billing!$R$6:$R$149,IF($C21="HLH",MATCH(AR$4,TRM_Billing!$K$6:$K$149,0),MATCH(AR$4,TRM_Billing!$K$6:$K$149,0)+1),1) -> 374104.0686 | AS21: =+INDEX(TRM_Billing!$R$6:$R$149,IF($C21="HLH",MATCH(AS$4,TRM_Billing!$K$6:$K$149,0),MATCH(AS$4,TRM_Billing!$K$6:$K$149,0)+1),1) -> 294709.3443 | AT21: =+INDEX(TRM_Billing!$R$6:$R$149,IF($C21="HLH",MATCH(AT$4,TRM_Billing!$K$6:$K$149,0),MATCH(AT$4,TRM_Billing!$K$6:$K$149,0)+1),1) -> 317030.5903 | AU21: =+INDEX(TRM_Billing!$R$6:$R$149,IF($C21="HLH",MATCH(AU$4,TRM_Billing!$K$6:$K$149,0),MATCH(AU$4,TRM_Billing!$K$6:$K$149,0)+1),1) -> -25901.35674 | AV21: =+INDEX(TRM_Billing!$R$6:$R$149,IF($C21="HLH",MATCH(AV$4,TRM_Billing!$K$6:$K$149,0),MATCH(AV$4,TRM_Billing!$K$6:$K$149,0)+1),1) -> -153555.885 | AW21: =+INDEX(TRM_Billing!$R$6:$R$149,IF($C21="HLH",MATCH(AW$4,TRM_Billing!$K$6:$K$149,0),MATCH(AW$4,TRM_Billing!$K$6:$K$149,0)+1),1) -> 203795.4751 | AX21: =+INDEX(TRM_Billing!$R$6:$R$149,IF($C21="HLH",MATCH(AX$4,TRM_Billing!$K$6:$K$149,0),MATCH(AX$4,TRM_Billing!$K$6:$K$149,0)+1),1) -> 233524.9843 | AY21: =+INDEX(TRM_Billing!$R$6:$R$149,IF($C21="HLH",MATCH(AY$4,TRM_Billing!$K$6:$K$149,0),MATCH(AY$4,TRM_Billing!$K$6:$K$149,0)+1),1) -> 114692.9048 | AZ21: =+INDEX(TRM_Billing!$R$6:$R$149,IF($C21="HLH",MATCH(AZ$4,TRM_Billing!$K$6:$K$149,0),MATCH(AZ$4,TRM_Billing!$K$6:$K$149,0)+1),1) -> 103712.4801 | BA21: =+INDEX(TRM_Billing!$R$6:$R$149,IF($C21="HLH",MATCH(BA$4,TRM_Billing!$K$6:$K$149,0),MATCH(BA$4,TRM_Billing!$K$6:$K$149,0)+1),1) -> 72908.88583 | BB21: =+INDEX(TRM_Billing!$R$6:$R$149,IF($C21="HLH",MATCH(BB$4,TRM_Billing!$K$6:$K$149,0),MATCH(BB$4,TRM_Billing!$K$6:$K$149,0)+1),1) -> 302489.6881 | BC21: =+INDEX(TRM_Billing!$R$6:$R$149,IF($C21="HLH",MATCH(BC$4,TRM_Billing!$K$6:$K$149,0),MATCH(BC$4,TRM_Billing!$K$6:$K$149,0)+1),1) -> 599258.4174 | BD21: =+INDEX(TRM_Billing!$R$6:$R$149,IF($C21="HLH",MATCH(BD$4,TRM_Billing!$K$6:$K$149,0),MATCH(BD$4,TRM_Billing!$K$6:$K$149,0)+1),1) -> 362525.0432 | BE21: =+INDEX(TRM_Billing!$R$6:$R$149,IF($C21="HLH",MATCH(BE$4,TRM_Billing!$K$6:$K$149,0),MATCH(BE$4,TRM_Billing!$K$6:$K$149,0)+1),1) -> 286448.4223 | BF21: =+INDEX(TRM_Billing!$R$6:$R$149,IF($C21="HLH",MATCH(BF$4,TRM_Billing!$K$6:$K$149,0),MATCH(BF$4,TRM_Billing!$K$6:$K$149,0)+1),1) -> 312062.8779 | BG21: =+INDEX(TRM_Billing!$R$6:$R$149,IF($C21="HLH",MATCH(BG$4,TRM_Billing!$K$6:$K$149,0),MATCH(BG$4,TRM_Billing!$K$6:$K$149,0)+1),1) -> -6417.003646 | BH21: =+INDEX(TRM_Billing!$R$6:$R$149,IF($C21="HLH",MATCH(BH$4,TRM_Billing!$K$6:$K$149,0),MATCH(BH$4,TRM_Billing!$K$6:$K$149,0)+1),1) -> -226292.7849 | BI21: =+INDEX(TRM_Billing!$R$6:$R$149,IF($C21="HLH",MATCH(BI$4,TRM_Billing!$K$6:$K$149,0),MATCH(BI$4,TRM_Billing!$K$6:$K$149,0)+1),1) -> 195334.0494 | BJ21: =+INDEX(TRM_Billing!$R$6:$R$149,IF($C21="HLH",MATCH(BJ$4,TRM_Billing!$K$6:$K$149,0),MATCH(BJ$4,TRM_Billing!$K$6:$K$149,0)+1),1) -> 224175.7449 | BK21: =+INDEX(TRM_Billing!$R$6:$R$149,IF($C21="HLH",MATCH(BK$4,TRM_Billing!$K$6:$K$149,0),MATCH(BK$4,TRM_Billing!$K$6:$K$149,0)+1),1) -> 103490.4888 | BL21: =+INDEX(TRM_Billing!$R$6:$R$149,IF($C21="HLH",MATCH(BL$4,TRM_Billing!$K$6:$K$149,0),MATCH(BL$4,TRM_Billing!$K$6:$K$149,0)+1),1) -> 109995.2973 | BM21: =+INDEX(TRM_Billing!$R$6:$R$149,IF($C21="HLH",MATCH(BM$4,TRM_Billing!$K$6:$K$149,0),MATCH(BM$4,TRM_Billing!$K$6:$K$149,0)+1),1) -> 81516.73082 | BN21: =+INDEX(TRM_Billing!$R$6:$R$149,IF($C21="HLH",MATCH(BN$4,TRM_Billing!$K$6:$K$149,0),MATCH(BN$4,TRM_Billing!$K$6:$K$149,0)+1),1) -> 313270.256 | BO21: =+INDEX(TRM_Billing!$R$6:$R$149,IF($C21="HLH",MATCH(BO$4,TRM_Billing!$K$6:$K$149,0),MATCH(BO$4,TRM_Billing!$K$6:$K$149,0)+1),1) -> 660657.8031 | BP21: =+INDEX(TRM_Billing!$R$6:$R$149,IF($C21="HLH",MATCH(BP$4,TRM_Billing!$K$6:$K$149,0),MATCH(BP$4,TRM_Billing!$K$6:$K$149,0)+1),1) -> 366350.1628 | BQ21: =+INDEX(TRM_Billing!$R$6:$R$149,IF($C21="HLH",MATCH(BQ$4,TRM_Billing!$K$6:$K$149,0),MATCH(BQ$4,TRM_Billing!$K$6:$K$149,0)+1),1) -> 246233.0442 | BR21: =+INDEX(TRM_Billing!$R$6:$R$149,IF($C21="HLH",MATCH(BR$4,TRM_Billing!$K$6:$K$149,0),MATCH(BR$4,TRM_Billing!$K$6:$K$149,0)+1),1) -> 321608.6304 | BS21: =+INDEX(TRM_Billing!$R$6:$R$149,IF($C21="HLH",MATCH(BS$4,TRM_Billing!$K$6:$K$149,0),MATCH(BS$4,TRM_Billing!$K$6:$K$149,0)+1),1) -> 2959.657944 | BT21: =+INDEX(TRM_Billing!$R$6:$R$149,IF($C21="HLH",MATCH(BT$4,TRM_Billing!$K$6:$K$149,0),MATCH(BT$4,TRM_Billing!$K$6:$K$149,0)+1),1) -> -215933.0339 | BU21: =+INDEX(TRM_Billing!$R$6:$R$149,IF($C21="HLH",MATCH(BU$4,TRM_Billing!$K$6:$K$149,0),MATCH(BU$4,TRM_Billing!$K$6:$K$149,0)+1),1) -> 206487.2521 | BV21: =+INDEX(TRM_Billing!$R$6:$R$149,IF($C21="HLH",MATCH(BV$4,TRM_Billing!$K$6:$K$149,0),MATCH(BV$4,TRM_Billing!$K$6:$K$149,0)+1),1) -> 233368.2084 | BW21: =+INDEX(TRM_Billing!$R$6:$R$149,IF($C21="HLH",MATCH(BW$4,TRM_Billing!$K$6:$K$149,0),MATCH(BW$4,TRM_Billing!$K$6:$K$149,0)+1),1) -> 111085.3807
D24: =RateSummary!$C$10 -> 2022 | E24: =RateSummary!$D$10 -> 2023 | F24: =RateSummary!$E$10 -> 2024 | G24: =RateSummary!$F$10 -> 2025 | H24: =RateSummary!$G$10 -> 2026 | I24: =RateSummary!$H$10 -> 2027
C25: Public Load (MWh) | D25: =SUM(D12:O13) -> 57217146.7 | E25: =SUM(P12:AA13) -> 57654212.35 | F25: =SUM(AB12:AM13) -> 57441435.84 | G25: =SUM(AN12:AY13) -> 57858506.35 | H25: =SUM(AZ12:BK13) -> 57441435.84 | I25: =SUM(BL12:BW13) -> 57858506.35
C26: Public Load (aMW) | D26: =D25/VLOOKUP(D24,Init!$N$5:$P$38,3) -> 6531.637751 | E26: =E25/VLOOKUP(E24,Init!$N$5:$P$38,3) -> 6581.531091 | F26: =F25/VLOOKUP(F24,Init!$N$5:$P$38,3) -> 6539.325574 | G26: =G25/VLOOKUP(G24,Init!$N$5:$P$38,3) -> 6604.852323 | H26: =H25/VLOOKUP(H24,Init!$N$5:$P$38,3) -> 6557.241534 | I26: =I25/VLOOKUP(I24,Init!$N$5:$P$38,3) -> 6604.852323
C27: Demand (MW) | D27: =SUM(D18:O18) -> 5587.369608 | E27: =SUM(P18:AA18) -> 5695.314434 | F27: =SUM(AB18:AM18) -> 21016.88374 | G27: =SUM(AN18:AY18) -> 21950.3327 | H27: =SUM(AZ18:BK18) -> 22733.39186 | I27: =SUM(BL18:BW18) -> 23502.82996
D29: =RateSummary!$C$10 -> 2022 | E29: =RateSummary!$D$10 -> 2023 | F29: =RateSummary!$E$10 -> 2024 | G29: =RateSummary!$F$10 -> 2025 | H29: =RateSummary!$G$10 -> 2026 | I29: =RateSummary!$H$10 -> 2027
C30: Base | D30: =D26 -> 6531.637751 | E30: 6581.531091 | F30: 6539.325574 | G30: 6604.852323 | H30: 6557.241534 | I30: 6604.852323
D34: DEMAND: | E34: ENERGY: | F34: (GWh) | AE34: Total
E35: Oct | G35: Nov | I35: Dec | K35: Jan | M35: Feb | O35: Mar | Q35: Apr | S35: May | U35: Jun | W35: Jul | Y35: Aug | AA35: Sep | AC35: Total | AE35: Energy
D36: Annual | E36: LLH | F36: HLH | G36: LLH | H36: HLH | I36: LLH | J36: HLH | K36: LLH | L36: HLH | M36: LLH | N36: HLH | O36: LLH | P36: HLH | Q36: LLH | R36: HLH | S36: LLH | T36: HLH | U36: LLH | V36: HLH | W36: LLH | X36: HLH | Y36: LLH | Z36: HLH | AA36: LLH | AB36: HLH | AC36: LLH | AD36: HLH
B38: =RateSummary!$C$10 -> 2022 | D38: =Q49 -> 5587.369608 | E38: =D48 -> 1711.976133 | F38: =D47 -> 2632.603448 | G38: =E48 -> 2100.676401 | H38: =E47 -> 3020.734101 | I38: =F48 -> 2481.647956 | J38: =F47 -> 3383.739639 | K38: =G48 -> 2421.878653 | L38: =G47 -> 3262.342751 | M38: =H48 -> 1946.998585 | N38: =H47 -> 2828.177244 | O38: =I48 -> 1965.56307 | P38: =I47 -> 2989.277209 | Q38: =J48 -> 1636.396312 | R38: =J47 -> 2490.490657 | S38: =K48 -> 1725.175994 | T38: =K47 -> 2596.54313 | U38: =L48 -> 1575.249077 | V38: =L47 -> 2783.82822 | W38: =M48 -> 1894.679116 | X38: =M47 -> 2848.503731 | Y38: =N48 -> 1722.930744 | Z38: =N47 -> 2923.484155 | AA38: =O48 -> 1711.643015 | AB38: =O47 -> 2562.607356 | AC38: =E38+G38+I38+K38+M38+O38+Q38+S38+U38+W38+Y38+AA38 -> 22894.81506 | AD38: =F38+H38+J38+L38+N38+P38+R38+T38+V38+X38+Z38+AB38 -> 34322.33164 | AE38: =AC38+AD38 -> 57217.1467
B39: =RateSummary!$D$10 -> 2023 | D39: =Q53 -> 5695.314434 | E39: =D52 -> 1721.96212 | F39: =D51 -> 2660.206663 | G39: =E52 -> 2117.401702 | H39: =E51 -> 3058.206531 | I39: =F52 -> 2476.926445 | J39: =F51 -> 3450.553974 | K39: =G52 -> 2471.344788 | L39: =G51 -> 3277.283628 | M39: =H52 -> 1969.906558 | N39: =H51 -> 2861.749837 | O39: =I52 -> 1987.135133 | P39: =I51 -> 3026.330538 | Q39: =J52 -> 1702.027277 | R39: =J51 -> 2478.652701 | S39: =K52 -> 1652.455757 | T39: =K51 -> 2603.794151 | U39: =L52 -> 1553.324059 | V39: =L51 -> 2748.815275 | W39: =M52 -> 1921.586428 | X39: =M51 -> 2874.517666 | Y39: =N52 -> 1746.287399 | Z39: =N51 -> 2955.545762 | AA39: =O52 -> 1741.720164 | AB39: =O51 -> 2596.477801 | AC39: 23062.07783 | AD39: 34592.13453 | AE39: 57654.21235
B40: =RateSummary!$E$10 -> 2024 | D40: =Q57 -> 21016.88374 | E40: =D56 -> 1704.861079 | F40: =D55 -> 2619.528883 | G40: =E56 -> 2153.146691 | H40: =E55 -> 3083.324255 | I40: =F56 -> 2482.253888 | J40: =F55 -> 3380.417903 | K40: =G56 -> 2415.000069 | L40: =G55 -> 3229.616655 | M40: =H56 -> 1968.187424 | N40: =H55 -> 2855.668946 | O40: =I56 -> 1950.993315 | P40: =I55 -> 2970.379242 | Q40: =J56 -> 1639.947498 | R40: =J55 -> 2490.150419 | S40: =K56 -> 1752.429595 | T40: =K55 -> 2624.404533 | U40: =L56 -> 1588.485707 | V40: =L55 -> 2799.063386 | W40: =M56 -> 1910.41067 | X40: =M55 -> 2857.431516 | Y40: =N56 -> 1728.379818 | Z40: =N55 -> 2929.3351 | AA40: =O56 -> 1727.694467 | AB40: =O55 -> 2580.32478 | AC40: 23021.79022 | AD40: 34419.64562 | AE40: 57441.43584
B41: =RateSummary!$F$10 -> 2025 | D41: =Q61 -> 21950.3327 | E41: =D60 -> 1716.412617 | F41: =D59 -> 2646.803148 | G41: =E60 -> 2171.750037 | H41: =E59 -> 3126.123011 | I41: =F60 -> 2477.032604 | J41: =F59 -> 3448.106874 | K41: =G60 -> 2466.080282 | L41: =G59 -> 3243.939709 | M41: =H60 -> 1990.854039 | N41: =H59 -> 2888.466741 | O41: =I60 -> 1972.280138 | P41: =I59 -> 3009.796759 | Q41: =J60 -> 1704.903582 | R41: =J59 -> 2472.758712 | S41: =K60 -> 1674.07915 | T41: =K59 -> 2628.431357 | U41: =L60 -> 1563.980108 | V41: =L59 -> 2758.760554 | W41: =M60 -> 1937.546808 | X41: =M59 -> 2878.091079 | Y41: =N60 -> 1749.849562 | Z41: =N59 -> 2960.629615 | AA41: =O60 -> 1758.250541 | AB41: =O59 -> 2613.579324 | AC41: 23183.01947 | AD41: 34675.48688 | AE41: 57858.50635
B42: =RateSummary!$G$10 -> 2026 | D42: =Q65 -> 22733.39186 | E42: =D64 -> 1704.861079 | F42: =D63 -> 2619.528883 | G42: =E64 -> 2153.146691 | H42: =E63 -> 3083.324255 | I42: =F64 -> 2482.253888 | J42: =F63 -> 3380.417903 | K42: =G64 -> 2415.000069 | L42: =G63 -> 3229.616655 | M42: =H64 -> 1968.187424 | N42: =H63 -> 2855.668946 | O42: =I64 -> 1950.993315 | P42: =I63 -> 2970.379242 | Q42: =J64 -> 1639.947498 | R42: =J63 -> 2490.150419 | S42: =K64 -> 1752.429595 | T42: =K63 -> 2624.404533 | U42: =L64 -> 1588.485707 | V42: =L63 -> 2799.063386 | W42: =M64 -> 1910.41067 | X42: =M63 -> 2857.431516 | Y42: =N64 -> 1728.379818 | Z42: =N63 -> 2929.3351 | AA42: =O64 -> 1727.694467 | AB42: =O63 -> 2580.32478 | AC42: 23021.79022 | AD42: 34419.64562 | AE42: 57441.43584
B43: =RateSummary!$H$10 -> 2027 | D43: =Q69 -> 23502.82996 | E43: =D68 -> 1716.412617 | F43: =D67 -> 2646.803148 | G43: =E68 -> 2171.750037 | H43: =E67 -> 3126.123011 | I43: =F68 -> 2477.032604 | J43: =F67 -> 3448.106874 | K43: =G68 -> 2466.080282 | L43: =G67 -> 3243.939709 | M43: =H68 -> 1990.854039 | N43: =H67 -> 2888.466741 | O43: =I68 -> 1972.280138 | P43: =I67 -> 3009.796759 | Q43: =J68 -> 1704.903582 | R43: =J67 -> 2472.758712 | S43: =K68 -> 1674.07915 | T43: =K67 -> 2628.431357 | U43: =L68 -> 1563.980108 | V43: =L67 -> 2758.760554 | W43: =M68 -> 1937.546808 | X43: =M67 -> 2878.091079 | Y43: =N68 -> 1749.849562 | Z43: =N67 -> 2960.629615 | AA43: =O68 -> 1758.250541 | AB43: =O67 -> 2613.579324 | AC43: 23183.01947 | AD43: 34675.48688 | AE43: 57858.50635
D46: =E35 -> Oct | E46: =G35 -> Nov | F46: =I35 -> Dec | G46: =K35 -> Jan | H46: =M35 -> Feb | I46: =O35 -> Mar | J46: =Q35 -> Apr | K46: =S35 -> May | L46: =U35 -> Jun | M46: =W35 -> Jul | N46: =Y35 -> Aug | O46: =AA35 -> Sep | U46: =D26 -> 6531.637751
B47: =B38 -> 2022 | C47: HLH | D47: =(D12)/1000*$V$48 -> 2632.603448 | E47: 3020.734101 | F47: 3383.739639 | G47: 3262.342751 | H47: 2828.177244 | I47: 2989.277209 | J47: 2490.490657 | K47: 2596.54313 | L47: 2783.82822 | M47: 2848.503731 | N47: 2923.484155 | O47: 2562.607356 | R47: HLH | S47: =B47 -> 2022 | T47: =SUM(D47:O48) -> 57217.1467 | U47: =T47/(VLOOKUP(S47,Init!$N$5:$P$38,3)/1000) -> 6531.637751
C48: LLH | D48: =(D13)/1000*$V$48 -> 1711.976133 | E48: 2100.676401 | F48: 2481.647956 | G48: 2421.878653 | H48: 1946.998585 | I48: 1965.56307 | J48: 1636.396312 | K48: 1725.175994 | L48: 1575.249077 | M48: 1894.679116 | N48: 1722.930744 | O48: 1711.643015 | R48: LLH | U48: =D30 -> 6531.637751 | V48: =U48/U46 -> 1
C49: Demand | D49: =D18*$V$48 -> 240.5984808 | E49: 311.366 | F49: 662.4066034 | G49: 513.0530925 | H49: 347.56625 | I49: 549.1720694 | J49: 504.3353942 | K49: 330.86734 | L49: 524.741726 | M49: 490.20624 | N49: 636.3173472 | O49: 476.739065 | P49: Annual = | Q49: =SUM(D49:P49) -> 5587.369608 | R49: Demand
D50: =D46 -> Oct | E50: Nov | F50: Dec | G50: Jan | H50: Feb | I50: Mar | J50: Apr | K50: May | L50: Jun | M50: Jul | N50: Aug | O50: Sep | U50: =E26 -> 6581.531091
B51: =B47+1 -> 2023 | C51: HLH | D51: =(P12)/1000*$V$52 -> 2660.206663 | E51: 3058.206531 | F51: 3450.553974 | G51: 3277.283628 | H51: 2861.749837 | I51: 3026.330538 | J51: 2478.652701 | K51: 2603.794151 | L51: 2748.815275 | M51: 2874.517666 | N51: 2955.545762 | O51: 2596.477801 | R51: HLH | S51: =B51 -> 2023 | T51: =SUM(D51:O52) -> 57654.21235 | U51: =T51/(VLOOKUP(S51,Init!$N$5:$P$38,3)/1000) -> 6581.531091
C52: LLH | D52: 1721.96212 | E52: 2117.401702 | F52: 2476.926445 | G52: 2471.344788 | H52: 1969.906558 | I52: 1987.135133 | J52: 1702.027277 | K52: 1652.455757 | L52: 1553.324059 | M52: 1921.586428 | N52: 1746.287399 | O52: 1741.720164 | R52: LLH | U52: =E30 -> 6581.531091 | V52: =U52/U50 -> 1
C53: Demand | D53: =P18*$V$52 -> 261.6182933 | E53: 322.7614875 | F53: 674.4249856 | G53: 523.88132 | H53: 357.5027109 | I53: 558.2283935 | J53: 455.216855 | K53: 399.4632236 | L53: 532.6571538 | M53: 498.207495 | N53: 644.0595255 | O53: 467.29299 | P53: Annual = | Q53: =SUM(D53:P53) -> 5695.314434 | R53: Demand
D54: =D50 -> Oct | E54: Nov | F54: Dec | G54: Jan | H54: Feb | I54: Mar | J54: Apr | K54: May | L54: Jun | M54: Jul | N54: Aug | O54: Sep | U54: =F26 -> 6539.325574
B55: =B51+1 -> 2024 | C55: HLH | D55: =(AB12)/1000*$V$56 -> 2619.528883 | E55: 3083.324255 | F55: 3380.417903 | G55: 3229.616655 | H55: 2855.668946 | I55: 2970.379242 | J55: 2490.150419 | K55: 2624.404533 | L55: 2799.063386 | M55: 2857.431516 | N55: 2929.3351 | O55: 2580.32478 | R55: HLH | S55: =B55 -> 2024 | T55: =SUM(D55:O56) -> 57441.43584 | U55: =T55/(VLOOKUP(S55,Init!$N$5:$P$38,3)/1000) -> 6539.325574
C56: LLH | D56: 1704.861079 | E56: 2153.146691 | F56: 2482.253888 | G56: 2415.000069 | H56: 1968.187424 | I56: 1950.993315 | J56: 1639.947498 | K56: 1752.429595 | L56: 1588.485707 | M56: 1910.41067 | N56: 1728.379818 | O56: 1727.694467 | R56: LLH | U56: =F30 -> 6539.325574 | V56: =U56/U54 -> 1
C57: Demand | D57: =AB18*$V$56 -> 1549.018308 | E57: 1554.358058 | F57: 1871.166768 | G57: 1856.963791 | H57: 1610.83554 | I57: 1715.814512 | J57: 1742.880471 | K57: 1686.215757 | L57: 1708.454825 | M57: 1963.415812 | N57: 1986.054021 | O57: 1771.705875 | P57: Annual = | Q57: =SUM(D57:P57) -> 21016.88374 | R57: Demand
D58: =D54 -> Oct | E58: Nov | F58: Dec | G58: Jan | H58: Feb | I58: Mar | J58: Apr | K58: May | L58: Jun | M58: Jul | N58: Aug | O58: Sep | U58: =G26 -> 6604.852323
B59: =B55+1 -> 2025 | C59: HLH | D59: =(AN12)/1000*$V$60 -> 2646.803148 | E59: 3126.123011 | F59: 3448.106874 | G59: 3243.939709 | H59: 2888.466741 | I59: 3009.796759 | J59: 2472.758712 | K59: 2628.431357 | L59: 2758.760554 | M59: 2878.091079 | N59: 2960.629615 | O59: 2613.579324 | R59: HLH | S59: =B59 -> 2025 | T59: =SUM(D59:O60) -> 57858.50635 | U59: =T59/(VLOOKUP(S59,Init!$N$5:$P$38,3)/1000) -> 6604.852323
C60: LLH | D60: 1716.412617 | E60: 2171.750037 | F60: 2477.032604 | G60: 2466.080282 | H60: 1990.854039 | I60: 1972.280138 | J60: 1704.903582 | K60: 1674.07915 | L60: 1563.980108 | M60: 1937.546808 | N60: 1749.849562 | O60: 1758.250541 | R60: LLH | U60: =G30 -> 6604.852323 | V60: =U60/U58 -> 1
C61: Demand | D61: =AN18*$V$60 -> 1699.80256 | E61: 1646.89113 | F61: 1958.48697 | G61: 1947.565541 | H61: 1649.264409 | I61: 1790.663363 | J61: 1813.150341 | K61: 1761.177512 | L61: 1770.06315 | M61: 2027.302575 | N61: 1978.885442 | O61: 1907.079705 | P61: Annual = | Q61: =SUM(D61:P61) -> 21950.3327 | R61: Demand
D62: =D58 -> Oct | E62: Nov | F62: Dec | G62: Jan | H62: Feb | I62: Mar | J62: Apr | K62: May | L62: Jun | M62: Jul | N62: Aug | O62: Sep | U62: =H26 -> 6557.241534
B63: =B59+1 -> 2026 | C63: HLH | D63: =(AZ12)/1000*$V$64 -> 2619.528883 | E63: 3083.324255 | F63: 3380.417903 | G63: 3229.616655 | H63: 2855.668946 | I63: 2970.379242 | J63: 2490.150419 | K63: 2624.404533 | L63: 2799.063386 | M63: 2857.431516 | N63: 2929.3351 | O63: 2580.32478 | R63: HLH | S63: =B63 -> 2026 | T63: =SUM(D63:O64) -> 57441.43584 | U63: =T63/(VLOOKUP(S63,Init!$N$5:$P$38,3)/1000) -> 6557.241534
C64: LLH | D64: 1704.861079 | E64: 2153.146691 | F64: 2482.253888 | G64: 2415.000069 | H64: 1968.187424 | I64: 1950.993315 | J64: 1639.947498 | K64: 1752.429595 | L64: 1588.485707 | M64: 1910.41067 | N64: 1728.379818 | O64: 1727.694467 | R64: LLH | U64: =H30 -> 6557.241534 | V64: =U64/U62 -> 1
C65: Demand | D65: =AZ18*$V$64 -> 1757.476521 | E65: 1626.617466 | F65: 2122.718726 | G65: 2013.793726 | H65: 1728.593594 | I65: 1844.271745 | J65: 1874.681827 | K65: 1753.271313 | L65: 1902.168094 | M65: 2094.685517 | N65: 2042.427296 | O65: 1972.68604 | P65: Annual = | Q65: =SUM(D65:P65) -> 22733.39186 | R65: Demand
D66: =D62 -> Oct | E66: Nov | F66: Dec | G66: Jan | H66: Feb | I66: Mar | J66: Apr | K66: May | L66: Jun | M66: Jul | N66: Aug | O66: Sep | U66: =I26 -> 6604.852323
B67: =B63+1 -> 2027 | C67: HLH | D67: =(BL12)/1000*$V$68 -> 2646.803148 | E67: 3126.123011 | F67: 3448.106874 | G67: 3243.939709 | H67: 2888.466741 | I67: 3009.796759 | J67: 2472.758712 | K67: 2628.431357 | L67: 2758.760554 | M67: 2878.091079 | N67: 2960.629615 | O67: 2613.579324 | R67: HLH | S67: =B67 -> 2027 | T67: =SUM(D67:O68) -> 57858.50635 | U67: =T67/(VLOOKUP(S67,Init!$N$5:$P$38,3)/1000) -> 6604.852323
C68: LLH | D68: 1716.412617 | E68: 2171.750037 | F68: 2477.032604 | G68: 2466.080282 | H68: 1990.854039 | I68: 1972.280138 | J68: 1704.903582 | K68: 1674.07915 | L68: 1563.980108 | M68: 1937.546808 | N68: 1749.849562 | O68: 1758.250541 | R68: LLH | U68: =I30 -> 6604.852323 | V68: =U68/U66 -> 1
C69: Demand | D69: =BL18*$V$68 -> 1833.560669 | E69: 1692.069568 | F69: 2189.234007 | G69: 1985.00999 | H69: 1802.552909 | I69: 1980.70194 | J69: 1937.628606 | K69: 1816.164743 | L69: 1957.737106 | M69: 2162.051474 | N69: 2107.011505 | O69: 2039.107447 | P69: Annual = | Q69: =SUM(D69:P69) -> 23502.82996 | R69: Demand
B72: Final PF Load Billing Determinants
D73: =RateSummary!$C$10 -> 2022 | E73: =RateSummary!$D$10 -> 2023 | F73: =RateSummary!$E$10 -> 2024 | G73: =RateSummary!$F$10 -> 2025 | H73: =RateSummary!$G$10 -> 2026 | I73: =RateSummary!$H$10 -> 2027
C75: Load forecast | D75: =U47 -> 6531.637751 | E75: =U51 -> 6581.531091 | F75: =U55 -> 6539.325574 | G75: =U59 -> 6604.852323 | H75: =U63 -> 6557.241534 | I75: =U67 -> 6604.852323
C77: Loads (GWh) | D77: =T47 -> 57217.1467 | E77: =T51 -> 57654.21235 | F77: =T55 -> 57441.43584 | G77: =T59 -> 57858.50635 | H77: =T63 -> 57441.43584 | I77: =T67 -> 57858.50635

Sheet PF Exchange
B1: Billing Determinants Needed for Rates Analysis Model | P1: Not printed in documentation.
A2: TOC | B2: =Cover!$C$14 -> RAMmodel_REP2022.xls
A3: é
D4: =+DATE(Init!$C$9-1,10,1) -> 2021-10-01 | E4: =+EOMONTH(D4,0)+1 -> 2021-11-01 | F4: 2021-12-01 | G4: 2022-01-01 | H4: 2022-02-01 | I4: 2022-03-01 | J4: 2022-04-01 | K4: 2022-05-01 | L4: 2022-06-01 | M4: 2022-07-01 | N4: 2022-08-01 | O4: 2022-09-01 | P4: 2022-10-01 | Q4: 2022-11-01 | R4: 2022-12-01 | S4: 2023-01-01 | T4: 2023-02-01 | U4: 2023-03-01 | V4: 2023-04-01 | W4: 2023-05-01 | X4: 2023-06-01 | Y4: 2023-07-01 | Z4: 2023-08-01 | AA4: 2023-09-01 | AB4: 2023-10-01 | AC4: 2023-11-01 | AD4: 2023-12-01 | AE4: 2024-01-01 | AF4: 2024-02-01 | AG4: 2024-03-01 | AH4: 2024-04-01 | AI4: 2024-05-01 | AJ4: 2024-06-01 | AK4: =+EOMONTH(AJ4,0)+1 -> 2024-07-01 | AL4: 2024-08-01 | AM4: 2024-09-01 | AN4: 2024-10-01 | AO4: 2024-11-01 | AP4: 2024-12-01 | AQ4: 2025-01-01 | AR4: 2025-02-01 | AS4: 2025-03-01 | AT4: 2025-04-01 | AU4: 2025-05-01 | AV4: 2025-06-01 | AW4: 2025-07-01 | AX4: 2025-08-01 | AY4: 2025-09-01 | AZ4: 2025-10-01 | BA4: 2025-11-01 | BB4: 2025-12-01 | BC4: 2026-01-01 | BD4: 2026-02-01 | BE4: 2026-03-01 | BF4: 2026-04-01 | BG4: 2026-05-01 | BH4: 2026-06-01 | BI4: 2026-07-01 | BJ4: 2026-08-01 | BK4: 2026-09-01 | BL4: 2026-10-01 | BM4: 2026-11-01 | BN4: 2026-12-01 | BO4: 2027-01-01 | BP4: 2027-02-01 | BQ4: =+EOMONTH(BP4,0)+1 -> 2027-03-01 | BR4: 2027-04-01 | BS4: 2027-05-01 | BT4: 2027-06-01 | BU4: 2027-07-01 | BV4: 2027-08-01 | BW4: 2027-09-01
B5: Public Load
C6: HLH | D6: ='PF Public'!D12 -> 2632603.448 | E6: ='PF Public'!E12 -> 3020734.101 | F6: ='PF Public'!F12 -> 3383739.639 | G6: ='PF Public'!G12 -> 3262342.751 | H6: ='PF Public'!H12 -> 2828177.244 | I6: ='PF Public'!I12 -> 2989277.209 | J6: ='PF Public'!J12 -> 2490490.657 | K6: ='PF Public'!K12 -> 2596543.13 | L6: ='PF Public'!L12 -> 2783828.22 | M6: ='PF Public'!M12 -> 2848503.731 | N6: ='PF Public'!N12 -> 2923484.155 | O6: ='PF Public'!O12 -> 2562607.356 | P6: ='PF Public'!P12 -> 2660206.663 | Q6: ='PF Public'!Q12 -> 3058206.531 | R6: ='PF Public'!R12 -> 3450553.974 | S6: ='PF Public'!S12 -> 3277283.628 | T6: ='PF Public'!T12 -> 2861749.837 | U6: ='PF Public'!U12 -> 3026330.538 | V6: ='PF Public'!V12 -> 2478652.701 | W6: ='PF Public'!W12 -> 2603794.151 | X6: ='PF Public'!X12 -> 2748815.275 | Y6: ='PF Public'!Y12 -> 2874517.666 | Z6: ='PF Public'!Z12 -> 2955545.762 | AA6: ='PF Public'!AA12 -> 2596477.801 | AB6: ='PF Public'!AB12 -> 2619528.883 | AC6: ='PF Public'!AC12 -> 3083324.255 | AD6: ='PF Public'!AD12 -> 3380417.903 | AE6: ='PF Public'!AE12 -> 3229616.655 | AF6: ='PF Public'!AF12 -> 2855668.946 | AG6: ='PF Public'!AG12 -> 2970379.242 | AH6: ='PF Public'!AH12 -> 2490150.419 | AI6: ='PF Public'!AI12 -> 2624404.533 | AJ6: ='PF Public'!AJ12 -> 2799063.386 | AK6: ='PF Public'!AK12 -> 2857431.516 | AL6: ='PF Public'!AL12 -> 2929335.1 | AM6: ='PF Public'!AM12 -> 2580324.78 | AN6: ='PF Public'!AN12 -> 2646803.148 | AO6: ='PF Public'!AO12 -> 3126123.011 | AP6: ='PF Public'!AP12 -> 3448106.874 | AQ6: ='PF Public'!AQ12 -> 3243939.709 | AR6: ='PF Public'!AR12 -> 2888466.741 | AS6: ='PF Public'!AS12 -> 3009796.759 | AT6: ='PF Public'!AT12 -> 2472758.712 | AU6: ='PF Public'!AU12 -> 2628431.357 | AV6: ='PF Public'!AV12 -> 2758760.554 | AW6: ='PF Public'!AW12 -> 2878091.079 | AX6: ='PF Public'!AX12 -> 2960629.615 | AY6: ='PF Public'!AY12 -> 2613579.324 | AZ6: ='PF Public'!AZ12 -> 2619528.883 | BA6: ='PF Public'!BA12 -> 3083324.255 | BB6: ='PF Public'!BB12 -> 3380417.903 | BC6: ='PF Public'!BC12 -> 3229616.655 | BD6: ='PF Public'!BD12 -> 2855668.946 | BE6: ='PF Public'!BE12 -> 2970379.242 | BF6: ='PF Public'!BF12 -> 2490150.419 | BG6: ='PF Public'!BG12 -> 2624404.533 | BH6: ='PF Public'!BH12 -> 2799063.386 | BI6: ='PF Public'!BI12 -> 2857431.516 | BJ6: ='PF Public'!BJ12 -> 2929335.1 | BK6: ='PF Public'!BK12 -> 2580324.78 | BL6: ='PF Public'!BL12 -> 2646803.148 | BM6: ='PF Public'!BM12 -> 3126123.011 | BN6: ='PF Public'!BN12 -> 3448106.874 | BO6: ='PF Public'!BO12 -> 3243939.709 | BP6: ='PF Public'!BP12 -> 2888466.741 | BQ6: ='PF Public'!BQ12 -> 3009796.759 | BR6: ='PF Public'!BR12 -> 2472758.712 | BS6: ='PF Public'!BS12 -> 2628431.357 | BT6: ='PF Public'!BT12 -> 2758760.554 | BU6: ='PF Public'!BU12 -> 2878091.079 | BV6: ='PF Public'!BV12 -> 2960629.615 | BW6: ='PF Public'!BW12 -> 2613579.324
C7: LLH | D7: ='PF Public'!D13 -> 1711976.133 | E7: ='PF Public'!E13 -> 2100676.401 | F7: ='PF Public'!F13 -> 2481647.956 | G7: ='PF Public'!G13 -> 2421878.653 | H7: ='PF Public'!H13 -> 1946998.585 | I7: ='PF Public'!I13 -> 1965563.07 | J7: ='PF Public'!J13 -> 1636396.312 | K7: ='PF Public'!K13 -> 1725175.994 | L7: ='PF Public'!L13 -> 1575249.077 | M7: ='PF Public'!M13 -> 1894679.116 | N7: ='PF Public'!N13 -> 1722930.744 | O7: ='PF Public'!O13 -> 1711643.015 | P7: ='PF Public'!P13 -> 1721962.12 | Q7: ='PF Public'!Q13 -> 2117401.702 | R7: ='PF Public'!R13 -> 2476926.445 | S7: ='PF Public'!S13 -> 2471344.788 | T7: ='PF Public'!T13 -> 1969906.558 | U7: ='PF Public'!U13 -> 1987135.133 | V7: ='PF Public'!V13 -> 1702027.277 | W7: ='PF Public'!W13 -> 1652455.757 | X7: ='PF Public'!X13 -> 1553324.059 | Y7: ='PF Public'!Y13 -> 1921586.428 | Z7: ='PF Public'!Z13 -> 1746287.399 | AA7: ='PF Public'!AA13 -> 1741720.164 | AB7: ='PF Public'!AB13 -> 1704861.079 | AC7: ='PF Public'!AC13 -> 2153146.691 | AD7: ='PF Public'!AD13 -> 2482253.888 | AE7: ='PF Public'!AE13 -> 2415000.069 | AF7: ='PF Public'!AF13 -> 1968187.424 | AG7: ='PF Public'!AG13 -> 1950993.315 | AH7: ='PF Public'!AH13 -> 1639947.498 | AI7: ='PF Public'!AI13 -> 1752429.595 | AJ7: ='PF Public'!AJ13 -> 1588485.707 | AK7: ='PF Public'!AK13 -> 1910410.67 | AL7: ='PF Public'!AL13 -> 1728379.818 | AM7: ='PF Public'!AM13 -> 1727694.467 | AN7: ='PF Public'!AN13 -> 1716412.617 | AO7: ='PF Public'!AO13 -> 2171750.037 | AP7: ='PF Public'!AP13 -> 2477032.604 | AQ7: ='PF Public'!AQ13 -> 2466080.282 | AR7: ='PF Public'!AR13 -> 1990854.039 | AS7: ='PF Public'!AS13 -> 1972280.138 | AT7: ='PF Public'!AT13 -> 1704903.582 | AU7: ='PF Public'!AU13 -> 1674079.15 | AV7: ='PF Public'!AV13 -> 1563980.108 | AW7: ='PF Public'!AW13 -> 1937546.808 | AX7: ='PF Public'!AX13 -> 1749849.562 | AY7: ='PF Public'!AY13 -> 1758250.541 | AZ7: ='PF Public'!AZ13 -> 1704861.079 | BA7: ='PF Public'!BA13 -> 2153146.691 | BB7: ='PF Public'!BB13 -> 2482253.888 | BC7: ='PF Public'!BC13 -> 2415000.069 | BD7: ='PF Public'!BD13 -> 1968187.424 | BE7: ='PF Public'!BE13 -> 1950993.315 | BF7: ='PF Public'!BF13 -> 1639947.498 | BG7: ='PF Public'!BG13 -> 1752429.595 | BH7: ='PF Public'!BH13 -> 1588485.707 | BI7: ='PF Public'!BI13 -> 1910410.67 | BJ7: ='PF Public'!BJ13 -> 1728379.818 | BK7: ='PF Public'!BK13 -> 1727694.467 | BL7: ='PF Public'!BL13 -> 1716412.617 | BM7: ='PF Public'!BM13 -> 2171750.037 | BN7: ='PF Public'!BN13 -> 2477032.604 | BO7: ='PF Public'!BO13 -> 2466080.282 | BP7: ='PF Public'!BP13 -> 1990854.039 | BQ7: ='PF Public'!BQ13 -> 1972280.138 | BR7: ='PF Public'!BR13 -> 1704903.582 | BS7: ='PF Public'!BS13 -> 1674079.15 | BT7: ='PF Public'!BT13 -> 1563980.108 | BU7: ='PF Public'!BU13 -> 1937546.808 | BV7: ='PF Public'!BV13 -> 1749849.562 | BW7: ='PF Public'!BW13 -> 1758250.541
